Workbook

Sheet Auswertung
AM1: Platz 1 | AN1: =VERKETTEN_P1(AB5:AB190,CHAR(10)) -> Glubschaugen.JPG von Nadja Cassim über_den_Wolken-2.jpg von Oliver von Guérard | AP1: Platz 2 | AQ1: =VERKETTEN_P1(AC5:AC190,CHAR(10)) ->  | AS1: Platz 3 | AT1: =VERKETTEN_P1(AD5:AD190,CHAR(10)) -> Turm im Nebel.JPG von Susanne Deinhardt
AM2: Bestes Bild | AP2: Bestes Bild | AS2: Bestes Bild
AM3: Platz 1 | AN3: =VERKETTEN_P1('Statistik nach Autor(in)'!E6:'Statistik nach Autor(in)'!E35,CHAR(10)) -> Oliver von Guérard | AP3: Platz 2 | AQ3: =VERKETTEN_P1('Statistik nach Autor(in)'!F6:'Statistik nach Autor(in)'!F35,CHAR(10)) -> Susanne Deinhardt | AS3: Platz 3 | AT3: =VERKETTEN_P1('Statistik nach Autor(in)'!G6:'Statistik nach Autor(in)'!G35,CHAR(10)) -> Chris Finsterer Jan Grünler
B4: Bildname | C4: Juror 1 | D4: Juror 2 | E4: Juror 3 | F4: Juror 4 | G4: Juror 5 | H4: Juror 6 | I4: Juror 7 | J4: Juror 8 | K4: Juror 9 | L4: Juror 10 | M4: Juror 11 | N4: Juror 12 | O4: Juror 13 | P4: Juror 14 | Q4: Juror 15 | R4: Juror 16 | S4: Juror 17 | T4: Juror 18 | U4: Juror 19 | V4: Juror 20 | W4: Punkte | X4: Schnitt | Y4: Platz | Z4: Autor(in) | AA4: abwesend | AB4: Platz 1 | AC4: Platz 2 | AD4: Platz 3 | AE4: Platz 4 | AF4: Platz 5 | AG4: Platz 6 | AH4: Platz 7 | AI4: Platz 8 | AJ4: Platz 9 | AK4: Platz 10 | AM4: Bester Fotograf | AP4: Bester Fotograf | AS4: Bester Fotograf
A5: 1 | B5: Glubschaugen.JPG | C5: 9 | D5: 0 | E5: 7 | F5: 10 | G5: 10 | H5: 10 | I5: 8 | J5: 10 | W5: =IF(Tabelle_Auswertung[[#This Row],[Bildname]]<>"", IF(Tabelle_Auswertung[[#This Row],[abwesend]]="ja", SUM(Tabelle_Auswertung[[#This Row],[Juror 1]:[Juror 20]])/COUNT(Tabelle_Auswertung[[#This Row],[Juror 1]:[Juror 20]])*(COUNT(Tabelle_Auswertung[[#This Row],[Juror 1]:[Juror 20]])-1), SUM(Tabelle_Auswertung[[#This Row],[Juror 1]:[Juror 20]]) ), " - ") -> 64 | X5: =IF(Tabelle_Auswertung[[#This Row],[Bildname]]<>"",IF(Tabelle_Auswertung[[#This Row],[Punkte]]>0,AVERAGE(Tabelle_Auswertung[[#This Row],[Juror 1]:[Juror 20]])," - ")," - ") -> 8.00 | Y5: =IF(Tabelle_Auswertung[[#This Row],[Bildname]]<>"",IF(Tabelle_Auswertung[[#This Row],[Punkte]]>0,RANK(Tabelle_Auswertung[[#This Row],[Punkte]],[Punkte],0)," - ")," - ") -> 1 | Z5: Nadja Cassim | AB5: =IF(Tabelle_Auswertung[[#This Row],[Platz]]=1,CONCATENATE(Tabelle_Auswertung[[#This Row],[Bildname]]," von ",Tabelle_Auswertung[[#This Row],[Autor(in)]]),"") -> Glubschaugen.JPG von Nadja Cassim | AC5: =IF(Tabelle_Auswertung[[#This Row],[Platz]]=2,CONCATENATE(Tabelle_Auswertung[[#This Row],[Bildname]]," von ",Tabelle_Auswertung[[#This Row],[Autor(in)]]),"") ->  | AD5: =IF(Tabelle_Auswertung[[#This Row],[Platz]]=3,CONCATENATE(Tabelle_Auswertung[[#This Row],[Bildname]]," von ",Tabelle_Auswertung[[#This Row],[Autor(in)]]),"") ->  | AE5: =IF(Tabelle_Auswertung[[#This Row],[Platz]]=4,CONCATENATE(Tabelle_Auswertung[[#This Row],[Bildname]]," von ",Tabelle_Auswertung[[#This Row],[Autor(in)]]),"") ->  | AF5: =IF(Tabelle_Auswertung[[#This Row],[Platz]]=5,CONCATENATE(Tabelle_Auswertung[[#This Row],[Bildname]]," von ",Tabelle_Auswertung[[#This Row],[Autor(in)]]),"") ->  | AG5: =IF(Tabelle_Auswertung[[#This Row],[Platz]]=6,CONCATENATE(Tabelle_Auswertung[[#This Row],[Bildname]]," von ",Tabelle_Auswertung[[#This Row],[Autor(in)]]),"") ->  | AH5: =IF(Tabelle_Auswertung[[#This Row],[Platz]]=7,CONCATENATE(Tabelle_Auswertung[[#This Row],[Bildname]]," von ",Tabelle_Auswertung[[#This Row],[Autor(in)]]),"") ->  | AI5: =IF(Tabelle_Auswertung[[#This Row],[Platz]]=8,CONCATENATE(Tabelle_Auswertung[[#This Row],[Bildname]]," von ",Tabelle_Auswertung[[#This Row],[Autor(in)]]),"") ->  | AJ5: =IF(Tabelle_Auswertung[[#This Row],[Platz]]=9,CONCATENATE(Tabelle_Auswertung[[#This Row],[Bildname]]," von ",Tabelle_Auswertung[[#This Row],[Autor(in)]]),"") ->  | AK5: =IF(Tabelle_Auswertung[[#This Row],[Platz]]=10,CONCATENATE(Tabelle_Auswertung[[#This Row],[Bildname]]," von ",Tabelle_Auswertung[[#This Row],[Autor(in)]]),"") -> 
A6: 2 | B6: über_den_Wolken-2.jpg | C6: 8 | D6: 9 | E6: 9 | F6: 10 | G6: 10 | H6: 10 | I6: 0 | J6: 8 | W6: =IF(Tabelle_Auswertung[[#This Row],[Bildname]]<>"", IF(Tabelle_Auswertung[[#This Row],[abwesend]]="ja", SUM(Tabelle_Auswertung[[#This Row],[Juror 1]:[Juror 20]])/COUNT(Tabelle_Auswertung[[#This Row],[Juror 1]:[Juror 20]])*(COUNT(Tabelle_Auswertung[[#This Row],[Juror 1]:[Juror 20]])-1), SUM(Tabelle_Auswertung[[#This Row],[Juror 1]:[Juror 20]]) ), " - ") -> 64 | X6: =IF(Tabelle_Auswertung[[#This Row],[Bildname]]<>"",IF(Tabelle_Auswertung[[#This Row],[Punkte]]>0,AVERAGE(Tabelle_Auswertung[[#This Row],[Juror 1]:[Juror 20]])," - ")," - ") -> 8.00 | Y6: =IF(Tabelle_Auswertung[[#This Row],[Bildname]]<>"",IF(Tabelle_Auswertung[[#This Row],[Punkte]]>0,RANK(Tabelle_Auswertung[[#This Row],[Punkte]],[Punkte],0)," - ")," - ") -> 1 | Z6: Oliver von Guérard | AB6: =IF(Tabelle_Auswertung[[#This Row],[Platz]]=1,CONCATENATE(Tabelle_Auswertung[[#This Row],[Bildname]]," von ",Tabelle_Auswertung[[#This Row],[Autor(in)]]),"") -> über_den_Wolken-2.jpg von Oliver von Guérard | AC6: =IF(Tabelle_Auswertung[[#This Row],[Platz]]=2,CONCATENATE(Tabelle_Auswertung[[#This Row],[Bildname]]," von ",Tabelle_Auswertung[[#This Row],[Autor(in)]]),"") ->  | AD6: =IF(Tabelle_Auswertung[[#This Row],[Platz]]=3,CONCATENATE(Tabelle_Auswertung[[#This Row],[Bildname]]," von ",Tabelle_Auswertung[[#This Row],[Autor(in)]]),"") ->  | AE6: =IF(Tabelle_Auswertung[[#This Row],[Platz]]=4,CONCATENATE(Tabelle_Auswertung[[#This Row],[Bildname]]," von ",Tabelle_Auswertung[[#This Row],[Autor(in)]]),"") ->  | AF6: =IF(Tabelle_Auswertung[[#This Row],[Platz]]=5,CONCATENATE(Tabelle_Auswertung[[#This Row],[Bildname]]," von ",Tabelle_Auswertung[[#This Row],[Autor(in)]]),"") ->  | AG6: =IF(Tabelle_Auswertung[[#This Row],[Platz]]=6,CONCATENATE(Tabelle_Auswertung[[#This Row],[Bildname]]," von ",Tabelle_Auswertung[[#This Row],[Autor(in)]]),"") ->  | AH6: =IF(Tabelle_Auswertung[[#This Row],[Platz]]=7,CONCATENATE(Tabelle_Auswertung[[#This Row],[Bildname]]," von ",Tabelle_Auswertung[[#This Row],[Autor(in)]]),"") ->  | AI6: =IF(Tabelle_Auswertung[[#This Row],[Platz]]=8,CONCATENATE(Tabelle_Auswertung[[#This Row],[Bildname]]," von ",Tabelle_Auswertung[[#This Row],[Autor(in)]]),"") ->  | AJ6: =IF(Tabelle_Auswertung[[#This Row],[Platz]]=9,CONCATENATE(Tabelle_Auswertung[[#This Row],[Bildname]]," von ",Tabelle_Auswertung[[#This Row],[Autor(in)]]),"") ->  | AK6: =IF(Tabelle_Auswertung[[#This Row],[Platz]]=10,CONCATENATE(Tabelle_Auswertung[[#This Row],[Bildname]]," von ",Tabelle_Auswertung[[#This Row],[Autor(in)]]),"") ->  | AM6: Eigenbewertung
A7: 3 | B7: Turm im Nebel.JPG | C7: 7 | D7: 10 | E7: 9 | F7: 10 | G7: 10 | H7: 10 | I7: 6 | J7: 8 | W7: =IF(Tabelle_Auswertung[[#This Row],[Bildname]]<>"", IF(Tabelle_Auswertung[[#This Row],[abwesend]]="ja", SUM(Tabelle_Auswertung[[#This Row],[Juror 1]:[Juror 20]])/COUNT(Tabelle_Auswertung[[#This Row],[Juror 1]:[Juror 20]])*(COUNT(Tabelle_Auswertung[[#This Row],[Juror 1]:[Juror 20]])-1), SUM(Tabelle_Auswertung[[#This Row],[Juror 1]:[Juror 20]]) ), " - ") -> 61.25 | X7: =IF(Tabelle_Auswertung[[#This Row],[Bildname]]<>"",IF(Tabelle_Auswertung[[#This Row],[Punkte]]>0,AVERAGE(Tabelle_Auswertung[[#This Row],[Juror 1]:[Juror 20]])," - ")," - ") -> 8.75 | Y7: =IF(Tabelle_Auswertung[[#This Row],[Bildname]]<>"",IF(Tabelle_Auswertung[[#This Row],[Punkte]]>0,RANK(Tabelle_Auswertung[[#This Row],[Punkte]],[Punkte],0)," - ")," - ") -> 3 | Z7: Susanne Deinhardt | AA7: ja | AB7: =IF(Tabelle_Auswertung[[#This Row],[Platz]]=1,CONCATENATE(Tabelle_Auswertung[[#This Row],[Bildname]]," von ",Tabelle_Auswertung[[#This Row],[Autor(in)]]),"") ->  | AC7: =IF(Tabelle_Auswertung[[#This Row],[Platz]]=2,CONCATENATE(Tabelle_Auswertung[[#This Row],[Bildname]]," von ",Tabelle_Auswertung[[#This Row],[Autor(in)]]),"") ->  | AD7: =IF(Tabelle_Auswertung[[#This Row],[Platz]]=3,CONCATENATE(Tabelle_Auswertung[[#This Row],[Bildname]]," von ",Tabelle_Auswertung[[#This Row],[Autor(in)]]),"") -> Turm im Nebel.JPG von Susanne Deinhardt | AE7: =IF(Tabelle_Auswertung[[#This Row],[Platz]]=4,CONCATENATE(Tabelle_Auswertung[[#This Row],[Bildname]]," von ",Tabelle_Auswertung[[#This Row],[Autor(in)]]),"") ->  | AF7: =IF(Tabelle_Auswertung[[#This Row],[Platz]]=5,CONCATENATE(Tabelle_Auswertung[[#This Row],[Bildname]]," von ",Tabelle_Auswertung[[#This Row],[Autor(in)]]),"") ->  | AG7: =IF(Tabelle_Auswertung[[#This Row],[Platz]]=6,CONCATENATE(Tabelle_Auswertung[[#This Row],[Bildname]]," von ",Tabelle_Auswertung[[#This Row],[Autor(in)]]),"") ->  | AH7: =IF(Tabelle_Auswertung[[#This Row],[Platz]]=7,CONCATENATE(Tabelle_Auswertung[[#This Row],[Bildname]]," von ",Tabelle_Auswertung[[#This Row],[Autor(in)]]),"") ->  | AI7: =IF(Tabelle_Auswertung[[#This Row],[Platz]]=8,CONCATENATE(Tabelle_Auswertung[[#This Row],[Bildname]]," von ",Tabelle_Auswertung[[#This Row],[Autor(in)]]),"") ->  | AJ7: =IF(Tabelle_Auswertung[[#This Row],[Platz]]=9,CONCATENATE(Tabelle_Auswertung[[#This Row],[Bildname]]," von ",Tabelle_Auswertung[[#This Row],[Autor(in)]]),"") ->  | AK7: =IF(Tabelle_Auswertung[[#This Row],[Platz]]=10,CONCATENATE(Tabelle_Auswertung[[#This Row],[Bildname]]," von ",Tabelle_Auswertung[[#This Row],[Autor(in)]]),"") -> 
A8: 4 | B8: Flying Banana.jpg | C8: 7 | D8: 8 | E8: 8 | F8: 8 | G8: 0 | H8: 10 | I8: 9 | J8: 10 | W8: =IF(Tabelle_Auswertung[[#This Row],[Bildname]]<>"", IF(Tabelle_Auswertung[[#This Row],[abwesend]]="ja", SUM(Tabelle_Auswertung[[#This Row],[Juror 1]:[Juror 20]])/COUNT(Tabelle_Auswertung[[#This Row],[Juror 1]:[Juror 20]])*(COUNT(Tabelle_Auswertung[[#This Row],[Juror 1]:[Juror 20]])-1), SUM(Tabelle_Auswertung[[#This Row],[Juror 1]:[Juror 20]]) ), " - ") -> 60 | X8: =IF(Tabelle_Auswertung[[#This Row],[Bildname]]<>"",IF(Tabelle_Auswertung[[#This Row],[Punkte]]>0,AVERAGE(Tabelle_Auswertung[[#This Row],[Juror 1]:[Juror 20]])," - ")," - ") -> 7.50 | Y8: =IF(Tabelle_Auswertung[[#This Row],[Bildname]]<>"",IF(Tabelle_Auswertung[[#This Row],[Punkte]]>0,RANK(Tabelle_Auswertung[[#This Row],[Punkte]],[Punkte],0)," - ")," - ") -> 4 | Z8: Jan Grünler | AB8: =IF(Tabelle_Auswertung[[#This Row],[Platz]]=1,CONCATENATE(Tabelle_Auswertung[[#This Row],[Bildname]]," von ",Tabelle_Auswertung[[#This Row],[Autor(in)]]),"") ->  | AC8: =IF(Tabelle_Auswertung[[#This Row],[Platz]]=2,CONCATENATE(Tabelle_Auswertung[[#This Row],[Bildname]]," von ",Tabelle_Auswertung[[#This Row],[Autor(in)]]),"") ->  | AD8: =IF(Tabelle_Auswertung[[#This Row],[Platz]]=3,CONCATENATE(Tabelle_Auswertung[[#This Row],[Bildname]]," von ",Tabelle_Auswertung[[#This Row],[Autor(in)]]),"") ->  | AE8: =IF(Tabelle_Auswertung[[#This Row],[Platz]]=4,CONCATENATE(Tabelle_Auswertung[[#This Row],[Bildname]]," von ",Tabelle_Auswertung[[#This Row],[Autor(in)]]),"") -> Flying Banana.jpg von Jan Grünler | AF8: =IF(Tabelle_Auswertung[[#This Row],[Platz]]=5,CONCATENATE(Tabelle_Auswertung[[#This Row],[Bildname]]," von ",Tabelle_Auswertung[[#This Row],[Autor(in)]]),"") ->  | AG8: =IF(Tabelle_Auswertung[[#This Row],[Platz]]=6,CONCATENATE(Tabelle_Auswertung[[#This Row],[Bildname]]," von ",Tabelle_Auswertung[[#This Row],[Autor(in)]]),"") ->  | AH8: =IF(Tabelle_Auswertung[[#This Row],[Platz]]=7,CONCATENATE(Tabelle_Auswertung[[#This Row],[Bildname]]," von ",Tabelle_Auswertung[[#This Row],[Autor(in)]]),"") ->  | AI8: =IF(Tabelle_Auswertung[[#This Row],[Platz]]=8,CONCATENATE(Tabelle_Auswertung[[#This Row],[Bildname]]," von ",Tabelle_Auswertung[[#This Row],[Autor(in)]]),"") ->  | AJ8: =IF(Tabelle_Auswertung[[#This Row],[Platz]]=9,CONCATENATE(Tabelle_Auswertung[[#This Row],[Bildname]]," von ",Tabelle_Auswertung[[#This Row],[Autor(in)]]),"") ->  | AK8: =IF(Tabelle_Auswertung[[#This Row],[Platz]]=10,CONCATENATE(Tabelle_Auswertung[[#This Row],[Bildname]]," von ",Tabelle_Auswertung[[#This Row],[Autor(in)]]),"") -> 
A9: 5 | B9: tower bridge.jpg | C9: 8 | D9: 10 | E9: 7 | F9: 10 | G9: 9 | H9: 9 | I9: 6 | J9: 0 | W9: =IF(Tabelle_Auswertung[[#This Row],[Bildname]]<>"", IF(Tabelle_Auswertung[[#This Row],[abwesend]]="ja", SUM(Tabelle_Auswertung[[#This Row],[Juror 1]:[Juror 20]])/COUNT(Tabelle_Auswertung[[#This Row],[Juror 1]:[Juror 20]])*(COUNT(Tabelle_Auswertung[[#This Row],[Juror 1]:[Juror 20]])-1), SUM(Tabelle_Auswertung[[#This Row],[Juror 1]:[Juror 20]]) ), " - ") -> 59 | X9: =IF(Tabelle_Auswertung[[#This Row],[Bildname]]<>"",IF(Tabelle_Auswertung[[#This Row],[Punkte]]>0,AVERAGE(Tabelle_Auswertung[[#This Row],[Juror 1]:[Juror 20]])," - ")," - ") -> 7.38 | Y9: =IF(Tabelle_Auswertung[[#This Row],[Bildname]]<>"",IF(Tabelle_Auswertung[[#This Row],[Punkte]]>0,RANK(Tabelle_Auswertung[[#This Row],[Punkte]],[Punkte],0)," - ")," - ") -> 5 | Z9: Gerhard Rieß | AB9: =IF(Tabelle_Auswertung[[#This Row],[Platz]]=1,CONCATENATE(Tabelle_Auswertung[[#This Row],[Bildname]]," von ",Tabelle_Auswertung[[#This Row],[Autor(in)]]),"") ->  | AC9: =IF(Tabelle_Auswertung[[#This Row],[Platz]]=2,CONCATENATE(Tabelle_Auswertung[[#This Row],[Bildname]]," von ",Tabelle_Auswertung[[#This Row],[Autor(in)]]),"") ->  | AD9: =IF(Tabelle_Auswertung[[#This Row],[Platz]]=3,CONCATENATE(Tabelle_Auswertung[[#This Row],[Bildname]]," von ",Tabelle_Auswertung[[#This Row],[Autor(in)]]),"") ->  | AE9: =IF(Tabelle_Auswertung[[#This Row],[Platz]]=4,CONCATENATE(Tabelle_Auswertung[[#This Row],[Bildname]]," von ",Tabelle_Auswertung[[#This Row],[Autor(in)]]),"") ->  | AF9: =IF(Tabelle_Auswertung[[#This Row],[Platz]]=5,CONCATENATE(Tabelle_Auswertung[[#This Row],[Bildname]]," von ",Tabelle_Auswertung[[#This Row],[Autor(in)]]),"") -> tower bridge.jpg von Gerhard Rieß | AG9: =IF(Tabelle_Auswertung[[#This Row],[Platz]]=6,CONCATENATE(Tabelle_Auswertung[[#This Row],[Bildname]]," von ",Tabelle_Auswertung[[#This Row],[Autor(in)]]),"") ->  | AH9: =IF(Tabelle_Auswertung[[#This Row],[Platz]]=7,CONCATENATE(Tabelle_Auswertung[[#This Row],[Bildname]]," von ",Tabelle_Auswertung[[#This Row],[Autor(in)]]),"") ->  | AI9: =IF(Tabelle_Auswertung[[#This Row],[Platz]]=8,CONCATENATE(Tabelle_Auswertung[[#This Row],[Bildname]]," von ",Tabelle_Auswertung[[#This Row],[Autor(in)]]),"") ->  | AJ9: =IF(Tabelle_Auswertung[[#This Row],[Platz]]=9,CONCATENATE(Tabelle_Auswertung[[#This Row],[Bildname]]," von ",Tabelle_Auswertung[[#This Row],[Autor(in)]]),"") ->  | AK9: =IF(Tabelle_Auswertung[[#This Row],[Platz]]=10,CONCATENATE(Tabelle_Auswertung[[#This Row],[Bildname]]," von ",Tabelle_Auswertung[[#This Row],[Autor(in)]]),"") -> 
A10: 6 | B10: Löwenzahn.jpg | C10: 8 | D10: 10 | E10: 8 | F10: 10 | G10: 9 | H10: 8 | I10: 6 | J10: 8 | W10: =IF(Tabelle_Auswertung[[#This Row],[Bildname]]<>"", IF(Tabelle_Auswertung[[#This Row],[abwesend]]="ja", SUM(Tabelle_Auswertung[[#This Row],[Juror 1]:[Juror 20]])/COUNT(Tabelle_Auswertung[[#This Row],[Juror 1]:[Juror 20]])*(COUNT(Tabelle_Auswertung[[#This Row],[Juror 1]:[Juror 20]])-1), SUM(Tabelle_Auswertung[[#This Row],[Juror 1]:[Juror 20]]) ), " - ") -> 58.625 | X10: =IF(Tabelle_Auswertung[[#This Row],[Bildname]]<>"",IF(Tabelle_Auswertung[[#This Row],[Punkte]]>0,AVERAGE(Tabelle_Auswertung[[#This Row],[Juror 1]:[Juror 20]])," - ")," - ") -> 8.38 | Y10: =IF(Tabelle_Auswertung[[#This Row],[Bildname]]<>"",IF(Tabelle_Auswertung[[#This Row],[Punkte]]>0,RANK(Tabelle_Auswertung[[#This Row],[Punkte]],[Punkte],0)," - ")," - ") -> 6 | Z10: Susanne Deinhardt | AA10: ja | AB10: =IF(Tabelle_Auswertung[[#This Row],[Platz]]=1,CONCATENATE(Tabelle_Auswertung[[#This Row],[Bildname]]," von ",Tabelle_Auswertung[[#This Row],[Autor(in)]]),"") ->  | AC10: =IF(Tabelle_Auswertung[[#This Row],[Platz]]=2,CONCATENATE(Tabelle_Auswertung[[#This Row],[Bildname]]," von ",Tabelle_Auswertung[[#This Row],[Autor(in)]]),"") ->  | AD10: =IF(Tabelle_Auswertung[[#This Row],[Platz]]=3,CONCATENATE(Tabelle_Auswertung[[#This Row],[Bildname]]," von ",Tabelle_Auswertung[[#This Row],[Autor(in)]]),"") ->  | AE10: =IF(Tabelle_Auswertung[[#This Row],[Platz]]=4,CONCATENATE(Tabelle_Auswertung[[#This Row],[Bildname]]," von ",Tabelle_Auswertung[[#This Row],[Autor(in)]]),"") ->  | AF10: =IF(Tabelle_Auswertung[[#This Row],[Platz]]=5,CONCATENATE(Tabelle_Auswertung[[#This Row],[Bildname]]," von ",Tabelle_Auswertung[[#This Row],[Autor(in)]]),"") ->  | AG10: =IF(Tabelle_Auswertung[[#This Row],[Platz]]=6,CONCATENATE(Tabelle_Auswertung[[#This Row],[Bildname]]," von ",Tabelle_Auswertung[[#This Row],[Autor(in)]]),"") -> Löwenzahn.jpg von Susanne Deinhardt | AH10: =IF(Tabelle_Auswertung[[#This Row],[Platz]]=7,CONCATENATE(Tabelle_Auswertung[[#This Row],[Bildname]]," von ",Tabelle_Auswertung[[#This Row],[Autor(in)]]),"") ->  | AI10: =IF(Tabelle_Auswertung[[#This Row],[Platz]]=8,CONCATENATE(Tabelle_Auswertung[[#This Row],[Bildname]]," von ",Tabelle_Auswertung[[#This Row],[Autor(in)]]),"") ->  | AJ10: =IF(Tabelle_Auswertung[[#This Row],[Platz]]=9,CONCATENATE(Tabelle_Auswertung[[#This Row],[Bildname]]," von ",Tabelle_Auswertung[[#This Row],[Autor(in)]]),"") ->  | AK10: =IF(Tabelle_Auswertung[[#This Row],[Platz]]=10,CONCATENATE(Tabelle_Auswertung[[#This Row],[Bildname]]," von ",Tabelle_Auswertung[[#This Row],[Autor(in)]]),"") -> 
A11: 7 | B11: Rummel.jpg | C11: 10 | D11: 9 | E11: 7 | F11: 0 | G11: 8 | H11: 9 | I11: 7 | J11: 8 | W11: =IF(Tabelle_Auswertung[[#This Row],[Bildname]]<>"", IF(Tabelle_Auswertung[[#This Row],[abwesend]]="ja", SUM(Tabelle_Auswertung[[#This Row],[Juror 1]:[Juror 20]])/COUNT(Tabelle_Auswertung[[#This Row],[Juror 1]:[Juror 20]])*(COUNT(Tabelle_Auswertung[[#This Row],[Juror 1]:[Juror 20]])-1), SUM(Tabelle_Auswertung[[#This Row],[Juror 1]:[Juror 20]]) ), " - ") -> 58 | X11: =IF(Tabelle_Auswertung[[#This Row],[Bildname]]<>"",IF(Tabelle_Auswertung[[#This Row],[Punkte]]>0,AVERAGE(Tabelle_Auswertung[[#This Row],[Juror 1]:[Juror 20]])," - ")," - ") -> 7.25 | Y11: =IF(Tabelle_Auswertung[[#This Row],[Bildname]]<>"",IF(Tabelle_Auswertung[[#This Row],[Punkte]]>0,RANK(Tabelle_Auswertung[[#This Row],[Punkte]],[Punkte],0)," - ")," - ") -> 7 | Z11: Chris Finsterer | AB11: =IF(Tabelle_Auswertung[[#This Row],[Platz]]=1,CONCATENATE(Tabelle_Auswertung[[#This Row],[Bildname]]," von ",Tabelle_Auswertung[[#This Row],[Autor(in)]]),"") ->  | AC11: =IF(Tabelle_Auswertung[[#This Row],[Platz]]=2,CONCATENATE(Tabelle_Auswertung[[#This Row],[Bildname]]," von ",Tabelle_Auswertung[[#This Row],[Autor(in)]]),"") ->  | AD11: =IF(Tabelle_Auswertung[[#This Row],[Platz]]=3,CONCATENATE(Tabelle_Auswertung[[#This Row],[Bildname]]," von ",Tabelle_Auswertung[[#This Row],[Autor(in)]]),"") ->  | AE11: =IF(Tabelle_Auswertung[[#This Row],[Platz]]=4,CONCATENATE(Tabelle_Auswertung[[#This Row],[Bildname]]," von ",Tabelle_Auswertung[[#This Row],[Autor(in)]]),"") ->  | AF11: =IF(Tabelle_Auswertung[[#This Row],[Platz]]=5,CONCATENATE(Tabelle_Auswertung[[#This Row],[Bildname]]," von ",Tabelle_Auswertung[[#This Row],[Autor(in)]]),"") ->  | AG11: =IF(Tabelle_Auswertung[[#This Row],[Platz]]=6,CONCATENATE(Tabelle_Auswertung[[#This Row],[Bildname]]," von ",Tabelle_Auswertung[[#This Row],[Autor(in)]]),"") ->  | AH11: =IF(Tabelle_Auswertung[[#This Row],[Platz]]=7,CONCATENATE(Tabelle_Auswertung[[#This Row],[Bildname]]," von ",Tabelle_Auswertung[[#This Row],[Autor(in)]]),"") -> Rummel.jpg von Chris Finsterer | AI11: =IF(Tabelle_Auswertung[[#This Row],[Platz]]=8,CONCATENATE(Tabelle_Auswertung[[#This Row],[Bildname]]," von ",Tabelle_Auswertung[[#This Row],[Autor(in)]]),"") ->  | AJ11: =IF(Tabelle_Auswertung[[#This Row],[Platz]]=9,CONCATENATE(Tabelle_Auswertung[[#This Row],[Bildname]]," von ",Tabelle_Auswertung[[#This Row],[Autor(in)]]),"") ->  | AK11: =IF(Tabelle_Auswertung[[#This Row],[Platz]]=10,CONCATENATE(Tabelle_Auswertung[[#This Row],[Bildname]]," von ",Tabelle_Auswertung[[#This Row],[Autor(in)]]),"") -> 
A12: 8 | B12: wedding rings.jpg | C12: 8 | D12: 8 | E12: 9 | F12: 10 | G12: 0 | H12: 8 | I12: 6 | J12: 9 | W12: =IF(Tabelle_Auswertung[[#This Row],[Bildname]]<>"", IF(Tabelle_Auswertung[[#This Row],[abwesend]]="ja", SUM(Tabelle_Auswertung[[#This Row],[Juror 1]:[Juror 20]])/COUNT(Tabelle_Auswertung[[#This Row],[Juror 1]:[Juror 20]])*(COUNT(Tabelle_Auswertung[[#This Row],[Juror 1]:[Juror 20]])-1), SUM(Tabelle_Auswertung[[#This Row],[Juror 1]:[Juror 20]]) ), " - ") -> 58 | X12: =IF(Tabelle_Auswertung[[#This Row],[Bildname]]<>"",IF(Tabelle_Auswertung[[#This Row],[Punkte]]>0,AVERAGE(Tabelle_Auswertung[[#This Row],[Juror 1]:[Juror 20]])," - ")," - ") -> 7.25 | Y12: =IF(Tabelle_Auswertung[[#This Row],[Bildname]]<>"",IF(Tabelle_Auswertung[[#This Row],[Punkte]]>0,RANK(Tabelle_Auswertung[[#This Row],[Punkte]],[Punkte],0)," - ")," - ") -> 7 | Z12: Jan Grünler | AB12: =IF(Tabelle_Auswertung[[#This Row],[Platz]]=1,CONCATENATE(Tabelle_Auswertung[[#This Row],[Bildname]]," von ",Tabelle_Auswertung[[#This Row],[Autor(in)]]),"") ->  | AC12: =IF(Tabelle_Auswertung[[#This Row],[Platz]]=2,CONCATENATE(Tabelle_Auswertung[[#This Row],[Bildname]]," von ",Tabelle_Auswertung[[#This Row],[Autor(in)]]),"") ->  | AD12: =IF(Tabelle_Auswertung[[#This Row],[Platz]]=3,CONCATENATE(Tabelle_Auswertung[[#This Row],[Bildname]]," von ",Tabelle_Auswertung[[#This Row],[Autor(in)]]),"") ->  | AE12: =IF(Tabelle_Auswertung[[#This Row],[Platz]]=4,CONCATENATE(Tabelle_Auswertung[[#This Row],[Bildname]]," von ",Tabelle_Auswertung[[#This Row],[Autor(in)]]),"") ->  | AF12: =IF(Tabelle_Auswertung[[#This Row],[Platz]]=5,CONCATENATE(Tabelle_Auswertung[[#This Row],[Bildname]]," von ",Tabelle_Auswertung[[#This Row],[Autor(in)]]),"") ->  | AG12: =IF(Tabelle_Auswertung[[#This Row],[Platz]]=6,CONCATENATE(Tabelle_Auswertung[[#This Row],[Bildname]]," von ",Tabelle_Auswertung[[#This Row],[Autor(in)]]),"") ->  | AH12: =IF(Tabelle_Auswertung[[#This Row],[Platz]]=7,CONCATENATE(Tabelle_Auswertung[[#This Row],[Bildname]]," von ",Tabelle_Auswertung[[#This Row],[Autor(in)]]),"") -> wedding rings.jpg von Jan Grünler | AI12: =IF(Tabelle_Auswertung[[#This Row],[Platz]]=8,CONCATENATE(Tabelle_Auswertung[[#This Row],[Bildname]]," von ",Tabelle_Auswertung[[#This Row],[Autor(in)]]),"") ->  | AJ12: =IF(Tabelle_Auswertung[[#This Row],[Platz]]=9,CONCATENATE(Tabelle_Auswertung[[#This Row],[Bildname]]," von ",Tabelle_Auswertung[[#This Row],[Autor(in)]]),"") ->  | AK12: =IF(Tabelle_Auswertung[[#This Row],[Platz]]=10,CONCATENATE(Tabelle_Auswertung[[#This Row],[Bildname]]," von ",Tabelle_Auswertung[[#This Row],[Autor(in)]]),"") -> 
A13: 9 | B13: bright eyes.jpg | C13: 7 | D13: 8 | E13: 7 | F13: 10 | G13: 0 | H13: 9 | I13: 8 | J13: 8 | W13: =IF(Tabelle_Auswertung[[#This Row],[Bildname]]<>"", IF(Tabelle_Auswertung[[#This Row],[abwesend]]="ja", SUM(Tabelle_Auswertung[[#This Row],[Juror 1]:[Juror 20]])/COUNT(Tabelle_Auswertung[[#This Row],[Juror 1]:[Juror 20]])*(COUNT(Tabelle_Auswertung[[#This Row],[Juror 1]:[Juror 20]])-1), SUM(Tabelle_Auswertung[[#This Row],[Juror 1]:[Juror 20]]) ), " - ") -> 57 | X13: =IF(Tabelle_Auswertung[[#This Row],[Bildname]]<>"",IF(Tabelle_Auswertung[[#This Row],[Punkte]]>0,AVERAGE(Tabelle_Auswertung[[#This Row],[Juror 1]:[Juror 20]])," - ")," - ") -> 7.13 | Y13: =IF(Tabelle_Auswertung[[#This Row],[Bildname]]<>"",IF(Tabelle_Auswertung[[#This Row],[Punkte]]>0,RANK(Tabelle_Auswertung[[#This Row],[Punkte]],[Punkte],0)," - ")," - ") -> 9 | Z13: Jan Grünler | AB13: =IF(Tabelle_Auswertung[[#This Row],[Platz]]=1,CONCATENATE(Tabelle_Auswertung[[#This Row],[Bildname]]," von ",Tabelle_Auswertung[[#This Row],[Autor(in)]]),"") ->  | AC13: =IF(Tabelle_Auswertung[[#This Row],[Platz]]=2,CONCATENATE(Tabelle_Auswertung[[#This Row],[Bildname]]," von ",Tabelle_Auswertung[[#This Row],[Autor(in)]]),"") ->  | AD13: =IF(Tabelle_Auswertung[[#This Row],[Platz]]=3,CONCATENATE(Tabelle_Auswertung[[#This Row],[Bildname]]," von ",Tabelle_Auswertung[[#This Row],[Autor(in)]]),"") ->  | AE13: =IF(Tabelle_Auswertung[[#This Row],[Platz]]=4,CONCATENATE(Tabelle_Auswertung[[#This Row],[Bildname]]," von ",Tabelle_Auswertung[[#This Row],[Autor(in)]]),"") ->  | AF13: =IF(Tabelle_Auswertung[[#This Row],[Platz]]=5,CONCATENATE(Tabelle_Auswertung[[#This Row],[Bildname]]," von ",Tabelle_Auswertung[[#This Row],[Autor(in)]]),"") ->  | AG13: =IF(Tabelle_Auswertung[[#This Row],[Platz]]=6,CONCATENATE(Tabelle_Auswertung[[#This Row],[Bildname]]," von ",Tabelle_Auswertung[[#This Row],[Autor(in)]]),"") ->  | AH13: =IF(Tabelle_Auswertung[[#This Row],[Platz]]=7,CONCATENATE(Tabelle_Auswertung[[#This Row],[Bildname]]," von ",Tabelle_Auswertung[[#This Row],[Autor(in)]]),"") ->  | AI13: =IF(Tabelle_Auswertung[[#This Row],[Platz]]=8,CONCATENATE(Tabelle_Auswertung[[#This Row],[Bildname]]," von ",Tabelle_Auswertung[[#This Row],[Autor(in)]]),"") ->  | AJ13: =IF(Tabelle_Auswertung[[#This Row],[Platz]]=9,CONCATENATE(Tabelle_Auswertung[[#This Row],[Bildname]]," von ",Tabelle_Auswertung[[#This Row],[Autor(in)]]),"") -> bright eyes.jpg von Jan Grünler | AK13: =IF(Tabelle_Auswertung[[#This Row],[Platz]]=10,CONCATENATE(Tabelle_Auswertung[[#This Row],[Bildname]]," von ",Tabelle_Auswertung[[#This Row],[Autor(in)]]),"") -> 
A14: 10 | B14: Tropfen.JPG | C14: 8 | D14: 10 | E14: 8 | F14: 10 | G14: 9 | H14: 7 | I14: 6 | J14: 7 | W14: =IF(Tabelle_Auswertung[[#This Row],[Bildname]]<>"", IF(Tabelle_Auswertung[[#This Row],[abwesend]]="ja", SUM(Tabelle_Auswertung[[#This Row],[Juror 1]:[Juror 20]])/COUNT(Tabelle_Auswertung[[#This Row],[Juror 1]:[Juror 20]])*(COUNT(Tabelle_Auswertung[[#This Row],[Juror 1]:[Juror 20]])-1), SUM(Tabelle_Auswertung[[#This Row],[Juror 1]:[Juror 20]]) ), " - ") -> 56.875 | X14: =IF(Tabelle_Auswertung[[#This Row],[Bildname]]<>"",IF(Tabelle_Auswertung[[#This Row],[Punkte]]>0,AVERAGE(Tabelle_Auswertung[[#This Row],[Juror 1]:[Juror 20]])," - ")," - ") -> 8.125 | Y14: =IF(Tabelle_Auswertung[[#This Row],[Bildname]]<>"",IF(Tabelle_Auswertung[[#This Row],[Punkte]]>0,RANK(Tabelle_Auswertung[[#This Row],[Punkte]],[Punkte],0)," - ")," - ") -> 10 | Z14: Susanne Deinhardt | AA14: ja | AB14: =IF(Tabelle_Auswertung[[#This Row],[Platz]]=1,CONCATENATE(Tabelle_Auswertung[[#This Row],[Bildname]]," von ",Tabelle_Auswertung[[#This Row],[Autor(in)]]),"") ->  | AC14: =IF(Tabelle_Auswertung[[#This Row],[Platz]]=2,CONCATENATE(Tabelle_Auswertung[[#This Row],[Bildname]]," von ",Tabelle_Auswertung[[#This Row],[Autor(in)]]),"") ->  | AD14: =IF(Tabelle_Auswertung[[#This Row],[Platz]]=3,CONCATENATE(Tabelle_Auswertung[[#This Row],[Bildname]]," von ",Tabelle_Auswertung[[#This Row],[Autor(in)]]),"") ->  | AE14: =IF(Tabelle_Auswertung[[#This Row],[Platz]]=4,CONCATENATE(Tabelle_Auswertung[[#This Row],[Bildname]]," von ",Tabelle_Auswertung[[#This Row],[Autor(in)]]),"") ->  | AF14: =IF(Tabelle_Auswertung[[#This Row],[Platz]]=5,CONCATENATE(Tabelle_Auswertung[[#This Row],[Bildname]]," von ",Tabelle_Auswertung[[#This Row],[Autor(in)]]),"") ->  | AG14: =IF(Tabelle_Auswertung[[#This Row],[Platz]]=6,CONCATENATE(Tabelle_Auswertung[[#This Row],[Bildname]]," von ",Tabelle_Auswertung[[#This Row],[Autor(in)]]),"") ->  | AH14: =IF(Tabelle_Auswertung[[#This Row],[Platz]]=7,CONCATENATE(Tabelle_Auswertung[[#This Row],[Bildname]]," von ",Tabelle_Auswertung[[#This Row],[Autor(in)]]),"") ->  | AI14: =IF(Tabelle_Auswertung[[#This Row],[Platz]]=8,CONCATENATE(Tabelle_Auswertung[[#This Row],[Bildname]]," von ",Tabelle_Auswertung[[#This Row],[Autor(in)]]),"") ->  | AJ14: =IF(Tabelle_Auswertung[[#This Row],[Platz]]=9,CONCATENATE(Tabelle_Auswertung[[#This Row],[Bildname]]," von ",Tabelle_Auswertung[[#This Row],[Autor(in)]]),"") ->  | AK14: =IF(Tabelle_Auswertung[[#This Row],[Platz]]=10,CONCATENATE(Tabelle_Auswertung[[#This Row],[Bildname]]," von ",Tabelle_Auswertung[[#This Row],[Autor(in)]]),"") -> Tropfen.JPG von Susanne Deinhardt
A15: 11 | B15: IMG_1103.JPG | C15: 8 | D15: 9 | E15: 7 | F15: 8 | G15: 10 | H15: 8 | I15: 6 | J15: 8 | W15: =IF(Tabelle_Auswertung[[#This Row],[Bildname]]<>"", IF(Tabelle_Auswertung[[#This Row],[abwesend]]="ja", SUM(Tabelle_Auswertung[[#This Row],[Juror 1]:[Juror 20]])/COUNT(Tabelle_Auswertung[[#This Row],[Juror 1]:[Juror 20]])*(COUNT(Tabelle_Auswertung[[#This Row],[Juror 1]:[Juror 20]])-1), SUM(Tabelle_Auswertung[[#This Row],[Juror 1]:[Juror 20]]) ), " - ") -> 56 | X15: =IF(Tabelle_Auswertung[[#This Row],[Bildname]]<>"",IF(Tabelle_Auswertung[[#This Row],[Punkte]]>0,AVERAGE(Tabelle_Auswertung[[#This Row],[Juror 1]:[Juror 20]])," - ")," - ") -> 8 | Y15: =IF(Tabelle_Auswertung[[#This Row],[Bildname]]<>"",IF(Tabelle_Auswertung[[#This Row],[Punkte]]>0,RANK(Tabelle_Auswertung[[#This Row],[Punkte]],[Punkte],0)," - ")," - ") -> 11 | Z15: Andreas Toltz | AA15: ja | AB15: =IF(Tabelle_Auswertung[[#This Row],[Platz]]=1,CONCATENATE(Tabelle_Auswertung[[#This Row],[Bildname]]," von ",Tabelle_Auswertung[[#This Row],[Autor(in)]]),"") ->  | AC15: =IF(Tabelle_Auswertung[[#This Row],[Platz]]=2,CONCATENATE(Tabelle_Auswertung[[#This Row],[Bildname]]," von ",Tabelle_Auswertung[[#This Row],[Autor(in)]]),"") ->  | AD15: =IF(Tabelle_Auswertung[[#This Row],[Platz]]=3,CONCATENATE(Tabelle_Auswertung[[#This Row],[Bildname]]," von ",Tabelle_Auswertung[[#This Row],[Autor(in)]]),"") ->  | AE15: =IF(Tabelle_Auswertung[[#This Row],[Platz]]=4,CONCATENATE(Tabelle_Auswertung[[#This Row],[Bildname]]," von ",Tabelle_Auswertung[[#This Row],[Autor(in)]]),"") ->  | AF15: =IF(Tabelle_Auswertung[[#This Row],[Platz]]=5,CONCATENATE(Tabelle_Auswertung[[#This Row],[Bildname]]," von ",Tabelle_Auswertung[[#This Row],[Autor(in)]]),"") ->  | AG15: =IF(Tabelle_Auswertung[[#This Row],[Platz]]=6,CONCATENATE(Tabelle_Auswertung[[#This Row],[Bildname]]," von ",Tabelle_Auswertung[[#This Row],[Autor(in)]]),"") ->  | AH15: =IF(Tabelle_Auswertung[[#This Row],[Platz]]=7,CONCATENATE(Tabelle_Auswertung[[#This Row],[Bildname]]," von ",Tabelle_Auswertung[[#This Row],[Autor(in)]]),"") ->  | AI15: =IF(Tabelle_Auswertung[[#This Row],[Platz]]=8,CONCATENATE(Tabelle_Auswertung[[#This Row],[Bildname]]," von ",Tabelle_Auswertung[[#This Row],[Autor(in)]]),"") ->  | AJ15: =IF(Tabelle_Auswertung[[#This Row],[Platz]]=9,CONCATENATE(Tabelle_Auswertung[[#This Row],[Bildname]]," von ",Tabelle_Auswertung[[#This Row],[Autor(in)]]),"") ->  | AK15: =IF(Tabelle_Auswertung[[#This Row],[Platz]]=10,CONCATENATE(Tabelle_Auswertung[[#This Row],[Bildname]]," von ",Tabelle_Auswertung[[#This Row],[Autor(in)]]),"") -> 
A16: 12 | B16: moonlight.jpg | C16: 8 | D16: 9 | E16: 7 | F16: 9 | G16: 8 | H16: 8 | I16: 7 | J16: 0 | W16: =IF(Tabelle_Auswertung[[#This Row],[Bildname]]<>"", IF(Tabelle_Auswertung[[#This Row],[abwesend]]="ja", SUM(Tabelle_Auswertung[[#This Row],[Juror 1]:[Juror 20]])/COUNT(Tabelle_Auswertung[[#This Row],[Juror 1]:[Juror 20]])*(COUNT(Tabelle_Auswertung[[#This Row],[Juror 1]:[Juror 20]])-1), SUM(Tabelle_Auswertung[[#This Row],[Juror 1]:[Juror 20]]) ), " - ") -> 56 | X16: =IF(Tabelle_Auswertung[[#This Row],[Bildname]]<>"",IF(Tabelle_Auswertung[[#This Row],[Punkte]]>0,AVERAGE(Tabelle_Auswertung[[#This Row],[Juror 1]:[Juror 20]])," - ")," - ") -> 7.00 | Y16: =IF(Tabelle_Auswertung[[#This Row],[Bildname]]<>"",IF(Tabelle_Auswertung[[#This Row],[Punkte]]>0,RANK(Tabelle_Auswertung[[#This Row],[Punkte]],[Punkte],0)," - ")," - ") -> 11 | Z16: Gerhard Rieß | AB16: =IF(Tabelle_Auswertung[[#This Row],[Platz]]=1,CONCATENATE(Tabelle_Auswertung[[#This Row],[Bildname]]," von ",Tabelle_Auswertung[[#This Row],[Autor(in)]]),"") ->  | AC16: =IF(Tabelle_Auswertung[[#This Row],[Platz]]=2,CONCATENATE(Tabelle_Auswertung[[#This Row],[Bildname]]," von ",Tabelle_Auswertung[[#This Row],[Autor(in)]]),"") ->  | AD16: =IF(Tabelle_Auswertung[[#This Row],[Platz]]=3,CONCATENATE(Tabelle_Auswertung[[#This Row],[Bildname]]," von ",Tabelle_Auswertung[[#This Row],[Autor(in)]]),"") ->  | AE16: =IF(Tabelle_Auswertung[[#This Row],[Platz]]=4,CONCATENATE(Tabelle_Auswertung[[#This Row],[Bildname]]," von ",Tabelle_Auswertung[[#This Row],[Autor(in)]]),"") ->  | AF16: =IF(Tabelle_Auswertung[[#This Row],[Platz]]=5,CONCATENATE(Tabelle_Auswertung[[#This Row],[Bildname]]," von ",Tabelle_Auswertung[[#This Row],[Autor(in)]]),"") ->  | AG16: =IF(Tabelle_Auswertung[[#This Row],[Platz]]=6,CONCATENATE(Tabelle_Auswertung[[#This Row],[Bildname]]," von ",Tabelle_Auswertung[[#This Row],[Autor(in)]]),"") ->  | AH16: =IF(Tabelle_Auswertung[[#This Row],[Platz]]=7,CONCATENATE(Tabelle_Auswertung[[#This Row],[Bildname]]," von ",Tabelle_Auswertung[[#This Row],[Autor(in)]]),"") ->  | AI16: =IF(Tabelle_Auswertung[[#This Row],[Platz]]=8,CONCATENATE(Tabelle_Auswertung[[#This Row],[Bildname]]," von ",Tabelle_Auswertung[[#This Row],[Autor(in)]]),"") ->  | AJ16: =IF(Tabelle_Auswertung[[#This Row],[Platz]]=9,CONCATENATE(Tabelle_Auswertung[[#This Row],[Bildname]]," von ",Tabelle_Auswertung[[#This Row],[Autor(in)]]),"") ->  | AK16: =IF(Tabelle_Auswertung[[#This Row],[Platz]]=10,CONCATENATE(Tabelle_Auswertung[[#This Row],[Bildname]]," von ",Tabelle_Auswertung[[#This Row],[Autor(in)]]),"") -> 
A17: 13 | B17: Schnecke.JPG | C17: 8 | D17: 0 | E17: 6 | F17: 9 | G17: 10 | H17: 9 | I17: 7 | J17: 7 | W17: =IF(Tabelle_Auswertung[[#This Row],[Bildname]]<>"", IF(Tabelle_Auswertung[[#This Row],[abwesend]]="ja", SUM(Tabelle_Auswertung[[#This Row],[Juror 1]:[Juror 20]])/COUNT(Tabelle_Auswertung[[#This Row],[Juror 1]:[Juror 20]])*(COUNT(Tabelle_Auswertung[[#This Row],[Juror 1]:[Juror 20]])-1), SUM(Tabelle_Auswertung[[#This Row],[Juror 1]:[Juror 20]]) ), " - ") -> 56 | X17: =IF(Tabelle_Auswertung[[#This Row],[Bildname]]<>"",IF(Tabelle_Auswertung[[#This Row],[Punkte]]>0,AVERAGE(Tabelle_Auswertung[[#This Row],[Juror 1]:[Juror 20]])," - ")," - ") -> 7.00 | Y17: =IF(Tabelle_Auswertung[[#This Row],[Bildname]]<>"",IF(Tabelle_Auswertung[[#This Row],[Punkte]]>0,RANK(Tabelle_Auswertung[[#This Row],[Punkte]],[Punkte],0)," - ")," - ") -> 11 | Z17: Nadja Cassim | AB17: =IF(Tabelle_Auswertung[[#This Row],[Platz]]=1,CONCATENATE(Tabelle_Auswertung[[#This Row],[Bildname]]," von ",Tabelle_Auswertung[[#This Row],[Autor(in)]]),"") ->  | AC17: =IF(Tabelle_Auswertung[[#This Row],[Platz]]=2,CONCATENATE(Tabelle_Auswertung[[#This Row],[Bildname]]," von ",Tabelle_Auswertung[[#This Row],[Autor(in)]]),"") ->  | AD17: =IF(Tabelle_Auswertung[[#This Row],[Platz]]=3,CONCATENATE(Tabelle_Auswertung[[#This Row],[Bildname]]," von ",Tabelle_Auswertung[[#This Row],[Autor(in)]]),"") ->  | AE17: =IF(Tabelle_Auswertung[[#This Row],[Platz]]=4,CONCATENATE(Tabelle_Auswertung[[#This Row],[Bildname]]," von ",Tabelle_Auswertung[[#This Row],[Autor(in)]]),"") ->  | AF17: =IF(Tabelle_Auswertung[[#This Row],[Platz]]=5,CONCATENATE(Tabelle_Auswertung[[#This Row],[Bildname]]," von ",Tabelle_Auswertung[[#This Row],[Autor(in)]]),"") ->  | AG17: =IF(Tabelle_Auswertung[[#This Row],[Platz]]=6,CONCATENATE(Tabelle_Auswertung[[#This Row],[Bildname]]," von ",Tabelle_Auswertung[[#This Row],[Autor(in)]]),"") ->  | AH17: =IF(Tabelle_Auswertung[[#This Row],[Platz]]=7,CONCATENATE(Tabelle_Auswertung[[#This Row],[Bildname]]," von ",Tabelle_Auswertung[[#This Row],[Autor(in)]]),"") ->  | AI17: =IF(Tabelle_Auswertung[[#This Row],[Platz]]=8,CONCATENATE(Tabelle_Auswertung[[#This Row],[Bildname]]," von ",Tabelle_Auswertung[[#This Row],[Autor(in)]]),"") ->  | AJ17: =IF(Tabelle_Auswertung[[#This Row],[Platz]]=9,CONCATENATE(Tabelle_Auswertung[[#This Row],[Bildname]]," von ",Tabelle_Auswertung[[#This Row],[Autor(in)]]),"") ->  | AK17: =IF(Tabelle_Auswertung[[#This Row],[Platz]]=10,CONCATENATE(Tabelle_Auswertung[[#This Row],[Bildname]]," von ",Tabelle_Auswertung[[#This Row],[Autor(in)]]),"") -> 
A18: 14 | B18: Katholische Hofkirche.jpg | C18: 9 | D18: 8 | E18: 7 | F18: 0 | G18: 7 | H18: 10 | I18: 5 | J18: 8 | W18: =IF(Tabelle_Auswertung[[#This Row],[Bildname]]<>"", IF(Tabelle_Auswertung[[#This Row],[abwesend]]="ja", SUM(Tabelle_Auswertung[[#This Row],[Juror 1]:[Juror 20]])/COUNT(Tabelle_Auswertung[[#This Row],[Juror 1]:[Juror 20]])*(COUNT(Tabelle_Auswertung[[#This Row],[Juror 1]:[Juror 20]])-1), SUM(Tabelle_Auswertung[[#This Row],[Juror 1]:[Juror 20]]) ), " - ") -> 54 | X18: =IF(Tabelle_Auswertung[[#This Row],[Bildname]]<>"",IF(Tabelle_Auswertung[[#This Row],[Punkte]]>0,AVERAGE(Tabelle_Auswertung[[#This Row],[Juror 1]:[Juror 20]])," - ")," - ") -> 6.75 | Y18: =IF(Tabelle_Auswertung[[#This Row],[Bildname]]<>"",IF(Tabelle_Auswertung[[#This Row],[Punkte]]>0,RANK(Tabelle_Auswertung[[#This Row],[Punkte]],[Punkte],0)," - ")," - ") -> 14 | Z18: Chris Finsterer | AB18: =IF(Tabelle_Auswertung[[#This Row],[Platz]]=1,CONCATENATE(Tabelle_Auswertung[[#This Row],[Bildname]]," von ",Tabelle_Auswertung[[#This Row],[Autor(in)]]),"") ->  | AC18: =IF(Tabelle_Auswertung[[#This Row],[Platz]]=2,CONCATENATE(Tabelle_Auswertung[[#This Row],[Bildname]]," von ",Tabelle_Auswertung[[#This Row],[Autor(in)]]),"") ->  | AD18: =IF(Tabelle_Auswertung[[#This Row],[Platz]]=3,CONCATENATE(Tabelle_Auswertung[[#This Row],[Bildname]]," von ",Tabelle_Auswertung[[#This Row],[Autor(in)]]),"") ->  | AE18: =IF(Tabelle_Auswertung[[#This Row],[Platz]]=4,CONCATENATE(Tabelle_Auswertung[[#This Row],[Bildname]]," von ",Tabelle_Auswertung[[#This Row],[Autor(in)]]),"") ->  | AF18: =IF(Tabelle_Auswertung[[#This Row],[Platz]]=5,CONCATENATE(Tabelle_Auswertung[[#This Row],[Bildname]]," von ",Tabelle_Auswertung[[#This Row],[Autor(in)]]),"") ->  | AG18: =IF(Tabelle_Auswertung[[#This Row],[Platz]]=6,CONCATENATE(Tabelle_Auswertung[[#This Row],[Bildname]]," von ",Tabelle_Auswertung[[#This Row],[Autor(in)]]),"") ->  | AH18: =IF(Tabelle_Auswertung[[#This Row],[Platz]]=7,CONCATENATE(Tabelle_Auswertung[[#This Row],[Bildname]]," von ",Tabelle_Auswertung[[#This Row],[Autor(in)]]),"") ->  | AI18: =IF(Tabelle_Auswertung[[#This Row],[Platz]]=8,CONCATENATE(Tabelle_Auswertung[[#This Row],[Bildname]]," von ",Tabelle_Auswertung[[#This Row],[Autor(in)]]),"") ->  | AJ18: =IF(Tabelle_Auswertung[[#This Row],[Platz]]=9,CONCATENATE(Tabelle_Auswertung[[#This Row],[Bildname]]," von ",Tabelle_Auswertung[[#This Row],[Autor(in)]]),"") ->  | AK18: =IF(Tabelle_Auswertung[[#This Row],[Platz]]=10,CONCATENATE(Tabelle_Auswertung[[#This Row],[Bildname]]," von ",Tabelle_Auswertung[[#This Row],[Autor(in)]]),"") -> 
A19: 15 | B19: über_den_Wolken-1.jpg | C19: 7 | D19: 10 | E19: 8 | F19: 8 | G19: 8 | H19: 7 | I19: 0 | J19: 6 | W19: =IF(Tabelle_Auswertung[[#This Row],[Bildname]]<>"", IF(Tabelle_Auswertung[[#This Row],[abwesend]]="ja", SUM(Tabelle_Auswertung[[#This Row],[Juror 1]:[Juror 20]])/COUNT(Tabelle_Auswertung[[#This Row],[Juror 1]:[Juror 20]])*(COUNT(Tabelle_Auswertung[[#This Row],[Juror 1]:[Juror 20]])-1), SUM(Tabelle_Auswertung[[#This Row],[Juror 1]:[Juror 20]]) ), " - ") -> 54 | X19: =IF(Tabelle_Auswertung[[#This Row],[Bildname]]<>"",IF(Tabelle_Auswertung[[#This Row],[Punkte]]>0,AVERAGE(Tabelle_Auswertung[[#This Row],[Juror 1]:[Juror 20]])," - ")," - ") -> 6.75 | Y19: =IF(Tabelle_Auswertung[[#This Row],[Bildname]]<>"",IF(Tabelle_Auswertung[[#This Row],[Punkte]]>0,RANK(Tabelle_Auswertung[[#This Row],[Punkte]],[Punkte],0)," - ")," - ") -> 14 | Z19: Oliver von Guérard | AB19: =IF(Tabelle_Auswertung[[#This Row],[Platz]]=1,CONCATENATE(Tabelle_Auswertung[[#This Row],[Bildname]]," von ",Tabelle_Auswertung[[#This Row],[Autor(in)]]),"") ->  | AC19: =IF(Tabelle_Auswertung[[#This Row],[Platz]]=2,CONCATENATE(Tabelle_Auswertung[[#This Row],[Bildname]]," von ",Tabelle_Auswertung[[#This Row],[Autor(in)]]),"") ->  | AD19: =IF(Tabelle_Auswertung[[#This Row],[Platz]]=3,CONCATENATE(Tabelle_Auswertung[[#This Row],[Bildname]]," von ",Tabelle_Auswertung[[#This Row],[Autor(in)]]),"") ->  | AE19: =IF(Tabelle_Auswertung[[#This Row],[Platz]]=4,CONCATENATE(Tabelle_Auswertung[[#This Row],[Bildname]]," von ",Tabelle_Auswertung[[#This Row],[Autor(in)]]),"") ->  | AF19: =IF(Tabelle_Auswertung[[#This Row],[Platz]]=5,CONCATENATE(Tabelle_Auswertung[[#This Row],[Bildname]]," von ",Tabelle_Auswertung[[#This Row],[Autor(in)]]),"") ->  | AG19: =IF(Tabelle_Auswertung[[#This Row],[Platz]]=6,CONCATENATE(Tabelle_Auswertung[[#This Row],[Bildname]]," von ",Tabelle_Auswertung[[#This Row],[Autor(in)]]),"") ->  | AH19: =IF(Tabelle_Auswertung[[#This Row],[Platz]]=7,CONCATENATE(Tabelle_Auswertung[[#This Row],[Bildname]]," von ",Tabelle_Auswertung[[#This Row],[Autor(in)]]),"") ->  | AI19: =IF(Tabelle_Auswertung[[#This Row],[Platz]]=8,CONCATENATE(Tabelle_Auswertung[[#This Row],[Bildname]]," von ",Tabelle_Auswertung[[#This Row],[Autor(in)]]),"") ->  | AJ19: =IF(Tabelle_Auswertung[[#This Row],[Platz]]=9,CONCATENATE(Tabelle_Auswertung[[#This Row],[Bildname]]," von ",Tabelle_Auswertung[[#This Row],[Autor(in)]]),"") ->  | AK19: =IF(Tabelle_Auswertung[[#This Row],[Platz]]=10,CONCATENATE(Tabelle_Auswertung[[#This Row],[Bildname]]," von ",Tabelle_Auswertung[[#This Row],[Autor(in)]]),"") -> 
A20: 16 | B20: über_den_Wolken-3.jpg | C20: 8 | D20: 9 | E20: 6 | F20: 9 | G20: 8 | H20: 7 | I20: 0 | J20: 7 | W20: =IF(Tabelle_Auswertung[[#This Row],[Bildname]]<>"", IF(Tabelle_Auswertung[[#This Row],[abwesend]]="ja", SUM(Tabelle_Auswertung[[#This Row],[Juror 1]:[Juror 20]])/COUNT(Tabelle_Auswertung[[#This Row],[Juror 1]:[Juror 20]])*(COUNT(Tabelle_Auswertung[[#This Row],[Juror 1]:[Juror 20]])-1), SUM(Tabelle_Auswertung[[#This Row],[Juror 1]:[Juror 20]]) ), " - ") -> 54 | X20: =IF(Tabelle_Auswertung[[#This Row],[Bildname]]<>"",IF(Tabelle_Auswertung[[#This Row],[Punkte]]>0,AVERAGE(Tabelle_Auswertung[[#This Row],[Juror 1]:[Juror 20]])," - ")," - ") -> 6.75 | Y20: =IF(Tabelle_Auswertung[[#This Row],[Bildname]]<>"",IF(Tabelle_Auswertung[[#This Row],[Punkte]]>0,RANK(Tabelle_Auswertung[[#This Row],[Punkte]],[Punkte],0)," - ")," - ") -> 14 | Z20: Oliver von Guérard | AB20: =IF(Tabelle_Auswertung[[#This Row],[Platz]]=1,CONCATENATE(Tabelle_Auswertung[[#This Row],[Bildname]]," von ",Tabelle_Auswertung[[#This Row],[Autor(in)]]),"") ->  | AC20: =IF(Tabelle_Auswertung[[#This Row],[Platz]]=2,CONCATENATE(Tabelle_Auswertung[[#This Row],[Bildname]]," von ",Tabelle_Auswertung[[#This Row],[Autor(in)]]),"") ->  | AD20: =IF(Tabelle_Auswertung[[#This Row],[Platz]]=3,CONCATENATE(Tabelle_Auswertung[[#This Row],[Bildname]]," von ",Tabelle_Auswertung[[#This Row],[Autor(in)]]),"") ->  | AE20: =IF(Tabelle_Auswertung[[#This Row],[Platz]]=4,CONCATENATE(Tabelle_Auswertung[[#This Row],[Bildname]]," von ",Tabelle_Auswertung[[#This Row],[Autor(in)]]),"") ->  | AF20: =IF(Tabelle_Auswertung[[#This Row],[Platz]]=5,CONCATENATE(Tabelle_Auswertung[[#This Row],[Bildname]]," von ",Tabelle_Auswertung[[#This Row],[Autor(in)]]),"") ->  | AG20: =IF(Tabelle_Auswertung[[#This Row],[Platz]]=6,CONCATENATE(Tabelle_Auswertung[[#This Row],[Bildname]]," von ",Tabelle_Auswertung[[#This Row],[Autor(in)]]),"") ->  | AH20: =IF(Tabelle_Auswertung[[#This Row],[Platz]]=7,CONCATENATE(Tabelle_Auswertung[[#This Row],[Bildname]]," von ",Tabelle_Auswertung[[#This Row],[Autor(in)]]),"") ->  | AI20: =IF(Tabelle_Auswertung[[#This Row],[Platz]]=8,CONCATENATE(Tabelle_Auswertung[[#This Row],[Bildname]]," von ",Tabelle_Auswertung[[#This Row],[Autor(in)]]),"") ->  | AJ20: =IF(Tabelle_Auswertung[[#This Row],[Platz]]=9,CONCATENATE(Tabelle_Auswertung[[#This Row],[Bildname]]," von ",Tabelle_Auswertung[[#This Row],[Autor(in)]]),"") ->  | AK20: =IF(Tabelle_Auswertung[[#This Row],[Platz]]=10,CONCATENATE(Tabelle_Auswertung[[#This Row],[Bildname]]," von ",Tabelle_Auswertung[[#This Row],[Autor(in)]]),"") -> 
A21: 17 | B21: Sozialgericht.jpg | C21: 6 | D21: 8 | E21: 8 | F21: 9 | G21: 9 | H21: 0 | I21: 6 | J21: 6 | W21: =IF(Tabelle_Auswertung[[#This Row],[Bildname]]<>"", IF(Tabelle_Auswertung[[#This Row],[abwesend]]="ja", SUM(Tabelle_Auswertung[[#This Row],[Juror 1]:[Juror 20]])/COUNT(Tabelle_Auswertung[[#This Row],[Juror 1]:[Juror 20]])*(COUNT(Tabelle_Auswertung[[#This Row],[Juror 1]:[Juror 20]])-1), SUM(Tabelle_Auswertung[[#This Row],[Juror 1]:[Juror 20]]) ), " - ") -> 52 | X21: =IF(Tabelle_Auswertung[[#This Row],[Bildname]]<>"",IF(Tabelle_Auswertung[[#This Row],[Punkte]]>0,AVERAGE(Tabelle_Auswertung[[#This Row],[Juror 1]:[Juror 20]])," - ")," - ") -> 6.5 | Y21: =IF(Tabelle_Auswertung[[#This Row],[Bildname]]<>"",IF(Tabelle_Auswertung[[#This Row],[Punkte]]>0,RANK(Tabelle_Auswertung[[#This Row],[Punkte]],[Punkte],0)," - ")," - ") -> 17 | Z21: Antje Finsterer | AB21: =IF(Tabelle_Auswertung[[#This Row],[Platz]]=1,CONCATENATE(Tabelle_Auswertung[[#This Row],[Bildname]]," von ",Tabelle_Auswertung[[#This Row],[Autor(in)]]),"") ->  | AC21: =IF(Tabelle_Auswertung[[#This Row],[Platz]]=2,CONCATENATE(Tabelle_Auswertung[[#This Row],[Bildname]]," von ",Tabelle_Auswertung[[#This Row],[Autor(in)]]),"") ->  | AD21: =IF(Tabelle_Auswertung[[#This Row],[Platz]]=3,CONCATENATE(Tabelle_Auswertung[[#This Row],[Bildname]]," von ",Tabelle_Auswertung[[#This Row],[Autor(in)]]),"") ->  | AE21: =IF(Tabelle_Auswertung[[#This Row],[Platz]]=4,CONCATENATE(Tabelle_Auswertung[[#This Row],[Bildname]]," von ",Tabelle_Auswertung[[#This Row],[Autor(in)]]),"") ->  | AF21: =IF(Tabelle_Auswertung[[#This Row],[Platz]]=5,CONCATENATE(Tabelle_Auswertung[[#This Row],[Bildname]]," von ",Tabelle_Auswertung[[#This Row],[Autor(in)]]),"") ->  | AG21: =IF(Tabelle_Auswertung[[#This Row],[Platz]]=6,CONCATENATE(Tabelle_Auswertung[[#This Row],[Bildname]]," von ",Tabelle_Auswertung[[#This Row],[Autor(in)]]),"") ->  | AH21: =IF(Tabelle_Auswertung[[#This Row],[Platz]]=7,CONCATENATE(Tabelle_Auswertung[[#This Row],[Bildname]]," von ",Tabelle_Auswertung[[#This Row],[Autor(in)]]),"") ->  | AI21: =IF(Tabelle_Auswertung[[#This Row],[Platz]]=8,CONCATENATE(Tabelle_Auswertung[[#This Row],[Bildname]]," von ",Tabelle_Auswertung[[#This Row],[Autor(in)]]),"") ->  | AJ21: =IF(Tabelle_Auswertung[[#This Row],[Platz]]=9,CONCATENATE(Tabelle_Auswertung[[#This Row],[Bildname]]," von ",Tabelle_Auswertung[[#This Row],[Autor(in)]]),"") ->  | AK21: =IF(Tabelle_Auswertung[[#This Row],[Platz]]=10,CONCATENATE(Tabelle_Auswertung[[#This Row],[Bildname]]," von ",Tabelle_Auswertung[[#This Row],[Autor(in)]]),"") -> 
A22: 18 | B22: Szenen einer Ehe.jpg | C22: 7 | D22: 8 | E22: 8 | F22: 0 | G22: 9 | H22: 10 | I22: 6 | J22: 4 | W22: =IF(Tabelle_Auswertung[[#This Row],[Bildname]]<>"", IF(Tabelle_Auswertung[[#This Row],[abwesend]]="ja", SUM(Tabelle_Auswertung[[#This Row],[Juror 1]:[Juror 20]])/COUNT(Tabelle_Auswertung[[#This Row],[Juror 1]:[Juror 20]])*(COUNT(Tabelle_Auswertung[[#This Row],[Juror 1]:[Juror 20]])-1), SUM(Tabelle_Auswertung[[#This Row],[Juror 1]:[Juror 20]]) ), " - ") -> 52 | X22: =IF(Tabelle_Auswertung[[#This Row],[Bildname]]<>"",IF(Tabelle_Auswertung[[#This Row],[Punkte]]>0,AVERAGE(Tabelle_Auswertung[[#This Row],[Juror 1]:[Juror 20]])," - ")," - ") -> 6.5 | Y22: =IF(Tabelle_Auswertung[[#This Row],[Bildname]]<>"",IF(Tabelle_Auswertung[[#This Row],[Punkte]]>0,RANK(Tabelle_Auswertung[[#This Row],[Punkte]],[Punkte],0)," - ")," - ") -> 17 | Z22: Chris Finsterer | AB22: =IF(Tabelle_Auswertung[[#This Row],[Platz]]=1,CONCATENATE(Tabelle_Auswertung[[#This Row],[Bildname]]," von ",Tabelle_Auswertung[[#This Row],[Autor(in)]]),"") ->  | AC22: =IF(Tabelle_Auswertung[[#This Row],[Platz]]=2,CONCATENATE(Tabelle_Auswertung[[#This Row],[Bildname]]," von ",Tabelle_Auswertung[[#This Row],[Autor(in)]]),"") ->  | AD22: =IF(Tabelle_Auswertung[[#This Row],[Platz]]=3,CONCATENATE(Tabelle_Auswertung[[#This Row],[Bildname]]," von ",Tabelle_Auswertung[[#This Row],[Autor(in)]]),"") ->  | AE22: =IF(Tabelle_Auswertung[[#This Row],[Platz]]=4,CONCATENATE(Tabelle_Auswertung[[#This Row],[Bildname]]," von ",Tabelle_Auswertung[[#This Row],[Autor(in)]]),"") ->  | AF22: =IF(Tabelle_Auswertung[[#This Row],[Platz]]=5,CONCATENATE(Tabelle_Auswertung[[#This Row],[Bildname]]," von ",Tabelle_Auswertung[[#This Row],[Autor(in)]]),"") ->  | AG22: =IF(Tabelle_Auswertung[[#This Row],[Platz]]=6,CONCATENATE(Tabelle_Auswertung[[#This Row],[Bildname]]," von ",Tabelle_Auswertung[[#This Row],[Autor(in)]]),"") ->  | AH22: =IF(Tabelle_Auswertung[[#This Row],[Platz]]=7,CONCATENATE(Tabelle_Auswertung[[#This Row],[Bildname]]," von ",Tabelle_Auswertung[[#This Row],[Autor(in)]]),"") ->  | AI22: =IF(Tabelle_Auswertung[[#This Row],[Platz]]=8,CONCATENATE(Tabelle_Auswertung[[#This Row],[Bildname]]," von ",Tabelle_Auswertung[[#This Row],[Autor(in)]]),"") ->  | AJ22: =IF(Tabelle_Auswertung[[#This Row],[Platz]]=9,CONCATENATE(Tabelle_Auswertung[[#This Row],[Bildname]]," von ",Tabelle_Auswertung[[#This Row],[Autor(in)]]),"") ->  | AK22: =IF(Tabelle_Auswertung[[#This Row],[Platz]]=10,CONCATENATE(Tabelle_Auswertung[[#This Row],[Bildname]]," von ",Tabelle_Auswertung[[#This Row],[Autor(in)]]),"") -> 
A23: 19 | B23: Vollmondnacht.jpg | C23: 8 | D23: 10 | E23: 6 | F23: 0 | G23: 7 | H23: 8 | I23: 6 | J23: 7 | W23: =IF(Tabelle_Auswertung[[#This Row],[Bildname]]<>"", IF(Tabelle_Auswertung[[#This Row],[abwesend]]="ja", SUM(Tabelle_Auswertung[[#This Row],[Juror 1]:[Juror 20]])/COUNT(Tabelle_Auswertung[[#This Row],[Juror 1]:[Juror 20]])*(COUNT(Tabelle_Auswertung[[#This Row],[Juror 1]:[Juror 20]])-1), SUM(Tabelle_Auswertung[[#This Row],[Juror 1]:[Juror 20]]) ), " - ") -> 52 | X23: =IF(Tabelle_Auswertung[[#This Row],[Bildname]]<>"",IF(Tabelle_Auswertung[[#This Row],[Punkte]]>0,AVERAGE(Tabelle_Auswertung[[#This Row],[Juror 1]:[Juror 20]])," - ")," - ") -> 6.50 | Y23: =IF(Tabelle_Auswertung[[#This Row],[Bildname]]<>"",IF(Tabelle_Auswertung[[#This Row],[Punkte]]>0,RANK(Tabelle_Auswertung[[#This Row],[Punkte]],[Punkte],0)," - ")," - ") -> 17 | Z23: Chris Finsterer | AB23: =IF(Tabelle_Auswertung[[#This Row],[Platz]]=1,CONCATENATE(Tabelle_Auswertung[[#This Row],[Bildname]]," von ",Tabelle_Auswertung[[#This Row],[Autor(in)]]),"") ->  | AC23: =IF(Tabelle_Auswertung[[#This Row],[Platz]]=2,CONCATENATE(Tabelle_Auswertung[[#This Row],[Bildname]]," von ",Tabelle_Auswertung[[#This Row],[Autor(in)]]),"") ->  | AD23: =IF(Tabelle_Auswertung[[#This Row],[Platz]]=3,CONCATENATE(Tabelle_Auswertung[[#This Row],[Bildname]]," von ",Tabelle_Auswertung[[#This Row],[Autor(in)]]),"") ->  | AE23: =IF(Tabelle_Auswertung[[#This Row],[Platz]]=4,CONCATENATE(Tabelle_Auswertung[[#This Row],[Bildname]]," von ",Tabelle_Auswertung[[#This Row],[Autor(in)]]),"") ->  | AF23: =IF(Tabelle_Auswertung[[#This Row],[Platz]]=5,CONCATENATE(Tabelle_Auswertung[[#This Row],[Bildname]]," von ",Tabelle_Auswertung[[#This Row],[Autor(in)]]),"") ->  | AG23: =IF(Tabelle_Auswertung[[#This Row],[Platz]]=6,CONCATENATE(Tabelle_Auswertung[[#This Row],[Bildname]]," von ",Tabelle_Auswertung[[#This Row],[Autor(in)]]),"") ->  | AH23: =IF(Tabelle_Auswertung[[#This Row],[Platz]]=7,CONCATENATE(Tabelle_Auswertung[[#This Row],[Bildname]]," von ",Tabelle_Auswertung[[#This Row],[Autor(in)]]),"") ->  | AI23: =IF(Tabelle_Auswertung[[#This Row],[Platz]]=8,CONCATENATE(Tabelle_Auswertung[[#This Row],[Bildname]]," von ",Tabelle_Auswertung[[#This Row],[Autor(in)]]),"") ->  | AJ23: =IF(Tabelle_Auswertung[[#This Row],[Platz]]=9,CONCATENATE(Tabelle_Auswertung[[#This Row],[Bildname]]," von ",Tabelle_Auswertung[[#This Row],[Autor(in)]]),"") ->  | AK23: =IF(Tabelle_Auswertung[[#This Row],[Platz]]=10,CONCATENATE(Tabelle_Auswertung[[#This Row],[Bildname]]," von ",Tabelle_Auswertung[[#This Row],[Autor(in)]]),"") -> 
A24: 20 | B24: IMG_0869.JPG | C24: 5 | D24: 8 | E24: 7 | F24: 8 | G24: 9 | H24: 6 | I24: 8 | J24: 8 | W24: =IF(Tabelle_Auswertung[[#This Row],[Bildname]]<>"", IF(Tabelle_Auswertung[[#This Row],[abwesend]]="ja", SUM(Tabelle_Auswertung[[#This Row],[Juror 1]:[Juror 20]])/COUNT(Tabelle_Auswertung[[#This Row],[Juror 1]:[Juror 20]])*(COUNT(Tabelle_Auswertung[[#This Row],[Juror 1]:[Juror 20]])-1), SUM(Tabelle_Auswertung[[#This Row],[Juror 1]:[Juror 20]]) ), " - ") -> 51.625 | X24: =IF(Tabelle_Auswertung[[#This Row],[Bildname]]<>"",IF(Tabelle_Auswertung[[#This Row],[Punkte]]>0,AVERAGE(Tabelle_Auswertung[[#This Row],[Juror 1]:[Juror 20]])," - ")," - ") -> 7.38 | Y24: =IF(Tabelle_Auswertung[[#This Row],[Bildname]]<>"",IF(Tabelle_Auswertung[[#This Row],[Punkte]]>0,RANK(Tabelle_Auswertung[[#This Row],[Punkte]],[Punkte],0)," - ")," - ") -> 20 | Z24: Andreas Toltz | AA24: ja | AB24: =IF(Tabelle_Auswertung[[#This Row],[Platz]]=1,CONCATENATE(Tabelle_Auswertung[[#This Row],[Bildname]]," von ",Tabelle_Auswertung[[#This Row],[Autor(in)]]),"") ->  | AC24: =IF(Tabelle_Auswertung[[#This Row],[Platz]]=2,CONCATENATE(Tabelle_Auswertung[[#This Row],[Bildname]]," von ",Tabelle_Auswertung[[#This Row],[Autor(in)]]),"") ->  | AD24: =IF(Tabelle_Auswertung[[#This Row],[Platz]]=3,CONCATENATE(Tabelle_Auswertung[[#This Row],[Bildname]]," von ",Tabelle_Auswertung[[#This Row],[Autor(in)]]),"") ->  | AE24: =IF(Tabelle_Auswertung[[#This Row],[Platz]]=4,CONCATENATE(Tabelle_Auswertung[[#This Row],[Bildname]]," von ",Tabelle_Auswertung[[#This Row],[Autor(in)]]),"") ->  | AF24: =IF(Tabelle_Auswertung[[#This Row],[Platz]]=5,CONCATENATE(Tabelle_Auswertung[[#This Row],[Bildname]]," von ",Tabelle_Auswertung[[#This Row],[Autor(in)]]),"") ->  | AG24: =IF(Tabelle_Auswertung[[#This Row],[Platz]]=6,CONCATENATE(Tabelle_Auswertung[[#This Row],[Bildname]]," von ",Tabelle_Auswertung[[#This Row],[Autor(in)]]),"") ->  | AH24: =IF(Tabelle_Auswertung[[#This Row],[Platz]]=7,CONCATENATE(Tabelle_Auswertung[[#This Row],[Bildname]]," von ",Tabelle_Auswertung[[#This Row],[Autor(in)]]),"") ->  | AI24: =IF(Tabelle_Auswertung[[#This Row],[Platz]]=8,CONCATENATE(Tabelle_Auswertung[[#This Row],[Bildname]]," von ",Tabelle_Auswertung[[#This Row],[Autor(in)]]),"") ->  | AJ24: =IF(Tabelle_Auswertung[[#This Row],[Platz]]=9,CONCATENATE(Tabelle_Auswertung[[#This Row],[Bildname]]," von ",Tabelle_Auswertung[[#This Row],[Autor(in)]]),"") ->  | AK24: =IF(Tabelle_Auswertung[[#This Row],[Platz]]=10,CONCATENATE(Tabelle_Auswertung[[#This Row],[Bildname]]," von ",Tabelle_Auswertung[[#This Row],[Autor(in)]]),"") -> 
A25: 21 | B25: Kristalle-2.jpg | C25: 7 | D25: 8 | E25: 7 | F25: 9 | G25: 9 | H25: 7 | I25: 0 | J25: 4 | W25: =IF(Tabelle_Auswertung[[#This Row],[Bildname]]<>"", IF(Tabelle_Auswertung[[#This Row],[abwesend]]="ja", SUM(Tabelle_Auswertung[[#This Row],[Juror 1]:[Juror 20]])/COUNT(Tabelle_Auswertung[[#This Row],[Juror 1]:[Juror 20]])*(COUNT(Tabelle_Auswertung[[#This Row],[Juror 1]:[Juror 20]])-1), SUM(Tabelle_Auswertung[[#This Row],[Juror 1]:[Juror 20]]) ), " - ") -> 51 | X25: =IF(Tabelle_Auswertung[[#This Row],[Bildname]]<>"",IF(Tabelle_Auswertung[[#This Row],[Punkte]]>0,AVERAGE(Tabelle_Auswertung[[#This Row],[Juror 1]:[Juror 20]])," - ")," - ") -> 6.38 | Y25: =IF(Tabelle_Auswertung[[#This Row],[Bildname]]<>"",IF(Tabelle_Auswertung[[#This Row],[Punkte]]>0,RANK(Tabelle_Auswertung[[#This Row],[Punkte]],[Punkte],0)," - ")," - ") -> 21 | Z25: Oliver von Guérard | AB25: =IF(Tabelle_Auswertung[[#This Row],[Platz]]=1,CONCATENATE(Tabelle_Auswertung[[#This Row],[Bildname]]," von ",Tabelle_Auswertung[[#This Row],[Autor(in)]]),"") ->  | AC25: =IF(Tabelle_Auswertung[[#This Row],[Platz]]=2,CONCATENATE(Tabelle_Auswertung[[#This Row],[Bildname]]," von ",Tabelle_Auswertung[[#This Row],[Autor(in)]]),"") ->  | AD25: =IF(Tabelle_Auswertung[[#This Row],[Platz]]=3,CONCATENATE(Tabelle_Auswertung[[#This Row],[Bildname]]," von ",Tabelle_Auswertung[[#This Row],[Autor(in)]]),"") ->  | AE25: =IF(Tabelle_Auswertung[[#This Row],[Platz]]=4,CONCATENATE(Tabelle_Auswertung[[#This Row],[Bildname]]," von ",Tabelle_Auswertung[[#This Row],[Autor(in)]]),"") ->  | AF25: =IF(Tabelle_Auswertung[[#This Row],[Platz]]=5,CONCATENATE(Tabelle_Auswertung[[#This Row],[Bildname]]," von ",Tabelle_Auswertung[[#This Row],[Autor(in)]]),"") ->  | AG25: =IF(Tabelle_Auswertung[[#This Row],[Platz]]=6,CONCATENATE(Tabelle_Auswertung[[#This Row],[Bildname]]," von ",Tabelle_Auswertung[[#This Row],[Autor(in)]]),"") ->  | AH25: =IF(Tabelle_Auswertung[[#This Row],[Platz]]=7,CONCATENATE(Tabelle_Auswertung[[#This Row],[Bildname]]," von ",Tabelle_Auswertung[[#This Row],[Autor(in)]]),"") ->  | AI25: =IF(Tabelle_Auswertung[[#This Row],[Platz]]=8,CONCATENATE(Tabelle_Auswertung[[#This Row],[Bildname]]," von ",Tabelle_Auswertung[[#This Row],[Autor(in)]]),"") ->  | AJ25: =IF(Tabelle_Auswertung[[#This Row],[Platz]]=9,CONCATENATE(Tabelle_Auswertung[[#This Row],[Bildname]]," von ",Tabelle_Auswertung[[#This Row],[Autor(in)]]),"") ->  | AK25: =IF(Tabelle_Auswertung[[#This Row],[Platz]]=10,CONCATENATE(Tabelle_Auswertung[[#This Row],[Bildname]]," von ",Tabelle_Auswertung[[#This Row],[Autor(in)]]),"") -> 
A26: 22 | B26: Spritzig.JPG | C26: 7 | D26: 10 | E26: 0 | F26: 7 | G26: 8 | H26: 6 | I26: 6 | J26: 7 | W26: =IF(Tabelle_Auswertung[[#This Row],[Bildname]]<>"", IF(Tabelle_Auswertung[[#This Row],[abwesend]]="ja", SUM(Tabelle_Auswertung[[#This Row],[Juror 1]:[Juror 20]])/COUNT(Tabelle_Auswertung[[#This Row],[Juror 1]:[Juror 20]])*(COUNT(Tabelle_Auswertung[[#This Row],[Juror 1]:[Juror 20]])-1), SUM(Tabelle_Auswertung[[#This Row],[Juror 1]:[Juror 20]]) ), " - ") -> 51 | X26: =IF(Tabelle_Auswertung[[#This Row],[Bildname]]<>"",IF(Tabelle_Auswertung[[#This Row],[Punkte]]>0,AVERAGE(Tabelle_Auswertung[[#This Row],[Juror 1]:[Juror 20]])," - ")," - ") -> 6.38 | Y26: =IF(Tabelle_Auswertung[[#This Row],[Bildname]]<>"",IF(Tabelle_Auswertung[[#This Row],[Punkte]]>0,RANK(Tabelle_Auswertung[[#This Row],[Punkte]],[Punkte],0)," - ")," - ") -> 21 | Z26: Albrecht Flierl | AB26: =IF(Tabelle_Auswertung[[#This Row],[Platz]]=1,CONCATENATE(Tabelle_Auswertung[[#This Row],[Bildname]]," von ",Tabelle_Auswertung[[#This Row],[Autor(in)]]),"") ->  | AC26: =IF(Tabelle_Auswertung[[#This Row],[Platz]]=2,CONCATENATE(Tabelle_Auswertung[[#This Row],[Bildname]]," von ",Tabelle_Auswertung[[#This Row],[Autor(in)]]),"") ->  | AD26: =IF(Tabelle_Auswertung[[#This Row],[Platz]]=3,CONCATENATE(Tabelle_Auswertung[[#This Row],[Bildname]]," von ",Tabelle_Auswertung[[#This Row],[Autor(in)]]),"") ->  | AE26: =IF(Tabelle_Auswertung[[#This Row],[Platz]]=4,CONCATENATE(Tabelle_Auswertung[[#This Row],[Bildname]]," von ",Tabelle_Auswertung[[#This Row],[Autor(in)]]),"") ->  | AF26: =IF(Tabelle_Auswertung[[#This Row],[Platz]]=5,CONCATENATE(Tabelle_Auswertung[[#This Row],[Bildname]]," von ",Tabelle_Auswertung[[#This Row],[Autor(in)]]),"") ->  | AG26: =IF(Tabelle_Auswertung[[#This Row],[Platz]]=6,CONCATENATE(Tabelle_Auswertung[[#This Row],[Bildname]]," von ",Tabelle_Auswertung[[#This Row],[Autor(in)]]),"") ->  | AH26: =IF(Tabelle_Auswertung[[#This Row],[Platz]]=7,CONCATENATE(Tabelle_Auswertung[[#This Row],[Bildname]]," von ",Tabelle_Auswertung[[#This Row],[Autor(in)]]),"") ->  | AI26: =IF(Tabelle_Auswertung[[#This Row],[Platz]]=8,CONCATENATE(Tabelle_Auswertung[[#This Row],[Bildname]]," von ",Tabelle_Auswertung[[#This Row],[Autor(in)]]),"") ->  | AJ26: =IF(Tabelle_Auswertung[[#This Row],[Platz]]=9,CONCATENATE(Tabelle_Auswertung[[#This Row],[Bildname]]," von ",Tabelle_Auswertung[[#This Row],[Autor(in)]]),"") ->  | AK26: =IF(Tabelle_Auswertung[[#This Row],[Platz]]=10,CONCATENATE(Tabelle_Auswertung[[#This Row],[Bildname]]," von ",Tabelle_Auswertung[[#This Row],[Autor(in)]]),"") -> 
A27: 23 | B27: IMG_0837.JPG | C27: 8 | D27: 7 | E27: 6 | F27: 8 | G27: 9 | H27: 4 | I27: 8 | J27: 8 | W27: =IF(Tabelle_Auswertung[[#This Row],[Bildname]]<>"", IF(Tabelle_Auswertung[[#This Row],[abwesend]]="ja", SUM(Tabelle_Auswertung[[#This Row],[Juror 1]:[Juror 20]])/COUNT(Tabelle_Auswertung[[#This Row],[Juror 1]:[Juror 20]])*(COUNT(Tabelle_Auswertung[[#This Row],[Juror 1]:[Juror 20]])-1), SUM(Tabelle_Auswertung[[#This Row],[Juror 1]:[Juror 20]]) ), " - ") -> 50.75 | X27: =IF(Tabelle_Auswertung[[#This Row],[Bildname]]<>"",IF(Tabelle_Auswertung[[#This Row],[Punkte]]>0,AVERAGE(Tabelle_Auswertung[[#This Row],[Juror 1]:[Juror 20]])," - ")," - ") -> 7.25 | Y27: =IF(Tabelle_Auswertung[[#This Row],[Bildname]]<>"",IF(Tabelle_Auswertung[[#This Row],[Punkte]]>0,RANK(Tabelle_Auswertung[[#This Row],[Punkte]],[Punkte],0)," - ")," - ") -> 23 | Z27: Andreas Toltz | AA27: ja | AB27: =IF(Tabelle_Auswertung[[#This Row],[Platz]]=1,CONCATENATE(Tabelle_Auswertung[[#This Row],[Bildname]]," von ",Tabelle_Auswertung[[#This Row],[Autor(in)]]),"") ->  | AC27: =IF(Tabelle_Auswertung[[#This Row],[Platz]]=2,CONCATENATE(Tabelle_Auswertung[[#This Row],[Bildname]]," von ",Tabelle_Auswertung[[#This Row],[Autor(in)]]),"") ->  | AD27: =IF(Tabelle_Auswertung[[#This Row],[Platz]]=3,CONCATENATE(Tabelle_Auswertung[[#This Row],[Bildname]]," von ",Tabelle_Auswertung[[#This Row],[Autor(in)]]),"") ->  | AE27: =IF(Tabelle_Auswertung[[#This Row],[Platz]]=4,CONCATENATE(Tabelle_Auswertung[[#This Row],[Bildname]]," von ",Tabelle_Auswertung[[#This Row],[Autor(in)]]),"") ->  | AF27: =IF(Tabelle_Auswertung[[#This Row],[Platz]]=5,CONCATENATE(Tabelle_Auswertung[[#This Row],[Bildname]]," von ",Tabelle_Auswertung[[#This Row],[Autor(in)]]),"") ->  | AG27: =IF(Tabelle_Auswertung[[#This Row],[Platz]]=6,CONCATENATE(Tabelle_Auswertung[[#This Row],[Bildname]]," von ",Tabelle_Auswertung[[#This Row],[Autor(in)]]),"") ->  | AH27: =IF(Tabelle_Auswertung[[#This Row],[Platz]]=7,CONCATENATE(Tabelle_Auswertung[[#This Row],[Bildname]]," von ",Tabelle_Auswertung[[#This Row],[Autor(in)]]),"") ->  | AI27: =IF(Tabelle_Auswertung[[#This Row],[Platz]]=8,CONCATENATE(Tabelle_Auswertung[[#This Row],[Bildname]]," von ",Tabelle_Auswertung[[#This Row],[Autor(in)]]),"") ->  | AJ27: =IF(Tabelle_Auswertung[[#This Row],[Platz]]=9,CONCATENATE(Tabelle_Auswertung[[#This Row],[Bildname]]," von ",Tabelle_Auswertung[[#This Row],[Autor(in)]]),"") ->  | AK27: =IF(Tabelle_Auswertung[[#This Row],[Platz]]=10,CONCATENATE(Tabelle_Auswertung[[#This Row],[Bildname]]," von ",Tabelle_Auswertung[[#This Row],[Autor(in)]]),"") -> 
A28: 24 | B28: Goldstimmung.jpg | C28: 7 | D28: 8 | E28: 7 | F28: 0 | G28: 8 | H28: 8 | I28: 6 | J28: 6 | W28: =IF(Tabelle_Auswertung[[#This Row],[Bildname]]<>"", IF(Tabelle_Auswertung[[#This Row],[abwesend]]="ja", SUM(Tabelle_Auswertung[[#This Row],[Juror 1]:[Juror 20]])/COUNT(Tabelle_Auswertung[[#This Row],[Juror 1]:[Juror 20]])*(COUNT(Tabelle_Auswertung[[#This Row],[Juror 1]:[Juror 20]])-1), SUM(Tabelle_Auswertung[[#This Row],[Juror 1]:[Juror 20]]) ), " - ") -> 50 | X28: =IF(Tabelle_Auswertung[[#This Row],[Bildname]]<>"",IF(Tabelle_Auswertung[[#This Row],[Punkte]]>0,AVERAGE(Tabelle_Auswertung[[#This Row],[Juror 1]:[Juror 20]])," - ")," - ") -> 6.25 | Y28: =IF(Tabelle_Auswertung[[#This Row],[Bildname]]<>"",IF(Tabelle_Auswertung[[#This Row],[Punkte]]>0,RANK(Tabelle_Auswertung[[#This Row],[Punkte]],[Punkte],0)," - ")," - ") -> 24 | Z28: Chris Finsterer | AB28: =IF(Tabelle_Auswertung[[#This Row],[Platz]]=1,CONCATENATE(Tabelle_Auswertung[[#This Row],[Bildname]]," von ",Tabelle_Auswertung[[#This Row],[Autor(in)]]),"") ->  | AC28: =IF(Tabelle_Auswertung[[#This Row],[Platz]]=2,CONCATENATE(Tabelle_Auswertung[[#This Row],[Bildname]]," von ",Tabelle_Auswertung[[#This Row],[Autor(in)]]),"") ->  | AD28: =IF(Tabelle_Auswertung[[#This Row],[Platz]]=3,CONCATENATE(Tabelle_Auswertung[[#This Row],[Bildname]]," von ",Tabelle_Auswertung[[#This Row],[Autor(in)]]),"") ->  | AE28: =IF(Tabelle_Auswertung[[#This Row],[Platz]]=4,CONCATENATE(Tabelle_Auswertung[[#This Row],[Bildname]]," von ",Tabelle_Auswertung[[#This Row],[Autor(in)]]),"") ->  | AF28: =IF(Tabelle_Auswertung[[#This Row],[Platz]]=5,CONCATENATE(Tabelle_Auswertung[[#This Row],[Bildname]]," von ",Tabelle_Auswertung[[#This Row],[Autor(in)]]),"") ->  | AG28: =IF(Tabelle_Auswertung[[#This Row],[Platz]]=6,CONCATENATE(Tabelle_Auswertung[[#This Row],[Bildname]]," von ",Tabelle_Auswertung[[#This Row],[Autor(in)]]),"") ->  | AH28: =IF(Tabelle_Auswertung[[#This Row],[Platz]]=7,CONCATENATE(Tabelle_Auswertung[[#This Row],[Bildname]]," von ",Tabelle_Auswertung[[#This Row],[Autor(in)]]),"") ->  | AI28: =IF(Tabelle_Auswertung[[#This Row],[Platz]]=8,CONCATENATE(Tabelle_Auswertung[[#This Row],[Bildname]]," von ",Tabelle_Auswertung[[#This Row],[Autor(in)]]),"") ->  | AJ28: =IF(Tabelle_Auswertung[[#This Row],[Platz]]=9,CONCATENATE(Tabelle_Auswertung[[#This Row],[Bildname]]," von ",Tabelle_Auswertung[[#This Row],[Autor(in)]]),"") ->  | AK28: =IF(Tabelle_Auswertung[[#This Row],[Platz]]=10,CONCATENATE(Tabelle_Auswertung[[#This Row],[Bildname]]," von ",Tabelle_Auswertung[[#This Row],[Autor(in)]]),"") -> 
A29: 25 | B29: Kristalle-1.jpg | C29: 9 | D29: 7 | E29: 6 | F29: 7 | G29: 8 | H29: 8 | I29: 0 | J29: 5 | W29: =IF(Tabelle_Auswertung[[#This Row],[Bildname]]<>"", IF(Tabelle_Auswertung[[#This Row],[abwesend]]="ja", SUM(Tabelle_Auswertung[[#This Row],[Juror 1]:[Juror 20]])/COUNT(Tabelle_Auswertung[[#This Row],[Juror 1]:[Juror 20]])*(COUNT(Tabelle_Auswertung[[#This Row],[Juror 1]:[Juror 20]])-1), SUM(Tabelle_Auswertung[[#This Row],[Juror 1]:[Juror 20]]) ), " - ") -> 50 | X29: =IF(Tabelle_Auswertung[[#This Row],[Bildname]]<>"",IF(Tabelle_Auswertung[[#This Row],[Punkte]]>0,AVERAGE(Tabelle_Auswertung[[#This Row],[Juror 1]:[Juror 20]])," - ")," - ") -> 6.25 | Y29: =IF(Tabelle_Auswertung[[#This Row],[Bildname]]<>"",IF(Tabelle_Auswertung[[#This Row],[Punkte]]>0,RANK(Tabelle_Auswertung[[#This Row],[Punkte]],[Punkte],0)," - ")," - ") -> 24 | Z29: Oliver von Guérard | AB29: =IF(Tabelle_Auswertung[[#This Row],[Platz]]=1,CONCATENATE(Tabelle_Auswertung[[#This Row],[Bildname]]," von ",Tabelle_Auswertung[[#This Row],[Autor(in)]]),"") ->  | AC29: =IF(Tabelle_Auswertung[[#This Row],[Platz]]=2,CONCATENATE(Tabelle_Auswertung[[#This Row],[Bildname]]," von ",Tabelle_Auswertung[[#This Row],[Autor(in)]]),"") ->  | AD29: =IF(Tabelle_Auswertung[[#This Row],[Platz]]=3,CONCATENATE(Tabelle_Auswertung[[#This Row],[Bildname]]," von ",Tabelle_Auswertung[[#This Row],[Autor(in)]]),"") ->  | AE29: =IF(Tabelle_Auswertung[[#This Row],[Platz]]=4,CONCATENATE(Tabelle_Auswertung[[#This Row],[Bildname]]," von ",Tabelle_Auswertung[[#This Row],[Autor(in)]]),"") ->  | AF29: =IF(Tabelle_Auswertung[[#This Row],[Platz]]=5,CONCATENATE(Tabelle_Auswertung[[#This Row],[Bildname]]," von ",Tabelle_Auswertung[[#This Row],[Autor(in)]]),"") ->  | AG29: =IF(Tabelle_Auswertung[[#This Row],[Platz]]=6,CONCATENATE(Tabelle_Auswertung[[#This Row],[Bildname]]," von ",Tabelle_Auswertung[[#This Row],[Autor(in)]]),"") ->  | AH29: =IF(Tabelle_Auswertung[[#This Row],[Platz]]=7,CONCATENATE(Tabelle_Auswertung[[#This Row],[Bildname]]," von ",Tabelle_Auswertung[[#This Row],[Autor(in)]]),"") ->  | AI29: =IF(Tabelle_Auswertung[[#This Row],[Platz]]=8,CONCATENATE(Tabelle_Auswertung[[#This Row],[Bildname]]," von ",Tabelle_Auswertung[[#This Row],[Autor(in)]]),"") ->  | AJ29: =IF(Tabelle_Auswertung[[#This Row],[Platz]]=9,CONCATENATE(Tabelle_Auswertung[[#This Row],[Bildname]]," von ",Tabelle_Auswertung[[#This Row],[Autor(in)]]),"") ->  | AK29: =IF(Tabelle_Auswertung[[#This Row],[Platz]]=10,CONCATENATE(Tabelle_Auswertung[[#This Row],[Bildname]]," von ",Tabelle_Auswertung[[#This Row],[Autor(in)]]),"") -> 
A30: 26 | B30: Marienkäfer.JPG | C30: 7 | D30: 0 | E30: 6 | F30: 9 | G30: 8 | H30: 8 | I30: 4 | J30: 8 | W30: =IF(Tabelle_Auswertung[[#This Row],[Bildname]]<>"", IF(Tabelle_Auswertung[[#This Row],[abwesend]]="ja", SUM(Tabelle_Auswertung[[#This Row],[Juror 1]:[Juror 20]])/COUNT(Tabelle_Auswertung[[#This Row],[Juror 1]:[Juror 20]])*(COUNT(Tabelle_Auswertung[[#This Row],[Juror 1]:[Juror 20]])-1), SUM(Tabelle_Auswertung[[#This Row],[Juror 1]:[Juror 20]]) ), " - ") -> 50 | X30: =IF(Tabelle_Auswertung[[#This Row],[Bildname]]<>"",IF(Tabelle_Auswertung[[#This Row],[Punkte]]>0,AVERAGE(Tabelle_Auswertung[[#This Row],[Juror 1]:[Juror 20]])," - ")," - ") -> 6.25 | Y30: =IF(Tabelle_Auswertung[[#This Row],[Bildname]]<>"",IF(Tabelle_Auswertung[[#This Row],[Punkte]]>0,RANK(Tabelle_Auswertung[[#This Row],[Punkte]],[Punkte],0)," - ")," - ") -> 24 | Z30: Nadja Cassim | AB30: =IF(Tabelle_Auswertung[[#This Row],[Platz]]=1,CONCATENATE(Tabelle_Auswertung[[#This Row],[Bildname]]," von ",Tabelle_Auswertung[[#This Row],[Autor(in)]]),"") ->  | AC30: =IF(Tabelle_Auswertung[[#This Row],[Platz]]=2,CONCATENATE(Tabelle_Auswertung[[#This Row],[Bildname]]," von ",Tabelle_Auswertung[[#This Row],[Autor(in)]]),"") ->  | AD30: =IF(Tabelle_Auswertung[[#This Row],[Platz]]=3,CONCATENATE(Tabelle_Auswertung[[#This Row],[Bildname]]," von ",Tabelle_Auswertung[[#This Row],[Autor(in)]]),"") ->  | AE30: =IF(Tabelle_Auswertung[[#This Row],[Platz]]=4,CONCATENATE(Tabelle_Auswertung[[#This Row],[Bildname]]," von ",Tabelle_Auswertung[[#This Row],[Autor(in)]]),"") ->  | AF30: =IF(Tabelle_Auswertung[[#This Row],[Platz]]=5,CONCATENATE(Tabelle_Auswertung[[#This Row],[Bildname]]," von ",Tabelle_Auswertung[[#This Row],[Autor(in)]]),"") ->  | AG30: =IF(Tabelle_Auswertung[[#This Row],[Platz]]=6,CONCATENATE(Tabelle_Auswertung[[#This Row],[Bildname]]," von ",Tabelle_Auswertung[[#This Row],[Autor(in)]]),"") ->  | AH30: =IF(Tabelle_Auswertung[[#This Row],[Platz]]=7,CONCATENATE(Tabelle_Auswertung[[#This Row],[Bildname]]," von ",Tabelle_Auswertung[[#This Row],[Autor(in)]]),"") ->  | AI30: =IF(Tabelle_Auswertung[[#This Row],[Platz]]=8,CONCATENATE(Tabelle_Auswertung[[#This Row],[Bildname]]," von ",Tabelle_Auswertung[[#This Row],[Autor(in)]]),"") ->  | AJ30: =IF(Tabelle_Auswertung[[#This Row],[Platz]]=9,CONCATENATE(Tabelle_Auswertung[[#This Row],[Bildname]]," von ",Tabelle_Auswertung[[#This Row],[Autor(in)]]),"") ->  | AK30: =IF(Tabelle_Auswertung[[#This Row],[Platz]]=10,CONCATENATE(Tabelle_Auswertung[[#This Row],[Bildname]]," von ",Tabelle_Auswertung[[#This Row],[Autor(in)]]),"") -> 
A31: 27 | B31: frühmorgens.JPG | C31: 7 | D31: 8 | E31: 5 | F31: 8 | G31: 9 | H31: 7 | I31: 5 | J31: 7 | W31: =IF(Tabelle_Auswertung[[#This Row],[Bildname]]<>"", IF(Tabelle_Auswertung[[#This Row],[abwesend]]="ja", SUM(Tabelle_Auswertung[[#This Row],[Juror 1]:[Juror 20]])/COUNT(Tabelle_Auswertung[[#This Row],[Juror 1]:[Juror 20]])*(COUNT(Tabelle_Auswertung[[#This Row],[Juror 1]:[Juror 20]])-1), SUM(Tabelle_Auswertung[[#This Row],[Juror 1]:[Juror 20]]) ), " - ") -> 49 | X31: =IF(Tabelle_Auswertung[[#This Row],[Bildname]]<>"",IF(Tabelle_Auswertung[[#This Row],[Punkte]]>0,AVERAGE(Tabelle_Auswertung[[#This Row],[Juror 1]:[Juror 20]])," - ")," - ") -> 7.00 | Y31: =IF(Tabelle_Auswertung[[#This Row],[Bildname]]<>"",IF(Tabelle_Auswertung[[#This Row],[Punkte]]>0,RANK(Tabelle_Auswertung[[#This Row],[Punkte]],[Punkte],0)," - ")," - ") -> 27 | Z31: Susanne Deinhardt | AA31: ja | AB31: =IF(Tabelle_Auswertung[[#This Row],[Platz]]=1,CONCATENATE(Tabelle_Auswertung[[#This Row],[Bildname]]," von ",Tabelle_Auswertung[[#This Row],[Autor(in)]]),"") ->  | AC31: =IF(Tabelle_Auswertung[[#This Row],[Platz]]=2,CONCATENATE(Tabelle_Auswertung[[#This Row],[Bildname]]," von ",Tabelle_Auswertung[[#This Row],[Autor(in)]]),"") ->  | AD31: =IF(Tabelle_Auswertung[[#This Row],[Platz]]=3,CONCATENATE(Tabelle_Auswertung[[#This Row],[Bildname]]," von ",Tabelle_Auswertung[[#This Row],[Autor(in)]]),"") ->  | AE31: =IF(Tabelle_Auswertung[[#This Row],[Platz]]=4,CONCATENATE(Tabelle_Auswertung[[#This Row],[Bildname]]," von ",Tabelle_Auswertung[[#This Row],[Autor(in)]]),"") ->  | AF31: =IF(Tabelle_Auswertung[[#This Row],[Platz]]=5,CONCATENATE(Tabelle_Auswertung[[#This Row],[Bildname]]," von ",Tabelle_Auswertung[[#This Row],[Autor(in)]]),"") ->  | AG31: =IF(Tabelle_Auswertung[[#This Row],[Platz]]=6,CONCATENATE(Tabelle_Auswertung[[#This Row],[Bildname]]," von ",Tabelle_Auswertung[[#This Row],[Autor(in)]]),"") ->  | AH31: =IF(Tabelle_Auswertung[[#This Row],[Platz]]=7,CONCATENATE(Tabelle_Auswertung[[#This Row],[Bildname]]," von ",Tabelle_Auswertung[[#This Row],[Autor(in)]]),"") ->  | AI31: =IF(Tabelle_Auswertung[[#This Row],[Platz]]=8,CONCATENATE(Tabelle_Auswertung[[#This Row],[Bildname]]," von ",Tabelle_Auswertung[[#This Row],[Autor(in)]]),"") ->  | AJ31: =IF(Tabelle_Auswertung[[#This Row],[Platz]]=9,CONCATENATE(Tabelle_Auswertung[[#This Row],[Bildname]]," von ",Tabelle_Auswertung[[#This Row],[Autor(in)]]),"") ->  | AK31: =IF(Tabelle_Auswertung[[#This Row],[Platz]]=10,CONCATENATE(Tabelle_Auswertung[[#This Row],[Bildname]]," von ",Tabelle_Auswertung[[#This Row],[Autor(in)]]),"") -> 
A32: 28 | B32: Moos.JPG | C32: 6 | D32: 0 | E32: 8 | F32: 8 | G32: 9 | H32: 6 | I32: 7 | J32: 5 | W32: =IF(Tabelle_Auswertung[[#This Row],[Bildname]]<>"", IF(Tabelle_Auswertung[[#This Row],[abwesend]]="ja", SUM(Tabelle_Auswertung[[#This Row],[Juror 1]:[Juror 20]])/COUNT(Tabelle_Auswertung[[#This Row],[Juror 1]:[Juror 20]])*(COUNT(Tabelle_Auswertung[[#This Row],[Juror 1]:[Juror 20]])-1), SUM(Tabelle_Auswertung[[#This Row],[Juror 1]:[Juror 20]]) ), " - ") -> 49 | X32: =IF(Tabelle_Auswertung[[#This Row],[Bildname]]<>"",IF(Tabelle_Auswertung[[#This Row],[Punkte]]>0,AVERAGE(Tabelle_Auswertung[[#This Row],[Juror 1]:[Juror 20]])," - ")," - ") -> 6.13 | Y32: =IF(Tabelle_Auswertung[[#This Row],[Bildname]]<>"",IF(Tabelle_Auswertung[[#This Row],[Punkte]]>0,RANK(Tabelle_Auswertung[[#This Row],[Punkte]],[Punkte],0)," - ")," - ") -> 27 | Z32: Nadja Cassim | AB32: =IF(Tabelle_Auswertung[[#This Row],[Platz]]=1,CONCATENATE(Tabelle_Auswertung[[#This Row],[Bildname]]," von ",Tabelle_Auswertung[[#This Row],[Autor(in)]]),"") ->  | AC32: =IF(Tabelle_Auswertung[[#This Row],[Platz]]=2,CONCATENATE(Tabelle_Auswertung[[#This Row],[Bildname]]," von ",Tabelle_Auswertung[[#This Row],[Autor(in)]]),"") ->  | AD32: =IF(Tabelle_Auswertung[[#This Row],[Platz]]=3,CONCATENATE(Tabelle_Auswertung[[#This Row],[Bildname]]," von ",Tabelle_Auswertung[[#This Row],[Autor(in)]]),"") ->  | AE32: =IF(Tabelle_Auswertung[[#This Row],[Platz]]=4,CONCATENATE(Tabelle_Auswertung[[#This Row],[Bildname]]," von ",Tabelle_Auswertung[[#This Row],[Autor(in)]]),"") ->  | AF32: =IF(Tabelle_Auswertung[[#This Row],[Platz]]=5,CONCATENATE(Tabelle_Auswertung[[#This Row],[Bildname]]," von ",Tabelle_Auswertung[[#This Row],[Autor(in)]]),"") ->  | AG32: =IF(Tabelle_Auswertung[[#This Row],[Platz]]=6,CONCATENATE(Tabelle_Auswertung[[#This Row],[Bildname]]," von ",Tabelle_Auswertung[[#This Row],[Autor(in)]]),"") ->  | AH32: =IF(Tabelle_Auswertung[[#This Row],[Platz]]=7,CONCATENATE(Tabelle_Auswertung[[#This Row],[Bildname]]," von ",Tabelle_Auswertung[[#This Row],[Autor(in)]]),"") ->  | AI32: =IF(Tabelle_Auswertung[[#This Row],[Platz]]=8,CONCATENATE(Tabelle_Auswertung[[#This Row],[Bildname]]," von ",Tabelle_Auswertung[[#This Row],[Autor(in)]]),"") ->  | AJ32: =IF(Tabelle_Auswertung[[#This Row],[Platz]]=9,CONCATENATE(Tabelle_Auswertung[[#This Row],[Bildname]]," von ",Tabelle_Auswertung[[#This Row],[Autor(in)]]),"") ->  | AK32: =IF(Tabelle_Auswertung[[#This Row],[Platz]]=10,CONCATENATE(Tabelle_Auswertung[[#This Row],[Bildname]]," von ",Tabelle_Auswertung[[#This Row],[Autor(in)]]),"") -> 
A33: 29 | B33: Zeil.jpg | C33: 7 | D33: 7 | E33: 8 | F33: 9 | G33: 0 | H33: 8 | I33: 4 | J33: 6 | W33: =IF(Tabelle_Auswertung[[#This Row],[Bildname]]<>"", IF(Tabelle_Auswertung[[#This Row],[abwesend]]="ja", SUM(Tabelle_Auswertung[[#This Row],[Juror 1]:[Juror 20]])/COUNT(Tabelle_Auswertung[[#This Row],[Juror 1]:[Juror 20]])*(COUNT(Tabelle_Auswertung[[#This Row],[Juror 1]:[Juror 20]])-1), SUM(Tabelle_Auswertung[[#This Row],[Juror 1]:[Juror 20]]) ), " - ") -> 49 | X33: =IF(Tabelle_Auswertung[[#This Row],[Bildname]]<>"",IF(Tabelle_Auswertung[[#This Row],[Punkte]]>0,AVERAGE(Tabelle_Auswertung[[#This Row],[Juror 1]:[Juror 20]])," - ")," - ") -> 6.125 | Y33: =IF(Tabelle_Auswertung[[#This Row],[Bildname]]<>"",IF(Tabelle_Auswertung[[#This Row],[Punkte]]>0,RANK(Tabelle_Auswertung[[#This Row],[Punkte]],[Punkte],0)," - ")," - ") -> 27 | Z33: Jan Grünler | AB33: =IF(Tabelle_Auswertung[[#This Row],[Platz]]=1,CONCATENATE(Tabelle_Auswertung[[#This Row],[Bildname]]," von ",Tabelle_Auswertung[[#This Row],[Autor(in)]]),"") ->  | AC33: =IF(Tabelle_Auswertung[[#This Row],[Platz]]=2,CONCATENATE(Tabelle_Auswertung[[#This Row],[Bildname]]," von ",Tabelle_Auswertung[[#This Row],[Autor(in)]]),"") ->  | AD33: =IF(Tabelle_Auswertung[[#This Row],[Platz]]=3,CONCATENATE(Tabelle_Auswertung[[#This Row],[Bildname]]," von ",Tabelle_Auswertung[[#This Row],[Autor(in)]]),"") ->  | AE33: =IF(Tabelle_Auswertung[[#This Row],[Platz]]=4,CONCATENATE(Tabelle_Auswertung[[#This Row],[Bildname]]," von ",Tabelle_Auswertung[[#This Row],[Autor(in)]]),"") ->  | AF33: =IF(Tabelle_Auswertung[[#This Row],[Platz]]=5,CONCATENATE(Tabelle_Auswertung[[#This Row],[Bildname]]," von ",Tabelle_Auswertung[[#This Row],[Autor(in)]]),"") ->  | AG33: =IF(Tabelle_Auswertung[[#This Row],[Platz]]=6,CONCATENATE(Tabelle_Auswertung[[#This Row],[Bildname]]," von ",Tabelle_Auswertung[[#This Row],[Autor(in)]]),"") ->  | AH33: =IF(Tabelle_Auswertung[[#This Row],[Platz]]=7,CONCATENATE(Tabelle_Auswertung[[#This Row],[Bildname]]," von ",Tabelle_Auswertung[[#This Row],[Autor(in)]]),"") ->  | AI33: =IF(Tabelle_Auswertung[[#This Row],[Platz]]=8,CONCATENATE(Tabelle_Auswertung[[#This Row],[Bildname]]," von ",Tabelle_Auswertung[[#This Row],[Autor(in)]]),"") ->  | AJ33: =IF(Tabelle_Auswertung[[#This Row],[Platz]]=9,CONCATENATE(Tabelle_Auswertung[[#This Row],[Bildname]]," von ",Tabelle_Auswertung[[#This Row],[Autor(in)]]),"") ->  | AK33: =IF(Tabelle_Auswertung[[#This Row],[Platz]]=10,CONCATENATE(Tabelle_Auswertung[[#This Row],[Bildname]]," von ",Tabelle_Auswertung[[#This Row],[Autor(in)]]),"") -> 
A34: 30 | B34: old and new.jpg | C34: 6 | D34: 8 | E34: 6 | F34: 7 | G34: 7 | H34: 7 | I34: 7 | J34: 0 | W34: =IF(Tabelle_Auswertung[[#This Row],[Bildname]]<>"", IF(Tabelle_Auswertung[[#This Row],[abwesend]]="ja", SUM(Tabelle_Auswertung[[#This Row],[Juror 1]:[Juror 20]])/COUNT(Tabelle_Auswertung[[#This Row],[Juror 1]:[Juror 20]])*(COUNT(Tabelle_Auswertung[[#This Row],[Juror 1]:[Juror 20]])-1), SUM(Tabelle_Auswertung[[#This Row],[Juror 1]:[Juror 20]]) ), " - ") -> 48 | X34: =IF(Tabelle_Auswertung[[#This Row],[Bildname]]<>"",IF(Tabelle_Auswertung[[#This Row],[Punkte]]>0,AVERAGE(Tabelle_Auswertung[[#This Row],[Juror 1]:[Juror 20]])," - ")," - ") -> 6.00 | Y34: =IF(Tabelle_Auswertung[[#This Row],[Bildname]]<>"",IF(Tabelle_Auswertung[[#This Row],[Punkte]]>0,RANK(Tabelle_Auswertung[[#This Row],[Punkte]],[Punkte],0)," - ")," - ") -> 30 | Z34: Gerhard Rieß | AB34: =IF(Tabelle_Auswertung[[#This Row],[Platz]]=1,CONCATENATE(Tabelle_Auswertung[[#This Row],[Bildname]]," von ",Tabelle_Auswertung[[#This Row],[Autor(in)]]),"") ->  | AC34: =IF(Tabelle_Auswertung[[#This Row],[Platz]]=2,CONCATENATE(Tabelle_Auswertung[[#This Row],[Bildname]]," von ",Tabelle_Auswertung[[#This Row],[Autor(in)]]),"") ->  | AD34: =IF(Tabelle_Auswertung[[#This Row],[Platz]]=3,CONCATENATE(Tabelle_Auswertung[[#This Row],[Bildname]]," von ",Tabelle_Auswertung[[#This Row],[Autor(in)]]),"") ->  | AE34: =IF(Tabelle_Auswertung[[#This Row],[Platz]]=4,CONCATENATE(Tabelle_Auswertung[[#This Row],[Bildname]]," von ",Tabelle_Auswertung[[#This Row],[Autor(in)]]),"") ->  | AF34: =IF(Tabelle_Auswertung[[#This Row],[Platz]]=5,CONCATENATE(Tabelle_Auswertung[[#This Row],[Bildname]]," von ",Tabelle_Auswertung[[#This Row],[Autor(in)]]),"") ->  | AG34: =IF(Tabelle_Auswertung[[#This Row],[Platz]]=6,CONCATENATE(Tabelle_Auswertung[[#This Row],[Bildname]]," von ",Tabelle_Auswertung[[#This Row],[Autor(in)]]),"") ->  | AH34: =IF(Tabelle_Auswertung[[#This Row],[Platz]]=7,CONCATENATE(Tabelle_Auswertung[[#This Row],[Bildname]]," von ",Tabelle_Auswertung[[#This Row],[Autor(in)]]),"") ->  | AI34: =IF(Tabelle_Auswertung[[#This Row],[Platz]]=8,CONCATENATE(Tabelle_Auswertung[[#This Row],[Bildname]]," von ",Tabelle_Auswertung[[#This Row],[Autor(in)]]),"") ->  | AJ34: =IF(Tabelle_Auswertung[[#This Row],[Platz]]=9,CONCATENATE(Tabelle_Auswertung[[#This Row],[Bildname]]," von ",Tabelle_Auswertung[[#This Row],[Autor(in)]]),"") ->  | AK34: =IF(Tabelle_Auswertung[[#This Row],[Platz]]=10,CONCATENATE(Tabelle_Auswertung[[#This Row],[Bildname]]," von ",Tabelle_Auswertung[[#This Row],[Autor(in)]]),"") -> 
A35: 31 | B35: Muh.jpg | C35: 8 | D35: 8 | E35: 6 | F35: 9 | G35: 0 | H35: 9 | I35: 3 | J35: 4 | W35: =IF(Tabelle_Auswertung[[#This Row],[Bildname]]<>"", IF(Tabelle_Auswertung[[#This Row],[abwesend]]="ja", SUM(Tabelle_Auswertung[[#This Row],[Juror 1]:[Juror 20]])/COUNT(Tabelle_Auswertung[[#This Row],[Juror 1]:[Juror 20]])*(COUNT(Tabelle_Auswertung[[#This Row],[Juror 1]:[Juror 20]])-1), SUM(Tabelle_Auswertung[[#This Row],[Juror 1]:[Juror 20]]) ), " - ") -> 47 | X35: =IF(Tabelle_Auswertung[[#This Row],[Bildname]]<>"",IF(Tabelle_Auswertung[[#This Row],[Punkte]]>0,AVERAGE(Tabelle_Auswertung[[#This Row],[Juror 1]:[Juror 20]])," - ")," - ") -> 5.88 | Y35: =IF(Tabelle_Auswertung[[#This Row],[Bildname]]<>"",IF(Tabelle_Auswertung[[#This Row],[Punkte]]>0,RANK(Tabelle_Auswertung[[#This Row],[Punkte]],[Punkte],0)," - ")," - ") -> 31 | Z35: Jan Grünler | AB35: =IF(Tabelle_Auswertung[[#This Row],[Platz]]=1,CONCATENATE(Tabelle_Auswertung[[#This Row],[Bildname]]," von ",Tabelle_Auswertung[[#This Row],[Autor(in)]]),"") ->  | AC35: =IF(Tabelle_Auswertung[[#This Row],[Platz]]=2,CONCATENATE(Tabelle_Auswertung[[#This Row],[Bildname]]," von ",Tabelle_Auswertung[[#This Row],[Autor(in)]]),"") ->  | AD35: =IF(Tabelle_Auswertung[[#This Row],[Platz]]=3,CONCATENATE(Tabelle_Auswertung[[#This Row],[Bildname]]," von ",Tabelle_Auswertung[[#This Row],[Autor(in)]]),"") ->  | AE35: =IF(Tabelle_Auswertung[[#This Row],[Platz]]=4,CONCATENATE(Tabelle_Auswertung[[#This Row],[Bildname]]," von ",Tabelle_Auswertung[[#This Row],[Autor(in)]]),"") ->  | AF35: =IF(Tabelle_Auswertung[[#This Row],[Platz]]=5,CONCATENATE(Tabelle_Auswertung[[#This Row],[Bildname]]," von ",Tabelle_Auswertung[[#This Row],[Autor(in)]]),"") ->  | AG35: =IF(Tabelle_Auswertung[[#This Row],[Platz]]=6,CONCATENATE(Tabelle_Auswertung[[#This Row],[Bildname]]," von ",Tabelle_Auswertung[[#This Row],[Autor(in)]]),"") ->  | AH35: =IF(Tabelle_Auswertung[[#This Row],[Platz]]=7,CONCATENATE(Tabelle_Auswertung[[#This Row],[Bildname]]," von ",Tabelle_Auswertung[[#This Row],[Autor(in)]]),"") ->  | AI35: =IF(Tabelle_Auswertung[[#This Row],[Platz]]=8,CONCATENATE(Tabelle_Auswertung[[#This Row],[Bildname]]," von ",Tabelle_Auswertung[[#This Row],[Autor(in)]]),"") ->  | AJ35: =IF(Tabelle_Auswertung[[#This Row],[Platz]]=9,CONCATENATE(Tabelle_Auswertung[[#This Row],[Bildname]]," von ",Tabelle_Auswertung[[#This Row],[Autor(in)]]),"") ->  | AK35: =IF(Tabelle_Auswertung[[#This Row],[Platz]]=10,CONCATENATE(Tabelle_Auswertung[[#This Row],[Bildname]]," von ",Tabelle_Auswertung[[#This Row],[Autor(in)]]),"") -> 
A36: 32 | B36: Trompetenmoos.JPG | C36: 6 | D36: 0 | E36: 6 | F36: 8 | G36: 8 | H36: 6 | I36: 7 | J36: 6 | W36: =IF(Tabelle_Auswertung[[#This Row],[Bildname]]<>"", IF(Tabelle_Auswertung[[#This Row],[abwesend]]="ja", SUM(Tabelle_Auswertung[[#This Row],[Juror 1]:[Juror 20]])/COUNT(Tabelle_Auswertung[[#This Row],[Juror 1]:[Juror 20]])*(COUNT(Tabelle_Auswertung[[#This Row],[Juror 1]:[Juror 20]])-1), SUM(Tabelle_Auswertung[[#This Row],[Juror 1]:[Juror 20]]) ), " - ") -> 47 | X36: =IF(Tabelle_Auswertung[[#This Row],[Bildname]]<>"",IF(Tabelle_Auswertung[[#This Row],[Punkte]]>0,AVERAGE(Tabelle_Auswertung[[#This Row],[Juror 1]:[Juror 20]])," - ")," - ") -> 5.875 | Y36: =IF(Tabelle_Auswertung[[#This Row],[Bildname]]<>"",IF(Tabelle_Auswertung[[#This Row],[Punkte]]>0,RANK(Tabelle_Auswertung[[#This Row],[Punkte]],[Punkte],0)," - ")," - ") -> 31 | Z36: Nadja Cassim | AB36: =IF(Tabelle_Auswertung[[#This Row],[Platz]]=1,CONCATENATE(Tabelle_Auswertung[[#This Row],[Bildname]]," von ",Tabelle_Auswertung[[#This Row],[Autor(in)]]),"") ->  | AC36: =IF(Tabelle_Auswertung[[#This Row],[Platz]]=2,CONCATENATE(Tabelle_Auswertung[[#This Row],[Bildname]]," von ",Tabelle_Auswertung[[#This Row],[Autor(in)]]),"") ->  | AD36: =IF(Tabelle_Auswertung[[#This Row],[Platz]]=3,CONCATENATE(Tabelle_Auswertung[[#This Row],[Bildname]]," von ",Tabelle_Auswertung[[#This Row],[Autor(in)]]),"") ->  | AE36: =IF(Tabelle_Auswertung[[#This Row],[Platz]]=4,CONCATENATE(Tabelle_Auswertung[[#This Row],[Bildname]]," von ",Tabelle_Auswertung[[#This Row],[Autor(in)]]),"") ->  | AF36: =IF(Tabelle_Auswertung[[#This Row],[Platz]]=5,CONCATENATE(Tabelle_Auswertung[[#This Row],[Bildname]]," von ",Tabelle_Auswertung[[#This Row],[Autor(in)]]),"") ->  | AG36: =IF(Tabelle_Auswertung[[#This Row],[Platz]]=6,CONCATENATE(Tabelle_Auswertung[[#This Row],[Bildname]]," von ",Tabelle_Auswertung[[#This Row],[Autor(in)]]),"") ->  | AH36: =IF(Tabelle_Auswertung[[#This Row],[Platz]]=7,CONCATENATE(Tabelle_Auswertung[[#This Row],[Bildname]]," von ",Tabelle_Auswertung[[#This Row],[Autor(in)]]),"") ->  | AI36: =IF(Tabelle_Auswertung[[#This Row],[Platz]]=8,CONCATENATE(Tabelle_Auswertung[[#This Row],[Bildname]]," von ",Tabelle_Auswertung[[#This Row],[Autor(in)]]),"") ->  | AJ36: =IF(Tabelle_Auswertung[[#This Row],[Platz]]=9,CONCATENATE(Tabelle_Auswertung[[#This Row],[Bildname]]," von ",Tabelle_Auswertung[[#This Row],[Autor(in)]]),"") ->  | AK36: =IF(Tabelle_Auswertung[[#This Row],[Platz]]=10,CONCATENATE(Tabelle_Auswertung[[#This Row],[Bildname]]," von ",Tabelle_Auswertung[[#This Row],[Autor(in)]]),"") -> 
A37: 33 | B37: Irish sunset.JPG | C37: 6 | D37: 9 | E37: 8 | F37: 8 | G37: 5 | H37: 6 | I37: 5 | J37: 6 | W37: =IF(Tabelle_Auswertung[[#This Row],[Bildname]]<>"", IF(Tabelle_Auswertung[[#This Row],[abwesend]]="ja", SUM(Tabelle_Auswertung[[#This Row],[Juror 1]:[Juror 20]])/COUNT(Tabelle_Auswertung[[#This Row],[Juror 1]:[Juror 20]])*(COUNT(Tabelle_Auswertung[[#This Row],[Juror 1]:[Juror 20]])-1), SUM(Tabelle_Auswertung[[#This Row],[Juror 1]:[Juror 20]]) ), " - ") -> 46.375 | X37: =IF(Tabelle_Auswertung[[#This Row],[Bildname]]<>"",IF(Tabelle_Auswertung[[#This Row],[Punkte]]>0,AVERAGE(Tabelle_Auswertung[[#This Row],[Juror 1]:[Juror 20]])," - ")," - ") -> 6.63 | Y37: =IF(Tabelle_Auswertung[[#This Row],[Bildname]]<>"",IF(Tabelle_Auswertung[[#This Row],[Punkte]]>0,RANK(Tabelle_Auswertung[[#This Row],[Punkte]],[Punkte],0)," - ")," - ") -> 33 | Z37: Susanne Deinhardt | AA37: ja | AB37: =IF(Tabelle_Auswertung[[#This Row],[Platz]]=1,CONCATENATE(Tabelle_Auswertung[[#This Row],[Bildname]]," von ",Tabelle_Auswertung[[#This Row],[Autor(in)]]),"") ->  | AC37: =IF(Tabelle_Auswertung[[#This Row],[Platz]]=2,CONCATENATE(Tabelle_Auswertung[[#This Row],[Bildname]]," von ",Tabelle_Auswertung[[#This Row],[Autor(in)]]),"") ->  | AD37: =IF(Tabelle_Auswertung[[#This Row],[Platz]]=3,CONCATENATE(Tabelle_Auswertung[[#This Row],[Bildname]]," von ",Tabelle_Auswertung[[#This Row],[Autor(in)]]),"") ->  | AE37: =IF(Tabelle_Auswertung[[#This Row],[Platz]]=4,CONCATENATE(Tabelle_Auswertung[[#This Row],[Bildname]]," von ",Tabelle_Auswertung[[#This Row],[Autor(in)]]),"") ->  | AF37: =IF(Tabelle_Auswertung[[#This Row],[Platz]]=5,CONCATENATE(Tabelle_Auswertung[[#This Row],[Bildname]]," von ",Tabelle_Auswertung[[#This Row],[Autor(in)]]),"") ->  | AG37: =IF(Tabelle_Auswertung[[#This Row],[Platz]]=6,CONCATENATE(Tabelle_Auswertung[[#This Row],[Bildname]]," von ",Tabelle_Auswertung[[#This Row],[Autor(in)]]),"") ->  | AH37: =IF(Tabelle_Auswertung[[#This Row],[Platz]]=7,CONCATENATE(Tabelle_Auswertung[[#This Row],[Bildname]]," von ",Tabelle_Auswertung[[#This Row],[Autor(in)]]),"") ->  | AI37: =IF(Tabelle_Auswertung[[#This Row],[Platz]]=8,CONCATENATE(Tabelle_Auswertung[[#This Row],[Bildname]]," von ",Tabelle_Auswertung[[#This Row],[Autor(in)]]),"") ->  | AJ37: =IF(Tabelle_Auswertung[[#This Row],[Platz]]=9,CONCATENATE(Tabelle_Auswertung[[#This Row],[Bildname]]," von ",Tabelle_Auswertung[[#This Row],[Autor(in)]]),"") ->  | AK37: =IF(Tabelle_Auswertung[[#This Row],[Platz]]=10,CONCATENATE(Tabelle_Auswertung[[#This Row],[Bildname]]," von ",Tabelle_Auswertung[[#This Row],[Autor(in)]]),"") -> 
A38: 34 | B38: traveling by the speed of light.jpg | C38: 5 | D38: 7 | E38: 8 | F38: 0 | G38: 7 | H38: 6 | I38: 5 | J38: 8 | W38: =IF(Tabelle_Auswertung[[#This Row],[Bildname]]<>"", IF(Tabelle_Auswertung[[#This Row],[abwesend]]="ja", SUM(Tabelle_Auswertung[[#This Row],[Juror 1]:[Juror 20]])/COUNT(Tabelle_Auswertung[[#This Row],[Juror 1]:[Juror 20]])*(COUNT(Tabelle_Auswertung[[#This Row],[Juror 1]:[Juror 20]])-1), SUM(Tabelle_Auswertung[[#This Row],[Juror 1]:[Juror 20]]) ), " - ") -> 46 | X38: =IF(Tabelle_Auswertung[[#This Row],[Bildname]]<>"",IF(Tabelle_Auswertung[[#This Row],[Punkte]]>0,AVERAGE(Tabelle_Auswertung[[#This Row],[Juror 1]:[Juror 20]])," - ")," - ") -> 5.75 | Y38: =IF(Tabelle_Auswertung[[#This Row],[Bildname]]<>"",IF(Tabelle_Auswertung[[#This Row],[Punkte]]>0,RANK(Tabelle_Auswertung[[#This Row],[Punkte]],[Punkte],0)," - ")," - ") -> 34 | Z38: Chris Finsterer | AB38: =IF(Tabelle_Auswertung[[#This Row],[Platz]]=1,CONCATENATE(Tabelle_Auswertung[[#This Row],[Bildname]]," von ",Tabelle_Auswertung[[#This Row],[Autor(in)]]),"") ->  | AC38: =IF(Tabelle_Auswertung[[#This Row],[Platz]]=2,CONCATENATE(Tabelle_Auswertung[[#This Row],[Bildname]]," von ",Tabelle_Auswertung[[#This Row],[Autor(in)]]),"") ->  | AD38: =IF(Tabelle_Auswertung[[#This Row],[Platz]]=3,CONCATENATE(Tabelle_Auswertung[[#This Row],[Bildname]]," von ",Tabelle_Auswertung[[#This Row],[Autor(in)]]),"") ->  | AE38: =IF(Tabelle_Auswertung[[#This Row],[Platz]]=4,CONCATENATE(Tabelle_Auswertung[[#This Row],[Bildname]]," von ",Tabelle_Auswertung[[#This Row],[Autor(in)]]),"") ->  | AF38: =IF(Tabelle_Auswertung[[#This Row],[Platz]]=5,CONCATENATE(Tabelle_Auswertung[[#This Row],[Bildname]]," von ",Tabelle_Auswertung[[#This Row],[Autor(in)]]),"") ->  | AG38: =IF(Tabelle_Auswertung[[#This Row],[Platz]]=6,CONCATENATE(Tabelle_Auswertung[[#This Row],[Bildname]]," von ",Tabelle_Auswertung[[#This Row],[Autor(in)]]),"") ->  | AH38: =IF(Tabelle_Auswertung[[#This Row],[Platz]]=7,CONCATENATE(Tabelle_Auswertung[[#This Row],[Bildname]]," von ",Tabelle_Auswertung[[#This Row],[Autor(in)]]),"") ->  | AI38: =IF(Tabelle_Auswertung[[#This Row],[Platz]]=8,CONCATENATE(Tabelle_Auswertung[[#This Row],[Bildname]]," von ",Tabelle_Auswertung[[#This Row],[Autor(in)]]),"") ->  | AJ38: =IF(Tabelle_Auswertung[[#This Row],[Platz]]=9,CONCATENATE(Tabelle_Auswertung[[#This Row],[Bildname]]," von ",Tabelle_Auswertung[[#This Row],[Autor(in)]]),"") ->  | AK38: =IF(Tabelle_Auswertung[[#This Row],[Platz]]=10,CONCATENATE(Tabelle_Auswertung[[#This Row],[Bildname]]," von ",Tabelle_Auswertung[[#This Row],[Autor(in)]]),"") -> 
A39: 35 | B39: underground.jpg | C39: 6 | D39: 8 | E39: 4 | F39: 8 | G39: 6 | H39: 8 | I39: 6 | J39: 0 | W39: =IF(Tabelle_Auswertung[[#This Row],[Bildname]]<>"", IF(Tabelle_Auswertung[[#This Row],[abwesend]]="ja", SUM(Tabelle_Auswertung[[#This Row],[Juror 1]:[Juror 20]])/COUNT(Tabelle_Auswertung[[#This Row],[Juror 1]:[Juror 20]])*(COUNT(Tabelle_Auswertung[[#This Row],[Juror 1]:[Juror 20]])-1), SUM(Tabelle_Auswertung[[#This Row],[Juror 1]:[Juror 20]]) ), " - ") -> 46 | X39: =IF(Tabelle_Auswertung[[#This Row],[Bildname]]<>"",IF(Tabelle_Auswertung[[#This Row],[Punkte]]>0,AVERAGE(Tabelle_Auswertung[[#This Row],[Juror 1]:[Juror 20]])," - ")," - ") -> 5.75 | Y39: =IF(Tabelle_Auswertung[[#This Row],[Bildname]]<>"",IF(Tabelle_Auswertung[[#This Row],[Punkte]]>0,RANK(Tabelle_Auswertung[[#This Row],[Punkte]],[Punkte],0)," - ")," - ") -> 34 | Z39: Gerhard Rieß | AB39: =IF(Tabelle_Auswertung[[#This Row],[Platz]]=1,CONCATENATE(Tabelle_Auswertung[[#This Row],[Bildname]]," von ",Tabelle_Auswertung[[#This Row],[Autor(in)]]),"") ->  | AC39: =IF(Tabelle_Auswertung[[#This Row],[Platz]]=2,CONCATENATE(Tabelle_Auswertung[[#This Row],[Bildname]]," von ",Tabelle_Auswertung[[#This Row],[Autor(in)]]),"") ->  | AD39: =IF(Tabelle_Auswertung[[#This Row],[Platz]]=3,CONCATENATE(Tabelle_Auswertung[[#This Row],[Bildname]]," von ",Tabelle_Auswertung[[#This Row],[Autor(in)]]),"") ->  | AE39: =IF(Tabelle_Auswertung[[#This Row],[Platz]]=4,CONCATENATE(Tabelle_Auswertung[[#This Row],[Bildname]]," von ",Tabelle_Auswertung[[#This Row],[Autor(in)]]),"") ->  | AF39: =IF(Tabelle_Auswertung[[#This Row],[Platz]]=5,CONCATENATE(Tabelle_Auswertung[[#This Row],[Bildname]]," von ",Tabelle_Auswertung[[#This Row],[Autor(in)]]),"") ->  | AG39: =IF(Tabelle_Auswertung[[#This Row],[Platz]]=6,CONCATENATE(Tabelle_Auswertung[[#This Row],[Bildname]]," von ",Tabelle_Auswertung[[#This Row],[Autor(in)]]),"") ->  | AH39: =IF(Tabelle_Auswertung[[#This Row],[Platz]]=7,CONCATENATE(Tabelle_Auswertung[[#This Row],[Bildname]]," von ",Tabelle_Auswertung[[#This Row],[Autor(in)]]),"") ->  | AI39: =IF(Tabelle_Auswertung[[#This Row],[Platz]]=8,CONCATENATE(Tabelle_Auswertung[[#This Row],[Bildname]]," von ",Tabelle_Auswertung[[#This Row],[Autor(in)]]),"") ->  | AJ39: =IF(Tabelle_Auswertung[[#This Row],[Platz]]=9,CONCATENATE(Tabelle_Auswertung[[#This Row],[Bildname]]," von ",Tabelle_Auswertung[[#This Row],[Autor(in)]]),"") ->  | AK39: =IF(Tabelle_Auswertung[[#This Row],[Platz]]=10,CONCATENATE(Tabelle_Auswertung[[#This Row],[Bildname]]," von ",Tabelle_Auswertung[[#This Row],[Autor(in)]]),"") -> 
A40: 36 | B40: IMG_0850.JPG | C40: 7 | D40: 7 | E40: 5 | F40: 6 | G40: 9 | H40: 4 | I40: 8 | J40: 6 | W40: =IF(Tabelle_Auswertung[[#This Row],[Bildname]]<>"", IF(Tabelle_Auswertung[[#This Row],[abwesend]]="ja", SUM(Tabelle_Auswertung[[#This Row],[Juror 1]:[Juror 20]])/COUNT(Tabelle_Auswertung[[#This Row],[Juror 1]:[Juror 20]])*(COUNT(Tabelle_Auswertung[[#This Row],[Juror 1]:[Juror 20]])-1), SUM(Tabelle_Auswertung[[#This Row],[Juror 1]:[Juror 20]]) ), " - ") -> 45.5 | X40: =IF(Tabelle_Auswertung[[#This Row],[Bildname]]<>"",IF(Tabelle_Auswertung[[#This Row],[Punkte]]>0,AVERAGE(Tabelle_Auswertung[[#This Row],[Juror 1]:[Juror 20]])," - ")," - ") -> 6.50 | Y40: =IF(Tabelle_Auswertung[[#This Row],[Bildname]]<>"",IF(Tabelle_Auswertung[[#This Row],[Punkte]]>0,RANK(Tabelle_Auswertung[[#This Row],[Punkte]],[Punkte],0)," - ")," - ") -> 36 | Z40: Andreas Toltz | AA40: ja | AB40: =IF(Tabelle_Auswertung[[#This Row],[Platz]]=1,CONCATENATE(Tabelle_Auswertung[[#This Row],[Bildname]]," von ",Tabelle_Auswertung[[#This Row],[Autor(in)]]),"") ->  | AC40: =IF(Tabelle_Auswertung[[#This Row],[Platz]]=2,CONCATENATE(Tabelle_Auswertung[[#This Row],[Bildname]]," von ",Tabelle_Auswertung[[#This Row],[Autor(in)]]),"") ->  | AD40: =IF(Tabelle_Auswertung[[#This Row],[Platz]]=3,CONCATENATE(Tabelle_Auswertung[[#This Row],[Bildname]]," von ",Tabelle_Auswertung[[#This Row],[Autor(in)]]),"") ->  | AE40: =IF(Tabelle_Auswertung[[#This Row],[Platz]]=4,CONCATENATE(Tabelle_Auswertung[[#This Row],[Bildname]]," von ",Tabelle_Auswertung[[#This Row],[Autor(in)]]),"") ->  | AF40: =IF(Tabelle_Auswertung[[#This Row],[Platz]]=5,CONCATENATE(Tabelle_Auswertung[[#This Row],[Bildname]]," von ",Tabelle_Auswertung[[#This Row],[Autor(in)]]),"") ->  | AG40: =IF(Tabelle_Auswertung[[#This Row],[Platz]]=6,CONCATENATE(Tabelle_Auswertung[[#This Row],[Bildname]]," von ",Tabelle_Auswertung[[#This Row],[Autor(in)]]),"") ->  | AH40: =IF(Tabelle_Auswertung[[#This Row],[Platz]]=7,CONCATENATE(Tabelle_Auswertung[[#This Row],[Bildname]]," von ",Tabelle_Auswertung[[#This Row],[Autor(in)]]),"") ->  | AI40: =IF(Tabelle_Auswertung[[#This Row],[Platz]]=8,CONCATENATE(Tabelle_Auswertung[[#This Row],[Bildname]]," von ",Tabelle_Auswertung[[#This Row],[Autor(in)]]),"") ->  | AJ40: =IF(Tabelle_Auswertung[[#This Row],[Platz]]=9,CONCATENATE(Tabelle_Auswertung[[#This Row],[Bildname]]," von ",Tabelle_Auswertung[[#This Row],[Autor(in)]]),"") ->  | AK40: =IF(Tabelle_Auswertung[[#This Row],[Platz]]=10,CONCATENATE(Tabelle_Auswertung[[#This Row],[Bildname]]," von ",Tabelle_Auswertung[[#This Row],[Autor(in)]]),"") -> 
A41: 37 | B41: Ameise.JPG | C41: 5 | D41: 0 | E41: 6 | F41: 9 | G41: 6 | H41: 8 | I41: 6 | J41: 5 | W41: =IF(Tabelle_Auswertung[[#This Row],[Bildname]]<>"", IF(Tabelle_Auswertung[[#This Row],[abwesend]]="ja", SUM(Tabelle_Auswertung[[#This Row],[Juror 1]:[Juror 20]])/COUNT(Tabelle_Auswertung[[#This Row],[Juror 1]:[Juror 20]])*(COUNT(Tabelle_Auswertung[[#This Row],[Juror 1]:[Juror 20]])-1), SUM(Tabelle_Auswertung[[#This Row],[Juror 1]:[Juror 20]]) ), " - ") -> 45 | X41: =IF(Tabelle_Auswertung[[#This Row],[Bildname]]<>"",IF(Tabelle_Auswertung[[#This Row],[Punkte]]>0,AVERAGE(Tabelle_Auswertung[[#This Row],[Juror 1]:[Juror 20]])," - ")," - ") -> 5.63 | Y41: =IF(Tabelle_Auswertung[[#This Row],[Bildname]]<>"",IF(Tabelle_Auswertung[[#This Row],[Punkte]]>0,RANK(Tabelle_Auswertung[[#This Row],[Punkte]],[Punkte],0)," - ")," - ") -> 37 | Z41: Nadja Cassim | AB41: =IF(Tabelle_Auswertung[[#This Row],[Platz]]=1,CONCATENATE(Tabelle_Auswertung[[#This Row],[Bildname]]," von ",Tabelle_Auswertung[[#This Row],[Autor(in)]]),"") ->  | AC41: =IF(Tabelle_Auswertung[[#This Row],[Platz]]=2,CONCATENATE(Tabelle_Auswertung[[#This Row],[Bildname]]," von ",Tabelle_Auswertung[[#This Row],[Autor(in)]]),"") ->  | AD41: =IF(Tabelle_Auswertung[[#This Row],[Platz]]=3,CONCATENATE(Tabelle_Auswertung[[#This Row],[Bildname]]," von ",Tabelle_Auswertung[[#This Row],[Autor(in)]]),"") ->  | AE41: =IF(Tabelle_Auswertung[[#This Row],[Platz]]=4,CONCATENATE(Tabelle_Auswertung[[#This Row],[Bildname]]," von ",Tabelle_Auswertung[[#This Row],[Autor(in)]]),"") ->  | AF41: =IF(Tabelle_Auswertung[[#This Row],[Platz]]=5,CONCATENATE(Tabelle_Auswertung[[#This Row],[Bildname]]," von ",Tabelle_Auswertung[[#This Row],[Autor(in)]]),"") ->  | AG41: =IF(Tabelle_Auswertung[[#This Row],[Platz]]=6,CONCATENATE(Tabelle_Auswertung[[#This Row],[Bildname]]," von ",Tabelle_Auswertung[[#This Row],[Autor(in)]]),"") ->  | AH41: =IF(Tabelle_Auswertung[[#This Row],[Platz]]=7,CONCATENATE(Tabelle_Auswertung[[#This Row],[Bildname]]," von ",Tabelle_Auswertung[[#This Row],[Autor(in)]]),"") ->  | AI41: =IF(Tabelle_Auswertung[[#This Row],[Platz]]=8,CONCATENATE(Tabelle_Auswertung[[#This Row],[Bildname]]," von ",Tabelle_Auswertung[[#This Row],[Autor(in)]]),"") ->  | AJ41: =IF(Tabelle_Auswertung[[#This Row],[Platz]]=9,CONCATENATE(Tabelle_Auswertung[[#This Row],[Bildname]]," von ",Tabelle_Auswertung[[#This Row],[Autor(in)]]),"") ->  | AK41: =IF(Tabelle_Auswertung[[#This Row],[Platz]]=10,CONCATENATE(Tabelle_Auswertung[[#This Row],[Bildname]]," von ",Tabelle_Auswertung[[#This Row],[Autor(in)]]),"") -> 
A42: 38 | B42: ob's schmeckt.JPG | C42: 6 | D42: 8 | E42: 6 | F42: 8 | G42: 5 | H42: 7 | I42: 7 | J42: 4 | W42: =IF(Tabelle_Auswertung[[#This Row],[Bildname]]<>"", IF(Tabelle_Auswertung[[#This Row],[abwesend]]="ja", SUM(Tabelle_Auswertung[[#This Row],[Juror 1]:[Juror 20]])/COUNT(Tabelle_Auswertung[[#This Row],[Juror 1]:[Juror 20]])*(COUNT(Tabelle_Auswertung[[#This Row],[Juror 1]:[Juror 20]])-1), SUM(Tabelle_Auswertung[[#This Row],[Juror 1]:[Juror 20]]) ), " - ") -> 44.625 | X42: =IF(Tabelle_Auswertung[[#This Row],[Bildname]]<>"",IF(Tabelle_Auswertung[[#This Row],[Punkte]]>0,AVERAGE(Tabelle_Auswertung[[#This Row],[Juror 1]:[Juror 20]])," - ")," - ") -> 6.375 | Y42: =IF(Tabelle_Auswertung[[#This Row],[Bildname]]<>"",IF(Tabelle_Auswertung[[#This Row],[Punkte]]>0,RANK(Tabelle_Auswertung[[#This Row],[Punkte]],[Punkte],0)," - ")," - ") -> 38 | Z42: Susanne Deinhardt | AA42: ja | AB42: =IF(Tabelle_Auswertung[[#This Row],[Platz]]=1,CONCATENATE(Tabelle_Auswertung[[#This Row],[Bildname]]," von ",Tabelle_Auswertung[[#This Row],[Autor(in)]]),"") ->  | AC42: =IF(Tabelle_Auswertung[[#This Row],[Platz]]=2,CONCATENATE(Tabelle_Auswertung[[#This Row],[Bildname]]," von ",Tabelle_Auswertung[[#This Row],[Autor(in)]]),"") ->  | AD42: =IF(Tabelle_Auswertung[[#This Row],[Platz]]=3,CONCATENATE(Tabelle_Auswertung[[#This Row],[Bildname]]," von ",Tabelle_Auswertung[[#This Row],[Autor(in)]]),"") ->  | AE42: =IF(Tabelle_Auswertung[[#This Row],[Platz]]=4,CONCATENATE(Tabelle_Auswertung[[#This Row],[Bildname]]," von ",Tabelle_Auswertung[[#This Row],[Autor(in)]]),"") ->  | AF42: =IF(Tabelle_Auswertung[[#This Row],[Platz]]=5,CONCATENATE(Tabelle_Auswertung[[#This Row],[Bildname]]," von ",Tabelle_Auswertung[[#This Row],[Autor(in)]]),"") ->  | AG42: =IF(Tabelle_Auswertung[[#This Row],[Platz]]=6,CONCATENATE(Tabelle_Auswertung[[#This Row],[Bildname]]," von ",Tabelle_Auswertung[[#This Row],[Autor(in)]]),"") ->  | AH42: =IF(Tabelle_Auswertung[[#This Row],[Platz]]=7,CONCATENATE(Tabelle_Auswertung[[#This Row],[Bildname]]," von ",Tabelle_Auswertung[[#This Row],[Autor(in)]]),"") ->  | AI42: =IF(Tabelle_Auswertung[[#This Row],[Platz]]=8,CONCATENATE(Tabelle_Auswertung[[#This Row],[Bildname]]," von ",Tabelle_Auswertung[[#This Row],[Autor(in)]]),"") ->  | AJ42: =IF(Tabelle_Auswertung[[#This Row],[Platz]]=9,CONCATENATE(Tabelle_Auswertung[[#This Row],[Bildname]]," von ",Tabelle_Auswertung[[#This Row],[Autor(in)]]),"") ->  | AK42: =IF(Tabelle_Auswertung[[#This Row],[Platz]]=10,CONCATENATE(Tabelle_Auswertung[[#This Row],[Bildname]]," von ",Tabelle_Auswertung[[#This Row],[Autor(in)]]),"") -> 
A43: 39 | B43: eye.jpg | C43: 8 | D43: 6 | E43: 5 | F43: 8 | G43: 8 | H43: 4 | I43: 5 | J43: 0 | W43: =IF(Tabelle_Auswertung[[#This Row],[Bildname]]<>"", IF(Tabelle_Auswertung[[#This Row],[abwesend]]="ja", SUM(Tabelle_Auswertung[[#This Row],[Juror 1]:[Juror 20]])/COUNT(Tabelle_Auswertung[[#This Row],[Juror 1]:[Juror 20]])*(COUNT(Tabelle_Auswertung[[#This Row],[Juror 1]:[Juror 20]])-1), SUM(Tabelle_Auswertung[[#This Row],[Juror 1]:[Juror 20]]) ), " - ") -> 44 | X43: =IF(Tabelle_Auswertung[[#This Row],[Bildname]]<>"",IF(Tabelle_Auswertung[[#This Row],[Punkte]]>0,AVERAGE(Tabelle_Auswertung[[#This Row],[Juror 1]:[Juror 20]])," - ")," - ") -> 5.50 | Y43: =IF(Tabelle_Auswertung[[#This Row],[Bildname]]<>"",IF(Tabelle_Auswertung[[#This Row],[Punkte]]>0,RANK(Tabelle_Auswertung[[#This Row],[Punkte]],[Punkte],0)," - ")," - ") -> 39 | Z43: Gerhard Rieß | AB43: =IF(Tabelle_Auswertung[[#This Row],[Platz]]=1,CONCATENATE(Tabelle_Auswertung[[#This Row],[Bildname]]," von ",Tabelle_Auswertung[[#This Row],[Autor(in)]]),"") ->  | AC43: =IF(Tabelle_Auswertung[[#This Row],[Platz]]=2,CONCATENATE(Tabelle_Auswertung[[#This Row],[Bildname]]," von ",Tabelle_Auswertung[[#This Row],[Autor(in)]]),"") ->  | AD43: =IF(Tabelle_Auswertung[[#This Row],[Platz]]=3,CONCATENATE(Tabelle_Auswertung[[#This Row],[Bildname]]," von ",Tabelle_Auswertung[[#This Row],[Autor(in)]]),"") ->  | AE43: =IF(Tabelle_Auswertung[[#This Row],[Platz]]=4,CONCATENATE(Tabelle_Auswertung[[#This Row],[Bildname]]," von ",Tabelle_Auswertung[[#This Row],[Autor(in)]]),"") ->  | AF43: =IF(Tabelle_Auswertung[[#This Row],[Platz]]=5,CONCATENATE(Tabelle_Auswertung[[#This Row],[Bildname]]," von ",Tabelle_Auswertung[[#This Row],[Autor(in)]]),"") ->  | AG43: =IF(Tabelle_Auswertung[[#This Row],[Platz]]=6,CONCATENATE(Tabelle_Auswertung[[#This Row],[Bildname]]," von ",Tabelle_Auswertung[[#This Row],[Autor(in)]]),"") ->  | AH43: =IF(Tabelle_Auswertung[[#This Row],[Platz]]=7,CONCATENATE(Tabelle_Auswertung[[#This Row],[Bildname]]," von ",Tabelle_Auswertung[[#This Row],[Autor(in)]]),"") ->  | AI43: =IF(Tabelle_Auswertung[[#This Row],[Platz]]=8,CONCATENATE(Tabelle_Auswertung[[#This Row],[Bildname]]," von ",Tabelle_Auswertung[[#This Row],[Autor(in)]]),"") ->  | AJ43: =IF(Tabelle_Auswertung[[#This Row],[Platz]]=9,CONCATENATE(Tabelle_Auswertung[[#This Row],[Bildname]]," von ",Tabelle_Auswertung[[#This Row],[Autor(in)]]),"") ->  | AK43: =IF(Tabelle_Auswertung[[#This Row],[Platz]]=10,CONCATENATE(Tabelle_Auswertung[[#This Row],[Bildname]]," von ",Tabelle_Auswertung[[#This Row],[Autor(in)]]),"") -> 
A44: 40 | B44: Moschee.jpg | C44: 7 | D44: 8 | E44: 5 | F44: 9 | G44: 7 | H44: 0 | I44: 4 | J44: 4 | W44: =IF(Tabelle_Auswertung[[#This Row],[Bildname]]<>"", IF(Tabelle_Auswertung[[#This Row],[abwesend]]="ja", SUM(Tabelle_Auswertung[[#This Row],[Juror 1]:[Juror 20]])/COUNT(Tabelle_Auswertung[[#This Row],[Juror 1]:[Juror 20]])*(COUNT(Tabelle_Auswertung[[#This Row],[Juror 1]:[Juror 20]])-1), SUM(Tabelle_Auswertung[[#This Row],[Juror 1]:[Juror 20]]) ), " - ") -> 44 | X44: =IF(Tabelle_Auswertung[[#This Row],[Bildname]]<>"",IF(Tabelle_Auswertung[[#This Row],[Punkte]]>0,AVERAGE(Tabelle_Auswertung[[#This Row],[Juror 1]:[Juror 20]])," - ")," - ") -> 5.50 | Y44: =IF(Tabelle_Auswertung[[#This Row],[Bildname]]<>"",IF(Tabelle_Auswertung[[#This Row],[Punkte]]>0,RANK(Tabelle_Auswertung[[#This Row],[Punkte]],[Punkte],0)," - ")," - ") -> 39 | Z44: Antje Finsterer | AB44: =IF(Tabelle_Auswertung[[#This Row],[Platz]]=1,CONCATENATE(Tabelle_Auswertung[[#This Row],[Bildname]]," von ",Tabelle_Auswertung[[#This Row],[Autor(in)]]),"") ->  | AC44: =IF(Tabelle_Auswertung[[#This Row],[Platz]]=2,CONCATENATE(Tabelle_Auswertung[[#This Row],[Bildname]]," von ",Tabelle_Auswertung[[#This Row],[Autor(in)]]),"") ->  | AD44: =IF(Tabelle_Auswertung[[#This Row],[Platz]]=3,CONCATENATE(Tabelle_Auswertung[[#This Row],[Bildname]]," von ",Tabelle_Auswertung[[#This Row],[Autor(in)]]),"") ->  | AE44: =IF(Tabelle_Auswertung[[#This Row],[Platz]]=4,CONCATENATE(Tabelle_Auswertung[[#This Row],[Bildname]]," von ",Tabelle_Auswertung[[#This Row],[Autor(in)]]),"") ->  | AF44: =IF(Tabelle_Auswertung[[#This Row],[Platz]]=5,CONCATENATE(Tabelle_Auswertung[[#This Row],[Bildname]]," von ",Tabelle_Auswertung[[#This Row],[Autor(in)]]),"") ->  | AG44: =IF(Tabelle_Auswertung[[#This Row],[Platz]]=6,CONCATENATE(Tabelle_Auswertung[[#This Row],[Bildname]]," von ",Tabelle_Auswertung[[#This Row],[Autor(in)]]),"") ->  | AH44: =IF(Tabelle_Auswertung[[#This Row],[Platz]]=7,CONCATENATE(Tabelle_Auswertung[[#This Row],[Bildname]]," von ",Tabelle_Auswertung[[#This Row],[Autor(in)]]),"") ->  | AI44: =IF(Tabelle_Auswertung[[#This Row],[Platz]]=8,CONCATENATE(Tabelle_Auswertung[[#This Row],[Bildname]]," von ",Tabelle_Auswertung[[#This Row],[Autor(in)]]),"") ->  | AJ44: =IF(Tabelle_Auswertung[[#This Row],[Platz]]=9,CONCATENATE(Tabelle_Auswertung[[#This Row],[Bildname]]," von ",Tabelle_Auswertung[[#This Row],[Autor(in)]]),"") ->  | AK44: =IF(Tabelle_Auswertung[[#This Row],[Platz]]=10,CONCATENATE(Tabelle_Auswertung[[#This Row],[Bildname]]," von ",Tabelle_Auswertung[[#This Row],[Autor(in)]]),"") -> 
A45: 41 | B45: Nasal.JPG | C45: 7 | D45: 8 | E45: 0 | F45: 7 | G45: 6 | H45: 5 | I45: 7 | J45: 4 | W45: =IF(Tabelle_Auswertung[[#This Row],[Bildname]]<>"", IF(Tabelle_Auswertung[[#This Row],[abwesend]]="ja", SUM(Tabelle_Auswertung[[#This Row],[Juror 1]:[Juror 20]])/COUNT(Tabelle_Auswertung[[#This Row],[Juror 1]:[Juror 20]])*(COUNT(Tabelle_Auswertung[[#This Row],[Juror 1]:[Juror 20]])-1), SUM(Tabelle_Auswertung[[#This Row],[Juror 1]:[Juror 20]]) ), " - ") -> 44 | X45: =IF(Tabelle_Auswertung[[#This Row],[Bildname]]<>"",IF(Tabelle_Auswertung[[#This Row],[Punkte]]>0,AVERAGE(Tabelle_Auswertung[[#This Row],[Juror 1]:[Juror 20]])," - ")," - ") -> 5.50 | Y45: =IF(Tabelle_Auswertung[[#This Row],[Bildname]]<>"",IF(Tabelle_Auswertung[[#This Row],[Punkte]]>0,RANK(Tabelle_Auswertung[[#This Row],[Punkte]],[Punkte],0)," - ")," - ") -> 39 | Z45: Albrecht Flierl | AB45: =IF(Tabelle_Auswertung[[#This Row],[Platz]]=1,CONCATENATE(Tabelle_Auswertung[[#This Row],[Bildname]]," von ",Tabelle_Auswertung[[#This Row],[Autor(in)]]),"") ->  | AC45: =IF(Tabelle_Auswertung[[#This Row],[Platz]]=2,CONCATENATE(Tabelle_Auswertung[[#This Row],[Bildname]]," von ",Tabelle_Auswertung[[#This Row],[Autor(in)]]),"") ->  | AD45: =IF(Tabelle_Auswertung[[#This Row],[Platz]]=3,CONCATENATE(Tabelle_Auswertung[[#This Row],[Bildname]]," von ",Tabelle_Auswertung[[#This Row],[Autor(in)]]),"") ->  | AE45: =IF(Tabelle_Auswertung[[#This Row],[Platz]]=4,CONCATENATE(Tabelle_Auswertung[[#This Row],[Bildname]]," von ",Tabelle_Auswertung[[#This Row],[Autor(in)]]),"") ->  | AF45: =IF(Tabelle_Auswertung[[#This Row],[Platz]]=5,CONCATENATE(Tabelle_Auswertung[[#This Row],[Bildname]]," von ",Tabelle_Auswertung[[#This Row],[Autor(in)]]),"") ->  | AG45: =IF(Tabelle_Auswertung[[#This Row],[Platz]]=6,CONCATENATE(Tabelle_Auswertung[[#This Row],[Bildname]]," von ",Tabelle_Auswertung[[#This Row],[Autor(in)]]),"") ->  | AH45: =IF(Tabelle_Auswertung[[#This Row],[Platz]]=7,CONCATENATE(Tabelle_Auswertung[[#This Row],[Bildname]]," von ",Tabelle_Auswertung[[#This Row],[Autor(in)]]),"") ->  | AI45: =IF(Tabelle_Auswertung[[#This Row],[Platz]]=8,CONCATENATE(Tabelle_Auswertung[[#This Row],[Bildname]]," von ",Tabelle_Auswertung[[#This Row],[Autor(in)]]),"") ->  | AJ45: =IF(Tabelle_Auswertung[[#This Row],[Platz]]=9,CONCATENATE(Tabelle_Auswertung[[#This Row],[Bildname]]," von ",Tabelle_Auswertung[[#This Row],[Autor(in)]]),"") ->  | AK45: =IF(Tabelle_Auswertung[[#This Row],[Platz]]=10,CONCATENATE(Tabelle_Auswertung[[#This Row],[Bildname]]," von ",Tabelle_Auswertung[[#This Row],[Autor(in)]]),"") -> 
A46: 42 | B46: Sunset.jpg | C46: 7 | D46: 8 | E46: 4 | F46: 9 | G46: 5 | H46: 6 | I46: 0 | J46: 5 | W46: =IF(Tabelle_Auswertung[[#This Row],[Bildname]]<>"", IF(Tabelle_Auswertung[[#This Row],[abwesend]]="ja", SUM(Tabelle_Auswertung[[#This Row],[Juror 1]:[Juror 20]])/COUNT(Tabelle_Auswertung[[#This Row],[Juror 1]:[Juror 20]])*(COUNT(Tabelle_Auswertung[[#This Row],[Juror 1]:[Juror 20]])-1), SUM(Tabelle_Auswertung[[#This Row],[Juror 1]:[Juror 20]]) ), " - ") -> 44 | X46: =IF(Tabelle_Auswertung[[#This Row],[Bildname]]<>"",IF(Tabelle_Auswertung[[#This Row],[Punkte]]>0,AVERAGE(Tabelle_Auswertung[[#This Row],[Juror 1]:[Juror 20]])," - ")," - ") -> 5.5 | Y46: =IF(Tabelle_Auswertung[[#This Row],[Bildname]]<>"",IF(Tabelle_Auswertung[[#This Row],[Punkte]]>0,RANK(Tabelle_Auswertung[[#This Row],[Punkte]],[Punkte],0)," - ")," - ") -> 39 | Z46: Oliver von Guérard | AB46: =IF(Tabelle_Auswertung[[#This Row],[Platz]]=1,CONCATENATE(Tabelle_Auswertung[[#This Row],[Bildname]]," von ",Tabelle_Auswertung[[#This Row],[Autor(in)]]),"") ->  | AC46: =IF(Tabelle_Auswertung[[#This Row],[Platz]]=2,CONCATENATE(Tabelle_Auswertung[[#This Row],[Bildname]]," von ",Tabelle_Auswertung[[#This Row],[Autor(in)]]),"") ->  | AD46: =IF(Tabelle_Auswertung[[#This Row],[Platz]]=3,CONCATENATE(Tabelle_Auswertung[[#This Row],[Bildname]]," von ",Tabelle_Auswertung[[#This Row],[Autor(in)]]),"") ->  | AE46: =IF(Tabelle_Auswertung[[#This Row],[Platz]]=4,CONCATENATE(Tabelle_Auswertung[[#This Row],[Bildname]]," von ",Tabelle_Auswertung[[#This Row],[Autor(in)]]),"") ->  | AF46: =IF(Tabelle_Auswertung[[#This Row],[Platz]]=5,CONCATENATE(Tabelle_Auswertung[[#This Row],[Bildname]]," von ",Tabelle_Auswertung[[#This Row],[Autor(in)]]),"") ->  | AG46: =IF(Tabelle_Auswertung[[#This Row],[Platz]]=6,CONCATENATE(Tabelle_Auswertung[[#This Row],[Bildname]]," von ",Tabelle_Auswertung[[#This Row],[Autor(in)]]),"") ->  | AH46: =IF(Tabelle_Auswertung[[#This Row],[Platz]]=7,CONCATENATE(Tabelle_Auswertung[[#This Row],[Bildname]]," von ",Tabelle_Auswertung[[#This Row],[Autor(in)]]),"") ->  | AI46: =IF(Tabelle_Auswertung[[#This Row],[Platz]]=8,CONCATENATE(Tabelle_Auswertung[[#This Row],[Bildname]]," von ",Tabelle_Auswertung[[#This Row],[Autor(in)]]),"") ->  | AJ46: =IF(Tabelle_Auswertung[[#This Row],[Platz]]=9,CONCATENATE(Tabelle_Auswertung[[#This Row],[Bildname]]," von ",Tabelle_Auswertung[[#This Row],[Autor(in)]]),"") ->  | AK46: =IF(Tabelle_Auswertung[[#This Row],[Platz]]=10,CONCATENATE(Tabelle_Auswertung[[#This Row],[Bildname]]," von ",Tabelle_Auswertung[[#This Row],[Autor(in)]]),"") -> 
A47: 43 | B47: Butterfly.JPG | C47: 0 | D47: 5 | E47: 4 | F47: 9 | G47: 6 | H47: 6 | I47: 7 | J47: 6 | W47: =IF(Tabelle_Auswertung[[#This Row],[Bildname]]<>"", IF(Tabelle_Auswertung[[#This Row],[abwesend]]="ja", SUM(Tabelle_Auswertung[[#This Row],[Juror 1]:[Juror 20]])/COUNT(Tabelle_Auswertung[[#This Row],[Juror 1]:[Juror 20]])*(COUNT(Tabelle_Auswertung[[#This Row],[Juror 1]:[Juror 20]])-1), SUM(Tabelle_Auswertung[[#This Row],[Juror 1]:[Juror 20]]) ), " - ") -> 43 | X47: =IF(Tabelle_Auswertung[[#This Row],[Bildname]]<>"",IF(Tabelle_Auswertung[[#This Row],[Punkte]]>0,AVERAGE(Tabelle_Auswertung[[#This Row],[Juror 1]:[Juror 20]])," - ")," - ") -> 5.375 | Y47: =IF(Tabelle_Auswertung[[#This Row],[Bildname]]<>"",IF(Tabelle_Auswertung[[#This Row],[Punkte]]>0,RANK(Tabelle_Auswertung[[#This Row],[Punkte]],[Punkte],0)," - ")," - ") -> 43 | Z47: Claudia Dommel | AB47: =IF(Tabelle_Auswertung[[#This Row],[Platz]]=1,CONCATENATE(Tabelle_Auswertung[[#This Row],[Bildname]]," von ",Tabelle_Auswertung[[#This Row],[Autor(in)]]),"") ->  | AC47: =IF(Tabelle_Auswertung[[#This Row],[Platz]]=2,CONCATENATE(Tabelle_Auswertung[[#This Row],[Bildname]]," von ",Tabelle_Auswertung[[#This Row],[Autor(in)]]),"") ->  | AD47: =IF(Tabelle_Auswertung[[#This Row],[Platz]]=3,CONCATENATE(Tabelle_Auswertung[[#This Row],[Bildname]]," von ",Tabelle_Auswertung[[#This Row],[Autor(in)]]),"") ->  | AE47: =IF(Tabelle_Auswertung[[#This Row],[Platz]]=4,CONCATENATE(Tabelle_Auswertung[[#This Row],[Bildname]]," von ",Tabelle_Auswertung[[#This Row],[Autor(in)]]),"") ->  | AF47: =IF(Tabelle_Auswertung[[#This Row],[Platz]]=5,CONCATENATE(Tabelle_Auswertung[[#This Row],[Bildname]]," von ",Tabelle_Auswertung[[#This Row],[Autor(in)]]),"") ->  | AG47: =IF(Tabelle_Auswertung[[#This Row],[Platz]]=6,CONCATENATE(Tabelle_Auswertung[[#This Row],[Bildname]]," von ",Tabelle_Auswertung[[#This Row],[Autor(in)]]),"") ->  | AH47: =IF(Tabelle_Auswertung[[#This Row],[Platz]]=7,CONCATENATE(Tabelle_Auswertung[[#This Row],[Bildname]]," von ",Tabelle_Auswertung[[#This Row],[Autor(in)]]),"") ->  | AI47: =IF(Tabelle_Auswertung[[#This Row],[Platz]]=8,CONCATENATE(Tabelle_Auswertung[[#This Row],[Bildname]]," von ",Tabelle_Auswertung[[#This Row],[Autor(in)]]),"") ->  | AJ47: =IF(Tabelle_Auswertung[[#This Row],[Platz]]=9,CONCATENATE(Tabelle_Auswertung[[#This Row],[Bildname]]," von ",Tabelle_Auswertung[[#This Row],[Autor(in)]]),"") ->  | AK47: =IF(Tabelle_Auswertung[[#This Row],[Platz]]=10,CONCATENATE(Tabelle_Auswertung[[#This Row],[Bildname]]," von ",Tabelle_Auswertung[[#This Row],[Autor(in)]]),"") -> 
A48: 44 | B48: Kampf der Titanen.jpg | C48: 8 | D48: 7 | E48: 6 | F48: 7 | G48: 6 | H48: 0 | I48: 4 | J48: 5 | W48: =IF(Tabelle_Auswertung[[#This Row],[Bildname]]<>"", IF(Tabelle_Auswertung[[#This Row],[abwesend]]="ja", SUM(Tabelle_Auswertung[[#This Row],[Juror 1]:[Juror 20]])/COUNT(Tabelle_Auswertung[[#This Row],[Juror 1]:[Juror 20]])*(COUNT(Tabelle_Auswertung[[#This Row],[Juror 1]:[Juror 20]])-1), SUM(Tabelle_Auswertung[[#This Row],[Juror 1]:[Juror 20]]) ), " - ") -> 43 | X48: =IF(Tabelle_Auswertung[[#This Row],[Bildname]]<>"",IF(Tabelle_Auswertung[[#This Row],[Punkte]]>0,AVERAGE(Tabelle_Auswertung[[#This Row],[Juror 1]:[Juror 20]])," - ")," - ") -> 5.375 | Y48: =IF(Tabelle_Auswertung[[#This Row],[Bildname]]<>"",IF(Tabelle_Auswertung[[#This Row],[Punkte]]>0,RANK(Tabelle_Auswertung[[#This Row],[Punkte]],[Punkte],0)," - ")," - ") -> 43 | Z48: Antje Finsterer | AB48: =IF(Tabelle_Auswertung[[#This Row],[Platz]]=1,CONCATENATE(Tabelle_Auswertung[[#This Row],[Bildname]]," von ",Tabelle_Auswertung[[#This Row],[Autor(in)]]),"") ->  | AC48: =IF(Tabelle_Auswertung[[#This Row],[Platz]]=2,CONCATENATE(Tabelle_Auswertung[[#This Row],[Bildname]]," von ",Tabelle_Auswertung[[#This Row],[Autor(in)]]),"") ->  | AD48: =IF(Tabelle_Auswertung[[#This Row],[Platz]]=3,CONCATENATE(Tabelle_Auswertung[[#This Row],[Bildname]]," von ",Tabelle_Auswertung[[#This Row],[Autor(in)]]),"") ->  | AE48: =IF(Tabelle_Auswertung[[#This Row],[Platz]]=4,CONCATENATE(Tabelle_Auswertung[[#This Row],[Bildname]]," von ",Tabelle_Auswertung[[#This Row],[Autor(in)]]),"") ->  | AF48: =IF(Tabelle_Auswertung[[#This Row],[Platz]]=5,CONCATENATE(Tabelle_Auswertung[[#This Row],[Bildname]]," von ",Tabelle_Auswertung[[#This Row],[Autor(in)]]),"") ->  | AG48: =IF(Tabelle_Auswertung[[#This Row],[Platz]]=6,CONCATENATE(Tabelle_Auswertung[[#This Row],[Bildname]]," von ",Tabelle_Auswertung[[#This Row],[Autor(in)]]),"") ->  | AH48: =IF(Tabelle_Auswertung[[#This Row],[Platz]]=7,CONCATENATE(Tabelle_Auswertung[[#This Row],[Bildname]]," von ",Tabelle_Auswertung[[#This Row],[Autor(in)]]),"") ->  | AI48: =IF(Tabelle_Auswertung[[#This Row],[Platz]]=8,CONCATENATE(Tabelle_Auswertung[[#This Row],[Bildname]]," von ",Tabelle_Auswertung[[#This Row],[Autor(in)]]),"") ->  | AJ48: =IF(Tabelle_Auswertung[[#This Row],[Platz]]=9,CONCATENATE(Tabelle_Auswertung[[#This Row],[Bildname]]," von ",Tabelle_Auswertung[[#This Row],[Autor(in)]]),"") ->  | AK48: =IF(Tabelle_Auswertung[[#This Row],[Platz]]=10,CONCATENATE(Tabelle_Auswertung[[#This Row],[Bildname]]," von ",Tabelle_Auswertung[[#This Row],[Autor(in)]]),"") -> 
A49: 45 | B49: Piano.JPG | C49: 5 | D49: 8 | E49: 0 | F49: 4 | G49: 6 | H49: 7 | I49: 8 | J49: 5 | W49: =IF(Tabelle_Auswertung[[#This Row],[Bildname]]<>"", IF(Tabelle_Auswertung[[#This Row],[abwesend]]="ja", SUM(Tabelle_Auswertung[[#This Row],[Juror 1]:[Juror 20]])/COUNT(Tabelle_Auswertung[[#This Row],[Juror 1]:[Juror 20]])*(COUNT(Tabelle_Auswertung[[#This Row],[Juror 1]:[Juror 20]])-1), SUM(Tabelle_Auswertung[[#This Row],[Juror 1]:[Juror 20]]) ), " - ") -> 43 | X49: =IF(Tabelle_Auswertung[[#This Row],[Bildname]]<>"",IF(Tabelle_Auswertung[[#This Row],[Punkte]]>0,AVERAGE(Tabelle_Auswertung[[#This Row],[Juror 1]:[Juror 20]])," - ")," - ") -> 5.38 | Y49: =IF(Tabelle_Auswertung[[#This Row],[Bildname]]<>"",IF(Tabelle_Auswertung[[#This Row],[Punkte]]>0,RANK(Tabelle_Auswertung[[#This Row],[Punkte]],[Punkte],0)," - ")," - ") -> 43 | Z49: Albrecht Flierl | AB49: =IF(Tabelle_Auswertung[[#This Row],[Platz]]=1,CONCATENATE(Tabelle_Auswertung[[#This Row],[Bildname]]," von ",Tabelle_Auswertung[[#This Row],[Autor(in)]]),"") ->  | AC49: =IF(Tabelle_Auswertung[[#This Row],[Platz]]=2,CONCATENATE(Tabelle_Auswertung[[#This Row],[Bildname]]," von ",Tabelle_Auswertung[[#This Row],[Autor(in)]]),"") ->  | AD49: =IF(Tabelle_Auswertung[[#This Row],[Platz]]=3,CONCATENATE(Tabelle_Auswertung[[#This Row],[Bildname]]," von ",Tabelle_Auswertung[[#This Row],[Autor(in)]]),"") ->  | AE49: =IF(Tabelle_Auswertung[[#This Row],[Platz]]=4,CONCATENATE(Tabelle_Auswertung[[#This Row],[Bildname]]," von ",Tabelle_Auswertung[[#This Row],[Autor(in)]]),"") ->  | AF49: =IF(Tabelle_Auswertung[[#This Row],[Platz]]=5,CONCATENATE(Tabelle_Auswertung[[#This Row],[Bildname]]," von ",Tabelle_Auswertung[[#This Row],[Autor(in)]]),"") ->  | AG49: =IF(Tabelle_Auswertung[[#This Row],[Platz]]=6,CONCATENATE(Tabelle_Auswertung[[#This Row],[Bildname]]," von ",Tabelle_Auswertung[[#This Row],[Autor(in)]]),"") ->  | AH49: =IF(Tabelle_Auswertung[[#This Row],[Platz]]=7,CONCATENATE(Tabelle_Auswertung[[#This Row],[Bildname]]," von ",Tabelle_Auswertung[[#This Row],[Autor(in)]]),"") ->  | AI49: =IF(Tabelle_Auswertung[[#This Row],[Platz]]=8,CONCATENATE(Tabelle_Auswertung[[#This Row],[Bildname]]," von ",Tabelle_Auswertung[[#This Row],[Autor(in)]]),"") ->  | AJ49: =IF(Tabelle_Auswertung[[#This Row],[Platz]]=9,CONCATENATE(Tabelle_Auswertung[[#This Row],[Bildname]]," von ",Tabelle_Auswertung[[#This Row],[Autor(in)]]),"") ->  | AK49: =IF(Tabelle_Auswertung[[#This Row],[Platz]]=10,CONCATENATE(Tabelle_Auswertung[[#This Row],[Bildname]]," von ",Tabelle_Auswertung[[#This Row],[Autor(in)]]),"") -> 
A50: 46 | B50: WindyWedding.jpg | C50: 6 | D50: 7 | E50: 7 | F50: 7 | G50: 5 | H50: 0 | I50: 5 | J50: 6 | W50: =IF(Tabelle_Auswertung[[#This Row],[Bildname]]<>"", IF(Tabelle_Auswertung[[#This Row],[abwesend]]="ja", SUM(Tabelle_Auswertung[[#This Row],[Juror 1]:[Juror 20]])/COUNT(Tabelle_Auswertung[[#This Row],[Juror 1]:[Juror 20]])*(COUNT(Tabelle_Auswertung[[#This Row],[Juror 1]:[Juror 20]])-1), SUM(Tabelle_Auswertung[[#This Row],[Juror 1]:[Juror 20]]) ), " - ") -> 43 | X50: =IF(Tabelle_Auswertung[[#This Row],[Bildname]]<>"",IF(Tabelle_Auswertung[[#This Row],[Punkte]]>0,AVERAGE(Tabelle_Auswertung[[#This Row],[Juror 1]:[Juror 20]])," - ")," - ") -> 5.38 | Y50: =IF(Tabelle_Auswertung[[#This Row],[Bildname]]<>"",IF(Tabelle_Auswertung[[#This Row],[Punkte]]>0,RANK(Tabelle_Auswertung[[#This Row],[Punkte]],[Punkte],0)," - ")," - ") -> 43 | Z50: Antje Finsterer | AB50: =IF(Tabelle_Auswertung[[#This Row],[Platz]]=1,CONCATENATE(Tabelle_Auswertung[[#This Row],[Bildname]]," von ",Tabelle_Auswertung[[#This Row],[Autor(in)]]),"") ->  | AC50: =IF(Tabelle_Auswertung[[#This Row],[Platz]]=2,CONCATENATE(Tabelle_Auswertung[[#This Row],[Bildname]]," von ",Tabelle_Auswertung[[#This Row],[Autor(in)]]),"") ->  | AD50: =IF(Tabelle_Auswertung[[#This Row],[Platz]]=3,CONCATENATE(Tabelle_Auswertung[[#This Row],[Bildname]]," von ",Tabelle_Auswertung[[#This Row],[Autor(in)]]),"") ->  | AE50: =IF(Tabelle_Auswertung[[#This Row],[Platz]]=4,CONCATENATE(Tabelle_Auswertung[[#This Row],[Bildname]]," von ",Tabelle_Auswertung[[#This Row],[Autor(in)]]),"") ->  | AF50: =IF(Tabelle_Auswertung[[#This Row],[Platz]]=5,CONCATENATE(Tabelle_Auswertung[[#This Row],[Bildname]]," von ",Tabelle_Auswertung[[#This Row],[Autor(in)]]),"") ->  | AG50: =IF(Tabelle_Auswertung[[#This Row],[Platz]]=6,CONCATENATE(Tabelle_Auswertung[[#This Row],[Bildname]]," von ",Tabelle_Auswertung[[#This Row],[Autor(in)]]),"") ->  | AH50: =IF(Tabelle_Auswertung[[#This Row],[Platz]]=7,CONCATENATE(Tabelle_Auswertung[[#This Row],[Bildname]]," von ",Tabelle_Auswertung[[#This Row],[Autor(in)]]),"") ->  | AI50: =IF(Tabelle_Auswertung[[#This Row],[Platz]]=8,CONCATENATE(Tabelle_Auswertung[[#This Row],[Bildname]]," von ",Tabelle_Auswertung[[#This Row],[Autor(in)]]),"") ->  | AJ50: =IF(Tabelle_Auswertung[[#This Row],[Platz]]=9,CONCATENATE(Tabelle_Auswertung[[#This Row],[Bildname]]," von ",Tabelle_Auswertung[[#This Row],[Autor(in)]]),"") ->  | AK50: =IF(Tabelle_Auswertung[[#This Row],[Platz]]=10,CONCATENATE(Tabelle_Auswertung[[#This Row],[Bildname]]," von ",Tabelle_Auswertung[[#This Row],[Autor(in)]]),"") -> 
A51: 47 | B51: Angriff.jpg | C51: 8 | D51: 5 | E51: 5 | F51: 9 | G51: 7 | H51: 0 | I51: 4 | J51: 4 | W51: =IF(Tabelle_Auswertung[[#This Row],[Bildname]]<>"", IF(Tabelle_Auswertung[[#This Row],[abwesend]]="ja", SUM(Tabelle_Auswertung[[#This Row],[Juror 1]:[Juror 20]])/COUNT(Tabelle_Auswertung[[#This Row],[Juror 1]:[Juror 20]])*(COUNT(Tabelle_Auswertung[[#This Row],[Juror 1]:[Juror 20]])-1), SUM(Tabelle_Auswertung[[#This Row],[Juror 1]:[Juror 20]]) ), " - ") -> 42 | X51: =IF(Tabelle_Auswertung[[#This Row],[Bildname]]<>"",IF(Tabelle_Auswertung[[#This Row],[Punkte]]>0,AVERAGE(Tabelle_Auswertung[[#This Row],[Juror 1]:[Juror 20]])," - ")," - ") -> 5.25 | Y51: =IF(Tabelle_Auswertung[[#This Row],[Bildname]]<>"",IF(Tabelle_Auswertung[[#This Row],[Punkte]]>0,RANK(Tabelle_Auswertung[[#This Row],[Punkte]],[Punkte],0)," - ")," - ") -> 47 | Z51: Antje Finsterer | AB51: =IF(Tabelle_Auswertung[[#This Row],[Platz]]=1,CONCATENATE(Tabelle_Auswertung[[#This Row],[Bildname]]," von ",Tabelle_Auswertung[[#This Row],[Autor(in)]]),"") ->  | AC51: =IF(Tabelle_Auswertung[[#This Row],[Platz]]=2,CONCATENATE(Tabelle_Auswertung[[#This Row],[Bildname]]," von ",Tabelle_Auswertung[[#This Row],[Autor(in)]]),"") ->  | AD51: =IF(Tabelle_Auswertung[[#This Row],[Platz]]=3,CONCATENATE(Tabelle_Auswertung[[#This Row],[Bildname]]," von ",Tabelle_Auswertung[[#This Row],[Autor(in)]]),"") ->  | AE51: =IF(Tabelle_Auswertung[[#This Row],[Platz]]=4,CONCATENATE(Tabelle_Auswertung[[#This Row],[Bildname]]," von ",Tabelle_Auswertung[[#This Row],[Autor(in)]]),"") ->  | AF51: =IF(Tabelle_Auswertung[[#This Row],[Platz]]=5,CONCATENATE(Tabelle_Auswertung[[#This Row],[Bildname]]," von ",Tabelle_Auswertung[[#This Row],[Autor(in)]]),"") ->  | AG51: =IF(Tabelle_Auswertung[[#This Row],[Platz]]=6,CONCATENATE(Tabelle_Auswertung[[#This Row],[Bildname]]," von ",Tabelle_Auswertung[[#This Row],[Autor(in)]]),"") ->  | AH51: =IF(Tabelle_Auswertung[[#This Row],[Platz]]=7,CONCATENATE(Tabelle_Auswertung[[#This Row],[Bildname]]," von ",Tabelle_Auswertung[[#This Row],[Autor(in)]]),"") ->  | AI51: =IF(Tabelle_Auswertung[[#This Row],[Platz]]=8,CONCATENATE(Tabelle_Auswertung[[#This Row],[Bildname]]," von ",Tabelle_Auswertung[[#This Row],[Autor(in)]]),"") ->  | AJ51: =IF(Tabelle_Auswertung[[#This Row],[Platz]]=9,CONCATENATE(Tabelle_Auswertung[[#This Row],[Bildname]]," von ",Tabelle_Auswertung[[#This Row],[Autor(in)]]),"") ->  | AK51: =IF(Tabelle_Auswertung[[#This Row],[Platz]]=10,CONCATENATE(Tabelle_Auswertung[[#This Row],[Bildname]]," von ",Tabelle_Auswertung[[#This Row],[Autor(in)]]),"") -> 
A52: 48 | B52: Spiegelung.JPG | C52: 0 | D52: 6 | E52: 7 | F52: 8 | G52: 7 | H52: 3 | I52: 7 | J52: 4 | W52: =IF(Tabelle_Auswertung[[#This Row],[Bildname]]<>"", IF(Tabelle_Auswertung[[#This Row],[abwesend]]="ja", SUM(Tabelle_Auswertung[[#This Row],[Juror 1]:[Juror 20]])/COUNT(Tabelle_Auswertung[[#This Row],[Juror 1]:[Juror 20]])*(COUNT(Tabelle_Auswertung[[#This Row],[Juror 1]:[Juror 20]])-1), SUM(Tabelle_Auswertung[[#This Row],[Juror 1]:[Juror 20]]) ), " - ") -> 42 | X52: =IF(Tabelle_Auswertung[[#This Row],[Bildname]]<>"",IF(Tabelle_Auswertung[[#This Row],[Punkte]]>0,AVERAGE(Tabelle_Auswertung[[#This Row],[Juror 1]:[Juror 20]])," - ")," - ") -> 5.25 | Y52: =IF(Tabelle_Auswertung[[#This Row],[Bildname]]<>"",IF(Tabelle_Auswertung[[#This Row],[Punkte]]>0,RANK(Tabelle_Auswertung[[#This Row],[Punkte]],[Punkte],0)," - ")," - ") -> 47 | Z52: Claudia Dommel | AB52: =IF(Tabelle_Auswertung[[#This Row],[Platz]]=1,CONCATENATE(Tabelle_Auswertung[[#This Row],[Bildname]]," von ",Tabelle_Auswertung[[#This Row],[Autor(in)]]),"") ->  | AC52: =IF(Tabelle_Auswertung[[#This Row],[Platz]]=2,CONCATENATE(Tabelle_Auswertung[[#This Row],[Bildname]]," von ",Tabelle_Auswertung[[#This Row],[Autor(in)]]),"") ->  | AD52: =IF(Tabelle_Auswertung[[#This Row],[Platz]]=3,CONCATENATE(Tabelle_Auswertung[[#This Row],[Bildname]]," von ",Tabelle_Auswertung[[#This Row],[Autor(in)]]),"") ->  | AE52: =IF(Tabelle_Auswertung[[#This Row],[Platz]]=4,CONCATENATE(Tabelle_Auswertung[[#This Row],[Bildname]]," von ",Tabelle_Auswertung[[#This Row],[Autor(in)]]),"") ->  | AF52: =IF(Tabelle_Auswertung[[#This Row],[Platz]]=5,CONCATENATE(Tabelle_Auswertung[[#This Row],[Bildname]]," von ",Tabelle_Auswertung[[#This Row],[Autor(in)]]),"") ->  | AG52: =IF(Tabelle_Auswertung[[#This Row],[Platz]]=6,CONCATENATE(Tabelle_Auswertung[[#This Row],[Bildname]]," von ",Tabelle_Auswertung[[#This Row],[Autor(in)]]),"") ->  | AH52: =IF(Tabelle_Auswertung[[#This Row],[Platz]]=7,CONCATENATE(Tabelle_Auswertung[[#This Row],[Bildname]]," von ",Tabelle_Auswertung[[#This Row],[Autor(in)]]),"") ->  | AI52: =IF(Tabelle_Auswertung[[#This Row],[Platz]]=8,CONCATENATE(Tabelle_Auswertung[[#This Row],[Bildname]]," von ",Tabelle_Auswertung[[#This Row],[Autor(in)]]),"") ->  | AJ52: =IF(Tabelle_Auswertung[[#This Row],[Platz]]=9,CONCATENATE(Tabelle_Auswertung[[#This Row],[Bildname]]," von ",Tabelle_Auswertung[[#This Row],[Autor(in)]]),"") ->  | AK52: =IF(Tabelle_Auswertung[[#This Row],[Platz]]=10,CONCATENATE(Tabelle_Auswertung[[#This Row],[Bildname]]," von ",Tabelle_Auswertung[[#This Row],[Autor(in)]]),"") -> 
A53: 49 | B53: IMG_0890.JPG | C53: 6 | D53: 8 | E53: 6 | F53: 4 | G53: 9 | H53: 5 | I53: 5 | J53: 4 | W53: =IF(Tabelle_Auswertung[[#This Row],[Bildname]]<>"", IF(Tabelle_Auswertung[[#This Row],[abwesend]]="ja", SUM(Tabelle_Auswertung[[#This Row],[Juror 1]:[Juror 20]])/COUNT(Tabelle_Auswertung[[#This Row],[Juror 1]:[Juror 20]])*(COUNT(Tabelle_Auswertung[[#This Row],[Juror 1]:[Juror 20]])-1), SUM(Tabelle_Auswertung[[#This Row],[Juror 1]:[Juror 20]]) ), " - ") -> 41.125 | X53: =IF(Tabelle_Auswertung[[#This Row],[Bildname]]<>"",IF(Tabelle_Auswertung[[#This Row],[Punkte]]>0,AVERAGE(Tabelle_Auswertung[[#This Row],[Juror 1]:[Juror 20]])," - ")," - ") -> 5.88 | Y53: =IF(Tabelle_Auswertung[[#This Row],[Bildname]]<>"",IF(Tabelle_Auswertung[[#This Row],[Punkte]]>0,RANK(Tabelle_Auswertung[[#This Row],[Punkte]],[Punkte],0)," - ")," - ") -> 49 | Z53: Andreas Toltz | AA53: ja | AB53: =IF(Tabelle_Auswertung[[#This Row],[Platz]]=1,CONCATENATE(Tabelle_Auswertung[[#This Row],[Bildname]]," von ",Tabelle_Auswertung[[#This Row],[Autor(in)]]),"") ->  | AC53: =IF(Tabelle_Auswertung[[#This Row],[Platz]]=2,CONCATENATE(Tabelle_Auswertung[[#This Row],[Bildname]]," von ",Tabelle_Auswertung[[#This Row],[Autor(in)]]),"") ->  | AD53: =IF(Tabelle_Auswertung[[#This Row],[Platz]]=3,CONCATENATE(Tabelle_Auswertung[[#This Row],[Bildname]]," von ",Tabelle_Auswertung[[#This Row],[Autor(in)]]),"") ->  | AE53: =IF(Tabelle_Auswertung[[#This Row],[Platz]]=4,CONCATENATE(Tabelle_Auswertung[[#This Row],[Bildname]]," von ",Tabelle_Auswertung[[#This Row],[Autor(in)]]),"") ->  | AF53: =IF(Tabelle_Auswertung[[#This Row],[Platz]]=5,CONCATENATE(Tabelle_Auswertung[[#This Row],[Bildname]]," von ",Tabelle_Auswertung[[#This Row],[Autor(in)]]),"") ->  | AG53: =IF(Tabelle_Auswertung[[#This Row],[Platz]]=6,CONCATENATE(Tabelle_Auswertung[[#This Row],[Bildname]]," von ",Tabelle_Auswertung[[#This Row],[Autor(in)]]),"") ->  | AH53: =IF(Tabelle_Auswertung[[#This Row],[Platz]]=7,CONCATENATE(Tabelle_Auswertung[[#This Row],[Bildname]]," von ",Tabelle_Auswertung[[#This Row],[Autor(in)]]),"") ->  | AI53: =IF(Tabelle_Auswertung[[#This Row],[Platz]]=8,CONCATENATE(Tabelle_Auswertung[[#This Row],[Bildname]]," von ",Tabelle_Auswertung[[#This Row],[Autor(in)]]),"") ->  | AJ53: =IF(Tabelle_Auswertung[[#This Row],[Platz]]=9,CONCATENATE(Tabelle_Auswertung[[#This Row],[Bildname]]," von ",Tabelle_Auswertung[[#This Row],[Autor(in)]]),"") ->  | AK53: =IF(Tabelle_Auswertung[[#This Row],[Platz]]=10,CONCATENATE(Tabelle_Auswertung[[#This Row],[Bildname]]," von ",Tabelle_Auswertung[[#This Row],[Autor(in)]]),"") -> 
A54: 50 | B54: Italia.jpg | C54: 7 | D54: 7 | E54: 3 | F54: 7 | G54: 0 | H54: 8 | I54: 4 | J54: 5 | W54: =IF(Tabelle_Auswertung[[#This Row],[Bildname]]<>"", IF(Tabelle_Auswertung[[#This Row],[abwesend]]="ja", SUM(Tabelle_Auswertung[[#This Row],[Juror 1]:[Juror 20]])/COUNT(Tabelle_Auswertung[[#This Row],[Juror 1]:[Juror 20]])*(COUNT(Tabelle_Auswertung[[#This Row],[Juror 1]:[Juror 20]])-1), SUM(Tabelle_Auswertung[[#This Row],[Juror 1]:[Juror 20]]) ), " - ") -> 41 | X54: =IF(Tabelle_Auswertung[[#This Row],[Bildname]]<>"",IF(Tabelle_Auswertung[[#This Row],[Punkte]]>0,AVERAGE(Tabelle_Auswertung[[#This Row],[Juror 1]:[Juror 20]])," - ")," - ") -> 5.13 | Y54: =IF(Tabelle_Auswertung[[#This Row],[Bildname]]<>"",IF(Tabelle_Auswertung[[#This Row],[Punkte]]>0,RANK(Tabelle_Auswertung[[#This Row],[Punkte]],[Punkte],0)," - ")," - ") -> 50 | Z54: Jan Grünler | AB54: =IF(Tabelle_Auswertung[[#This Row],[Platz]]=1,CONCATENATE(Tabelle_Auswertung[[#This Row],[Bildname]]," von ",Tabelle_Auswertung[[#This Row],[Autor(in)]]),"") ->  | AC54: =IF(Tabelle_Auswertung[[#This Row],[Platz]]=2,CONCATENATE(Tabelle_Auswertung[[#This Row],[Bildname]]," von ",Tabelle_Auswertung[[#This Row],[Autor(in)]]),"") ->  | AD54: =IF(Tabelle_Auswertung[[#This Row],[Platz]]=3,CONCATENATE(Tabelle_Auswertung[[#This Row],[Bildname]]," von ",Tabelle_Auswertung[[#This Row],[Autor(in)]]),"") ->  | AE54: =IF(Tabelle_Auswertung[[#This Row],[Platz]]=4,CONCATENATE(Tabelle_Auswertung[[#This Row],[Bildname]]," von ",Tabelle_Auswertung[[#This Row],[Autor(in)]]),"") ->  | AF54: =IF(Tabelle_Auswertung[[#This Row],[Platz]]=5,CONCATENATE(Tabelle_Auswertung[[#This Row],[Bildname]]," von ",Tabelle_Auswertung[[#This Row],[Autor(in)]]),"") ->  | AG54: =IF(Tabelle_Auswertung[[#This Row],[Platz]]=6,CONCATENATE(Tabelle_Auswertung[[#This Row],[Bildname]]," von ",Tabelle_Auswertung[[#This Row],[Autor(in)]]),"") ->  | AH54: =IF(Tabelle_Auswertung[[#This Row],[Platz]]=7,CONCATENATE(Tabelle_Auswertung[[#This Row],[Bildname]]," von ",Tabelle_Auswertung[[#This Row],[Autor(in)]]),"") ->  | AI54: =IF(Tabelle_Auswertung[[#This Row],[Platz]]=8,CONCATENATE(Tabelle_Auswertung[[#This Row],[Bildname]]," von ",Tabelle_Auswertung[[#This Row],[Autor(in)]]),"") ->  | AJ54: =IF(Tabelle_Auswertung[[#This Row],[Platz]]=9,CONCATENATE(Tabelle_Auswertung[[#This Row],[Bildname]]," von ",Tabelle_Auswertung[[#This Row],[Autor(in)]]),"") ->  | AK54: =IF(Tabelle_Auswertung[[#This Row],[Platz]]=10,CONCATENATE(Tabelle_Auswertung[[#This Row],[Bildname]]," von ",Tabelle_Auswertung[[#This Row],[Autor(in)]]),"") -> 
A55: 51 | B55: IMG_0123.JPG | C55: 5 | D55: 6 | E55: 6 | F55: 8 | G55: 7 | H55: 5 | I55: 4 | J55: 5 | W55: =IF(Tabelle_Auswertung[[#This Row],[Bildname]]<>"", IF(Tabelle_Auswertung[[#This Row],[abwesend]]="ja", SUM(Tabelle_Auswertung[[#This Row],[Juror 1]:[Juror 20]])/COUNT(Tabelle_Auswertung[[#This Row],[Juror 1]:[Juror 20]])*(COUNT(Tabelle_Auswertung[[#This Row],[Juror 1]:[Juror 20]])-1), SUM(Tabelle_Auswertung[[#This Row],[Juror 1]:[Juror 20]]) ), " - ") -> 40.25 | X55: =IF(Tabelle_Auswertung[[#This Row],[Bildname]]<>"",IF(Tabelle_Auswertung[[#This Row],[Punkte]]>0,AVERAGE(Tabelle_Auswertung[[#This Row],[Juror 1]:[Juror 20]])," - ")," - ") -> 5.75 | Y55: =IF(Tabelle_Auswertung[[#This Row],[Bildname]]<>"",IF(Tabelle_Auswertung[[#This Row],[Punkte]]>0,RANK(Tabelle_Auswertung[[#This Row],[Punkte]],[Punkte],0)," - ")," - ") -> 51 | Z55: Andreas Toltz | AA55: ja | AB55: =IF(Tabelle_Auswertung[[#This Row],[Platz]]=1,CONCATENATE(Tabelle_Auswertung[[#This Row],[Bildname]]," von ",Tabelle_Auswertung[[#This Row],[Autor(in)]]),"") ->  | AC55: =IF(Tabelle_Auswertung[[#This Row],[Platz]]=2,CONCATENATE(Tabelle_Auswertung[[#This Row],[Bildname]]," von ",Tabelle_Auswertung[[#This Row],[Autor(in)]]),"") ->  | AD55: =IF(Tabelle_Auswertung[[#This Row],[Platz]]=3,CONCATENATE(Tabelle_Auswertung[[#This Row],[Bildname]]," von ",Tabelle_Auswertung[[#This Row],[Autor(in)]]),"") ->  | AE55: =IF(Tabelle_Auswertung[[#This Row],[Platz]]=4,CONCATENATE(Tabelle_Auswertung[[#This Row],[Bildname]]," von ",Tabelle_Auswertung[[#This Row],[Autor(in)]]),"") ->  | AF55: =IF(Tabelle_Auswertung[[#This Row],[Platz]]=5,CONCATENATE(Tabelle_Auswertung[[#This Row],[Bildname]]," von ",Tabelle_Auswertung[[#This Row],[Autor(in)]]),"") ->  | AG55: =IF(Tabelle_Auswertung[[#This Row],[Platz]]=6,CONCATENATE(Tabelle_Auswertung[[#This Row],[Bildname]]," von ",Tabelle_Auswertung[[#This Row],[Autor(in)]]),"") ->  | AH55: =IF(Tabelle_Auswertung[[#This Row],[Platz]]=7,CONCATENATE(Tabelle_Auswertung[[#This Row],[Bildname]]," von ",Tabelle_Auswertung[[#This Row],[Autor(in)]]),"") ->  | AI55: =IF(Tabelle_Auswertung[[#This Row],[Platz]]=8,CONCATENATE(Tabelle_Auswertung[[#This Row],[Bildname]]," von ",Tabelle_Auswertung[[#This Row],[Autor(in)]]),"") ->  | AJ55: =IF(Tabelle_Auswertung[[#This Row],[Platz]]=9,CONCATENATE(Tabelle_Auswertung[[#This Row],[Bildname]]," von ",Tabelle_Auswertung[[#This Row],[Autor(in)]]),"") ->  | AK55: =IF(Tabelle_Auswertung[[#This Row],[Platz]]=10,CONCATENATE(Tabelle_Auswertung[[#This Row],[Bildname]]," von ",Tabelle_Auswertung[[#This Row],[Autor(in)]]),"") -> 
A56: 52 | B56: Dialog.JPG | C56: 6 | D56: 7 | E56: 0 | F56: 6 | G56: 5 | H56: 5 | I56: 6 | J56: 5 | W56: =IF(Tabelle_Auswertung[[#This Row],[Bildname]]<>"", IF(Tabelle_Auswertung[[#This Row],[abwesend]]="ja", SUM(Tabelle_Auswertung[[#This Row],[Juror 1]:[Juror 20]])/COUNT(Tabelle_Auswertung[[#This Row],[Juror 1]:[Juror 20]])*(COUNT(Tabelle_Auswertung[[#This Row],[Juror 1]:[Juror 20]])-1), SUM(Tabelle_Auswertung[[#This Row],[Juror 1]:[Juror 20]]) ), " - ") -> 40 | X56: =IF(Tabelle_Auswertung[[#This Row],[Bildname]]<>"",IF(Tabelle_Auswertung[[#This Row],[Punkte]]>0,AVERAGE(Tabelle_Auswertung[[#This Row],[Juror 1]:[Juror 20]])," - ")," - ") -> 5.00 | Y56: =IF(Tabelle_Auswertung[[#This Row],[Bildname]]<>"",IF(Tabelle_Auswertung[[#This Row],[Punkte]]>0,RANK(Tabelle_Auswertung[[#This Row],[Punkte]],[Punkte],0)," - ")," - ") -> 52 | Z56: Albrecht Flierl | AB56: =IF(Tabelle_Auswertung[[#This Row],[Platz]]=1,CONCATENATE(Tabelle_Auswertung[[#This Row],[Bildname]]," von ",Tabelle_Auswertung[[#This Row],[Autor(in)]]),"") ->  | AC56: =IF(Tabelle_Auswertung[[#This Row],[Platz]]=2,CONCATENATE(Tabelle_Auswertung[[#This Row],[Bildname]]," von ",Tabelle_Auswertung[[#This Row],[Autor(in)]]),"") ->  | AD56: =IF(Tabelle_Auswertung[[#This Row],[Platz]]=3,CONCATENATE(Tabelle_Auswertung[[#This Row],[Bildname]]," von ",Tabelle_Auswertung[[#This Row],[Autor(in)]]),"") ->  | AE56: =IF(Tabelle_Auswertung[[#This Row],[Platz]]=4,CONCATENATE(Tabelle_Auswertung[[#This Row],[Bildname]]," von ",Tabelle_Auswertung[[#This Row],[Autor(in)]]),"") ->  | AF56: =IF(Tabelle_Auswertung[[#This Row],[Platz]]=5,CONCATENATE(Tabelle_Auswertung[[#This Row],[Bildname]]," von ",Tabelle_Auswertung[[#This Row],[Autor(in)]]),"") ->  | AG56: =IF(Tabelle_Auswertung[[#This Row],[Platz]]=6,CONCATENATE(Tabelle_Auswertung[[#This Row],[Bildname]]," von ",Tabelle_Auswertung[[#This Row],[Autor(in)]]),"") ->  | AH56: =IF(Tabelle_Auswertung[[#This Row],[Platz]]=7,CONCATENATE(Tabelle_Auswertung[[#This Row],[Bildname]]," von ",Tabelle_Auswertung[[#This Row],[Autor(in)]]),"") ->  | AI56: =IF(Tabelle_Auswertung[[#This Row],[Platz]]=8,CONCATENATE(Tabelle_Auswertung[[#This Row],[Bildname]]," von ",Tabelle_Auswertung[[#This Row],[Autor(in)]]),"") ->  | AJ56: =IF(Tabelle_Auswertung[[#This Row],[Platz]]=9,CONCATENATE(Tabelle_Auswertung[[#This Row],[Bildname]]," von ",Tabelle_Auswertung[[#This Row],[Autor(in)]]),"") ->  | AK56: =IF(Tabelle_Auswertung[[#This Row],[Platz]]=10,CONCATENATE(Tabelle_Auswertung[[#This Row],[Bildname]]," von ",Tabelle_Auswertung[[#This Row],[Autor(in)]]),"") -> 
A57: 53 | B57: Raindrops.jpg | C57: 7 | D57: 5 | E57: 5 | F57: 10 | G57: 6 | H57: 0 | I57: 3 | J57: 4 | W57: =IF(Tabelle_Auswertung[[#This Row],[Bildname]]<>"", IF(Tabelle_Auswertung[[#This Row],[abwesend]]="ja", SUM(Tabelle_Auswertung[[#This Row],[Juror 1]:[Juror 20]])/COUNT(Tabelle_Auswertung[[#This Row],[Juror 1]:[Juror 20]])*(COUNT(Tabelle_Auswertung[[#This Row],[Juror 1]:[Juror 20]])-1), SUM(Tabelle_Auswertung[[#This Row],[Juror 1]:[Juror 20]]) ), " - ") -> 40 | X57: =IF(Tabelle_Auswertung[[#This Row],[Bildname]]<>"",IF(Tabelle_Auswertung[[#This Row],[Punkte]]>0,AVERAGE(Tabelle_Auswertung[[#This Row],[Juror 1]:[Juror 20]])," - ")," - ") -> 5.00 | Y57: =IF(Tabelle_Auswertung[[#This Row],[Bildname]]<>"",IF(Tabelle_Auswertung[[#This Row],[Punkte]]>0,RANK(Tabelle_Auswertung[[#This Row],[Punkte]],[Punkte],0)," - ")," - ") -> 52 | Z57: Antje Finsterer | AB57: =IF(Tabelle_Auswertung[[#This Row],[Platz]]=1,CONCATENATE(Tabelle_Auswertung[[#This Row],[Bildname]]," von ",Tabelle_Auswertung[[#This Row],[Autor(in)]]),"") ->  | AC57: =IF(Tabelle_Auswertung[[#This Row],[Platz]]=2,CONCATENATE(Tabelle_Auswertung[[#This Row],[Bildname]]," von ",Tabelle_Auswertung[[#This Row],[Autor(in)]]),"") ->  | AD57: =IF(Tabelle_Auswertung[[#This Row],[Platz]]=3,CONCATENATE(Tabelle_Auswertung[[#This Row],[Bildname]]," von ",Tabelle_Auswertung[[#This Row],[Autor(in)]]),"") ->  | AE57: =IF(Tabelle_Auswertung[[#This Row],[Platz]]=4,CONCATENATE(Tabelle_Auswertung[[#This Row],[Bildname]]," von ",Tabelle_Auswertung[[#This Row],[Autor(in)]]),"") ->  | AF57: =IF(Tabelle_Auswertung[[#This Row],[Platz]]=5,CONCATENATE(Tabelle_Auswertung[[#This Row],[Bildname]]," von ",Tabelle_Auswertung[[#This Row],[Autor(in)]]),"") ->  | AG57: =IF(Tabelle_Auswertung[[#This Row],[Platz]]=6,CONCATENATE(Tabelle_Auswertung[[#This Row],[Bildname]]," von ",Tabelle_Auswertung[[#This Row],[Autor(in)]]),"") ->  | AH57: =IF(Tabelle_Auswertung[[#This Row],[Platz]]=7,CONCATENATE(Tabelle_Auswertung[[#This Row],[Bildname]]," von ",Tabelle_Auswertung[[#This Row],[Autor(in)]]),"") ->  | AI57: =IF(Tabelle_Auswertung[[#This Row],[Platz]]=8,CONCATENATE(Tabelle_Auswertung[[#This Row],[Bildname]]," von ",Tabelle_Auswertung[[#This Row],[Autor(in)]]),"") ->  | AJ57: =IF(Tabelle_Auswertung[[#This Row],[Platz]]=9,CONCATENATE(Tabelle_Auswertung[[#This Row],[Bildname]]," von ",Tabelle_Auswertung[[#This Row],[Autor(in)]]),"") ->  | AK57: =IF(Tabelle_Auswertung[[#This Row],[Platz]]=10,CONCATENATE(Tabelle_Auswertung[[#This Row],[Bildname]]," von ",Tabelle_Auswertung[[#This Row],[Autor(in)]]),"") -> 
A58: 54 | B58: Rastplatz.JPG | C58: 5 | D58: 8 | E58: 0 | F58: 6 | G58: 4 | H58: 6 | I58: 6 | J58: 4 | W58: =IF(Tabelle_Auswertung[[#This Row],[Bildname]]<>"", IF(Tabelle_Auswertung[[#This Row],[abwesend]]="ja", SUM(Tabelle_Auswertung[[#This Row],[Juror 1]:[Juror 20]])/COUNT(Tabelle_Auswertung[[#This Row],[Juror 1]:[Juror 20]])*(COUNT(Tabelle_Auswertung[[#This Row],[Juror 1]:[Juror 20]])-1), SUM(Tabelle_Auswertung[[#This Row],[Juror 1]:[Juror 20]]) ), " - ") -> 39 | X58: =IF(Tabelle_Auswertung[[#This Row],[Bildname]]<>"",IF(Tabelle_Auswertung[[#This Row],[Punkte]]>0,AVERAGE(Tabelle_Auswertung[[#This Row],[Juror 1]:[Juror 20]])," - ")," - ") -> 4.875 | Y58: =IF(Tabelle_Auswertung[[#This Row],[Bildname]]<>"",IF(Tabelle_Auswertung[[#This Row],[Punkte]]>0,RANK(Tabelle_Auswertung[[#This Row],[Punkte]],[Punkte],0)," - ")," - ") -> 54 | Z58: Albrecht Flierl | AB58: =IF(Tabelle_Auswertung[[#This Row],[Platz]]=1,CONCATENATE(Tabelle_Auswertung[[#This Row],[Bildname]]," von ",Tabelle_Auswertung[[#This Row],[Autor(in)]]),"") ->  | AC58: =IF(Tabelle_Auswertung[[#This Row],[Platz]]=2,CONCATENATE(Tabelle_Auswertung[[#This Row],[Bildname]]," von ",Tabelle_Auswertung[[#This Row],[Autor(in)]]),"") ->  | AD58: =IF(Tabelle_Auswertung[[#This Row],[Platz]]=3,CONCATENATE(Tabelle_Auswertung[[#This Row],[Bildname]]," von ",Tabelle_Auswertung[[#This Row],[Autor(in)]]),"") ->  | AE58: =IF(Tabelle_Auswertung[[#This Row],[Platz]]=4,CONCATENATE(Tabelle_Auswertung[[#This Row],[Bildname]]," von ",Tabelle_Auswertung[[#This Row],[Autor(in)]]),"") ->  | AF58: =IF(Tabelle_Auswertung[[#This Row],[Platz]]=5,CONCATENATE(Tabelle_Auswertung[[#This Row],[Bildname]]," von ",Tabelle_Auswertung[[#This Row],[Autor(in)]]),"") ->  | AG58: =IF(Tabelle_Auswertung[[#This Row],[Platz]]=6,CONCATENATE(Tabelle_Auswertung[[#This Row],[Bildname]]," von ",Tabelle_Auswertung[[#This Row],[Autor(in)]]),"") ->  | AH58: =IF(Tabelle_Auswertung[[#This Row],[Platz]]=7,CONCATENATE(Tabelle_Auswertung[[#This Row],[Bildname]]," von ",Tabelle_Auswertung[[#This Row],[Autor(in)]]),"") ->  | AI58: =IF(Tabelle_Auswertung[[#This Row],[Platz]]=8,CONCATENATE(Tabelle_Auswertung[[#This Row],[Bildname]]," von ",Tabelle_Auswertung[[#This Row],[Autor(in)]]),"") ->  | AJ58: =IF(Tabelle_Auswertung[[#This Row],[Platz]]=9,CONCATENATE(Tabelle_Auswertung[[#This Row],[Bildname]]," von ",Tabelle_Auswertung[[#This Row],[Autor(in)]]),"") ->  | AK58: =IF(Tabelle_Auswertung[[#This Row],[Platz]]=10,CONCATENATE(Tabelle_Auswertung[[#This Row],[Bildname]]," von ",Tabelle_Auswertung[[#This Row],[Autor(in)]]),"") -> 
A59: 55 | B59: steakhouse.jpg | C59: 5 | D59: 7 | E59: 6 | F59: 6 | G59: 5 | H59: 4 | I59: 5 | J59: 0 | W59: =IF(Tabelle_Auswertung[[#This Row],[Bildname]]<>"", IF(Tabelle_Auswertung[[#This Row],[abwesend]]="ja", SUM(Tabelle_Auswertung[[#This Row],[Juror 1]:[Juror 20]])/COUNT(Tabelle_Auswertung[[#This Row],[Juror 1]:[Juror 20]])*(COUNT(Tabelle_Auswertung[[#This Row],[Juror 1]:[Juror 20]])-1), SUM(Tabelle_Auswertung[[#This Row],[Juror 1]:[Juror 20]]) ), " - ") -> 38 | X59: =IF(Tabelle_Auswertung[[#This Row],[Bildname]]<>"",IF(Tabelle_Auswertung[[#This Row],[Punkte]]>0,AVERAGE(Tabelle_Auswertung[[#This Row],[Juror 1]:[Juror 20]])," - ")," - ") -> 4.75 | Y59: =IF(Tabelle_Auswertung[[#This Row],[Bildname]]<>"",IF(Tabelle_Auswertung[[#This Row],[Punkte]]>0,RANK(Tabelle_Auswertung[[#This Row],[Punkte]],[Punkte],0)," - ")," - ") -> 55 | Z59: Gerhard Rieß | AB59: =IF(Tabelle_Auswertung[[#This Row],[Platz]]=1,CONCATENATE(Tabelle_Auswertung[[#This Row],[Bildname]]," von ",Tabelle_Auswertung[[#This Row],[Autor(in)]]),"") ->  | AC59: =IF(Tabelle_Auswertung[[#This Row],[Platz]]=2,CONCATENATE(Tabelle_Auswertung[[#This Row],[Bildname]]," von ",Tabelle_Auswertung[[#This Row],[Autor(in)]]),"") ->  | AD59: =IF(Tabelle_Auswertung[[#This Row],[Platz]]=3,CONCATENATE(Tabelle_Auswertung[[#This Row],[Bildname]]," von ",Tabelle_Auswertung[[#This Row],[Autor(in)]]),"") ->  | AE59: =IF(Tabelle_Auswertung[[#This Row],[Platz]]=4,CONCATENATE(Tabelle_Auswertung[[#This Row],[Bildname]]," von ",Tabelle_Auswertung[[#This Row],[Autor(in)]]),"") ->  | AF59: =IF(Tabelle_Auswertung[[#This Row],[Platz]]=5,CONCATENATE(Tabelle_Auswertung[[#This Row],[Bildname]]," von ",Tabelle_Auswertung[[#This Row],[Autor(in)]]),"") ->  | AG59: =IF(Tabelle_Auswertung[[#This Row],[Platz]]=6,CONCATENATE(Tabelle_Auswertung[[#This Row],[Bildname]]," von ",Tabelle_Auswertung[[#This Row],[Autor(in)]]),"") ->  | AH59: =IF(Tabelle_Auswertung[[#This Row],[Platz]]=7,CONCATENATE(Tabelle_Auswertung[[#This Row],[Bildname]]," von ",Tabelle_Auswertung[[#This Row],[Autor(in)]]),"") ->  | AI59: =IF(Tabelle_Auswertung[[#This Row],[Platz]]=8,CONCATENATE(Tabelle_Auswertung[[#This Row],[Bildname]]," von ",Tabelle_Auswertung[[#This Row],[Autor(in)]]),"") ->  | AJ59: =IF(Tabelle_Auswertung[[#This Row],[Platz]]=9,CONCATENATE(Tabelle_Auswertung[[#This Row],[Bildname]]," von ",Tabelle_Auswertung[[#This Row],[Autor(in)]]),"") ->  | AK59: =IF(Tabelle_Auswertung[[#This Row],[Platz]]=10,CONCATENATE(Tabelle_Auswertung[[#This Row],[Bildname]]," von ",Tabelle_Auswertung[[#This Row],[Autor(in)]]),"") -> 
A60: 56 | B60: Verspiegelt.JPG | C60: 6 | D60: 6 | E60: 0 | F60: 6 | G60: 5 | H60: 4 | I60: 6 | J60: 4 | W60: =IF(Tabelle_Auswertung[[#This Row],[Bildname]]<>"", IF(Tabelle_Auswertung[[#This Row],[abwesend]]="ja", SUM(Tabelle_Auswertung[[#This Row],[Juror 1]:[Juror 20]])/COUNT(Tabelle_Auswertung[[#This Row],[Juror 1]:[Juror 20]])*(COUNT(Tabelle_Auswertung[[#This Row],[Juror 1]:[Juror 20]])-1), SUM(Tabelle_Auswertung[[#This Row],[Juror 1]:[Juror 20]]) ), " - ") -> 37 | X60: =IF(Tabelle_Auswertung[[#This Row],[Bildname]]<>"",IF(Tabelle_Auswertung[[#This Row],[Punkte]]>0,AVERAGE(Tabelle_Auswertung[[#This Row],[Juror 1]:[Juror 20]])," - ")," - ") -> 4.625 | Y60: =IF(Tabelle_Auswertung[[#This Row],[Bildname]]<>"",IF(Tabelle_Auswertung[[#This Row],[Punkte]]>0,RANK(Tabelle_Auswertung[[#This Row],[Punkte]],[Punkte],0)," - ")," - ") -> 56 | Z60: Albrecht Flierl | AB60: =IF(Tabelle_Auswertung[[#This Row],[Platz]]=1,CONCATENATE(Tabelle_Auswertung[[#This Row],[Bildname]]," von ",Tabelle_Auswertung[[#This Row],[Autor(in)]]),"") ->  | AC60: =IF(Tabelle_Auswertung[[#This Row],[Platz]]=2,CONCATENATE(Tabelle_Auswertung[[#This Row],[Bildname]]," von ",Tabelle_Auswertung[[#This Row],[Autor(in)]]),"") ->  | AD60: =IF(Tabelle_Auswertung[[#This Row],[Platz]]=3,CONCATENATE(Tabelle_Auswertung[[#This Row],[Bildname]]," von ",Tabelle_Auswertung[[#This Row],[Autor(in)]]),"") ->  | AE60: =IF(Tabelle_Auswertung[[#This Row],[Platz]]=4,CONCATENATE(Tabelle_Auswertung[[#This Row],[Bildname]]," von ",Tabelle_Auswertung[[#This Row],[Autor(in)]]),"") ->  | AF60: =IF(Tabelle_Auswertung[[#This Row],[Platz]]=5,CONCATENATE(Tabelle_Auswertung[[#This Row],[Bildname]]," von ",Tabelle_Auswertung[[#This Row],[Autor(in)]]),"") ->  | AG60: =IF(Tabelle_Auswertung[[#This Row],[Platz]]=6,CONCATENATE(Tabelle_Auswertung[[#This Row],[Bildname]]," von ",Tabelle_Auswertung[[#This Row],[Autor(in)]]),"") ->  | AH60: =IF(Tabelle_Auswertung[[#This Row],[Platz]]=7,CONCATENATE(Tabelle_Auswertung[[#This Row],[Bildname]]," von ",Tabelle_Auswertung[[#This Row],[Autor(in)]]),"") ->  | AI60: =IF(Tabelle_Auswertung[[#This Row],[Platz]]=8,CONCATENATE(Tabelle_Auswertung[[#This Row],[Bildname]]," von ",Tabelle_Auswertung[[#This Row],[Autor(in)]]),"") ->  | AJ60: =IF(Tabelle_Auswertung[[#This Row],[Platz]]=9,CONCATENATE(Tabelle_Auswertung[[#This Row],[Bildname]]," von ",Tabelle_Auswertung[[#This Row],[Autor(in)]]),"") ->  | AK60: =IF(Tabelle_Auswertung[[#This Row],[Platz]]=10,CONCATENATE(Tabelle_Auswertung[[#This Row],[Bildname]]," von ",Tabelle_Auswertung[[#This Row],[Autor(in)]]),"") -> 
A61: 57 | B61: Historie und Moderne.JPG | C61: 0 | D61: 6 | E61: 4 | F61: 5 | G61: 4 | H61: 7 | I61: 4 | J61: 4 | W61: =IF(Tabelle_Auswertung[[#This Row],[Bildname]]<>"", IF(Tabelle_Auswertung[[#This Row],[abwesend]]="ja", SUM(Tabelle_Auswertung[[#This Row],[Juror 1]:[Juror 20]])/COUNT(Tabelle_Auswertung[[#This Row],[Juror 1]:[Juror 20]])*(COUNT(Tabelle_Auswertung[[#This Row],[Juror 1]:[Juror 20]])-1), SUM(Tabelle_Auswertung[[#This Row],[Juror 1]:[Juror 20]]) ), " - ") -> 34 | X61: =IF(Tabelle_Auswertung[[#This Row],[Bildname]]<>"",IF(Tabelle_Auswertung[[#This Row],[Punkte]]>0,AVERAGE(Tabelle_Auswertung[[#This Row],[Juror 1]:[Juror 20]])," - ")," - ") -> 4.25 | Y61: =IF(Tabelle_Auswertung[[#This Row],[Bildname]]<>"",IF(Tabelle_Auswertung[[#This Row],[Punkte]]>0,RANK(Tabelle_Auswertung[[#This Row],[Punkte]],[Punkte],0)," - ")," - ") -> 57 | Z61: Claudia Dommel | AB61: =IF(Tabelle_Auswertung[[#This Row],[Platz]]=1,CONCATENATE(Tabelle_Auswertung[[#This Row],[Bildname]]," von ",Tabelle_Auswertung[[#This Row],[Autor(in)]]),"") ->  | AC61: =IF(Tabelle_Auswertung[[#This Row],[Platz]]=2,CONCATENATE(Tabelle_Auswertung[[#This Row],[Bildname]]," von ",Tabelle_Auswertung[[#This Row],[Autor(in)]]),"") ->  | AD61: =IF(Tabelle_Auswertung[[#This Row],[Platz]]=3,CONCATENATE(Tabelle_Auswertung[[#This Row],[Bildname]]," von ",Tabelle_Auswertung[[#This Row],[Autor(in)]]),"") ->  | AE61: =IF(Tabelle_Auswertung[[#This Row],[Platz]]=4,CONCATENATE(Tabelle_Auswertung[[#This Row],[Bildname]]," von ",Tabelle_Auswertung[[#This Row],[Autor(in)]]),"") ->  | AF61: =IF(Tabelle_Auswertung[[#This Row],[Platz]]=5,CONCATENATE(Tabelle_Auswertung[[#This Row],[Bildname]]," von ",Tabelle_Auswertung[[#This Row],[Autor(in)]]),"") ->  | AG61: =IF(Tabelle_Auswertung[[#This Row],[Platz]]=6,CONCATENATE(Tabelle_Auswertung[[#This Row],[Bildname]]," von ",Tabelle_Auswertung[[#This Row],[Autor(in)]]),"") ->  | AH61: =IF(Tabelle_Auswertung[[#This Row],[Platz]]=7,CONCATENATE(Tabelle_Auswertung[[#This Row],[Bildname]]," von ",Tabelle_Auswertung[[#This Row],[Autor(in)]]),"") ->  | AI61: =IF(Tabelle_Auswertung[[#This Row],[Platz]]=8,CONCATENATE(Tabelle_Auswertung[[#This Row],[Bildname]]," von ",Tabelle_Auswertung[[#This Row],[Autor(in)]]),"") ->  | AJ61: =IF(Tabelle_Auswertung[[#This Row],[Platz]]=9,CONCATENATE(Tabelle_Auswertung[[#This Row],[Bildname]]," von ",Tabelle_Auswertung[[#This Row],[Autor(in)]]),"") ->  | AK61: =IF(Tabelle_Auswertung[[#This Row],[Platz]]=10,CONCATENATE(Tabelle_Auswertung[[#This Row],[Bildname]]," von ",Tabelle_Auswertung[[#This Row],[Autor(in)]]),"") -> 
A62: 58 | B62: exotische Schoenheit.JPG | C62: 0 | D62: 5 | E62: 5 | F62: 7 | G62: 6 | H62: 2 | I62: 4 | J62: 4 | W62: =IF(Tabelle_Auswertung[[#This Row],[Bildname]]<>"", IF(Tabelle_Auswertung[[#This Row],[abwesend]]="ja", SUM(Tabelle_Auswertung[[#This Row],[Juror 1]:[Juror 20]])/COUNT(Tabelle_Auswertung[[#This Row],[Juror 1]:[Juror 20]])*(COUNT(Tabelle_Auswertung[[#This Row],[Juror 1]:[Juror 20]])-1), SUM(Tabelle_Auswertung[[#This Row],[Juror 1]:[Juror 20]]) ), " - ") -> 33 | X62: =IF(Tabelle_Auswertung[[#This Row],[Bildname]]<>"",IF(Tabelle_Auswertung[[#This Row],[Punkte]]>0,AVERAGE(Tabelle_Auswertung[[#This Row],[Juror 1]:[Juror 20]])," - ")," - ") -> 4.13 | Y62: =IF(Tabelle_Auswertung[[#This Row],[Bildname]]<>"",IF(Tabelle_Auswertung[[#This Row],[Punkte]]>0,RANK(Tabelle_Auswertung[[#This Row],[Punkte]],[Punkte],0)," - ")," - ") -> 58 | Z62: Claudia Dommel | AB62: =IF(Tabelle_Auswertung[[#This Row],[Platz]]=1,CONCATENATE(Tabelle_Auswertung[[#This Row],[Bildname]]," von ",Tabelle_Auswertung[[#This Row],[Autor(in)]]),"") ->  | AC62: =IF(Tabelle_Auswertung[[#This Row],[Platz]]=2,CONCATENATE(Tabelle_Auswertung[[#This Row],[Bildname]]," von ",Tabelle_Auswertung[[#This Row],[Autor(in)]]),"") ->  | AD62: =IF(Tabelle_Auswertung[[#This Row],[Platz]]=3,CONCATENATE(Tabelle_Auswertung[[#This Row],[Bildname]]," von ",Tabelle_Auswertung[[#This Row],[Autor(in)]]),"") ->  | AE62: =IF(Tabelle_Auswertung[[#This Row],[Platz]]=4,CONCATENATE(Tabelle_Auswertung[[#This Row],[Bildname]]," von ",Tabelle_Auswertung[[#This Row],[Autor(in)]]),"") ->  | AF62: =IF(Tabelle_Auswertung[[#This Row],[Platz]]=5,CONCATENATE(Tabelle_Auswertung[[#This Row],[Bildname]]," von ",Tabelle_Auswertung[[#This Row],[Autor(in)]]),"") ->  | AG62: =IF(Tabelle_Auswertung[[#This Row],[Platz]]=6,CONCATENATE(Tabelle_Auswertung[[#This Row],[Bildname]]," von ",Tabelle_Auswertung[[#This Row],[Autor(in)]]),"") ->  | AH62: =IF(Tabelle_Auswertung[[#This Row],[Platz]]=7,CONCATENATE(Tabelle_Auswertung[[#This Row],[Bildname]]," von ",Tabelle_Auswertung[[#This Row],[Autor(in)]]),"") ->  | AI62: =IF(Tabelle_Auswertung[[#This Row],[Platz]]=8,CONCATENATE(Tabelle_Auswertung[[#This Row],[Bildname]]," von ",Tabelle_Auswertung[[#This Row],[Autor(in)]]),"") ->  | AJ62: =IF(Tabelle_Auswertung[[#This Row],[Platz]]=9,CONCATENATE(Tabelle_Auswertung[[#This Row],[Bildname]]," von ",Tabelle_Auswertung[[#This Row],[Autor(in)]]),"") ->  | AK62: =IF(Tabelle_Auswertung[[#This Row],[Platz]]=10,CONCATENATE(Tabelle_Auswertung[[#This Row],[Bildname]]," von ",Tabelle_Auswertung[[#This Row],[Autor(in)]]),"") -> 
A63: 59 | B63: oesterliche Kunst.JPG | C63: 0 | D63: 6 | E63: 5 | F63: 5 | G63: 3 | H63: 3 | I63: 3 | J63: 4 | W63: =IF(Tabelle_Auswertung[[#This Row],[Bildname]]<>"", IF(Tabelle_Auswertung[[#This Row],[abwesend]]="ja", SUM(Tabelle_Auswertung[[#This Row],[Juror 1]:[Juror 20]])/COUNT(Tabelle_Auswertung[[#This Row],[Juror 1]:[Juror 20]])*(COUNT(Tabelle_Auswertung[[#This Row],[Juror 1]:[Juror 20]])-1), SUM(Tabelle_Auswertung[[#This Row],[Juror 1]:[Juror 20]]) ), " - ") -> 29 | X63: =IF(Tabelle_Auswertung[[#This Row],[Bildname]]<>"",IF(Tabelle_Auswertung[[#This Row],[Punkte]]>0,AVERAGE(Tabelle_Auswertung[[#This Row],[Juror 1]:[Juror 20]])," - ")," - ") -> 3.63 | Y63: =IF(Tabelle_Auswertung[[#This Row],[Bildname]]<>"",IF(Tabelle_Auswertung[[#This Row],[Punkte]]>0,RANK(Tabelle_Auswertung[[#This Row],[Punkte]],[Punkte],0)," - ")," - ") -> 59 | Z63: Claudia Dommel | AB63: =IF(Tabelle_Auswertung[[#This Row],[Platz]]=1,CONCATENATE(Tabelle_Auswertung[[#This Row],[Bildname]]," von ",Tabelle_Auswertung[[#This Row],[Autor(in)]]),"") ->  | AC63: =IF(Tabelle_Auswertung[[#This Row],[Platz]]=2,CONCATENATE(Tabelle_Auswertung[[#This Row],[Bildname]]," von ",Tabelle_Auswertung[[#This Row],[Autor(in)]]),"") ->  | AD63: =IF(Tabelle_Auswertung[[#This Row],[Platz]]=3,CONCATENATE(Tabelle_Auswertung[[#This Row],[Bildname]]," von ",Tabelle_Auswertung[[#This Row],[Autor(in)]]),"") ->  | AE63: =IF(Tabelle_Auswertung[[#This Row],[Platz]]=4,CONCATENATE(Tabelle_Auswertung[[#This Row],[Bildname]]," von ",Tabelle_Auswertung[[#This Row],[Autor(in)]]),"") ->  | AF63: =IF(Tabelle_Auswertung[[#This Row],[Platz]]=5,CONCATENATE(Tabelle_Auswertung[[#This Row],[Bildname]]," von ",Tabelle_Auswertung[[#This Row],[Autor(in)]]),"") ->  | AG63: =IF(Tabelle_Auswertung[[#This Row],[Platz]]=6,CONCATENATE(Tabelle_Auswertung[[#This Row],[Bildname]]," von ",Tabelle_Auswertung[[#This Row],[Autor(in)]]),"") ->  | AH63: =IF(Tabelle_Auswertung[[#This Row],[Platz]]=7,CONCATENATE(Tabelle_Auswertung[[#This Row],[Bildname]]," von ",Tabelle_Auswertung[[#This Row],[Autor(in)]]),"") ->  | AI63: =IF(Tabelle_Auswertung[[#This Row],[Platz]]=8,CONCATENATE(Tabelle_Auswertung[[#This Row],[Bildname]]," von ",Tabelle_Auswertung[[#This Row],[Autor(in)]]),"") ->  | AJ63: =IF(Tabelle_Auswertung[[#This Row],[Platz]]=9,CONCATENATE(Tabelle_Auswertung[[#This Row],[Bildname]]," von ",Tabelle_Auswertung[[#This Row],[Autor(in)]]),"") ->  | AK63: =IF(Tabelle_Auswertung[[#This Row],[Platz]]=10,CONCATENATE(Tabelle_Auswertung[[#This Row],[Bildname]]," von ",Tabelle_Auswertung[[#This Row],[Autor(in)]]),"") -> 
A64: 60 | B64: unter Wasser.JPG | C64: 0 | D64: 5 | E64: 4 | F64: 6 | G64: 5 | H64: 3 | I64: 2 | J64: 4 | W64: =IF(Tabelle_Auswertung[[#This Row],[Bildname]]<>"", IF(Tabelle_Auswertung[[#This Row],[abwesend]]="ja", SUM(Tabelle_Auswertung[[#This Row],[Juror 1]:[Juror 20]])/COUNT(Tabelle_Auswertung[[#This Row],[Juror 1]:[Juror 20]])*(COUNT(Tabelle_Auswertung[[#This Row],[Juror 1]:[Juror 20]])-1), SUM(Tabelle_Auswertung[[#This Row],[Juror 1]:[Juror 20]]) ), " - ") -> 29 | X64: =IF(Tabelle_Auswertung[[#This Row],[Bildname]]<>"",IF(Tabelle_Auswertung[[#This Row],[Punkte]]>0,AVERAGE(Tabelle_Auswertung[[#This Row],[Juror 1]:[Juror 20]])," - ")," - ") -> 3.63 | Y64: =IF(Tabelle_Auswertung[[#This Row],[Bildname]]<>"",IF(Tabelle_Auswertung[[#This Row],[Punkte]]>0,RANK(Tabelle_Auswertung[[#This Row],[Punkte]],[Punkte],0)," - ")," - ") -> 59 | Z64: Claudia Dommel | AB64: =IF(Tabelle_Auswertung[[#This Row],[Platz]]=1,CONCATENATE(Tabelle_Auswertung[[#This Row],[Bildname]]," von ",Tabelle_Auswertung[[#This Row],[Autor(in)]]),"") ->  | AC64: =IF(Tabelle_Auswertung[[#This Row],[Platz]]=2,CONCATENATE(Tabelle_Auswertung[[#This Row],[Bildname]]," von ",Tabelle_Auswertung[[#This Row],[Autor(in)]]),"") ->  | AD64: =IF(Tabelle_Auswertung[[#This Row],[Platz]]=3,CONCATENATE(Tabelle_Auswertung[[#This Row],[Bildname]]," von ",Tabelle_Auswertung[[#This Row],[Autor(in)]]),"") ->  | AE64: =IF(Tabelle_Auswertung[[#This Row],[Platz]]=4,CONCATENATE(Tabelle_Auswertung[[#This Row],[Bildname]]," von ",Tabelle_Auswertung[[#This Row],[Autor(in)]]),"") ->  | AF64: =IF(Tabelle_Auswertung[[#This Row],[Platz]]=5,CONCATENATE(Tabelle_Auswertung[[#This Row],[Bildname]]," von ",Tabelle_Auswertung[[#This Row],[Autor(in)]]),"") ->  | AG64: =IF(Tabelle_Auswertung[[#This Row],[Platz]]=6,CONCATENATE(Tabelle_Auswertung[[#This Row],[Bildname]]," von ",Tabelle_Auswertung[[#This Row],[Autor(in)]]),"") ->  | AH64: =IF(Tabelle_Auswertung[[#This Row],[Platz]]=7,CONCATENATE(Tabelle_Auswertung[[#This Row],[Bildname]]," von ",Tabelle_Auswertung[[#This Row],[Autor(in)]]),"") ->  | AI64: =IF(Tabelle_Auswertung[[#This Row],[Platz]]=8,CONCATENATE(Tabelle_Auswertung[[#This Row],[Bildname]]," von ",Tabelle_Auswertung[[#This Row],[Autor(in)]]),"") ->  | AJ64: =IF(Tabelle_Auswertung[[#This Row],[Platz]]=9,CONCATENATE(Tabelle_Auswertung[[#This Row],[Bildname]]," von ",Tabelle_Auswertung[[#This Row],[Autor(in)]]),"") ->  | AK64: =IF(Tabelle_Auswertung[[#This Row],[Platz]]=10,CONCATENATE(Tabelle_Auswertung[[#This Row],[Bildname]]," von ",Tabelle_Auswertung[[#This Row],[Autor(in)]]),"") -> 
A65: 61 | W65: =IF(Tabelle_Auswertung[[#This Row],[Bildname]]<>"", IF(Tabelle_Auswertung[[#This Row],[abwesend]]="ja", SUM(Tabelle_Auswertung[[#This Row],[Juror 1]:[Juror 20]])/COUNT(Tabelle_Auswertung[[#This Row],[Juror 1]:[Juror 20]])*(COUNT(Tabelle_Auswertung[[#This Row],[Juror 1]:[Juror 20]])-1), SUM(Tabelle_Auswertung[[#This Row],[Juror 1]:[Juror 20]]) ), " - ") -> - | X65: =IF(Tabelle_Auswertung[[#This Row],[Bildname]]<>"",IF(Tabelle_Auswertung[[#This Row],[Punkte]]>0,AVERAGE(Tabelle_Auswertung[[#This Row],[Juror 1]:[Juror 20]])," - ")," - ") -> - | Y65: =IF(Tabelle_Auswertung[[#This Row],[Bildname]]<>"",IF(Tabelle_Auswertung[[#This Row],[Punkte]]>0,RANK(Tabelle_Auswertung[[#This Row],[Punkte]],[Punkte],0)," - ")," - ") -> - | Z65: - - - | AB65: =IF(Tabelle_Auswertung[[#This Row],[Platz]]=1,CONCATENATE(Tabelle_Auswertung[[#This Row],[Bildname]]," von ",Tabelle_Auswertung[[#This Row],[Autor(in)]]),"") ->  | AC65: =IF(Tabelle_Auswertung[[#This Row],[Platz]]=2,CONCATENATE(Tabelle_Auswertung[[#This Row],[Bildname]]," von ",Tabelle_Auswertung[[#This Row],[Autor(in)]]),"") ->  | AD65: =IF(Tabelle_Auswertung[[#This Row],[Platz]]=3,CONCATENATE(Tabelle_Auswertung[[#This Row],[Bildname]]," von ",Tabelle_Auswertung[[#This Row],[Autor(in)]]),"") ->  | AE65: =IF(Tabelle_Auswertung[[#This Row],[Platz]]=4,CONCATENATE(Tabelle_Auswertung[[#This Row],[Bildname]]," von ",Tabelle_Auswertung[[#This Row],[Autor(in)]]),"") ->  | AF65: =IF(Tabelle_Auswertung[[#This Row],[Platz]]=5,CONCATENATE(Tabelle_Auswertung[[#This Row],[Bildname]]," von ",Tabelle_Auswertung[[#This Row],[Autor(in)]]),"") ->  | AG65: =IF(Tabelle_Auswertung[[#This Row],[Platz]]=6,CONCATENATE(Tabelle_Auswertung[[#This Row],[Bildname]]," von ",Tabelle_Auswertung[[#This Row],[Autor(in)]]),"") ->  | AH65: =IF(Tabelle_Auswertung[[#This Row],[Platz]]=7,CONCATENATE(Tabelle_Auswertung[[#This Row],[Bildname]]," von ",Tabelle_Auswertung[[#This Row],[Autor(in)]]),"") ->  | AI65: =IF(Tabelle_Auswertung[[#This Row],[Platz]]=8,CONCATENATE(Tabelle_Auswertung[[#This Row],[Bildname]]," von ",Tabelle_Auswertung[[#This Row],[Autor(in)]]),"") ->  | AJ65: =IF(Tabelle_Auswertung[[#This Row],[Platz]]=9,CONCATENATE(Tabelle_Auswertung[[#This Row],[Bildname]]," von ",Tabelle_Auswertung[[#This Row],[Autor(in)]]),"") ->  | AK65: =IF(Tabelle_Auswertung[[#This Row],[Platz]]=10,CONCATENATE(Tabelle_Auswertung[[#This Row],[Bildname]]," von ",Tabelle_Auswertung[[#This Row],[Autor(in)]]),"") -> 
A66: 62 | W66: =IF(Tabelle_Auswertung[[#This Row],[Bildname]]<>"", IF(Tabelle_Auswertung[[#This Row],[abwesend]]="ja", SUM(Tabelle_Auswertung[[#This Row],[Juror 1]:[Juror 20]])/COUNT(Tabelle_Auswertung[[#This Row],[Juror 1]:[Juror 20]])*(COUNT(Tabelle_Auswertung[[#This Row],[Juror 1]:[Juror 20]])-1), SUM(Tabelle_Auswertung[[#This Row],[Juror 1]:[Juror 20]]) ), " - ") -> - | X66: =IF(Tabelle_Auswertung[[#This Row],[Bildname]]<>"",IF(Tabelle_Auswertung[[#This Row],[Punkte]]>0,AVERAGE(Tabelle_Auswertung[[#This Row],[Juror 1]:[Juror 20]])," - ")," - ") -> - | Y66: =IF(Tabelle_Auswertung[[#This Row],[Bildname]]<>"",IF(Tabelle_Auswertung[[#This Row],[Punkte]]>0,RANK(Tabelle_Auswertung[[#This Row],[Punkte]],[Punkte],0)," - ")," - ") -> - | Z66: - - - | AB66: =IF(Tabelle_Auswertung[[#This Row],[Platz]]=1,CONCATENATE(Tabelle_Auswertung[[#This Row],[Bildname]]," von ",Tabelle_Auswertung[[#This Row],[Autor(in)]]),"") ->  | AC66: =IF(Tabelle_Auswertung[[#This Row],[Platz]]=2,CONCATENATE(Tabelle_Auswertung[[#This Row],[Bildname]]," von ",Tabelle_Auswertung[[#This Row],[Autor(in)]]),"") ->  | AD66: =IF(Tabelle_Auswertung[[#This Row],[Platz]]=3,CONCATENATE(Tabelle_Auswertung[[#This Row],[Bildname]]," von ",Tabelle_Auswertung[[#This Row],[Autor(in)]]),"") ->  | AE66: =IF(Tabelle_Auswertung[[#This Row],[Platz]]=4,CONCATENATE(Tabelle_Auswertung[[#This Row],[Bildname]]," von ",Tabelle_Auswertung[[#This Row],[Autor(in)]]),"") ->  | AF66: =IF(Tabelle_Auswertung[[#This Row],[Platz]]=5,CONCATENATE(Tabelle_Auswertung[[#This Row],[Bildname]]," von ",Tabelle_Auswertung[[#This Row],[Autor(in)]]),"") ->  | AG66: =IF(Tabelle_Auswertung[[#This Row],[Platz]]=6,CONCATENATE(Tabelle_Auswertung[[#This Row],[Bildname]]," von ",Tabelle_Auswertung[[#This Row],[Autor(in)]]),"") ->  | AH66: =IF(Tabelle_Auswertung[[#This Row],[Platz]]=7,CONCATENATE(Tabelle_Auswertung[[#This Row],[Bildname]]," von ",Tabelle_Auswertung[[#This Row],[Autor(in)]]),"") ->  | AI66: =IF(Tabelle_Auswertung[[#This Row],[Platz]]=8,CONCATENATE(Tabelle_Auswertung[[#This Row],[Bildname]]," von ",Tabelle_Auswertung[[#This Row],[Autor(in)]]),"") ->  | AJ66: =IF(Tabelle_Auswertung[[#This Row],[Platz]]=9,CONCATENATE(Tabelle_Auswertung[[#This Row],[Bildname]]," von ",Tabelle_Auswertung[[#This Row],[Autor(in)]]),"") ->  | AK66: =IF(Tabelle_Auswertung[[#This Row],[Platz]]=10,CONCATENATE(Tabelle_Auswertung[[#This Row],[Bildname]]," von ",Tabelle_Auswertung[[#This Row],[Autor(in)]]),"") -> 
A67: 63 | W67: =IF(Tabelle_Auswertung[[#This Row],[Bildname]]<>"", IF(Tabelle_Auswertung[[#This Row],[abwesend]]="ja", SUM(Tabelle_Auswertung[[#This Row],[Juror 1]:[Juror 20]])/COUNT(Tabelle_Auswertung[[#This Row],[Juror 1]:[Juror 20]])*(COUNT(Tabelle_Auswertung[[#This Row],[Juror 1]:[Juror 20]])-1), SUM(Tabelle_Auswertung[[#This Row],[Juror 1]:[Juror 20]]) ), " - ") -> - | X67: =IF(Tabelle_Auswertung[[#This Row],[Bildname]]<>"",IF(Tabelle_Auswertung[[#This Row],[Punkte]]>0,AVERAGE(Tabelle_Auswertung[[#This Row],[Juror 1]:[Juror 20]])," - ")," - ") -> - | Y67: =IF(Tabelle_Auswertung[[#This Row],[Bildname]]<>"",IF(Tabelle_Auswertung[[#This Row],[Punkte]]>0,RANK(Tabelle_Auswertung[[#This Row],[Punkte]],[Punkte],0)," - ")," - ") -> - | Z67: - - - | AB67: =IF(Tabelle_Auswertung[[#This Row],[Platz]]=1,CONCATENATE(Tabelle_Auswertung[[#This Row],[Bildname]]," von ",Tabelle_Auswertung[[#This Row],[Autor(in)]]),"") ->  | AC67: =IF(Tabelle_Auswertung[[#This Row],[Platz]]=2,CONCATENATE(Tabelle_Auswertung[[#This Row],[Bildname]]," von ",Tabelle_Auswertung[[#This Row],[Autor(in)]]),"") ->  | AD67: =IF(Tabelle_Auswertung[[#This Row],[Platz]]=3,CONCATENATE(Tabelle_Auswertung[[#This Row],[Bildname]]," von ",Tabelle_Auswertung[[#This Row],[Autor(in)]]),"") ->  | AE67: =IF(Tabelle_Auswertung[[#This Row],[Platz]]=4,CONCATENATE(Tabelle_Auswertung[[#This Row],[Bildname]]," von ",Tabelle_Auswertung[[#This Row],[Autor(in)]]),"") ->  | AF67: =IF(Tabelle_Auswertung[[#This Row],[Platz]]=5,CONCATENATE(Tabelle_Auswertung[[#This Row],[Bildname]]," von ",Tabelle_Auswertung[[#This Row],[Autor(in)]]),"") ->  | AG67: =IF(Tabelle_Auswertung[[#This Row],[Platz]]=6,CONCATENATE(Tabelle_Auswertung[[#This Row],[Bildname]]," von ",Tabelle_Auswertung[[#This Row],[Autor(in)]]),"") ->  | AH67: =IF(Tabelle_Auswertung[[#This Row],[Platz]]=7,CONCATENATE(Tabelle_Auswertung[[#This Row],[Bildname]]," von ",Tabelle_Auswertung[[#This Row],[Autor(in)]]),"") ->  | AI67: =IF(Tabelle_Auswertung[[#This Row],[Platz]]=8,CONCATENATE(Tabelle_Auswertung[[#This Row],[Bildname]]," von ",Tabelle_Auswertung[[#This Row],[Autor(in)]]),"") ->  | AJ67: =IF(Tabelle_Auswertung[[#This Row],[Platz]]=9,CONCATENATE(Tabelle_Auswertung[[#This Row],[Bildname]]," von ",Tabelle_Auswertung[[#This Row],[Autor(in)]]),"") ->  | AK67: =IF(Tabelle_Auswertung[[#This Row],[Platz]]=10,CONCATENATE(Tabelle_Auswertung[[#This Row],[Bildname]]," von ",Tabelle_Auswertung[[#This Row],[Autor(in)]]),"") -> 
A68: 64 | W68: =IF(Tabelle_Auswertung[[#This Row],[Bildname]]<>"", IF(Tabelle_Auswertung[[#This Row],[abwesend]]="ja", SUM(Tabelle_Auswertung[[#This Row],[Juror 1]:[Juror 20]])/COUNT(Tabelle_Auswertung[[#This Row],[Juror 1]:[Juror 20]])*(COUNT(Tabelle_Auswertung[[#This Row],[Juror 1]:[Juror 20]])-1), SUM(Tabelle_Auswertung[[#This Row],[Juror 1]:[Juror 20]]) ), " - ") -> - | X68: =IF(Tabelle_Auswertung[[#This Row],[Bildname]]<>"",IF(Tabelle_Auswertung[[#This Row],[Punkte]]>0,AVERAGE(Tabelle_Auswertung[[#This Row],[Juror 1]:[Juror 20]])," - ")," - ") -> - | Y68: =IF(Tabelle_Auswertung[[#This Row],[Bildname]]<>"",IF(Tabelle_Auswertung[[#This Row],[Punkte]]>0,RANK(Tabelle_Auswertung[[#This Row],[Punkte]],[Punkte],0)," - ")," - ") -> - | Z68: - - - | AB68: =IF(Tabelle_Auswertung[[#This Row],[Platz]]=1,CONCATENATE(Tabelle_Auswertung[[#This Row],[Bildname]]," von ",Tabelle_Auswertung[[#This Row],[Autor(in)]]),"") ->  | AC68: =IF(Tabelle_Auswertung[[#This Row],[Platz]]=2,CONCATENATE(Tabelle_Auswertung[[#This Row],[Bildname]]," von ",Tabelle_Auswertung[[#This Row],[Autor(in)]]),"") ->  | AD68: =IF(Tabelle_Auswertung[[#This Row],[Platz]]=3,CONCATENATE(Tabelle_Auswertung[[#This Row],[Bildname]]," von ",Tabelle_Auswertung[[#This Row],[Autor(in)]]),"") ->  | AE68: =IF(Tabelle_Auswertung[[#This Row],[Platz]]=4,CONCATENATE(Tabelle_Auswertung[[#This Row],[Bildname]]," von ",Tabelle_Auswertung[[#This Row],[Autor(in)]]),"") ->  | AF68: =IF(Tabelle_Auswertung[[#This Row],[Platz]]=5,CONCATENATE(Tabelle_Auswertung[[#This Row],[Bildname]]," von ",Tabelle_Auswertung[[#This Row],[Autor(in)]]),"") ->  | AG68: =IF(Tabelle_Auswertung[[#This Row],[Platz]]=6,CONCATENATE(Tabelle_Auswertung[[#This Row],[Bildname]]," von ",Tabelle_Auswertung[[#This Row],[Autor(in)]]),"") ->  | AH68: =IF(Tabelle_Auswertung[[#This Row],[Platz]]=7,CONCATENATE(Tabelle_Auswertung[[#This Row],[Bildname]]," von ",Tabelle_Auswertung[[#This Row],[Autor(in)]]),"") ->  | AI68: =IF(Tabelle_Auswertung[[#This Row],[Platz]]=8,CONCATENATE(Tabelle_Auswertung[[#This Row],[Bildname]]," von ",Tabelle_Auswertung[[#This Row],[Autor(in)]]),"") ->  | AJ68: =IF(Tabelle_Auswertung[[#This Row],[Platz]]=9,CONCATENATE(Tabelle_Auswertung[[#This Row],[Bildname]]," von ",Tabelle_Auswertung[[#This Row],[Autor(in)]]),"") ->  | AK68: =IF(Tabelle_Auswertung[[#This Row],[Platz]]=10,CONCATENATE(Tabelle_Auswertung[[#This Row],[Bildname]]," von ",Tabelle_Auswertung[[#This Row],[Autor(in)]]),"") -> 
A69: 65 | W69: =IF(Tabelle_Auswertung[[#This Row],[Bildname]]<>"", IF(Tabelle_Auswertung[[#This Row],[abwesend]]="ja", SUM(Tabelle_Auswertung[[#This Row],[Juror 1]:[Juror 20]])/COUNT(Tabelle_Auswertung[[#This Row],[Juror 1]:[Juror 20]])*(COUNT(Tabelle_Auswertung[[#This Row],[Juror 1]:[Juror 20]])-1), SUM(Tabelle_Auswertung[[#This Row],[Juror 1]:[Juror 20]]) ), " - ") -> - | X69: =IF(Tabelle_Auswertung[[#This Row],[Bildname]]<>"",IF(Tabelle_Auswertung[[#This Row],[Punkte]]>0,AVERAGE(Tabelle_Auswertung[[#This Row],[Juror 1]:[Juror 20]])," - ")," - ") -> - | Y69: =IF(Tabelle_Auswertung[[#This Row],[Bildname]]<>"",IF(Tabelle_Auswertung[[#This Row],[Punkte]]>0,RANK(Tabelle_Auswertung[[#This Row],[Punkte]],[Punkte],0)," - ")," - ") -> - | Z69: - - - | AB69: =IF(Tabelle_Auswertung[[#This Row],[Platz]]=1,CONCATENATE(Tabelle_Auswertung[[#This Row],[Bildname]]," von ",Tabelle_Auswertung[[#This Row],[Autor(in)]]),"") ->  | AC69: =IF(Tabelle_Auswertung[[#This Row],[Platz]]=2,CONCATENATE(Tabelle_Auswertung[[#This Row],[Bildname]]," von ",Tabelle_Auswertung[[#This Row],[Autor(in)]]),"") ->  | AD69: =IF(Tabelle_Auswertung[[#This Row],[Platz]]=3,CONCATENATE(Tabelle_Auswertung[[#This Row],[Bildname]]," von ",Tabelle_Auswertung[[#This Row],[Autor(in)]]),"") ->  | AE69: =IF(Tabelle_Auswertung[[#This Row],[Platz]]=4,CONCATENATE(Tabelle_Auswertung[[#This Row],[Bildname]]," von ",Tabelle_Auswertung[[#This Row],[Autor(in)]]),"") ->  | AF69: =IF(Tabelle_Auswertung[[#This Row],[Platz]]=5,CONCATENATE(Tabelle_Auswertung[[#This Row],[Bildname]]," von ",Tabelle_Auswertung[[#This Row],[Autor(in)]]),"") ->  | AG69: =IF(Tabelle_Auswertung[[#This Row],[Platz]]=6,CONCATENATE(Tabelle_Auswertung[[#This Row],[Bildname]]," von ",Tabelle_Auswertung[[#This Row],[Autor(in)]]),"") ->  | AH69: =IF(Tabelle_Auswertung[[#This Row],[Platz]]=7,CONCATENATE(Tabelle_Auswertung[[#This Row],[Bildname]]," von ",Tabelle_Auswertung[[#This Row],[Autor(in)]]),"") ->  | AI69: =IF(Tabelle_Auswertung[[#This Row],[Platz]]=8,CONCATENATE(Tabelle_Auswertung[[#This Row],[Bildname]]," von ",Tabelle_Auswertung[[#This Row],[Autor(in)]]),"") ->  | AJ69: =IF(Tabelle_Auswertung[[#This Row],[Platz]]=9,CONCATENATE(Tabelle_Auswertung[[#This Row],[Bildname]]," von ",Tabelle_Auswertung[[#This Row],[Autor(in)]]),"") ->  | AK69: =IF(Tabelle_Auswertung[[#This Row],[Platz]]=10,CONCATENATE(Tabelle_Auswertung[[#This Row],[Bildname]]," von ",Tabelle_Auswertung[[#This Row],[Autor(in)]]),"") -> 
A70: 66 | W70: =IF(Tabelle_Auswertung[[#This Row],[Bildname]]<>"", IF(Tabelle_Auswertung[[#This Row],[abwesend]]="ja", SUM(Tabelle_Auswertung[[#This Row],[Juror 1]:[Juror 20]])/COUNT(Tabelle_Auswertung[[#This Row],[Juror 1]:[Juror 20]])*(COUNT(Tabelle_Auswertung[[#This Row],[Juror 1]:[Juror 20]])-1), SUM(Tabelle_Auswertung[[#This Row],[Juror 1]:[Juror 20]]) ), " - ") -> - | X70: =IF(Tabelle_Auswertung[[#This Row],[Bildname]]<>"",IF(Tabelle_Auswertung[[#This Row],[Punkte]]>0,AVERAGE(Tabelle_Auswertung[[#This Row],[Juror 1]:[Juror 20]])," - ")," - ") -> - | Y70: =IF(Tabelle_Auswertung[[#This Row],[Bildname]]<>"",IF(Tabelle_Auswertung[[#This Row],[Punkte]]>0,RANK(Tabelle_Auswertung[[#This Row],[Punkte]],[Punkte],0)," - ")," - ") -> - | Z70: - - - | AB70: =IF(Tabelle_Auswertung[[#This Row],[Platz]]=1,CONCATENATE(Tabelle_Auswertung[[#This Row],[Bildname]]," von ",Tabelle_Auswertung[[#This Row],[Autor(in)]]),"") ->  | AC70: =IF(Tabelle_Auswertung[[#This Row],[Platz]]=2,CONCATENATE(Tabelle_Auswertung[[#This Row],[Bildname]]," von ",Tabelle_Auswertung[[#This Row],[Autor(in)]]),"") ->  | AD70: =IF(Tabelle_Auswertung[[#This Row],[Platz]]=3,CONCATENATE(Tabelle_Auswertung[[#This Row],[Bildname]]," von ",Tabelle_Auswertung[[#This Row],[Autor(in)]]),"") ->  | AE70: =IF(Tabelle_Auswertung[[#This Row],[Platz]]=4,CONCATENATE(Tabelle_Auswertung[[#This Row],[Bildname]]," von ",Tabelle_Auswertung[[#This Row],[Autor(in)]]),"") ->  | AF70: =IF(Tabelle_Auswertung[[#This Row],[Platz]]=5,CONCATENATE(Tabelle_Auswertung[[#This Row],[Bildname]]," von ",Tabelle_Auswertung[[#This Row],[Autor(in)]]),"") ->  | AG70: =IF(Tabelle_Auswertung[[#This Row],[Platz]]=6,CONCATENATE(Tabelle_Auswertung[[#This Row],[Bildname]]," von ",Tabelle_Auswertung[[#This Row],[Autor(in)]]),"") ->  | AH70: =IF(Tabelle_Auswertung[[#This Row],[Platz]]=7,CONCATENATE(Tabelle_Auswertung[[#This Row],[Bildname]]," von ",Tabelle_Auswertung[[#This Row],[Autor(in)]]),"") ->  | AI70: =IF(Tabelle_Auswertung[[#This Row],[Platz]]=8,CONCATENATE(Tabelle_Auswertung[[#This Row],[Bildname]]," von ",Tabelle_Auswertung[[#This Row],[Autor(in)]]),"") ->  | AJ70: =IF(Tabelle_Auswertung[[#This Row],[Platz]]=9,CONCATENATE(Tabelle_Auswertung[[#This Row],[Bildname]]," von ",Tabelle_Auswertung[[#This Row],[Autor(in)]]),"") ->  | AK70: =IF(Tabelle_Auswertung[[#This Row],[Platz]]=10,CONCATENATE(Tabelle_Auswertung[[#This Row],[Bildname]]," von ",Tabelle_Auswertung[[#This Row],[Autor(in)]]),"") -> 
A71: 67 | W71: =IF(Tabelle_Auswertung[[#This Row],[Bildname]]<>"", IF(Tabelle_Auswertung[[#This Row],[abwesend]]="ja", SUM(Tabelle_Auswertung[[#This Row],[Juror 1]:[Juror 20]])/COUNT(Tabelle_Auswertung[[#This Row],[Juror 1]:[Juror 20]])*(COUNT(Tabelle_Auswertung[[#This Row],[Juror 1]:[Juror 20]])-1), SUM(Tabelle_Auswertung[[#This Row],[Juror 1]:[Juror 20]]) ), " - ") -> - | X71: =IF(Tabelle_Auswertung[[#This Row],[Bildname]]<>"",IF(Tabelle_Auswertung[[#This Row],[Punkte]]>0,AVERAGE(Tabelle_Auswertung[[#This Row],[Juror 1]:[Juror 20]])," - ")," - ") -> - | Y71: =IF(Tabelle_Auswertung[[#This Row],[Bildname]]<>"",IF(Tabelle_Auswertung[[#This Row],[Punkte]]>0,RANK(Tabelle_Auswertung[[#This Row],[Punkte]],[Punkte],0)," - ")," - ") -> - | Z71: - - - | AB71: =IF(Tabelle_Auswertung[[#This Row],[Platz]]=1,CONCATENATE(Tabelle_Auswertung[[#This Row],[Bildname]]," von ",Tabelle_Auswertung[[#This Row],[Autor(in)]]),"") ->  | AC71: =IF(Tabelle_Auswertung[[#This Row],[Platz]]=2,CONCATENATE(Tabelle_Auswertung[[#This Row],[Bildname]]," von ",Tabelle_Auswertung[[#This Row],[Autor(in)]]),"") ->  | AD71: =IF(Tabelle_Auswertung[[#This Row],[Platz]]=3,CONCATENATE(Tabelle_Auswertung[[#This Row],[Bildname]]," von ",Tabelle_Auswertung[[#This Row],[Autor(in)]]),"") ->  | AE71: =IF(Tabelle_Auswertung[[#This Row],[Platz]]=4,CONCATENATE(Tabelle_Auswertung[[#This Row],[Bildname]]," von ",Tabelle_Auswertung[[#This Row],[Autor(in)]]),"") ->  | AF71: =IF(Tabelle_Auswertung[[#This Row],[Platz]]=5,CONCATENATE(Tabelle_Auswertung[[#This Row],[Bildname]]," von ",Tabelle_Auswertung[[#This Row],[Autor(in)]]),"") ->  | AG71: =IF(Tabelle_Auswertung[[#This Row],[Platz]]=6,CONCATENATE(Tabelle_Auswertung[[#This Row],[Bildname]]," von ",Tabelle_Auswertung[[#This Row],[Autor(in)]]),"") ->  | AH71: =IF(Tabelle_Auswertung[[#This Row],[Platz]]=7,CONCATENATE(Tabelle_Auswertung[[#This Row],[Bildname]]," von ",Tabelle_Auswertung[[#This Row],[Autor(in)]]),"") ->  | AI71: =IF(Tabelle_Auswertung[[#This Row],[Platz]]=8,CONCATENATE(Tabelle_Auswertung[[#This Row],[Bildname]]," von ",Tabelle_Auswertung[[#This Row],[Autor(in)]]),"") ->  | AJ71: =IF(Tabelle_Auswertung[[#This Row],[Platz]]=9,CONCATENATE(Tabelle_Auswertung[[#This Row],[Bildname]]," von ",Tabelle_Auswertung[[#This Row],[Autor(in)]]),"") ->  | AK71: =IF(Tabelle_Auswertung[[#This Row],[Platz]]=10,CONCATENATE(Tabelle_Auswertung[[#This Row],[Bildname]]," von ",Tabelle_Auswertung[[#This Row],[Autor(in)]]),"") -> 
A72: 68 | W72: =IF(Tabelle_Auswertung[[#This Row],[Bildname]]<>"", IF(Tabelle_Auswertung[[#This Row],[abwesend]]="ja", SUM(Tabelle_Auswertung[[#This Row],[Juror 1]:[Juror 20]])/COUNT(Tabelle_Auswertung[[#This Row],[Juror 1]:[Juror 20]])*(COUNT(Tabelle_Auswertung[[#This Row],[Juror 1]:[Juror 20]])-1), SUM(Tabelle_Auswertung[[#This Row],[Juror 1]:[Juror 20]]) ), " - ") -> - | X72: =IF(Tabelle_Auswertung[[#This Row],[Bildname]]<>"",IF(Tabelle_Auswertung[[#This Row],[Punkte]]>0,AVERAGE(Tabelle_Auswertung[[#This Row],[Juror 1]:[Juror 20]])," - ")," - ") -> - | Y72: =IF(Tabelle_Auswertung[[#This Row],[Bildname]]<>"",IF(Tabelle_Auswertung[[#This Row],[Punkte]]>0,RANK(Tabelle_Auswertung[[#This Row],[Punkte]],[Punkte],0)," - ")," - ") -> - | Z72: - - - | AB72: =IF(Tabelle_Auswertung[[#This Row],[Platz]]=1,CONCATENATE(Tabelle_Auswertung[[#This Row],[Bildname]]," von ",Tabelle_Auswertung[[#This Row],[Autor(in)]]),"") ->  | AC72: =IF(Tabelle_Auswertung[[#This Row],[Platz]]=2,CONCATENATE(Tabelle_Auswertung[[#This Row],[Bildname]]," von ",Tabelle_Auswertung[[#This Row],[Autor(in)]]),"") ->  | AD72: =IF(Tabelle_Auswertung[[#This Row],[Platz]]=3,CONCATENATE(Tabelle_Auswertung[[#This Row],[Bildname]]," von ",Tabelle_Auswertung[[#This Row],[Autor(in)]]),"") ->  | AE72: =IF(Tabelle_Auswertung[[#This Row],[Platz]]=4,CONCATENATE(Tabelle_Auswertung[[#This Row],[Bildname]]," von ",Tabelle_Auswertung[[#This Row],[Autor(in)]]),"") ->  | AF72: =IF(Tabelle_Auswertung[[#This Row],[Platz]]=5,CONCATENATE(Tabelle_Auswertung[[#This Row],[Bildname]]," von ",Tabelle_Auswertung[[#This Row],[Autor(in)]]),"") ->  | AG72: =IF(Tabelle_Auswertung[[#This Row],[Platz]]=6,CONCATENATE(Tabelle_Auswertung[[#This Row],[Bildname]]," von ",Tabelle_Auswertung[[#This Row],[Autor(in)]]),"") ->  | AH72: =IF(Tabelle_Auswertung[[#This Row],[Platz]]=7,CONCATENATE(Tabelle_Auswertung[[#This Row],[Bildname]]," von ",Tabelle_Auswertung[[#This Row],[Autor(in)]]),"") ->  | AI72: =IF(Tabelle_Auswertung[[#This Row],[Platz]]=8,CONCATENATE(Tabelle_Auswertung[[#This Row],[Bildname]]," von ",Tabelle_Auswertung[[#This Row],[Autor(in)]]),"") ->  | AJ72: =IF(Tabelle_Auswertung[[#This Row],[Platz]]=9,CONCATENATE(Tabelle_Auswertung[[#This Row],[Bildname]]," von ",Tabelle_Auswertung[[#This Row],[Autor(in)]]),"") ->  | AK72: =IF(Tabelle_Auswertung[[#This Row],[Platz]]=10,CONCATENATE(Tabelle_Auswertung[[#This Row],[Bildname]]," von ",Tabelle_Auswertung[[#This Row],[Autor(in)]]),"") -> 
A73: 69 | W73: =IF(Tabelle_Auswertung[[#This Row],[Bildname]]<>"", IF(Tabelle_Auswertung[[#This Row],[abwesend]]="ja", SUM(Tabelle_Auswertung[[#This Row],[Juror 1]:[Juror 20]])/COUNT(Tabelle_Auswertung[[#This Row],[Juror 1]:[Juror 20]])*(COUNT(Tabelle_Auswertung[[#This Row],[Juror 1]:[Juror 20]])-1), SUM(Tabelle_Auswertung[[#This Row],[Juror 1]:[Juror 20]]) ), " - ") -> - | X73: =IF(Tabelle_Auswertung[[#This Row],[Bildname]]<>"",IF(Tabelle_Auswertung[[#This Row],[Punkte]]>0,AVERAGE(Tabelle_Auswertung[[#This Row],[Juror 1]:[Juror 20]])," - ")," - ") -> - | Y73: =IF(Tabelle_Auswertung[[#This Row],[Bildname]]<>"",IF(Tabelle_Auswertung[[#This Row],[Punkte]]>0,RANK(Tabelle_Auswertung[[#This Row],[Punkte]],[Punkte],0)," - ")," - ") -> - | Z73: - - - | AB73: =IF(Tabelle_Auswertung[[#This Row],[Platz]]=1,CONCATENATE(Tabelle_Auswertung[[#This Row],[Bildname]]," von ",Tabelle_Auswertung[[#This Row],[Autor(in)]]),"") ->  | AC73: =IF(Tabelle_Auswertung[[#This Row],[Platz]]=2,CONCATENATE(Tabelle_Auswertung[[#This Row],[Bildname]]," von ",Tabelle_Auswertung[[#This Row],[Autor(in)]]),"") ->  | AD73: =IF(Tabelle_Auswertung[[#This Row],[Platz]]=3,CONCATENATE(Tabelle_Auswertung[[#This Row],[Bildname]]," von ",Tabelle_Auswertung[[#This Row],[Autor(in)]]),"") ->  | AE73: =IF(Tabelle_Auswertung[[#This Row],[Platz]]=4,CONCATENATE(Tabelle_Auswertung[[#This Row],[Bildname]]," von ",Tabelle_Auswertung[[#This Row],[Autor(in)]]),"") ->  | AF73: =IF(Tabelle_Auswertung[[#This Row],[Platz]]=5,CONCATENATE(Tabelle_Auswertung[[#This Row],[Bildname]]," von ",Tabelle_Auswertung[[#This Row],[Autor(in)]]),"") ->  | AG73: =IF(Tabelle_Auswertung[[#This Row],[Platz]]=6,CONCATENATE(Tabelle_Auswertung[[#This Row],[Bildname]]," von ",Tabelle_Auswertung[[#This Row],[Autor(in)]]),"") ->  | AH73: =IF(Tabelle_Auswertung[[#This Row],[Platz]]=7,CONCATENATE(Tabelle_Auswertung[[#This Row],[Bildname]]," von ",Tabelle_Auswertung[[#This Row],[Autor(in)]]),"") ->  | AI73: =IF(Tabelle_Auswertung[[#This Row],[Platz]]=8,CONCATENATE(Tabelle_Auswertung[[#This Row],[Bildname]]," von ",Tabelle_Auswertung[[#This Row],[Autor(in)]]),"") ->  | AJ73: =IF(Tabelle_Auswertung[[#This Row],[Platz]]=9,CONCATENATE(Tabelle_Auswertung[[#This Row],[Bildname]]," von ",Tabelle_Auswertung[[#This Row],[Autor(in)]]),"") ->  | AK73: =IF(Tabelle_Auswertung[[#This Row],[Platz]]=10,CONCATENATE(Tabelle_Auswertung[[#This Row],[Bildname]]," von ",Tabelle_Auswertung[[#This Row],[Autor(in)]]),"") -> 
A74: 70 | W74: =IF(Tabelle_Auswertung[[#This Row],[Bildname]]<>"", IF(Tabelle_Auswertung[[#This Row],[abwesend]]="ja", SUM(Tabelle_Auswertung[[#This Row],[Juror 1]:[Juror 20]])/COUNT(Tabelle_Auswertung[[#This Row],[Juror 1]:[Juror 20]])*(COUNT(Tabelle_Auswertung[[#This Row],[Juror 1]:[Juror 20]])-1), SUM(Tabelle_Auswertung[[#This Row],[Juror 1]:[Juror 20]]) ), " - ") -> - | X74: =IF(Tabelle_Auswertung[[#This Row],[Bildname]]<>"",IF(Tabelle_Auswertung[[#This Row],[Punkte]]>0,AVERAGE(Tabelle_Auswertung[[#This Row],[Juror 1]:[Juror 20]])," - ")," - ") -> - | Y74: =IF(Tabelle_Auswertung[[#This Row],[Bildname]]<>"",IF(Tabelle_Auswertung[[#This Row],[Punkte]]>0,RANK(Tabelle_Auswertung[[#This Row],[Punkte]],[Punkte],0)," - ")," - ") -> - | Z74: - - - | AB74: =IF(Tabelle_Auswertung[[#This Row],[Platz]]=1,CONCATENATE(Tabelle_Auswertung[[#This Row],[Bildname]]," von ",Tabelle_Auswertung[[#This Row],[Autor(in)]]),"") ->  | AC74: =IF(Tabelle_Auswertung[[#This Row],[Platz]]=2,CONCATENATE(Tabelle_Auswertung[[#This Row],[Bildname]]," von ",Tabelle_Auswertung[[#This Row],[Autor(in)]]),"") ->  | AD74: =IF(Tabelle_Auswertung[[#This Row],[Platz]]=3,CONCATENATE(Tabelle_Auswertung[[#This Row],[Bildname]]," von ",Tabelle_Auswertung[[#This Row],[Autor(in)]]),"") ->  | AE74: =IF(Tabelle_Auswertung[[#This Row],[Platz]]=4,CONCATENATE(Tabelle_Auswertung[[#This Row],[Bildname]]," von ",Tabelle_Auswertung[[#This Row],[Autor(in)]]),"") ->  | AF74: =IF(Tabelle_Auswertung[[#This Row],[Platz]]=5,CONCATENATE(Tabelle_Auswertung[[#This Row],[Bildname]]," von ",Tabelle_Auswertung[[#This Row],[Autor(in)]]),"") ->  | AG74: =IF(Tabelle_Auswertung[[#This Row],[Platz]]=6,CONCATENATE(Tabelle_Auswertung[[#This Row],[Bildname]]," von ",Tabelle_Auswertung[[#This Row],[Autor(in)]]),"") ->  | AH74: =IF(Tabelle_Auswertung[[#This Row],[Platz]]=7,CONCATENATE(Tabelle_Auswertung[[#This Row],[Bildname]]," von ",Tabelle_Auswertung[[#This Row],[Autor(in)]]),"") ->  | AI74: =IF(Tabelle_Auswertung[[#This Row],[Platz]]=8,CONCATENATE(Tabelle_Auswertung[[#This Row],[Bildname]]," von ",Tabelle_Auswertung[[#This Row],[Autor(in)]]),"") ->  | AJ74: =IF(Tabelle_Auswertung[[#This Row],[Platz]]=9,CONCATENATE(Tabelle_Auswertung[[#This Row],[Bildname]]," von ",Tabelle_Auswertung[[#This Row],[Autor(in)]]),"") ->  | AK74: =IF(Tabelle_Auswertung[[#This Row],[Platz]]=10,CONCATENATE(Tabelle_Auswertung[[#This Row],[Bildname]]," von ",Tabelle_Auswertung[[#This Row],[Autor(in)]]),"") -> 
A75: 71 | W75: =IF(Tabelle_Auswertung[[#This Row],[Bildname]]<>"", IF(Tabelle_Auswertung[[#This Row],[abwesend]]="ja", SUM(Tabelle_Auswertung[[#This Row],[Juror 1]:[Juror 20]])/COUNT(Tabelle_Auswertung[[#This Row],[Juror 1]:[Juror 20]])*(COUNT(Tabelle_Auswertung[[#This Row],[Juror 1]:[Juror 20]])-1), SUM(Tabelle_Auswertung[[#This Row],[Juror 1]:[Juror 20]]) ), " - ") -> - | X75: =IF(Tabelle_Auswertung[[#This Row],[Bildname]]<>"",IF(Tabelle_Auswertung[[#This Row],[Punkte]]>0,AVERAGE(Tabelle_Auswertung[[#This Row],[Juror 1]:[Juror 20]])," - ")," - ") -> - | Y75: =IF(Tabelle_Auswertung[[#This Row],[Bildname]]<>"",IF(Tabelle_Auswertung[[#This Row],[Punkte]]>0,RANK(Tabelle_Auswertung[[#This Row],[Punkte]],[Punkte],0)," - ")," - ") -> - | Z75: - - - | AB75: =IF(Tabelle_Auswertung[[#This Row],[Platz]]=1,CONCATENATE(Tabelle_Auswertung[[#This Row],[Bildname]]," von ",Tabelle_Auswertung[[#This Row],[Autor(in)]]),"") ->  | AC75: =IF(Tabelle_Auswertung[[#This Row],[Platz]]=2,CONCATENATE(Tabelle_Auswertung[[#This Row],[Bildname]]," von ",Tabelle_Auswertung[[#This Row],[Autor(in)]]),"") ->  | AD75: =IF(Tabelle_Auswertung[[#This Row],[Platz]]=3,CONCATENATE(Tabelle_Auswertung[[#This Row],[Bildname]]," von ",Tabelle_Auswertung[[#This Row],[Autor(in)]]),"") ->  | AE75: =IF(Tabelle_Auswertung[[#This Row],[Platz]]=4,CONCATENATE(Tabelle_Auswertung[[#This Row],[Bildname]]," von ",Tabelle_Auswertung[[#This Row],[Autor(in)]]),"") ->  | AF75: =IF(Tabelle_Auswertung[[#This Row],[Platz]]=5,CONCATENATE(Tabelle_Auswertung[[#This Row],[Bildname]]," von ",Tabelle_Auswertung[[#This Row],[Autor(in)]]),"") ->  | AG75: =IF(Tabelle_Auswertung[[#This Row],[Platz]]=6,CONCATENATE(Tabelle_Auswertung[[#This Row],[Bildname]]," von ",Tabelle_Auswertung[[#This Row],[Autor(in)]]),"") ->  | AH75: =IF(Tabelle_Auswertung[[#This Row],[Platz]]=7,CONCATENATE(Tabelle_Auswertung[[#This Row],[Bildname]]," von ",Tabelle_Auswertung[[#This Row],[Autor(in)]]),"") ->  | AI75: =IF(Tabelle_Auswertung[[#This Row],[Platz]]=8,CONCATENATE(Tabelle_Auswertung[[#This Row],[Bildname]]," von ",Tabelle_Auswertung[[#This Row],[Autor(in)]]),"") ->  | AJ75: =IF(Tabelle_Auswertung[[#This Row],[Platz]]=9,CONCATENATE(Tabelle_Auswertung[[#This Row],[Bildname]]," von ",Tabelle_Auswertung[[#This Row],[Autor(in)]]),"") ->  | AK75: =IF(Tabelle_Auswertung[[#This Row],[Platz]]=10,CONCATENATE(Tabelle_Auswertung[[#This Row],[Bildname]]," von ",Tabelle_Auswertung[[#This Row],[Autor(in)]]),"") -> 
A76: 72 | W76: =IF(Tabelle_Auswertung[[#This Row],[Bildname]]<>"", IF(Tabelle_Auswertung[[#This Row],[abwesend]]="ja", SUM(Tabelle_Auswertung[[#This Row],[Juror 1]:[Juror 20]])/COUNT(Tabelle_Auswertung[[#This Row],[Juror 1]:[Juror 20]])*(COUNT(Tabelle_Auswertung[[#This Row],[Juror 1]:[Juror 20]])-1), SUM(Tabelle_Auswertung[[#This Row],[Juror 1]:[Juror 20]]) ), " - ") -> - | X76: =IF(Tabelle_Auswertung[[#This Row],[Bildname]]<>"",IF(Tabelle_Auswertung[[#This Row],[Punkte]]>0,AVERAGE(Tabelle_Auswertung[[#This Row],[Juror 1]:[Juror 20]])," - ")," - ") -> - | Y76: =IF(Tabelle_Auswertung[[#This Row],[Bildname]]<>"",IF(Tabelle_Auswertung[[#This Row],[Punkte]]>0,RANK(Tabelle_Auswertung[[#This Row],[Punkte]],[Punkte],0)," - ")," - ") -> - | Z76: - - - | AB76: =IF(Tabelle_Auswertung[[#This Row],[Platz]]=1,CONCATENATE(Tabelle_Auswertung[[#This Row],[Bildname]]," von ",Tabelle_Auswertung[[#This Row],[Autor(in)]]),"") ->  | AC76: =IF(Tabelle_Auswertung[[#This Row],[Platz]]=2,CONCATENATE(Tabelle_Auswertung[[#This Row],[Bildname]]," von ",Tabelle_Auswertung[[#This Row],[Autor(in)]]),"") ->  | AD76: =IF(Tabelle_Auswertung[[#This Row],[Platz]]=3,CONCATENATE(Tabelle_Auswertung[[#This Row],[Bildname]]," von ",Tabelle_Auswertung[[#This Row],[Autor(in)]]),"") ->  | AE76: =IF(Tabelle_Auswertung[[#This Row],[Platz]]=4,CONCATENATE(Tabelle_Auswertung[[#This Row],[Bildname]]," von ",Tabelle_Auswertung[[#This Row],[Autor(in)]]),"") ->  | AF76: =IF(Tabelle_Auswertung[[#This Row],[Platz]]=5,CONCATENATE(Tabelle_Auswertung[[#This Row],[Bildname]]," von ",Tabelle_Auswertung[[#This Row],[Autor(in)]]),"") ->  | AG76: =IF(Tabelle_Auswertung[[#This Row],[Platz]]=6,CONCATENATE(Tabelle_Auswertung[[#This Row],[Bildname]]," von ",Tabelle_Auswertung[[#This Row],[Autor(in)]]),"") ->  | AH76: =IF(Tabelle_Auswertung[[#This Row],[Platz]]=7,CONCATENATE(Tabelle_Auswertung[[#This Row],[Bildname]]," von ",Tabelle_Auswertung[[#This Row],[Autor(in)]]),"") ->  | AI76: =IF(Tabelle_Auswertung[[#This Row],[Platz]]=8,CONCATENATE(Tabelle_Auswertung[[#This Row],[Bildname]]," von ",Tabelle_Auswertung[[#This Row],[Autor(in)]]),"") ->  | AJ76: =IF(Tabelle_Auswertung[[#This Row],[Platz]]=9,CONCATENATE(Tabelle_Auswertung[[#This Row],[Bildname]]," von ",Tabelle_Auswertung[[#This Row],[Autor(in)]]),"") ->  | AK76: =IF(Tabelle_Auswertung[[#This Row],[Platz]]=10,CONCATENATE(Tabelle_Auswertung[[#This Row],[Bildname]]," von ",Tabelle_Auswertung[[#This Row],[Autor(in)]]),"") -> 
A77: 73 | W77: =IF(Tabelle_Auswertung[[#This Row],[Bildname]]<>"", IF(Tabelle_Auswertung[[#This Row],[abwesend]]="ja", SUM(Tabelle_Auswertung[[#This Row],[Juror 1]:[Juror 20]])/COUNT(Tabelle_Auswertung[[#This Row],[Juror 1]:[Juror 20]])*(COUNT(Tabelle_Auswertung[[#This Row],[Juror 1]:[Juror 20]])-1), SUM(Tabelle_Auswertung[[#This Row],[Juror 1]:[Juror 20]]) ), " - ") -> - | X77: =IF(Tabelle_Auswertung[[#This Row],[Bildname]]<>"",IF(Tabelle_Auswertung[[#This Row],[Punkte]]>0,AVERAGE(Tabelle_Auswertung[[#This Row],[Juror 1]:[Juror 20]])," - ")," - ") -> - | Y77: =IF(Tabelle_Auswertung[[#This Row],[Bildname]]<>"",IF(Tabelle_Auswertung[[#This Row],[Punkte]]>0,RANK(Tabelle_Auswertung[[#This Row],[Punkte]],[Punkte],0)," - ")," - ") -> - | Z77: - - - | AB77: =IF(Tabelle_Auswertung[[#This Row],[Platz]]=1,CONCATENATE(Tabelle_Auswertung[[#This Row],[Bildname]]," von ",Tabelle_Auswertung[[#This Row],[Autor(in)]]),"") ->  | AC77: =IF(Tabelle_Auswertung[[#This Row],[Platz]]=2,CONCATENATE(Tabelle_Auswertung[[#This Row],[Bildname]]," von ",Tabelle_Auswertung[[#This Row],[Autor(in)]]),"") ->  | AD77: =IF(Tabelle_Auswertung[[#This Row],[Platz]]=3,CONCATENATE(Tabelle_Auswertung[[#This Row],[Bildname]]," von ",Tabelle_Auswertung[[#This Row],[Autor(in)]]),"") ->  | AE77: =IF(Tabelle_Auswertung[[#This Row],[Platz]]=4,CONCATENATE(Tabelle_Auswertung[[#This Row],[Bildname]]," von ",Tabelle_Auswertung[[#This Row],[Autor(in)]]),"") ->  | AF77: =IF(Tabelle_Auswertung[[#This Row],[Platz]]=5,CONCATENATE(Tabelle_Auswertung[[#This Row],[Bildname]]," von ",Tabelle_Auswertung[[#This Row],[Autor(in)]]),"") ->  | AG77: =IF(Tabelle_Auswertung[[#This Row],[Platz]]=6,CONCATENATE(Tabelle_Auswertung[[#This Row],[Bildname]]," von ",Tabelle_Auswertung[[#This Row],[Autor(in)]]),"") ->  | AH77: =IF(Tabelle_Auswertung[[#This Row],[Platz]]=7,CONCATENATE(Tabelle_Auswertung[[#This Row],[Bildname]]," von ",Tabelle_Auswertung[[#This Row],[Autor(in)]]),"") ->  | AI77: =IF(Tabelle_Auswertung[[#This Row],[Platz]]=8,CONCATENATE(Tabelle_Auswertung[[#This Row],[Bildname]]," von ",Tabelle_Auswertung[[#This Row],[Autor(in)]]),"") ->  | AJ77: =IF(Tabelle_Auswertung[[#This Row],[Platz]]=9,CONCATENATE(Tabelle_Auswertung[[#This Row],[Bildname]]," von ",Tabelle_Auswertung[[#This Row],[Autor(in)]]),"") ->  | AK77: =IF(Tabelle_Auswertung[[#This Row],[Platz]]=10,CONCATENATE(Tabelle_Auswertung[[#This Row],[Bildname]]," von ",Tabelle_Auswertung[[#This Row],[Autor(in)]]),"") -> 
A78: 74 | W78: =IF(Tabelle_Auswertung[[#This Row],[Bildname]]<>"", IF(Tabelle_Auswertung[[#This Row],[abwesend]]="ja", SUM(Tabelle_Auswertung[[#This Row],[Juror 1]:[Juror 20]])/COUNT(Tabelle_Auswertung[[#This Row],[Juror 1]:[Juror 20]])*(COUNT(Tabelle_Auswertung[[#This Row],[Juror 1]:[Juror 20]])-1), SUM(Tabelle_Auswertung[[#This Row],[Juror 1]:[Juror 20]]) ), " - ") -> - | X78: =IF(Tabelle_Auswertung[[#This Row],[Bildname]]<>"",IF(Tabelle_Auswertung[[#This Row],[Punkte]]>0,AVERAGE(Tabelle_Auswertung[[#This Row],[Juror 1]:[Juror 20]])," - ")," - ") -> - | Y78: =IF(Tabelle_Auswertung[[#This Row],[Bildname]]<>"",IF(Tabelle_Auswertung[[#This Row],[Punkte]]>0,RANK(Tabelle_Auswertung[[#This Row],[Punkte]],[Punkte],0)," - ")," - ") -> - | Z78: - - - | AB78: =IF(Tabelle_Auswertung[[#This Row],[Platz]]=1,CONCATENATE(Tabelle_Auswertung[[#This Row],[Bildname]]," von ",Tabelle_Auswertung[[#This Row],[Autor(in)]]),"") ->  | AC78: =IF(Tabelle_Auswertung[[#This Row],[Platz]]=2,CONCATENATE(Tabelle_Auswertung[[#This Row],[Bildname]]," von ",Tabelle_Auswertung[[#This Row],[Autor(in)]]),"") ->  | AD78: =IF(Tabelle_Auswertung[[#This Row],[Platz]]=3,CONCATENATE(Tabelle_Auswertung[[#This Row],[Bildname]]," von ",Tabelle_Auswertung[[#This Row],[Autor(in)]]),"") ->  | AE78: =IF(Tabelle_Auswertung[[#This Row],[Platz]]=4,CONCATENATE(Tabelle_Auswertung[[#This Row],[Bildname]]," von ",Tabelle_Auswertung[[#This Row],[Autor(in)]]),"") ->  | AF78: =IF(Tabelle_Auswertung[[#This Row],[Platz]]=5,CONCATENATE(Tabelle_Auswertung[[#This Row],[Bildname]]," von ",Tabelle_Auswertung[[#This Row],[Autor(in)]]),"") ->  | AG78: =IF(Tabelle_Auswertung[[#This Row],[Platz]]=6,CONCATENATE(Tabelle_Auswertung[[#This Row],[Bildname]]," von ",Tabelle_Auswertung[[#This Row],[Autor(in)]]),"") ->  | AH78: =IF(Tabelle_Auswertung[[#This Row],[Platz]]=7,CONCATENATE(Tabelle_Auswertung[[#This Row],[Bildname]]," von ",Tabelle_Auswertung[[#This Row],[Autor(in)]]),"") ->  | AI78: =IF(Tabelle_Auswertung[[#This Row],[Platz]]=8,CONCATENATE(Tabelle_Auswertung[[#This Row],[Bildname]]," von ",Tabelle_Auswertung[[#This Row],[Autor(in)]]),"") ->  | AJ78: =IF(Tabelle_Auswertung[[#This Row],[Platz]]=9,CONCATENATE(Tabelle_Auswertung[[#This Row],[Bildname]]," von ",Tabelle_Auswertung[[#This Row],[Autor(in)]]),"") ->  | AK78: =IF(Tabelle_Auswertung[[#This Row],[Platz]]=10,CONCATENATE(Tabelle_Auswertung[[#This Row],[Bildname]]," von ",Tabelle_Auswertung[[#This Row],[Autor(in)]]),"") -> 
A79: 75 | W79: =IF(Tabelle_Auswertung[[#This Row],[Bildname]]<>"", IF(Tabelle_Auswertung[[#This Row],[abwesend]]="ja", SUM(Tabelle_Auswertung[[#This Row],[Juror 1]:[Juror 20]])/COUNT(Tabelle_Auswertung[[#This Row],[Juror 1]:[Juror 20]])*(COUNT(Tabelle_Auswertung[[#This Row],[Juror 1]:[Juror 20]])-1), SUM(Tabelle_Auswertung[[#This Row],[Juror 1]:[Juror 20]]) ), " - ") -> - | X79: =IF(Tabelle_Auswertung[[#This Row],[Bildname]]<>"",IF(Tabelle_Auswertung[[#This Row],[Punkte]]>0,AVERAGE(Tabelle_Auswertung[[#This Row],[Juror 1]:[Juror 20]])," - ")," - ") -> - | Y79: =IF(Tabelle_Auswertung[[#This Row],[Bildname]]<>"",IF(Tabelle_Auswertung[[#This Row],[Punkte]]>0,RANK(Tabelle_Auswertung[[#This Row],[Punkte]],[Punkte],0)," - ")," - ") -> - | Z79: - - - | AB79: =IF(Tabelle_Auswertung[[#This Row],[Platz]]=1,CONCATENATE(Tabelle_Auswertung[[#This Row],[Bildname]]," von ",Tabelle_Auswertung[[#This Row],[Autor(in)]]),"") ->  | AC79: =IF(Tabelle_Auswertung[[#This Row],[Platz]]=2,CONCATENATE(Tabelle_Auswertung[[#This Row],[Bildname]]," von ",Tabelle_Auswertung[[#This Row],[Autor(in)]]),"") ->  | AD79: =IF(Tabelle_Auswertung[[#This Row],[Platz]]=3,CONCATENATE(Tabelle_Auswertung[[#This Row],[Bildname]]," von ",Tabelle_Auswertung[[#This Row],[Autor(in)]]),"") ->  | AE79: =IF(Tabelle_Auswertung[[#This Row],[Platz]]=4,CONCATENATE(Tabelle_Auswertung[[#This Row],[Bildname]]," von ",Tabelle_Auswertung[[#This Row],[Autor(in)]]),"") ->  | AF79: =IF(Tabelle_Auswertung[[#This Row],[Platz]]=5,CONCATENATE(Tabelle_Auswertung[[#This Row],[Bildname]]," von ",Tabelle_Auswertung[[#This Row],[Autor(in)]]),"") ->  | AG79: =IF(Tabelle_Auswertung[[#This Row],[Platz]]=6,CONCATENATE(Tabelle_Auswertung[[#This Row],[Bildname]]," von ",Tabelle_Auswertung[[#This Row],[Autor(in)]]),"") ->  | AH79: =IF(Tabelle_Auswertung[[#This Row],[Platz]]=7,CONCATENATE(Tabelle_Auswertung[[#This Row],[Bildname]]," von ",Tabelle_Auswertung[[#This Row],[Autor(in)]]),"") ->  | AI79: =IF(Tabelle_Auswertung[[#This Row],[Platz]]=8,CONCATENATE(Tabelle_Auswertung[[#This Row],[Bildname]]," von ",Tabelle_Auswertung[[#This Row],[Autor(in)]]),"") ->  | AJ79: =IF(Tabelle_Auswertung[[#This Row],[Platz]]=9,CONCATENATE(Tabelle_Auswertung[[#This Row],[Bildname]]," von ",Tabelle_Auswertung[[#This Row],[Autor(in)]]),"") ->  | AK79: =IF(Tabelle_Auswertung[[#This Row],[Platz]]=10,CONCATENATE(Tabelle_Auswertung[[#This Row],[Bildname]]," von ",Tabelle_Auswertung[[#This Row],[Autor(in)]]),"") -> 
A80: 76 | W80: =IF(Tabelle_Auswertung[[#This Row],[Bildname]]<>"", IF(Tabelle_Auswertung[[#This Row],[abwesend]]="ja", SUM(Tabelle_Auswertung[[#This Row],[Juror 1]:[Juror 20]])/COUNT(Tabelle_Auswertung[[#This Row],[Juror 1]:[Juror 20]])*(COUNT(Tabelle_Auswertung[[#This Row],[Juror 1]:[Juror 20]])-1), SUM(Tabelle_Auswertung[[#This Row],[Juror 1]:[Juror 20]]) ), " - ") -> - | X80: =IF(Tabelle_Auswertung[[#This Row],[Bildname]]<>"",IF(Tabelle_Auswertung[[#This Row],[Punkte]]>0,AVERAGE(Tabelle_Auswertung[[#This Row],[Juror 1]:[Juror 20]])," - ")," - ") -> - | Y80: =IF(Tabelle_Auswertung[[#This Row],[Bildname]]<>"",IF(Tabelle_Auswertung[[#This Row],[Punkte]]>0,RANK(Tabelle_Auswertung[[#This Row],[Punkte]],[Punkte],0)," - ")," - ") -> - | Z80: - - - | AB80: =IF(Tabelle_Auswertung[[#This Row],[Platz]]=1,CONCATENATE(Tabelle_Auswertung[[#This Row],[Bildname]]," von ",Tabelle_Auswertung[[#This Row],[Autor(in)]]),"") ->  | AC80: =IF(Tabelle_Auswertung[[#This Row],[Platz]]=2,CONCATENATE(Tabelle_Auswertung[[#This Row],[Bildname]]," von ",Tabelle_Auswertung[[#This Row],[Autor(in)]]),"") ->  | AD80: =IF(Tabelle_Auswertung[[#This Row],[Platz]]=3,CONCATENATE(Tabelle_Auswertung[[#This Row],[Bildname]]," von ",Tabelle_Auswertung[[#This Row],[Autor(in)]]),"") ->  | AE80: =IF(Tabelle_Auswertung[[#This Row],[Platz]]=4,CONCATENATE(Tabelle_Auswertung[[#This Row],[Bildname]]," von ",Tabelle_Auswertung[[#This Row],[Autor(in)]]),"") ->  | AF80: =IF(Tabelle_Auswertung[[#This Row],[Platz]]=5,CONCATENATE(Tabelle_Auswertung[[#This Row],[Bildname]]," von ",Tabelle_Auswertung[[#This Row],[Autor(in)]]),"") ->  | AG80: =IF(Tabelle_Auswertung[[#This Row],[Platz]]=6,CONCATENATE(Tabelle_Auswertung[[#This Row],[Bildname]]," von ",Tabelle_Auswertung[[#This Row],[Autor(in)]]),"") ->  | AH80: =IF(Tabelle_Auswertung[[#This Row],[Platz]]=7,CONCATENATE(Tabelle_Auswertung[[#This Row],[Bildname]]," von ",Tabelle_Auswertung[[#This Row],[Autor(in)]]),"") ->  | AI80: =IF(Tabelle_Auswertung[[#This Row],[Platz]]=8,CONCATENATE(Tabelle_Auswertung[[#This Row],[Bildname]]," von ",Tabelle_Auswertung[[#This Row],[Autor(in)]]),"") ->  | AJ80: =IF(Tabelle_Auswertung[[#This Row],[Platz]]=9,CONCATENATE(Tabelle_Auswertung[[#This Row],[Bildname]]," von ",Tabelle_Auswertung[[#This Row],[Autor(in)]]),"") ->  | AK80: =IF(Tabelle_Auswertung[[#This Row],[Platz]]=10,CONCATENATE(Tabelle_Auswertung[[#This Row],[Bildname]]," von ",Tabelle_Auswertung[[#This Row],[Autor(in)]]),"") -> 
A81: 77 | W81: =IF(Tabelle_Auswertung[[#This Row],[Bildname]]<>"", IF(Tabelle_Auswertung[[#This Row],[abwesend]]="ja", SUM(Tabelle_Auswertung[[#This Row],[Juror 1]:[Juror 20]])/COUNT(Tabelle_Auswertung[[#This Row],[Juror 1]:[Juror 20]])*(COUNT(Tabelle_Auswertung[[#This Row],[Juror 1]:[Juror 20]])-1), SUM(Tabelle_Auswertung[[#This Row],[Juror 1]:[Juror 20]]) ), " - ") -> - | X81: =IF(Tabelle_Auswertung[[#This Row],[Bildname]]<>"",IF(Tabelle_Auswertung[[#This Row],[Punkte]]>0,AVERAGE(Tabelle_Auswertung[[#This Row],[Juror 1]:[Juror 20]])," - ")," - ") -> - | Y81: =IF(Tabelle_Auswertung[[#This Row],[Bildname]]<>"",IF(Tabelle_Auswertung[[#This Row],[Punkte]]>0,RANK(Tabelle_Auswertung[[#This Row],[Punkte]],[Punkte],0)," - ")," - ") -> - | Z81: - - - | AB81: =IF(Tabelle_Auswertung[[#This Row],[Platz]]=1,CONCATENATE(Tabelle_Auswertung[[#This Row],[Bildname]]," von ",Tabelle_Auswertung[[#This Row],[Autor(in)]]),"") ->  | AC81: =IF(Tabelle_Auswertung[[#This Row],[Platz]]=2,CONCATENATE(Tabelle_Auswertung[[#This Row],[Bildname]]," von ",Tabelle_Auswertung[[#This Row],[Autor(in)]]),"") ->  | AD81: =IF(Tabelle_Auswertung[[#This Row],[Platz]]=3,CONCATENATE(Tabelle_Auswertung[[#This Row],[Bildname]]," von ",Tabelle_Auswertung[[#This Row],[Autor(in)]]),"") ->  | AE81: =IF(Tabelle_Auswertung[[#This Row],[Platz]]=4,CONCATENATE(Tabelle_Auswertung[[#This Row],[Bildname]]," von ",Tabelle_Auswertung[[#This Row],[Autor(in)]]),"") ->  | AF81: =IF(Tabelle_Auswertung[[#This Row],[Platz]]=5,CONCATENATE(Tabelle_Auswertung[[#This Row],[Bildname]]," von ",Tabelle_Auswertung[[#This Row],[Autor(in)]]),"") ->  | AG81: =IF(Tabelle_Auswertung[[#This Row],[Platz]]=6,CONCATENATE(Tabelle_Auswertung[[#This Row],[Bildname]]," von ",Tabelle_Auswertung[[#This Row],[Autor(in)]]),"") ->  | AH81: =IF(Tabelle_Auswertung[[#This Row],[Platz]]=7,CONCATENATE(Tabelle_Auswertung[[#This Row],[Bildname]]," von ",Tabelle_Auswertung[[#This Row],[Autor(in)]]),"") ->  | AI81: =IF(Tabelle_Auswertung[[#This Row],[Platz]]=8,CONCATENATE(Tabelle_Auswertung[[#This Row],[Bildname]]," von ",Tabelle_Auswertung[[#This Row],[Autor(in)]]),"") ->  | AJ81: =IF(Tabelle_Auswertung[[#This Row],[Platz]]=9,CONCATENATE(Tabelle_Auswertung[[#This Row],[Bildname]]," von ",Tabelle_Auswertung[[#This Row],[Autor(in)]]),"") ->  | AK81: =IF(Tabelle_Auswertung[[#This Row],[Platz]]=10,CONCATENATE(Tabelle_Auswertung[[#This Row],[Bildname]]," von ",Tabelle_Auswertung[[#This Row],[Autor(in)]]),"") -> 
A82: 78 | W82: =IF(Tabelle_Auswertung[[#This Row],[Bildname]]<>"", IF(Tabelle_Auswertung[[#This Row],[abwesend]]="ja", SUM(Tabelle_Auswertung[[#This Row],[Juror 1]:[Juror 20]])/COUNT(Tabelle_Auswertung[[#This Row],[Juror 1]:[Juror 20]])*(COUNT(Tabelle_Auswertung[[#This Row],[Juror 1]:[Juror 20]])-1), SUM(Tabelle_Auswertung[[#This Row],[Juror 1]:[Juror 20]]) ), " - ") -> - | X82: =IF(Tabelle_Auswertung[[#This Row],[Bildname]]<>"",IF(Tabelle_Auswertung[[#This Row],[Punkte]]>0,AVERAGE(Tabelle_Auswertung[[#This Row],[Juror 1]:[Juror 20]])," - ")," - ") -> - | Y82: =IF(Tabelle_Auswertung[[#This Row],[Bildname]]<>"",IF(Tabelle_Auswertung[[#This Row],[Punkte]]>0,RANK(Tabelle_Auswertung[[#This Row],[Punkte]],[Punkte],0)," - ")," - ") -> - | Z82: - - - | AB82: =IF(Tabelle_Auswertung[[#This Row],[Platz]]=1,CONCATENATE(Tabelle_Auswertung[[#This Row],[Bildname]]," von ",Tabelle_Auswertung[[#This Row],[Autor(in)]]),"") ->  | AC82: =IF(Tabelle_Auswertung[[#This Row],[Platz]]=2,CONCATENATE(Tabelle_Auswertung[[#This Row],[Bildname]]," von ",Tabelle_Auswertung[[#This Row],[Autor(in)]]),"") ->  | AD82: =IF(Tabelle_Auswertung[[#This Row],[Platz]]=3,CONCATENATE(Tabelle_Auswertung[[#This Row],[Bildname]]," von ",Tabelle_Auswertung[[#This Row],[Autor(in)]]),"") ->  | AE82: =IF(Tabelle_Auswertung[[#This Row],[Platz]]=4,CONCATENATE(Tabelle_Auswertung[[#This Row],[Bildname]]," von ",Tabelle_Auswertung[[#This Row],[Autor(in)]]),"") ->  | AF82: =IF(Tabelle_Auswertung[[#This Row],[Platz]]=5,CONCATENATE(Tabelle_Auswertung[[#This Row],[Bildname]]," von ",Tabelle_Auswertung[[#This Row],[Autor(in)]]),"") ->  | AG82: =IF(Tabelle_Auswertung[[#This Row],[Platz]]=6,CONCATENATE(Tabelle_Auswertung[[#This Row],[Bildname]]," von ",Tabelle_Auswertung[[#This Row],[Autor(in)]]),"") ->  | AH82: =IF(Tabelle_Auswertung[[#This Row],[Platz]]=7,CONCATENATE(Tabelle_Auswertung[[#This Row],[Bildname]]," von ",Tabelle_Auswertung[[#This Row],[Autor(in)]]),"") ->  | AI82: =IF(Tabelle_Auswertung[[#This Row],[Platz]]=8,CONCATENATE(Tabelle_Auswertung[[#This Row],[Bildname]]," von ",Tabelle_Auswertung[[#This Row],[Autor(in)]]),"") ->  | AJ82: =IF(Tabelle_Auswertung[[#This Row],[Platz]]=9,CONCATENATE(Tabelle_Auswertung[[#This Row],[Bildname]]," von ",Tabelle_Auswertung[[#This Row],[Autor(in)]]),"") ->  | AK82: =IF(Tabelle_Auswertung[[#This Row],[Platz]]=10,CONCATENATE(Tabelle_Auswertung[[#This Row],[Bildname]]," von ",Tabelle_Auswertung[[#This Row],[Autor(in)]]),"") -> 
A83: 79 | W83: =IF(Tabelle_Auswertung[[#This Row],[Bildname]]<>"", IF(Tabelle_Auswertung[[#This Row],[abwesend]]="ja", SUM(Tabelle_Auswertung[[#This Row],[Juror 1]:[Juror 20]])/COUNT(Tabelle_Auswertung[[#This Row],[Juror 1]:[Juror 20]])*(COUNT(Tabelle_Auswertung[[#This Row],[Juror 1]:[Juror 20]])-1), SUM(Tabelle_Auswertung[[#This Row],[Juror 1]:[Juror 20]]) ), " - ") -> - | X83: =IF(Tabelle_Auswertung[[#This Row],[Bildname]]<>"",IF(Tabelle_Auswertung[[#This Row],[Punkte]]>0,AVERAGE(Tabelle_Auswertung[[#This Row],[Juror 1]:[Juror 20]])," - ")," - ") -> - | Y83: =IF(Tabelle_Auswertung[[#This Row],[Bildname]]<>"",IF(Tabelle_Auswertung[[#This Row],[Punkte]]>0,RANK(Tabelle_Auswertung[[#This Row],[Punkte]],[Punkte],0)," - ")," - ") -> - | Z83: - - - | AB83: =IF(Tabelle_Auswertung[[#This Row],[Platz]]=1,CONCATENATE(Tabelle_Auswertung[[#This Row],[Bildname]]," von ",Tabelle_Auswertung[[#This Row],[Autor(in)]]),"") ->  | AC83: =IF(Tabelle_Auswertung[[#This Row],[Platz]]=2,CONCATENATE(Tabelle_Auswertung[[#This Row],[Bildname]]," von ",Tabelle_Auswertung[[#This Row],[Autor(in)]]),"") ->  | AD83: =IF(Tabelle_Auswertung[[#This Row],[Platz]]=3,CONCATENATE(Tabelle_Auswertung[[#This Row],[Bildname]]," von ",Tabelle_Auswertung[[#This Row],[Autor(in)]]),"") ->  | AE83: =IF(Tabelle_Auswertung[[#This Row],[Platz]]=4,CONCATENATE(Tabelle_Auswertung[[#This Row],[Bildname]]," von ",Tabelle_Auswertung[[#This Row],[Autor(in)]]),"") ->  | AF83: =IF(Tabelle_Auswertung[[#This Row],[Platz]]=5,CONCATENATE(Tabelle_Auswertung[[#This Row],[Bildname]]," von ",Tabelle_Auswertung[[#This Row],[Autor(in)]]),"") ->  | AG83: =IF(Tabelle_Auswertung[[#This Row],[Platz]]=6,CONCATENATE(Tabelle_Auswertung[[#This Row],[Bildname]]," von ",Tabelle_Auswertung[[#This Row],[Autor(in)]]),"") ->  | AH83: =IF(Tabelle_Auswertung[[#This Row],[Platz]]=7,CONCATENATE(Tabelle_Auswertung[[#This Row],[Bildname]]," von ",Tabelle_Auswertung[[#This Row],[Autor(in)]]),"") ->  | AI83: =IF(Tabelle_Auswertung[[#This Row],[Platz]]=8,CONCATENATE(Tabelle_Auswertung[[#This Row],[Bildname]]," von ",Tabelle_Auswertung[[#This Row],[Autor(in)]]),"") ->  | AJ83: =IF(Tabelle_Auswertung[[#This Row],[Platz]]=9,CONCATENATE(Tabelle_Auswertung[[#This Row],[Bildname]]," von ",Tabelle_Auswertung[[#This Row],[Autor(in)]]),"") ->  | AK83: =IF(Tabelle_Auswertung[[#This Row],[Platz]]=10,CONCATENATE(Tabelle_Auswertung[[#This Row],[Bildname]]," von ",Tabelle_Auswertung[[#This Row],[Autor(in)]]),"") -> 
A84: 80 | W84: =IF(Tabelle_Auswertung[[#This Row],[Bildname]]<>"", IF(Tabelle_Auswertung[[#This Row],[abwesend]]="ja", SUM(Tabelle_Auswertung[[#This Row],[Juror 1]:[Juror 20]])/COUNT(Tabelle_Auswertung[[#This Row],[Juror 1]:[Juror 20]])*(COUNT(Tabelle_Auswertung[[#This Row],[Juror 1]:[Juror 20]])-1), SUM(Tabelle_Auswertung[[#This Row],[Juror 1]:[Juror 20]]) ), " - ") -> - | X84: =IF(Tabelle_Auswertung[[#This Row],[Bildname]]<>"",IF(Tabelle_Auswertung[[#This Row],[Punkte]]>0,AVERAGE(Tabelle_Auswertung[[#This Row],[Juror 1]:[Juror 20]])," - ")," - ") -> - | Y84: =IF(Tabelle_Auswertung[[#This Row],[Bildname]]<>"",IF(Tabelle_Auswertung[[#This Row],[Punkte]]>0,RANK(Tabelle_Auswertung[[#This Row],[Punkte]],[Punkte],0)," - ")," - ") -> - | Z84: - - - | AB84: =IF(Tabelle_Auswertung[[#This Row],[Platz]]=1,CONCATENATE(Tabelle_Auswertung[[#This Row],[Bildname]]," von ",Tabelle_Auswertung[[#This Row],[Autor(in)]]),"") ->  | AC84: =IF(Tabelle_Auswertung[[#This Row],[Platz]]=2,CONCATENATE(Tabelle_Auswertung[[#This Row],[Bildname]]," von ",Tabelle_Auswertung[[#This Row],[Autor(in)]]),"") ->  | AD84: =IF(Tabelle_Auswertung[[#This Row],[Platz]]=3,CONCATENATE(Tabelle_Auswertung[[#This Row],[Bildname]]," von ",Tabelle_Auswertung[[#This Row],[Autor(in)]]),"") ->  | AE84: =IF(Tabelle_Auswertung[[#This Row],[Platz]]=4,CONCATENATE(Tabelle_Auswertung[[#This Row],[Bildname]]," von ",Tabelle_Auswertung[[#This Row],[Autor(in)]]),"") ->  | AF84: =IF(Tabelle_Auswertung[[#This Row],[Platz]]=5,CONCATENATE(Tabelle_Auswertung[[#This Row],[Bildname]]," von ",Tabelle_Auswertung[[#This Row],[Autor(in)]]),"") ->  | AG84: =IF(Tabelle_Auswertung[[#This Row],[Platz]]=6,CONCATENATE(Tabelle_Auswertung[[#This Row],[Bildname]]," von ",Tabelle_Auswertung[[#This Row],[Autor(in)]]),"") ->  | AH84: =IF(Tabelle_Auswertung[[#This Row],[Platz]]=7,CONCATENATE(Tabelle_Auswertung[[#This Row],[Bildname]]," von ",Tabelle_Auswertung[[#This Row],[Autor(in)]]),"") ->  | AI84: =IF(Tabelle_Auswertung[[#This Row],[Platz]]=8,CONCATENATE(Tabelle_Auswertung[[#This Row],[Bildname]]," von ",Tabelle_Auswertung[[#This Row],[Autor(in)]]),"") ->  | AJ84: =IF(Tabelle_Auswertung[[#This Row],[Platz]]=9,CONCATENATE(Tabelle_Auswertung[[#This Row],[Bildname]]," von ",Tabelle_Auswertung[[#This Row],[Autor(in)]]),"") ->  | AK84: =IF(Tabelle_Auswertung[[#This Row],[Platz]]=10,CONCATENATE(Tabelle_Auswertung[[#This Row],[Bildname]]," von ",Tabelle_Auswertung[[#This Row],[Autor(in)]]),"") -> 
A85: 81 | W85: =IF(Tabelle_Auswertung[[#This Row],[Bildname]]<>"", IF(Tabelle_Auswertung[[#This Row],[abwesend]]="ja", SUM(Tabelle_Auswertung[[#This Row],[Juror 1]:[Juror 20]])/COUNT(Tabelle_Auswertung[[#This Row],[Juror 1]:[Juror 20]])*(COUNT(Tabelle_Auswertung[[#This Row],[Juror 1]:[Juror 20]])-1), SUM(Tabelle_Auswertung[[#This Row],[Juror 1]:[Juror 20]]) ), " - ") -> - | X85: =IF(Tabelle_Auswertung[[#This Row],[Bildname]]<>"",IF(Tabelle_Auswertung[[#This Row],[Punkte]]>0,AVERAGE(Tabelle_Auswertung[[#This Row],[Juror 1]:[Juror 20]])," - ")," - ") -> - | Y85: =IF(Tabelle_Auswertung[[#This Row],[Bildname]]<>"",IF(Tabelle_Auswertung[[#This Row],[Punkte]]>0,RANK(Tabelle_Auswertung[[#This Row],[Punkte]],[Punkte],0)," - ")," - ") -> - | Z85: - - - | AB85: =IF(Tabelle_Auswertung[[#This Row],[Platz]]=1,CONCATENATE(Tabelle_Auswertung[[#This Row],[Bildname]]," von ",Tabelle_Auswertung[[#This Row],[Autor(in)]]),"") ->  | AC85: =IF(Tabelle_Auswertung[[#This Row],[Platz]]=2,CONCATENATE(Tabelle_Auswertung[[#This Row],[Bildname]]," von ",Tabelle_Auswertung[[#This Row],[Autor(in)]]),"") ->  | AD85: =IF(Tabelle_Auswertung[[#This Row],[Platz]]=3,CONCATENATE(Tabelle_Auswertung[[#This Row],[Bildname]]," von ",Tabelle_Auswertung[[#This Row],[Autor(in)]]),"") ->  | AE85: =IF(Tabelle_Auswertung[[#This Row],[Platz]]=4,CONCATENATE(Tabelle_Auswertung[[#This Row],[Bildname]]," von ",Tabelle_Auswertung[[#This Row],[Autor(in)]]),"") ->  | AF85: =IF(Tabelle_Auswertung[[#This Row],[Platz]]=5,CONCATENATE(Tabelle_Auswertung[[#This Row],[Bildname]]," von ",Tabelle_Auswertung[[#This Row],[Autor(in)]]),"") ->  | AG85: =IF(Tabelle_Auswertung[[#This Row],[Platz]]=6,CONCATENATE(Tabelle_Auswertung[[#This Row],[Bildname]]," von ",Tabelle_Auswertung[[#This Row],[Autor(in)]]),"") ->  | AH85: =IF(Tabelle_Auswertung[[#This Row],[Platz]]=7,CONCATENATE(Tabelle_Auswertung[[#This Row],[Bildname]]," von ",Tabelle_Auswertung[[#This Row],[Autor(in)]]),"") ->  | AI85: =IF(Tabelle_Auswertung[[#This Row],[Platz]]=8,CONCATENATE(Tabelle_Auswertung[[#This Row],[Bildname]]," von ",Tabelle_Auswertung[[#This Row],[Autor(in)]]),"") ->  | AJ85: =IF(Tabelle_Auswertung[[#This Row],[Platz]]=9,CONCATENATE(Tabelle_Auswertung[[#This Row],[Bildname]]," von ",Tabelle_Auswertung[[#This Row],[Autor(in)]]),"") ->  | AK85: =IF(Tabelle_Auswertung[[#This Row],[Platz]]=10,CONCATENATE(Tabelle_Auswertung[[#This Row],[Bildname]]," von ",Tabelle_Auswertung[[#This Row],[Autor(in)]]),"") -> 
A86: 82 | W86: =IF(Tabelle_Auswertung[[#This Row],[Bildname]]<>"", IF(Tabelle_Auswertung[[#This Row],[abwesend]]="ja", SUM(Tabelle_Auswertung[[#This Row],[Juror 1]:[Juror 20]])/COUNT(Tabelle_Auswertung[[#This Row],[Juror 1]:[Juror 20]])*(COUNT(Tabelle_Auswertung[[#This Row],[Juror 1]:[Juror 20]])-1), SUM(Tabelle_Auswertung[[#This Row],[Juror 1]:[Juror 20]]) ), " - ") -> - | X86: =IF(Tabelle_Auswertung[[#This Row],[Bildname]]<>"",IF(Tabelle_Auswertung[[#This Row],[Punkte]]>0,AVERAGE(Tabelle_Auswertung[[#This Row],[Juror 1]:[Juror 20]])," - ")," - ") -> - | Y86: =IF(Tabelle_Auswertung[[#This Row],[Bildname]]<>"",IF(Tabelle_Auswertung[[#This Row],[Punkte]]>0,RANK(Tabelle_Auswertung[[#This Row],[Punkte]],[Punkte],0)," - ")," - ") -> - | Z86: - - - | AB86: =IF(Tabelle_Auswertung[[#This Row],[Platz]]=1,CONCATENATE(Tabelle_Auswertung[[#This Row],[Bildname]]," von ",Tabelle_Auswertung[[#This Row],[Autor(in)]]),"") ->  | AC86: =IF(Tabelle_Auswertung[[#This Row],[Platz]]=2,CONCATENATE(Tabelle_Auswertung[[#This Row],[Bildname]]," von ",Tabelle_Auswertung[[#This Row],[Autor(in)]]),"") ->  | AD86: =IF(Tabelle_Auswertung[[#This Row],[Platz]]=3,CONCATENATE(Tabelle_Auswertung[[#This Row],[Bildname]]," von ",Tabelle_Auswertung[[#This Row],[Autor(in)]]),"") ->  | AE86: =IF(Tabelle_Auswertung[[#This Row],[Platz]]=4,CONCATENATE(Tabelle_Auswertung[[#This Row],[Bildname]]," von ",Tabelle_Auswertung[[#This Row],[Autor(in)]]),"") ->  | AF86: =IF(Tabelle_Auswertung[[#This Row],[Platz]]=5,CONCATENATE(Tabelle_Auswertung[[#This Row],[Bildname]]," von ",Tabelle_Auswertung[[#This Row],[Autor(in)]]),"") ->  | AG86: =IF(Tabelle_Auswertung[[#This Row],[Platz]]=6,CONCATENATE(Tabelle_Auswertung[[#This Row],[Bildname]]," von ",Tabelle_Auswertung[[#This Row],[Autor(in)]]),"") ->  | AH86: =IF(Tabelle_Auswertung[[#This Row],[Platz]]=7,CONCATENATE(Tabelle_Auswertung[[#This Row],[Bildname]]," von ",Tabelle_Auswertung[[#This Row],[Autor(in)]]),"") ->  | AI86: =IF(Tabelle_Auswertung[[#This Row],[Platz]]=8,CONCATENATE(Tabelle_Auswertung[[#This Row],[Bildname]]," von ",Tabelle_Auswertung[[#This Row],[Autor(in)]]),"") ->  | AJ86: =IF(Tabelle_Auswertung[[#This Row],[Platz]]=9,CONCATENATE(Tabelle_Auswertung[[#This Row],[Bildname]]," von ",Tabelle_Auswertung[[#This Row],[Autor(in)]]),"") ->  | AK86: =IF(Tabelle_Auswertung[[#This Row],[Platz]]=10,CONCATENATE(Tabelle_Auswertung[[#This Row],[Bildname]]," von ",Tabelle_Auswertung[[#This Row],[Autor(in)]]),"") -> 
A87: 83 | W87: =IF(Tabelle_Auswertung[[#This Row],[Bildname]]<>"", IF(Tabelle_Auswertung[[#This Row],[abwesend]]="ja", SUM(Tabelle_Auswertung[[#This Row],[Juror 1]:[Juror 20]])/COUNT(Tabelle_Auswertung[[#This Row],[Juror 1]:[Juror 20]])*(COUNT(Tabelle_Auswertung[[#This Row],[Juror 1]:[Juror 20]])-1), SUM(Tabelle_Auswertung[[#This Row],[Juror 1]:[Juror 20]]) ), " - ") -> - | X87: =IF(Tabelle_Auswertung[[#This Row],[Bildname]]<>"",IF(Tabelle_Auswertung[[#This Row],[Punkte]]>0,AVERAGE(Tabelle_Auswertung[[#This Row],[Juror 1]:[Juror 20]])," - ")," - ") -> - | Y87: =IF(Tabelle_Auswertung[[#This Row],[Bildname]]<>"",IF(Tabelle_Auswertung[[#This Row],[Punkte]]>0,RANK(Tabelle_Auswertung[[#This Row],[Punkte]],[Punkte],0)," - ")," - ") -> - | Z87: - - - | AB87: =IF(Tabelle_Auswertung[[#This Row],[Platz]]=1,CONCATENATE(Tabelle_Auswertung[[#This Row],[Bildname]]," von ",Tabelle_Auswertung[[#This Row],[Autor(in)]]),"") ->  | AC87: =IF(Tabelle_Auswertung[[#This Row],[Platz]]=2,CONCATENATE(Tabelle_Auswertung[[#This Row],[Bildname]]," von ",Tabelle_Auswertung[[#This Row],[Autor(in)]]),"") ->  | AD87: =IF(Tabelle_Auswertung[[#This Row],[Platz]]=3,CONCATENATE(Tabelle_Auswertung[[#This Row],[Bildname]]," von ",Tabelle_Auswertung[[#This Row],[Autor(in)]]),"") ->  | AE87: =IF(Tabelle_Auswertung[[#This Row],[Platz]]=4,CONCATENATE(Tabelle_Auswertung[[#This Row],[Bildname]]," von ",Tabelle_Auswertung[[#This Row],[Autor(in)]]),"") ->  | AF87: =IF(Tabelle_Auswertung[[#This Row],[Platz]]=5,CONCATENATE(Tabelle_Auswertung[[#This Row],[Bildname]]," von ",Tabelle_Auswertung[[#This Row],[Autor(in)]]),"") ->  | AG87: =IF(Tabelle_Auswertung[[#This Row],[Platz]]=6,CONCATENATE(Tabelle_Auswertung[[#This Row],[Bildname]]," von ",Tabelle_Auswertung[[#This Row],[Autor(in)]]),"") ->  | AH87: =IF(Tabelle_Auswertung[[#This Row],[Platz]]=7,CONCATENATE(Tabelle_Auswertung[[#This Row],[Bildname]]," von ",Tabelle_Auswertung[[#This Row],[Autor(in)]]),"") ->  | AI87: =IF(Tabelle_Auswertung[[#This Row],[Platz]]=8,CONCATENATE(Tabelle_Auswertung[[#This Row],[Bildname]]," von ",Tabelle_Auswertung[[#This Row],[Autor(in)]]),"") ->  | AJ87: =IF(Tabelle_Auswertung[[#This Row],[Platz]]=9,CONCATENATE(Tabelle_Auswertung[[#This Row],[Bildname]]," von ",Tabelle_Auswertung[[#This Row],[Autor(in)]]),"") ->  | AK87: =IF(Tabelle_Auswertung[[#This Row],[Platz]]=10,CONCATENATE(Tabelle_Auswertung[[#This Row],[Bildname]]," von ",Tabelle_Auswertung[[#This Row],[Autor(in)]]),"") -> 
A88: 84 | W88: =IF(Tabelle_Auswertung[[#This Row],[Bildname]]<>"", IF(Tabelle_Auswertung[[#This Row],[abwesend]]="ja", SUM(Tabelle_Auswertung[[#This Row],[Juror 1]:[Juror 20]])/COUNT(Tabelle_Auswertung[[#This Row],[Juror 1]:[Juror 20]])*(COUNT(Tabelle_Auswertung[[#This Row],[Juror 1]:[Juror 20]])-1), SUM(Tabelle_Auswertung[[#This Row],[Juror 1]:[Juror 20]]) ), " - ") -> - | X88: =IF(Tabelle_Auswertung[[#This Row],[Bildname]]<>"",IF(Tabelle_Auswertung[[#This Row],[Punkte]]>0,AVERAGE(Tabelle_Auswertung[[#This Row],[Juror 1]:[Juror 20]])," - ")," - ") -> - | Y88: =IF(Tabelle_Auswertung[[#This Row],[Bildname]]<>"",IF(Tabelle_Auswertung[[#This Row],[Punkte]]>0,RANK(Tabelle_Auswertung[[#This Row],[Punkte]],[Punkte],0)," - ")," - ") -> - | Z88: - - - | AB88: =IF(Tabelle_Auswertung[[#This Row],[Platz]]=1,CONCATENATE(Tabelle_Auswertung[[#This Row],[Bildname]]," von ",Tabelle_Auswertung[[#This Row],[Autor(in)]]),"") ->  | AC88: =IF(Tabelle_Auswertung[[#This Row],[Platz]]=2,CONCATENATE(Tabelle_Auswertung[[#This Row],[Bildname]]," von ",Tabelle_Auswertung[[#This Row],[Autor(in)]]),"") ->  | AD88: =IF(Tabelle_Auswertung[[#This Row],[Platz]]=3,CONCATENATE(Tabelle_Auswertung[[#This Row],[Bildname]]," von ",Tabelle_Auswertung[[#This Row],[Autor(in)]]),"") ->  | AE88: =IF(Tabelle_Auswertung[[#This Row],[Platz]]=4,CONCATENATE(Tabelle_Auswertung[[#This Row],[Bildname]]," von ",Tabelle_Auswertung[[#This Row],[Autor(in)]]),"") ->  | AF88: =IF(Tabelle_Auswertung[[#This Row],[Platz]]=5,CONCATENATE(Tabelle_Auswertung[[#This Row],[Bildname]]," von ",Tabelle_Auswertung[[#This Row],[Autor(in)]]),"") ->  | AG88: =IF(Tabelle_Auswertung[[#This Row],[Platz]]=6,CONCATENATE(Tabelle_Auswertung[[#This Row],[Bildname]]," von ",Tabelle_Auswertung[[#This Row],[Autor(in)]]),"") ->  | AH88: =IF(Tabelle_Auswertung[[#This Row],[Platz]]=7,CONCATENATE(Tabelle_Auswertung[[#This Row],[Bildname]]," von ",Tabelle_Auswertung[[#This Row],[Autor(in)]]),"") ->  | AI88: =IF(Tabelle_Auswertung[[#This Row],[Platz]]=8,CONCATENATE(Tabelle_Auswertung[[#This Row],[Bildname]]," von ",Tabelle_Auswertung[[#This Row],[Autor(in)]]),"") ->  | AJ88: =IF(Tabelle_Auswertung[[#This Row],[Platz]]=9,CONCATENATE(Tabelle_Auswertung[[#This Row],[Bildname]]," von ",Tabelle_Auswertung[[#This Row],[Autor(in)]]),"") ->  | AK88: =IF(Tabelle_Auswertung[[#This Row],[Platz]]=10,CONCATENATE(Tabelle_Auswertung[[#This Row],[Bildname]]," von ",Tabelle_Auswertung[[#This Row],[Autor(in)]]),"") -> 
A89: 85 | W89: =IF(Tabelle_Auswertung[[#This Row],[Bildname]]<>"", IF(Tabelle_Auswertung[[#This Row],[abwesend]]="ja", SUM(Tabelle_Auswertung[[#This Row],[Juror 1]:[Juror 20]])/COUNT(Tabelle_Auswertung[[#This Row],[Juror 1]:[Juror 20]])*(COUNT(Tabelle_Auswertung[[#This Row],[Juror 1]:[Juror 20]])-1), SUM(Tabelle_Auswertung[[#This Row],[Juror 1]:[Juror 20]]) ), " - ") -> - | X89: =IF(Tabelle_Auswertung[[#This Row],[Bildname]]<>"",IF(Tabelle_Auswertung[[#This Row],[Punkte]]>0,AVERAGE(Tabelle_Auswertung[[#This Row],[Juror 1]:[Juror 20]])," - ")," - ") -> - | Y89: =IF(Tabelle_Auswertung[[#This Row],[Bildname]]<>"",IF(Tabelle_Auswertung[[#This Row],[Punkte]]>0,RANK(Tabelle_Auswertung[[#This Row],[Punkte]],[Punkte],0)," - ")," - ") -> - | Z89: - - - | AB89: =IF(Tabelle_Auswertung[[#This Row],[Platz]]=1,CONCATENATE(Tabelle_Auswertung[[#This Row],[Bildname]]," von ",Tabelle_Auswertung[[#This Row],[Autor(in)]]),"") ->  | AC89: =IF(Tabelle_Auswertung[[#This Row],[Platz]]=2,CONCATENATE(Tabelle_Auswertung[[#This Row],[Bildname]]," von ",Tabelle_Auswertung[[#This Row],[Autor(in)]]),"") ->  | AD89: =IF(Tabelle_Auswertung[[#This Row],[Platz]]=3,CONCATENATE(Tabelle_Auswertung[[#This Row],[Bildname]]," von ",Tabelle_Auswertung[[#This Row],[Autor(in)]]),"") ->  | AE89: =IF(Tabelle_Auswertung[[#This Row],[Platz]]=4,CONCATENATE(Tabelle_Auswertung[[#This Row],[Bildname]]," von ",Tabelle_Auswertung[[#This Row],[Autor(in)]]),"") ->  | AF89: =IF(Tabelle_Auswertung[[#This Row],[Platz]]=5,CONCATENATE(Tabelle_Auswertung[[#This Row],[Bildname]]," von ",Tabelle_Auswertung[[#This Row],[Autor(in)]]),"") ->  | AG89: =IF(Tabelle_Auswertung[[#This Row],[Platz]]=6,CONCATENATE(Tabelle_Auswertung[[#This Row],[Bildname]]," von ",Tabelle_Auswertung[[#This Row],[Autor(in)]]),"") ->  | AH89: =IF(Tabelle_Auswertung[[#This Row],[Platz]]=7,CONCATENATE(Tabelle_Auswertung[[#This Row],[Bildname]]," von ",Tabelle_Auswertung[[#This Row],[Autor(in)]]),"") ->  | AI89: =IF(Tabelle_Auswertung[[#This Row],[Platz]]=8,CONCATENATE(Tabelle_Auswertung[[#This Row],[Bildname]]," von ",Tabelle_Auswertung[[#This Row],[Autor(in)]]),"") ->  | AJ89: =IF(Tabelle_Auswertung[[#This Row],[Platz]]=9,CONCATENATE(Tabelle_Auswertung[[#This Row],[Bildname]]," von ",Tabelle_Auswertung[[#This Row],[Autor(in)]]),"") ->  | AK89: =IF(Tabelle_Auswertung[[#This Row],[Platz]]=10,CONCATENATE(Tabelle_Auswertung[[#This Row],[Bildname]]," von ",Tabelle_Auswertung[[#This Row],[Autor(in)]]),"") -> 
A90: 86 | W90: =IF(Tabelle_Auswertung[[#This Row],[Bildname]]<>"", IF(Tabelle_Auswertung[[#This Row],[abwesend]]="ja", SUM(Tabelle_Auswertung[[#This Row],[Juror 1]:[Juror 20]])/COUNT(Tabelle_Auswertung[[#This Row],[Juror 1]:[Juror 20]])*(COUNT(Tabelle_Auswertung[[#This Row],[Juror 1]:[Juror 20]])-1), SUM(Tabelle_Auswertung[[#This Row],[Juror 1]:[Juror 20]]) ), " - ") -> - | X90: =IF(Tabelle_Auswertung[[#This Row],[Bildname]]<>"",IF(Tabelle_Auswertung[[#This Row],[Punkte]]>0,AVERAGE(Tabelle_Auswertung[[#This Row],[Juror 1]:[Juror 20]])," - ")," - ") -> - | Y90: =IF(Tabelle_Auswertung[[#This Row],[Bildname]]<>"",IF(Tabelle_Auswertung[[#This Row],[Punkte]]>0,RANK(Tabelle_Auswertung[[#This Row],[Punkte]],[Punkte],0)," - ")," - ") -> - | Z90: - - - | AB90: =IF(Tabelle_Auswertung[[#This Row],[Platz]]=1,CONCATENATE(Tabelle_Auswertung[[#This Row],[Bildname]]," von ",Tabelle_Auswertung[[#This Row],[Autor(in)]]),"") ->  | AC90: =IF(Tabelle_Auswertung[[#This Row],[Platz]]=2,CONCATENATE(Tabelle_Auswertung[[#This Row],[Bildname]]," von ",Tabelle_Auswertung[[#This Row],[Autor(in)]]),"") ->  | AD90: =IF(Tabelle_Auswertung[[#This Row],[Platz]]=3,CONCATENATE(Tabelle_Auswertung[[#This Row],[Bildname]]," von ",Tabelle_Auswertung[[#This Row],[Autor(in)]]),"") ->  | AE90: =IF(Tabelle_Auswertung[[#This Row],[Platz]]=4,CONCATENATE(Tabelle_Auswertung[[#This Row],[Bildname]]," von ",Tabelle_Auswertung[[#This Row],[Autor(in)]]),"") ->  | AF90: =IF(Tabelle_Auswertung[[#This Row],[Platz]]=5,CONCATENATE(Tabelle_Auswertung[[#This Row],[Bildname]]," von ",Tabelle_Auswertung[[#This Row],[Autor(in)]]),"") ->  | AG90: =IF(Tabelle_Auswertung[[#This Row],[Platz]]=6,CONCATENATE(Tabelle_Auswertung[[#This Row],[Bildname]]," von ",Tabelle_Auswertung[[#This Row],[Autor(in)]]),"") ->  | AH90: =IF(Tabelle_Auswertung[[#This Row],[Platz]]=7,CONCATENATE(Tabelle_Auswertung[[#This Row],[Bildname]]," von ",Tabelle_Auswertung[[#This Row],[Autor(in)]]),"") ->  | AI90: =IF(Tabelle_Auswertung[[#This Row],[Platz]]=8,CONCATENATE(Tabelle_Auswertung[[#This Row],[Bildname]]," von ",Tabelle_Auswertung[[#This Row],[Autor(in)]]),"") ->  | AJ90: =IF(Tabelle_Auswertung[[#This Row],[Platz]]=9,CONCATENATE(Tabelle_Auswertung[[#This Row],[Bildname]]," von ",Tabelle_Auswertung[[#This Row],[Autor(in)]]),"") ->  | AK90: =IF(Tabelle_Auswertung[[#This Row],[Platz]]=10,CONCATENATE(Tabelle_Auswertung[[#This Row],[Bildname]]," von ",Tabelle_Auswertung[[#This Row],[Autor(in)]]),"") -> 
A91: 87 | W91: =IF(Tabelle_Auswertung[[#This Row],[Bildname]]<>"", IF(Tabelle_Auswertung[[#This Row],[abwesend]]="ja", SUM(Tabelle_Auswertung[[#This Row],[Juror 1]:[Juror 20]])/COUNT(Tabelle_Auswertung[[#This Row],[Juror 1]:[Juror 20]])*(COUNT(Tabelle_Auswertung[[#This Row],[Juror 1]:[Juror 20]])-1), SUM(Tabelle_Auswertung[[#This Row],[Juror 1]:[Juror 20]]) ), " - ") -> - | X91: =IF(Tabelle_Auswertung[[#This Row],[Bildname]]<>"",IF(Tabelle_Auswertung[[#This Row],[Punkte]]>0,AVERAGE(Tabelle_Auswertung[[#This Row],[Juror 1]:[Juror 20]])," - ")," - ") -> - | Y91: =IF(Tabelle_Auswertung[[#This Row],[Bildname]]<>"",IF(Tabelle_Auswertung[[#This Row],[Punkte]]>0,RANK(Tabelle_Auswertung[[#This Row],[Punkte]],[Punkte],0)," - ")," - ") -> - | Z91: - - - | AB91: =IF(Tabelle_Auswertung[[#This Row],[Platz]]=1,CONCATENATE(Tabelle_Auswertung[[#This Row],[Bildname]]," von ",Tabelle_Auswertung[[#This Row],[Autor(in)]]),"") ->  | AC91: =IF(Tabelle_Auswertung[[#This Row],[Platz]]=2,CONCATENATE(Tabelle_Auswertung[[#This Row],[Bildname]]," von ",Tabelle_Auswertung[[#This Row],[Autor(in)]]),"") ->  | AD91: =IF(Tabelle_Auswertung[[#This Row],[Platz]]=3,CONCATENATE(Tabelle_Auswertung[[#This Row],[Bildname]]," von ",Tabelle_Auswertung[[#This Row],[Autor(in)]]),"") ->  | AE91: =IF(Tabelle_Auswertung[[#This Row],[Platz]]=4,CONCATENATE(Tabelle_Auswertung[[#This Row],[Bildname]]," von ",Tabelle_Auswertung[[#This Row],[Autor(in)]]),"") ->  | AF91: =IF(Tabelle_Auswertung[[#This Row],[Platz]]=5,CONCATENATE(Tabelle_Auswertung[[#This Row],[Bildname]]," von ",Tabelle_Auswertung[[#This Row],[Autor(in)]]),"") ->  | AG91: =IF(Tabelle_Auswertung[[#This Row],[Platz]]=6,CONCATENATE(Tabelle_Auswertung[[#This Row],[Bildname]]," von ",Tabelle_Auswertung[[#This Row],[Autor(in)]]),"") ->  | AH91: =IF(Tabelle_Auswertung[[#This Row],[Platz]]=7,CONCATENATE(Tabelle_Auswertung[[#This Row],[Bildname]]," von ",Tabelle_Auswertung[[#This Row],[Autor(in)]]),"") ->  | AI91: =IF(Tabelle_Auswertung[[#This Row],[Platz]]=8,CONCATENATE(Tabelle_Auswertung[[#This Row],[Bildname]]," von ",Tabelle_Auswertung[[#This Row],[Autor(in)]]),"") ->  | AJ91: =IF(Tabelle_Auswertung[[#This Row],[Platz]]=9,CONCATENATE(Tabelle_Auswertung[[#This Row],[Bildname]]," von ",Tabelle_Auswertung[[#This Row],[Autor(in)]]),"") ->  | AK91: =IF(Tabelle_Auswertung[[#This Row],[Platz]]=10,CONCATENATE(Tabelle_Auswertung[[#This Row],[Bildname]]," von ",Tabelle_Auswertung[[#This Row],[Autor(in)]]),"") -> 
A92: 88 | W92: =IF(Tabelle_Auswertung[[#This Row],[Bildname]]<>"", IF(Tabelle_Auswertung[[#This Row],[abwesend]]="ja", SUM(Tabelle_Auswertung[[#This Row],[Juror 1]:[Juror 20]])/COUNT(Tabelle_Auswertung[[#This Row],[Juror 1]:[Juror 20]])*(COUNT(Tabelle_Auswertung[[#This Row],[Juror 1]:[Juror 20]])-1), SUM(Tabelle_Auswertung[[#This Row],[Juror 1]:[Juror 20]]) ), " - ") -> - | X92: =IF(Tabelle_Auswertung[[#This Row],[Bildname]]<>"",IF(Tabelle_Auswertung[[#This Row],[Punkte]]>0,AVERAGE(Tabelle_Auswertung[[#This Row],[Juror 1]:[Juror 20]])," - ")," - ") -> - | Y92: =IF(Tabelle_Auswertung[[#This Row],[Bildname]]<>"",IF(Tabelle_Auswertung[[#This Row],[Punkte]]>0,RANK(Tabelle_Auswertung[[#This Row],[Punkte]],[Punkte],0)," - ")," - ") -> - | Z92: - - - | AB92: =IF(Tabelle_Auswertung[[#This Row],[Platz]]=1,CONCATENATE(Tabelle_Auswertung[[#This Row],[Bildname]]," von ",Tabelle_Auswertung[[#This Row],[Autor(in)]]),"") ->  | AC92: =IF(Tabelle_Auswertung[[#This Row],[Platz]]=2,CONCATENATE(Tabelle_Auswertung[[#This Row],[Bildname]]," von ",Tabelle_Auswertung[[#This Row],[Autor(in)]]),"") ->  | AD92: =IF(Tabelle_Auswertung[[#This Row],[Platz]]=3,CONCATENATE(Tabelle_Auswertung[[#This Row],[Bildname]]," von ",Tabelle_Auswertung[[#This Row],[Autor(in)]]),"") ->  | AE92: =IF(Tabelle_Auswertung[[#This Row],[Platz]]=4,CONCATENATE(Tabelle_Auswertung[[#This Row],[Bildname]]," von ",Tabelle_Auswertung[[#This Row],[Autor(in)]]),"") ->  | AF92: =IF(Tabelle_Auswertung[[#This Row],[Platz]]=5,CONCATENATE(Tabelle_Auswertung[[#This Row],[Bildname]]," von ",Tabelle_Auswertung[[#This Row],[Autor(in)]]),"") ->  | AG92: =IF(Tabelle_Auswertung[[#This Row],[Platz]]=6,CONCATENATE(Tabelle_Auswertung[[#This Row],[Bildname]]," von ",Tabelle_Auswertung[[#This Row],[Autor(in)]]),"") ->  | AH92: =IF(Tabelle_Auswertung[[#This Row],[Platz]]=7,CONCATENATE(Tabelle_Auswertung[[#This Row],[Bildname]]," von ",Tabelle_Auswertung[[#This Row],[Autor(in)]]),"") ->  | AI92: =IF(Tabelle_Auswertung[[#This Row],[Platz]]=8,CONCATENATE(Tabelle_Auswertung[[#This Row],[Bildname]]," von ",Tabelle_Auswertung[[#This Row],[Autor(in)]]),"") ->  | AJ92: =IF(Tabelle_Auswertung[[#This Row],[Platz]]=9,CONCATENATE(Tabelle_Auswertung[[#This Row],[Bildname]]," von ",Tabelle_Auswertung[[#This Row],[Autor(in)]]),"") ->  | AK92: =IF(Tabelle_Auswertung[[#This Row],[Platz]]=10,CONCATENATE(Tabelle_Auswertung[[#This Row],[Bildname]]," von ",Tabelle_Auswertung[[#This Row],[Autor(in)]]),"") -> 
A93: 89 | W93: =IF(Tabelle_Auswertung[[#This Row],[Bildname]]<>"", IF(Tabelle_Auswertung[[#This Row],[abwesend]]="ja", SUM(Tabelle_Auswertung[[#This Row],[Juror 1]:[Juror 20]])/COUNT(Tabelle_Auswertung[[#This Row],[Juror 1]:[Juror 20]])*(COUNT(Tabelle_Auswertung[[#This Row],[Juror 1]:[Juror 20]])-1), SUM(Tabelle_Auswertung[[#This Row],[Juror 1]:[Juror 20]]) ), " - ") -> - | X93: =IF(Tabelle_Auswertung[[#This Row],[Bildname]]<>"",IF(Tabelle_Auswertung[[#This Row],[Punkte]]>0,AVERAGE(Tabelle_Auswertung[[#This Row],[Juror 1]:[Juror 20]])," - ")," - ") -> - | Y93: =IF(Tabelle_Auswertung[[#This Row],[Bildname]]<>"",IF(Tabelle_Auswertung[[#This Row],[Punkte]]>0,RANK(Tabelle_Auswertung[[#This Row],[Punkte]],[Punkte],0)," - ")," - ") -> - | Z93: - - - | AB93: =IF(Tabelle_Auswertung[[#This Row],[Platz]]=1,CONCATENATE(Tabelle_Auswertung[[#This Row],[Bildname]]," von ",Tabelle_Auswertung[[#This Row],[Autor(in)]]),"") ->  | AC93: =IF(Tabelle_Auswertung[[#This Row],[Platz]]=2,CONCATENATE(Tabelle_Auswertung[[#This Row],[Bildname]]," von ",Tabelle_Auswertung[[#This Row],[Autor(in)]]),"") ->  | AD93: =IF(Tabelle_Auswertung[[#This Row],[Platz]]=3,CONCATENATE(Tabelle_Auswertung[[#This Row],[Bildname]]," von ",Tabelle_Auswertung[[#This Row],[Autor(in)]]),"") ->  | AE93: =IF(Tabelle_Auswertung[[#This Row],[Platz]]=4,CONCATENATE(Tabelle_Auswertung[[#This Row],[Bildname]]," von ",Tabelle_Auswertung[[#This Row],[Autor(in)]]),"") ->  | AF93: =IF(Tabelle_Auswertung[[#This Row],[Platz]]=5,CONCATENATE(Tabelle_Auswertung[[#This Row],[Bildname]]," von ",Tabelle_Auswertung[[#This Row],[Autor(in)]]),"") ->  | AG93: =IF(Tabelle_Auswertung[[#This Row],[Platz]]=6,CONCATENATE(Tabelle_Auswertung[[#This Row],[Bildname]]," von ",Tabelle_Auswertung[[#This Row],[Autor(in)]]),"") ->  | AH93: =IF(Tabelle_Auswertung[[#This Row],[Platz]]=7,CONCATENATE(Tabelle_Auswertung[[#This Row],[Bildname]]," von ",Tabelle_Auswertung[[#This Row],[Autor(in)]]),"") ->  | AI93: =IF(Tabelle_Auswertung[[#This Row],[Platz]]=8,CONCATENATE(Tabelle_Auswertung[[#This Row],[Bildname]]," von ",Tabelle_Auswertung[[#This Row],[Autor(in)]]),"") ->  | AJ93: =IF(Tabelle_Auswertung[[#This Row],[Platz]]=9,CONCATENATE(Tabelle_Auswertung[[#This Row],[Bildname]]," von ",Tabelle_Auswertung[[#This Row],[Autor(in)]]),"") ->  | AK93: =IF(Tabelle_Auswertung[[#This Row],[Platz]]=10,CONCATENATE(Tabelle_Auswertung[[#This Row],[Bildname]]," von ",Tabelle_Auswertung[[#This Row],[Autor(in)]]),"") -> 
A94: 90 | W94: =IF(Tabelle_Auswertung[[#This Row],[Bildname]]<>"", IF(Tabelle_Auswertung[[#This Row],[abwesend]]="ja", SUM(Tabelle_Auswertung[[#This Row],[Juror 1]:[Juror 20]])/COUNT(Tabelle_Auswertung[[#This Row],[Juror 1]:[Juror 20]])*(COUNT(Tabelle_Auswertung[[#This Row],[Juror 1]:[Juror 20]])-1), SUM(Tabelle_Auswertung[[#This Row],[Juror 1]:[Juror 20]]) ), " - ") -> - | X94: =IF(Tabelle_Auswertung[[#This Row],[Bildname]]<>"",IF(Tabelle_Auswertung[[#This Row],[Punkte]]>0,AVERAGE(Tabelle_Auswertung[[#This Row],[Juror 1]:[Juror 20]])," - ")," - ") -> - | Y94: =IF(Tabelle_Auswertung[[#This Row],[Bildname]]<>"",IF(Tabelle_Auswertung[[#This Row],[Punkte]]>0,RANK(Tabelle_Auswertung[[#This Row],[Punkte]],[Punkte],0)," - ")," - ") -> - | Z94: - - - | AB94: =IF(Tabelle_Auswertung[[#This Row],[Platz]]=1,CONCATENATE(Tabelle_Auswertung[[#This Row],[Bildname]]," von ",Tabelle_Auswertung[[#This Row],[Autor(in)]]),"") ->  | AC94: =IF(Tabelle_Auswertung[[#This Row],[Platz]]=2,CONCATENATE(Tabelle_Auswertung[[#This Row],[Bildname]]," von ",Tabelle_Auswertung[[#This Row],[Autor(in)]]),"") ->  | AD94: =IF(Tabelle_Auswertung[[#This Row],[Platz]]=3,CONCATENATE(Tabelle_Auswertung[[#This Row],[Bildname]]," von ",Tabelle_Auswertung[[#This Row],[Autor(in)]]),"") ->  | AE94: =IF(Tabelle_Auswertung[[#This Row],[Platz]]=4,CONCATENATE(Tabelle_Auswertung[[#This Row],[Bildname]]," von ",Tabelle_Auswertung[[#This Row],[Autor(in)]]),"") ->  | AF94: =IF(Tabelle_Auswertung[[#This Row],[Platz]]=5,CONCATENATE(Tabelle_Auswertung[[#This Row],[Bildname]]," von ",Tabelle_Auswertung[[#This Row],[Autor(in)]]),"") ->  | AG94: =IF(Tabelle_Auswertung[[#This Row],[Platz]]=6,CONCATENATE(Tabelle_Auswertung[[#This Row],[Bildname]]," von ",Tabelle_Auswertung[[#This Row],[Autor(in)]]),"") ->  | AH94: =IF(Tabelle_Auswertung[[#This Row],[Platz]]=7,CONCATENATE(Tabelle_Auswertung[[#This Row],[Bildname]]," von ",Tabelle_Auswertung[[#This Row],[Autor(in)]]),"") ->  | AI94: =IF(Tabelle_Auswertung[[#This Row],[Platz]]=8,CONCATENATE(Tabelle_Auswertung[[#This Row],[Bildname]]," von ",Tabelle_Auswertung[[#This Row],[Autor(in)]]),"") ->  | AJ94: =IF(Tabelle_Auswertung[[#This Row],[Platz]]=9,CONCATENATE(Tabelle_Auswertung[[#This Row],[Bildname]]," von ",Tabelle_Auswertung[[#This Row],[Autor(in)]]),"") ->  | AK94: =IF(Tabelle_Auswertung[[#This Row],[Platz]]=10,CONCATENATE(Tabelle_Auswertung[[#This Row],[Bildname]]," von ",Tabelle_Auswertung[[#This Row],[Autor(in)]]),"") -> 
A95: 91 | W95: =IF(Tabelle_Auswertung[[#This Row],[Bildname]]<>"", IF(Tabelle_Auswertung[[#This Row],[abwesend]]="ja", SUM(Tabelle_Auswertung[[#This Row],[Juror 1]:[Juror 20]])/COUNT(Tabelle_Auswertung[[#This Row],[Juror 1]:[Juror 20]])*(COUNT(Tabelle_Auswertung[[#This Row],[Juror 1]:[Juror 20]])-1), SUM(Tabelle_Auswertung[[#This Row],[Juror 1]:[Juror 20]]) ), " - ") -> - | X95: =IF(Tabelle_Auswertung[[#This Row],[Bildname]]<>"",IF(Tabelle_Auswertung[[#This Row],[Punkte]]>0,AVERAGE(Tabelle_Auswertung[[#This Row],[Juror 1]:[Juror 20]])," - ")," - ") -> - | Y95: =IF(Tabelle_Auswertung[[#This Row],[Bildname]]<>"",IF(Tabelle_Auswertung[[#This Row],[Punkte]]>0,RANK(Tabelle_Auswertung[[#This Row],[Punkte]],[Punkte],0)," - ")," - ") -> - | Z95: - - - | AB95: =IF(Tabelle_Auswertung[[#This Row],[Platz]]=1,CONCATENATE(Tabelle_Auswertung[[#This Row],[Bildname]]," von ",Tabelle_Auswertung[[#This Row],[Autor(in)]]),"") ->  | AC95: =IF(Tabelle_Auswertung[[#This Row],[Platz]]=2,CONCATENATE(Tabelle_Auswertung[[#This Row],[Bildname]]," von ",Tabelle_Auswertung[[#This Row],[Autor(in)]]),"") ->  | AD95: =IF(Tabelle_Auswertung[[#This Row],[Platz]]=3,CONCATENATE(Tabelle_Auswertung[[#This Row],[Bildname]]," von ",Tabelle_Auswertung[[#This Row],[Autor(in)]]),"") ->  | AE95: =IF(Tabelle_Auswertung[[#This Row],[Platz]]=4,CONCATENATE(Tabelle_Auswertung[[#This Row],[Bildname]]," von ",Tabelle_Auswertung[[#This Row],[Autor(in)]]),"") ->  | AF95: =IF(Tabelle_Auswertung[[#This Row],[Platz]]=5,CONCATENATE(Tabelle_Auswertung[[#This Row],[Bildname]]," von ",Tabelle_Auswertung[[#This Row],[Autor(in)]]),"") ->  | AG95: =IF(Tabelle_Auswertung[[#This Row],[Platz]]=6,CONCATENATE(Tabelle_Auswertung[[#This Row],[Bildname]]," von ",Tabelle_Auswertung[[#This Row],[Autor(in)]]),"") ->  | AH95: =IF(Tabelle_Auswertung[[#This Row],[Platz]]=7,CONCATENATE(Tabelle_Auswertung[[#This Row],[Bildname]]," von ",Tabelle_Auswertung[[#This Row],[Autor(in)]]),"") ->  | AI95: =IF(Tabelle_Auswertung[[#This Row],[Platz]]=8,CONCATENATE(Tabelle_Auswertung[[#This Row],[Bildname]]," von ",Tabelle_Auswertung[[#This Row],[Autor(in)]]),"") ->  | AJ95: =IF(Tabelle_Auswertung[[#This Row],[Platz]]=9,CONCATENATE(Tabelle_Auswertung[[#This Row],[Bildname]]," von ",Tabelle_Auswertung[[#This Row],[Autor(in)]]),"") ->  | AK95: =IF(Tabelle_Auswertung[[#This Row],[Platz]]=10,CONCATENATE(Tabelle_Auswertung[[#This Row],[Bildname]]," von ",Tabelle_Auswertung[[#This Row],[Autor(in)]]),"") -> 
A96: 92 | W96: =IF(Tabelle_Auswertung[[#This Row],[Bildname]]<>"", IF(Tabelle_Auswertung[[#This Row],[abwesend]]="ja", SUM(Tabelle_Auswertung[[#This Row],[Juror 1]:[Juror 20]])/COUNT(Tabelle_Auswertung[[#This Row],[Juror 1]:[Juror 20]])*(COUNT(Tabelle_Auswertung[[#This Row],[Juror 1]:[Juror 20]])-1), SUM(Tabelle_Auswertung[[#This Row],[Juror 1]:[Juror 20]]) ), " - ") -> - | X96: =IF(Tabelle_Auswertung[[#This Row],[Bildname]]<>"",IF(Tabelle_Auswertung[[#This Row],[Punkte]]>0,AVERAGE(Tabelle_Auswertung[[#This Row],[Juror 1]:[Juror 20]])," - ")," - ") -> - | Y96: =IF(Tabelle_Auswertung[[#This Row],[Bildname]]<>"",IF(Tabelle_Auswertung[[#This Row],[Punkte]]>0,RANK(Tabelle_Auswertung[[#This Row],[Punkte]],[Punkte],0)," - ")," - ") -> - | Z96: - - - | AB96: =IF(Tabelle_Auswertung[[#This Row],[Platz]]=1,CONCATENATE(Tabelle_Auswertung[[#This Row],[Bildname]]," von ",Tabelle_Auswertung[[#This Row],[Autor(in)]]),"") ->  | AC96: =IF(Tabelle_Auswertung[[#This Row],[Platz]]=2,CONCATENATE(Tabelle_Auswertung[[#This Row],[Bildname]]," von ",Tabelle_Auswertung[[#This Row],[Autor(in)]]),"") ->  | AD96: =IF(Tabelle_Auswertung[[#This Row],[Platz]]=3,CONCATENATE(Tabelle_Auswertung[[#This Row],[Bildname]]," von ",Tabelle_Auswertung[[#This Row],[Autor(in)]]),"") ->  | AE96: =IF(Tabelle_Auswertung[[#This Row],[Platz]]=4,CONCATENATE(Tabelle_Auswertung[[#This Row],[Bildname]]," von ",Tabelle_Auswertung[[#This Row],[Autor(in)]]),"") ->  | AF96: =IF(Tabelle_Auswertung[[#This Row],[Platz]]=5,CONCATENATE(Tabelle_Auswertung[[#This Row],[Bildname]]," von ",Tabelle_Auswertung[[#This Row],[Autor(in)]]),"") ->  | AG96: =IF(Tabelle_Auswertung[[#This Row],[Platz]]=6,CONCATENATE(Tabelle_Auswertung[[#This Row],[Bildname]]," von ",Tabelle_Auswertung[[#This Row],[Autor(in)]]),"") ->  | AH96: =IF(Tabelle_Auswertung[[#This Row],[Platz]]=7,CONCATENATE(Tabelle_Auswertung[[#This Row],[Bildname]]," von ",Tabelle_Auswertung[[#This Row],[Autor(in)]]),"") ->  | AI96: =IF(Tabelle_Auswertung[[#This Row],[Platz]]=8,CONCATENATE(Tabelle_Auswertung[[#This Row],[Bildname]]," von ",Tabelle_Auswertung[[#This Row],[Autor(in)]]),"") ->  | AJ96: =IF(Tabelle_Auswertung[[#This Row],[Platz]]=9,CONCATENATE(Tabelle_Auswertung[[#This Row],[Bildname]]," von ",Tabelle_Auswertung[[#This Row],[Autor(in)]]),"") ->  | AK96: =IF(Tabelle_Auswertung[[#This Row],[Platz]]=10,CONCATENATE(Tabelle_Auswertung[[#This Row],[Bildname]]," von ",Tabelle_Auswertung[[#This Row],[Autor(in)]]),"") -> 
A97: 93 | W97: =IF(Tabelle_Auswertung[[#This Row],[Bildname]]<>"", IF(Tabelle_Auswertung[[#This Row],[abwesend]]="ja", SUM(Tabelle_Auswertung[[#This Row],[Juror 1]:[Juror 20]])/COUNT(Tabelle_Auswertung[[#This Row],[Juror 1]:[Juror 20]])*(COUNT(Tabelle_Auswertung[[#This Row],[Juror 1]:[Juror 20]])-1), SUM(Tabelle_Auswertung[[#This Row],[Juror 1]:[Juror 20]]) ), " - ") -> - | X97: =IF(Tabelle_Auswertung[[#This Row],[Bildname]]<>"",IF(Tabelle_Auswertung[[#This Row],[Punkte]]>0,AVERAGE(Tabelle_Auswertung[[#This Row],[Juror 1]:[Juror 20]])," - ")," - ") -> - | Y97: =IF(Tabelle_Auswertung[[#This Row],[Bildname]]<>"",IF(Tabelle_Auswertung[[#This Row],[Punkte]]>0,RANK(Tabelle_Auswertung[[#This Row],[Punkte]],[Punkte],0)," - ")," - ") -> - | Z97: - - - | AB97: =IF(Tabelle_Auswertung[[#This Row],[Platz]]=1,CONCATENATE(Tabelle_Auswertung[[#This Row],[Bildname]]," von ",Tabelle_Auswertung[[#This Row],[Autor(in)]]),"") ->  | AC97: =IF(Tabelle_Auswertung[[#This Row],[Platz]]=2,CONCATENATE(Tabelle_Auswertung[[#This Row],[Bildname]]," von ",Tabelle_Auswertung[[#This Row],[Autor(in)]]),"") ->  | AD97: =IF(Tabelle_Auswertung[[#This Row],[Platz]]=3,CONCATENATE(Tabelle_Auswertung[[#This Row],[Bildname]]," von ",Tabelle_Auswertung[[#This Row],[Autor(in)]]),"") ->  | AE97: =IF(Tabelle_Auswertung[[#This Row],[Platz]]=4,CONCATENATE(Tabelle_Auswertung[[#This Row],[Bildname]]," von ",Tabelle_Auswertung[[#This Row],[Autor(in)]]),"") ->  | AF97: =IF(Tabelle_Auswertung[[#This Row],[Platz]]=5,CONCATENATE(Tabelle_Auswertung[[#This Row],[Bildname]]," von ",Tabelle_Auswertung[[#This Row],[Autor(in)]]),"") ->  | AG97: =IF(Tabelle_Auswertung[[#This Row],[Platz]]=6,CONCATENATE(Tabelle_Auswertung[[#This Row],[Bildname]]," von ",Tabelle_Auswertung[[#This Row],[Autor(in)]]),"") ->  | AH97: =IF(Tabelle_Auswertung[[#This Row],[Platz]]=7,CONCATENATE(Tabelle_Auswertung[[#This Row],[Bildname]]," von ",Tabelle_Auswertung[[#This Row],[Autor(in)]]),"") ->  | AI97: =IF(Tabelle_Auswertung[[#This Row],[Platz]]=8,CONCATENATE(Tabelle_Auswertung[[#This Row],[Bildname]]," von ",Tabelle_Auswertung[[#This Row],[Autor(in)]]),"") ->  | AJ97: =IF(Tabelle_Auswertung[[#This Row],[Platz]]=9,CONCATENATE(Tabelle_Auswertung[[#This Row],[Bildname]]," von ",Tabelle_Auswertung[[#This Row],[Autor(in)]]),"") ->  | AK97: =IF(Tabelle_Auswertung[[#This Row],[Platz]]=10,CONCATENATE(Tabelle_Auswertung[[#This Row],[Bildname]]," von ",Tabelle_Auswertung[[#This Row],[Autor(in)]]),"") -> 
A98: 94 | W98: =IF(Tabelle_Auswertung[[#This Row],[Bildname]]<>"", IF(Tabelle_Auswertung[[#This Row],[abwesend]]="ja", SUM(Tabelle_Auswertung[[#This Row],[Juror 1]:[Juror 20]])/COUNT(Tabelle_Auswertung[[#This Row],[Juror 1]:[Juror 20]])*(COUNT(Tabelle_Auswertung[[#This Row],[Juror 1]:[Juror 20]])-1), SUM(Tabelle_Auswertung[[#This Row],[Juror 1]:[Juror 20]]) ), " - ") -> - | X98: =IF(Tabelle_Auswertung[[#This Row],[Bildname]]<>"",IF(Tabelle_Auswertung[[#This Row],[Punkte]]>0,AVERAGE(Tabelle_Auswertung[[#This Row],[Juror 1]:[Juror 20]])," - ")," - ") -> - | Y98: =IF(Tabelle_Auswertung[[#This Row],[Bildname]]<>"",IF(Tabelle_Auswertung[[#This Row],[Punkte]]>0,RANK(Tabelle_Auswertung[[#This Row],[Punkte]],[Punkte],0)," - ")," - ") -> - | Z98: - - - | AB98: =IF(Tabelle_Auswertung[[#This Row],[Platz]]=1,CONCATENATE(Tabelle_Auswertung[[#This Row],[Bildname]]," von ",Tabelle_Auswertung[[#This Row],[Autor(in)]]),"") ->  | AC98: =IF(Tabelle_Auswertung[[#This Row],[Platz]]=2,CONCATENATE(Tabelle_Auswertung[[#This Row],[Bildname]]," von ",Tabelle_Auswertung[[#This Row],[Autor(in)]]),"") ->  | AD98: =IF(Tabelle_Auswertung[[#This Row],[Platz]]=3,CONCATENATE(Tabelle_Auswertung[[#This Row],[Bildname]]," von ",Tabelle_Auswertung[[#This Row],[Autor(in)]]),"") ->  | AE98: =IF(Tabelle_Auswertung[[#This Row],[Platz]]=4,CONCATENATE(Tabelle_Auswertung[[#This Row],[Bildname]]," von ",Tabelle_Auswertung[[#This Row],[Autor(in)]]),"") ->  | AF98: =IF(Tabelle_Auswertung[[#This Row],[Platz]]=5,CONCATENATE(Tabelle_Auswertung[[#This Row],[Bildname]]," von ",Tabelle_Auswertung[[#This Row],[Autor(in)]]),"") ->  | AG98: =IF(Tabelle_Auswertung[[#This Row],[Platz]]=6,CONCATENATE(Tabelle_Auswertung[[#This Row],[Bildname]]," von ",Tabelle_Auswertung[[#This Row],[Autor(in)]]),"") ->  | AH98: =IF(Tabelle_Auswertung[[#This Row],[Platz]]=7,CONCATENATE(Tabelle_Auswertung[[#This Row],[Bildname]]," von ",Tabelle_Auswertung[[#This Row],[Autor(in)]]),"") ->  | AI98: =IF(Tabelle_Auswertung[[#This Row],[Platz]]=8,CONCATENATE(Tabelle_Auswertung[[#This Row],[Bildname]]," von ",Tabelle_Auswertung[[#This Row],[Autor(in)]]),"") ->  | AJ98: =IF(Tabelle_Auswertung[[#This Row],[Platz]]=9,CONCATENATE(Tabelle_Auswertung[[#This Row],[Bildname]]," von ",Tabelle_Auswertung[[#This Row],[Autor(in)]]),"") ->  | AK98: =IF(Tabelle_Auswertung[[#This Row],[Platz]]=10,CONCATENATE(Tabelle_Auswertung[[#This Row],[Bildname]]," von ",Tabelle_Auswertung[[#This Row],[Autor(in)]]),"") -> 
A99: 95 | W99: =IF(Tabelle_Auswertung[[#This Row],[Bildname]]<>"", IF(Tabelle_Auswertung[[#This Row],[abwesend]]="ja", SUM(Tabelle_Auswertung[[#This Row],[Juror 1]:[Juror 20]])/COUNT(Tabelle_Auswertung[[#This Row],[Juror 1]:[Juror 20]])*(COUNT(Tabelle_Auswertung[[#This Row],[Juror 1]:[Juror 20]])-1), SUM(Tabelle_Auswertung[[#This Row],[Juror 1]:[Juror 20]]) ), " - ") -> - | X99: =IF(Tabelle_Auswertung[[#This Row],[Bildname]]<>"",IF(Tabelle_Auswertung[[#This Row],[Punkte]]>0,AVERAGE(Tabelle_Auswertung[[#This Row],[Juror 1]:[Juror 20]])," - ")," - ") -> - | Y99: =IF(Tabelle_Auswertung[[#This Row],[Bildname]]<>"",IF(Tabelle_Auswertung[[#This Row],[Punkte]]>0,RANK(Tabelle_Auswertung[[#This Row],[Punkte]],[Punkte],0)," - ")," - ") -> - | Z99: - - - | AB99: =IF(Tabelle_Auswertung[[#This Row],[Platz]]=1,CONCATENATE(Tabelle_Auswertung[[#This Row],[Bildname]]," von ",Tabelle_Auswertung[[#This Row],[Autor(in)]]),"") ->  | AC99: =IF(Tabelle_Auswertung[[#This Row],[Platz]]=2,CONCATENATE(Tabelle_Auswertung[[#This Row],[Bildname]]," von ",Tabelle_Auswertung[[#This Row],[Autor(in)]]),"") ->  | AD99: =IF(Tabelle_Auswertung[[#This Row],[Platz]]=3,CONCATENATE(Tabelle_Auswertung[[#This Row],[Bildname]]," von ",Tabelle_Auswertung[[#This Row],[Autor(in)]]),"") ->  | AE99: =IF(Tabelle_Auswertung[[#This Row],[Platz]]=4,CONCATENATE(Tabelle_Auswertung[[#This Row],[Bildname]]," von ",Tabelle_Auswertung[[#This Row],[Autor(in)]]),"") ->  | AF99: =IF(Tabelle_Auswertung[[#This Row],[Platz]]=5,CONCATENATE(Tabelle_Auswertung[[#This Row],[Bildname]]," von ",Tabelle_Auswertung[[#This Row],[Autor(in)]]),"") ->  | AG99: =IF(Tabelle_Auswertung[[#This Row],[Platz]]=6,CONCATENATE(Tabelle_Auswertung[[#This Row],[Bildname]]," von ",Tabelle_Auswertung[[#This Row],[Autor(in)]]),"") ->  | AH99: =IF(Tabelle_Auswertung[[#This Row],[Platz]]=7,CONCATENATE(Tabelle_Auswertung[[#This Row],[Bildname]]," von ",Tabelle_Auswertung[[#This Row],[Autor(in)]]),"") ->  | AI99: =IF(Tabelle_Auswertung[[#This Row],[Platz]]=8,CONCATENATE(Tabelle_Auswertung[[#This Row],[Bildname]]," von ",Tabelle_Auswertung[[#This Row],[Autor(in)]]),"") ->  | AJ99: =IF(Tabelle_Auswertung[[#This Row],[Platz]]=9,CONCATENATE(Tabelle_Auswertung[[#This Row],[Bildname]]," von ",Tabelle_Auswertung[[#This Row],[Autor(in)]]),"") ->  | AK99: =IF(Tabelle_Auswertung[[#This Row],[Platz]]=10,CONCATENATE(Tabelle_Auswertung[[#This Row],[Bildname]]," von ",Tabelle_Auswertung[[#This Row],[Autor(in)]]),"") -> 
A100: 96 | W100: =IF(Tabelle_Auswertung[[#This Row],[Bildname]]<>"", IF(Tabelle_Auswertung[[#This Row],[abwesend]]="ja", SUM(Tabelle_Auswertung[[#This Row],[Juror 1]:[Juror 20]])/COUNT(Tabelle_Auswertung[[#This Row],[Juror 1]:[Juror 20]])*(COUNT(Tabelle_Auswertung[[#This Row],[Juror 1]:[Juror 20]])-1), SUM(Tabelle_Auswertung[[#This Row],[Juror 1]:[Juror 20]]) ), " - ") -> - | X100: =IF(Tabelle_Auswertung[[#This Row],[Bildname]]<>"",IF(Tabelle_Auswertung[[#This Row],[Punkte]]>0,AVERAGE(Tabelle_Auswertung[[#This Row],[Juror 1]:[Juror 20]])," - ")," - ") -> - | Y100: =IF(Tabelle_Auswertung[[#This Row],[Bildname]]<>"",IF(Tabelle_Auswertung[[#This Row],[Punkte]]>0,RANK(Tabelle_Auswertung[[#This Row],[Punkte]],[Punkte],0)," - ")," - ") -> - | Z100: - - - | AB100: =IF(Tabelle_Auswertung[[#This Row],[Platz]]=1,CONCATENATE(Tabelle_Auswertung[[#This Row],[Bildname]]," von ",Tabelle_Auswertung[[#This Row],[Autor(in)]]),"") ->  | AC100: =IF(Tabelle_Auswertung[[#This Row],[Platz]]=2,CONCATENATE(Tabelle_Auswertung[[#This Row],[Bildname]]," von ",Tabelle_Auswertung[[#This Row],[Autor(in)]]),"") ->  | AD100: =IF(Tabelle_Auswertung[[#This Row],[Platz]]=3,CONCATENATE(Tabelle_Auswertung[[#This Row],[Bildname]]," von ",Tabelle_Auswertung[[#This Row],[Autor(in)]]),"") ->  | AE100: =IF(Tabelle_Auswertung[[#This Row],[Platz]]=4,CONCATENATE(Tabelle_Auswertung[[#This Row],[Bildname]]," von ",Tabelle_Auswertung[[#This Row],[Autor(in)]]),"") ->  | AF100: =IF(Tabelle_Auswertung[[#This Row],[Platz]]=5,CONCATENATE(Tabelle_Auswertung[[#This Row],[Bildname]]," von ",Tabelle_Auswertung[[#This Row],[Autor(in)]]),"") ->  | AG100: =IF(Tabelle_Auswertung[[#This Row],[Platz]]=6,CONCATENATE(Tabelle_Auswertung[[#This Row],[Bildname]]," von ",Tabelle_Auswertung[[#This Row],[Autor(in)]]),"") ->  | AH100: =IF(Tabelle_Auswertung[[#This Row],[Platz]]=7,CONCATENATE(Tabelle_Auswertung[[#This Row],[Bildname]]," von ",Tabelle_Auswertung[[#This Row],[Autor(in)]]),"") ->  | AI100: =IF(Tabelle_Auswertung[[#This Row],[Platz]]=8,CONCATENATE(Tabelle_Auswertung[[#This Row],[Bildname]]," von ",Tabelle_Auswertung[[#This Row],[Autor(in)]]),"") ->  | AJ100: =IF(Tabelle_Auswertung[[#This Row],[Platz]]=9,CONCATENATE(Tabelle_Auswertung[[#This Row],[Bildname]]," von ",Tabelle_Auswertung[[#This Row],[Autor(in)]]),"") ->  | AK100: =IF(Tabelle_Auswertung[[#This Row],[Platz]]=10,CONCATENATE(Tabelle_Auswertung[[#This Row],[Bildname]]," von ",Tabelle_Auswertung[[#This Row],[Autor(in)]]),"") -> 
A101: 97 | W101: =IF(Tabelle_Auswertung[[#This Row],[Bildname]]<>"", IF(Tabelle_Auswertung[[#This Row],[abwesend]]="ja", SUM(Tabelle_Auswertung[[#This Row],[Juror 1]:[Juror 20]])/COUNT(Tabelle_Auswertung[[#This Row],[Juror 1]:[Juror 20]])*(COUNT(Tabelle_Auswertung[[#This Row],[Juror 1]:[Juror 20]])-1), SUM(Tabelle_Auswertung[[#This Row],[Juror 1]:[Juror 20]]) ), " - ") -> - | X101: =IF(Tabelle_Auswertung[[#This Row],[Bildname]]<>"",IF(Tabelle_Auswertung[[#This Row],[Punkte]]>0,AVERAGE(Tabelle_Auswertung[[#This Row],[Juror 1]:[Juror 20]])," - ")," - ") -> - | Y101: =IF(Tabelle_Auswertung[[#This Row],[Bildname]]<>"",IF(Tabelle_Auswertung[[#This Row],[Punkte]]>0,RANK(Tabelle_Auswertung[[#This Row],[Punkte]],[Punkte],0)," - ")," - ") -> - | Z101: - - - | AB101: =IF(Tabelle_Auswertung[[#This Row],[Platz]]=1,CONCATENATE(Tabelle_Auswertung[[#This Row],[Bildname]]," von ",Tabelle_Auswertung[[#This Row],[Autor(in)]]),"") ->  | AC101: =IF(Tabelle_Auswertung[[#This Row],[Platz]]=2,CONCATENATE(Tabelle_Auswertung[[#This Row],[Bildname]]," von ",Tabelle_Auswertung[[#This Row],[Autor(in)]]),"") ->  | AD101: =IF(Tabelle_Auswertung[[#This Row],[Platz]]=3,CONCATENATE(Tabelle_Auswertung[[#This Row],[Bildname]]," von ",Tabelle_Auswertung[[#This Row],[Autor(in)]]),"") ->  | AE101: =IF(Tabelle_Auswertung[[#This Row],[Platz]]=4,CONCATENATE(Tabelle_Auswertung[[#This Row],[Bildname]]," von ",Tabelle_Auswertung[[#This Row],[Autor(in)]]),"") ->  | AF101: =IF(Tabelle_Auswertung[[#This Row],[Platz]]=5,CONCATENATE(Tabelle_Auswertung[[#This Row],[Bildname]]," von ",Tabelle_Auswertung[[#This Row],[Autor(in)]]),"") ->  | AG101: =IF(Tabelle_Auswertung[[#This Row],[Platz]]=6,CONCATENATE(Tabelle_Auswertung[[#This Row],[Bildname]]," von ",Tabelle_Auswertung[[#This Row],[Autor(in)]]),"") ->  | AH101: =IF(Tabelle_Auswertung[[#This Row],[Platz]]=7,CONCATENATE(Tabelle_Auswertung[[#This Row],[Bildname]]," von ",Tabelle_Auswertung[[#This Row],[Autor(in)]]),"") ->  | AI101: =IF(Tabelle_Auswertung[[#This Row],[Platz]]=8,CONCATENATE(Tabelle_Auswertung[[#This Row],[Bildname]]," von ",Tabelle_Auswertung[[#This Row],[Autor(in)]]),"") ->  | AJ101: =IF(Tabelle_Auswertung[[#This Row],[Platz]]=9,CONCATENATE(Tabelle_Auswertung[[#This Row],[Bildname]]," von ",Tabelle_Auswertung[[#This Row],[Autor(in)]]),"") ->  | AK101: =IF(Tabelle_Auswertung[[#This Row],[Platz]]=10,CONCATENATE(Tabelle_Auswertung[[#This Row],[Bildname]]," von ",Tabelle_Auswertung[[#This Row],[Autor(in)]]),"") -> 
A102: 98 | W102: =IF(Tabelle_Auswertung[[#This Row],[Bildname]]<>"", IF(Tabelle_Auswertung[[#This Row],[abwesend]]="ja", SUM(Tabelle_Auswertung[[#This Row],[Juror 1]:[Juror 20]])/COUNT(Tabelle_Auswertung[[#This Row],[Juror 1]:[Juror 20]])*(COUNT(Tabelle_Auswertung[[#This Row],[Juror 1]:[Juror 20]])-1), SUM(Tabelle_Auswertung[[#This Row],[Juror 1]:[Juror 20]]) ), " - ") -> - | X102: =IF(Tabelle_Auswertung[[#This Row],[Bildname]]<>"",IF(Tabelle_Auswertung[[#This Row],[Punkte]]>0,AVERAGE(Tabelle_Auswertung[[#This Row],[Juror 1]:[Juror 20]])," - ")," - ") -> - | Y102: =IF(Tabelle_Auswertung[[#This Row],[Bildname]]<>"",IF(Tabelle_Auswertung[[#This Row],[Punkte]]>0,RANK(Tabelle_Auswertung[[#This Row],[Punkte]],[Punkte],0)," - ")," - ") -> - | Z102: - - - | AB102: =IF(Tabelle_Auswertung[[#This Row],[Platz]]=1,CONCATENATE(Tabelle_Auswertung[[#This Row],[Bildname]]," von ",Tabelle_Auswertung[[#This Row],[Autor(in)]]),"") ->  | AC102: =IF(Tabelle_Auswertung[[#This Row],[Platz]]=2,CONCATENATE(Tabelle_Auswertung[[#This Row],[Bildname]]," von ",Tabelle_Auswertung[[#This Row],[Autor(in)]]),"") ->  | AD102: =IF(Tabelle_Auswertung[[#This Row],[Platz]]=3,CONCATENATE(Tabelle_Auswertung[[#This Row],[Bildname]]," von ",Tabelle_Auswertung[[#This Row],[Autor(in)]]),"") ->  | AE102: =IF(Tabelle_Auswertung[[#This Row],[Platz]]=4,CONCATENATE(Tabelle_Auswertung[[#This Row],[Bildname]]," von ",Tabelle_Auswertung[[#This Row],[Autor(in)]]),"") ->  | AF102: =IF(Tabelle_Auswertung[[#This Row],[Platz]]=5,CONCATENATE(Tabelle_Auswertung[[#This Row],[Bildname]]," von ",Tabelle_Auswertung[[#This Row],[Autor(in)]]),"") ->  | AG102: =IF(Tabelle_Auswertung[[#This Row],[Platz]]=6,CONCATENATE(Tabelle_Auswertung[[#This Row],[Bildname]]," von ",Tabelle_Auswertung[[#This Row],[Autor(in)]]),"") ->  | AH102: =IF(Tabelle_Auswertung[[#This Row],[Platz]]=7,CONCATENATE(Tabelle_Auswertung[[#This Row],[Bildname]]," von ",Tabelle_Auswertung[[#This Row],[Autor(in)]]),"") ->  | AI102: =IF(Tabelle_Auswertung[[#This Row],[Platz]]=8,CONCATENATE(Tabelle_Auswertung[[#This Row],[Bildname]]," von ",Tabelle_Auswertung[[#This Row],[Autor(in)]]),"") ->  | AJ102: =IF(Tabelle_Auswertung[[#This Row],[Platz]]=9,CONCATENATE(Tabelle_Auswertung[[#This Row],[Bildname]]," von ",Tabelle_Auswertung[[#This Row],[Autor(in)]]),"") ->  | AK102: =IF(Tabelle_Auswertung[[#This Row],[Platz]]=10,CONCATENATE(Tabelle_Auswertung[[#This Row],[Bildname]]," von ",Tabelle_Auswertung[[#This Row],[Autor(in)]]),"") -> 
A103: 99 | W103: =IF(Tabelle_Auswertung[[#This Row],[Bildname]]<>"", IF(Tabelle_Auswertung[[#This Row],[abwesend]]="ja", SUM(Tabelle_Auswertung[[#This Row],[Juror 1]:[Juror 20]])/COUNT(Tabelle_Auswertung[[#This Row],[Juror 1]:[Juror 20]])*(COUNT(Tabelle_Auswertung[[#This Row],[Juror 1]:[Juror 20]])-1), SUM(Tabelle_Auswertung[[#This Row],[Juror 1]:[Juror 20]]) ), " - ") -> - | X103: =IF(Tabelle_Auswertung[[#This Row],[Bildname]]<>"",IF(Tabelle_Auswertung[[#This Row],[Punkte]]>0,AVERAGE(Tabelle_Auswertung[[#This Row],[Juror 1]:[Juror 20]])," - ")," - ") -> - | Y103: =IF(Tabelle_Auswertung[[#This Row],[Bildname]]<>"",IF(Tabelle_Auswertung[[#This Row],[Punkte]]>0,RANK(Tabelle_Auswertung[[#This Row],[Punkte]],[Punkte],0)," - ")," - ") -> - | Z103: - - - | AB103: =IF(Tabelle_Auswertung[[#This Row],[Platz]]=1,CONCATENATE(Tabelle_Auswertung[[#This Row],[Bildname]]," von ",Tabelle_Auswertung[[#This Row],[Autor(in)]]),"") ->  | AC103: =IF(Tabelle_Auswertung[[#This Row],[Platz]]=2,CONCATENATE(Tabelle_Auswertung[[#This Row],[Bildname]]," von ",Tabelle_Auswertung[[#This Row],[Autor(in)]]),"") ->  | AD103: =IF(Tabelle_Auswertung[[#This Row],[Platz]]=3,CONCATENATE(Tabelle_Auswertung[[#This Row],[Bildname]]," von ",Tabelle_Auswertung[[#This Row],[Autor(in)]]),"") ->  | AE103: =IF(Tabelle_Auswertung[[#This Row],[Platz]]=4,CONCATENATE(Tabelle_Auswertung[[#This Row],[Bildname]]," von ",Tabelle_Auswertung[[#This Row],[Autor(in)]]),"") ->  | AF103: =IF(Tabelle_Auswertung[[#This Row],[Platz]]=5,CONCATENATE(Tabelle_Auswertung[[#This Row],[Bildname]]," von ",Tabelle_Auswertung[[#This Row],[Autor(in)]]),"") ->  | AG103: =IF(Tabelle_Auswertung[[#This Row],[Platz]]=6,CONCATENATE(Tabelle_Auswertung[[#This Row],[Bildname]]," von ",Tabelle_Auswertung[[#This Row],[Autor(in)]]),"") ->  | AH103: =IF(Tabelle_Auswertung[[#This Row],[Platz]]=7,CONCATENATE(Tabelle_Auswertung[[#This Row],[Bildname]]," von ",Tabelle_Auswertung[[#This Row],[Autor(in)]]),"") ->  | AI103: =IF(Tabelle_Auswertung[[#This Row],[Platz]]=8,CONCATENATE(Tabelle_Auswertung[[#This Row],[Bildname]]," von ",Tabelle_Auswertung[[#This Row],[Autor(in)]]),"") ->  | AJ103: =IF(Tabelle_Auswertung[[#This Row],[Platz]]=9,CONCATENATE(Tabelle_Auswertung[[#This Row],[Bildname]]," von ",Tabelle_Auswertung[[#This Row],[Autor(in)]]),"") ->  | AK103: =IF(Tabelle_Auswertung[[#This Row],[Platz]]=10,CONCATENATE(Tabelle_Auswertung[[#This Row],[Bildname]]," von ",Tabelle_Auswertung[[#This Row],[Autor(in)]]),"") -> 
A104: 100 | W104: =IF(Tabelle_Auswertung[[#This Row],[Bildname]]<>"", IF(Tabelle_Auswertung[[#This Row],[abwesend]]="ja", SUM(Tabelle_Auswertung[[#This Row],[Juror 1]:[Juror 20]])/COUNT(Tabelle_Auswertung[[#This Row],[Juror 1]:[Juror 20]])*(COUNT(Tabelle_Auswertung[[#This Row],[Juror 1]:[Juror 20]])-1), SUM(Tabelle_Auswertung[[#This Row],[Juror 1]:[Juror 20]]) ), " - ") -> - | X104: =IF(Tabelle_Auswertung[[#This Row],[Bildname]]<>"",IF(Tabelle_Auswertung[[#This Row],[Punkte]]>0,AVERAGE(Tabelle_Auswertung[[#This Row],[Juror 1]:[Juror 20]])," - ")," - ") -> - | Y104: =IF(Tabelle_Auswertung[[#This Row],[Bildname]]<>"",IF(Tabelle_Auswertung[[#This Row],[Punkte]]>0,RANK(Tabelle_Auswertung[[#This Row],[Punkte]],[Punkte],0)," - ")," - ") -> - | Z104: - - - | AB104: =IF(Tabelle_Auswertung[[#This Row],[Platz]]=1,CONCATENATE(Tabelle_Auswertung[[#This Row],[Bildname]]," von ",Tabelle_Auswertung[[#This Row],[Autor(in)]]),"") ->  | AC104: =IF(Tabelle_Auswertung[[#This Row],[Platz]]=2,CONCATENATE(Tabelle_Auswertung[[#This Row],[Bildname]]," von ",Tabelle_Auswertung[[#This Row],[Autor(in)]]),"") ->  | AD104: =IF(Tabelle_Auswertung[[#This Row],[Platz]]=3,CONCATENATE(Tabelle_Auswertung[[#This Row],[Bildname]]," von ",Tabelle_Auswertung[[#This Row],[Autor(in)]]),"") ->  | AE104: =IF(Tabelle_Auswertung[[#This Row],[Platz]]=4,CONCATENATE(Tabelle_Auswertung[[#This Row],[Bildname]]," von ",Tabelle_Auswertung[[#This Row],[Autor(in)]]),"") ->  | AF104: =IF(Tabelle_Auswertung[[#This Row],[Platz]]=5,CONCATENATE(Tabelle_Auswertung[[#This Row],[Bildname]]," von ",Tabelle_Auswertung[[#This Row],[Autor(in)]]),"") ->  | AG104: =IF(Tabelle_Auswertung[[#This Row],[Platz]]=6,CONCATENATE(Tabelle_Auswertung[[#This Row],[Bildname]]," von ",Tabelle_Auswertung[[#This Row],[Autor(in)]]),"") ->  | AH104: =IF(Tabelle_Auswertung[[#This Row],[Platz]]=7,CONCATENATE(Tabelle_Auswertung[[#This Row],[Bildname]]," von ",Tabelle_Auswertung[[#This Row],[Autor(in)]]),"") ->  | AI104: =IF(Tabelle_Auswertung[[#This Row],[Platz]]=8,CONCATENATE(Tabelle_Auswertung[[#This Row],[Bildname]]," von ",Tabelle_Auswertung[[#This Row],[Autor(in)]]),"") ->  | AJ104: =IF(Tabelle_Auswertung[[#This Row],[Platz]]=9,CONCATENATE(Tabelle_Auswertung[[#This Row],[Bildname]]," von ",Tabelle_Auswertung[[#This Row],[Autor(in)]]),"") ->  | AK104: =IF(Tabelle_Auswertung[[#This Row],[Platz]]=10,CONCATENATE(Tabelle_Auswertung[[#This Row],[Bildname]]," von ",Tabelle_Auswertung[[#This Row],[Autor(in)]]),"") -> 
A105: 101 | W105: =IF(Tabelle_Auswertung[[#This Row],[Bildname]]<>"", IF(Tabelle_Auswertung[[#This Row],[abwesend]]="ja", SUM(Tabelle_Auswertung[[#This Row],[Juror 1]:[Juror 20]])/COUNT(Tabelle_Auswertung[[#This Row],[Juror 1]:[Juror 20]])*(COUNT(Tabelle_Auswertung[[#This Row],[Juror 1]:[Juror 20]])-1), SUM(Tabelle_Auswertung[[#This Row],[Juror 1]:[Juror 20]]) ), " - ") -> - | X105: =IF(Tabelle_Auswertung[[#This Row],[Bildname]]<>"",IF(Tabelle_Auswertung[[#This Row],[Punkte]]>0,AVERAGE(Tabelle_Auswertung[[#This Row],[Juror 1]:[Juror 20]])," - ")," - ") -> - | Y105: =IF(Tabelle_Auswertung[[#This Row],[Bildname]]<>"",IF(Tabelle_Auswertung[[#This Row],[Punkte]]>0,RANK(Tabelle_Auswertung[[#This Row],[Punkte]],[Punkte],0)," - ")," - ") -> - | Z105: - - - | AB105: =IF(Tabelle_Auswertung[[#This Row],[Platz]]=1,CONCATENATE(Tabelle_Auswertung[[#This Row],[Bildname]]," von ",Tabelle_Auswertung[[#This Row],[Autor(in)]]),"") ->  | AC105: =IF(Tabelle_Auswertung[[#This Row],[Platz]]=2,CONCATENATE(Tabelle_Auswertung[[#This Row],[Bildname]]," von ",Tabelle_Auswertung[[#This Row],[Autor(in)]]),"") ->  | AD105: =IF(Tabelle_Auswertung[[#This Row],[Platz]]=3,CONCATENATE(Tabelle_Auswertung[[#This Row],[Bildname]]," von ",Tabelle_Auswertung[[#This Row],[Autor(in)]]),"") ->  | AE105: =IF(Tabelle_Auswertung[[#This Row],[Platz]]=4,CONCATENATE(Tabelle_Auswertung[[#This Row],[Bildname]]," von ",Tabelle_Auswertung[[#This Row],[Autor(in)]]),"") ->  | AF105: =IF(Tabelle_Auswertung[[#This Row],[Platz]]=5,CONCATENATE(Tabelle_Auswertung[[#This Row],[Bildname]]," von ",Tabelle_Auswertung[[#This Row],[Autor(in)]]),"") ->  | AG105: =IF(Tabelle_Auswertung[[#This Row],[Platz]]=6,CONCATENATE(Tabelle_Auswertung[[#This Row],[Bildname]]," von ",Tabelle_Auswertung[[#This Row],[Autor(in)]]),"") ->  | AH105: =IF(Tabelle_Auswertung[[#This Row],[Platz]]=7,CONCATENATE(Tabelle_Auswertung[[#This Row],[Bildname]]," von ",Tabelle_Auswertung[[#This Row],[Autor(in)]]),"") ->  | AI105: =IF(Tabelle_Auswertung[[#This Row],[Platz]]=8,CONCATENATE(Tabelle_Auswertung[[#This Row],[Bildname]]," von ",Tabelle_Auswertung[[#This Row],[Autor(in)]]),"") ->  | AJ105: =IF(Tabelle_Auswertung[[#This Row],[Platz]]=9,CONCATENATE(Tabelle_Auswertung[[#This Row],[Bildname]]," von ",Tabelle_Auswertung[[#This Row],[Autor(in)]]),"") ->  | AK105: =IF(Tabelle_Auswertung[[#This Row],[Platz]]=10,CONCATENATE(Tabelle_Auswertung[[#This Row],[Bildname]]," von ",Tabelle_Auswertung[[#This Row],[Autor(in)]]),"") -> 
A106: 102 | W106: =IF(Tabelle_Auswertung[[#This Row],[Bildname]]<>"", IF(Tabelle_Auswertung[[#This Row],[abwesend]]="ja", SUM(Tabelle_Auswertung[[#This Row],[Juror 1]:[Juror 20]])/COUNT(Tabelle_Auswertung[[#This Row],[Juror 1]:[Juror 20]])*(COUNT(Tabelle_Auswertung[[#This Row],[Juror 1]:[Juror 20]])-1), SUM(Tabelle_Auswertung[[#This Row],[Juror 1]:[Juror 20]]) ), " - ") -> - | X106: =IF(Tabelle_Auswertung[[#This Row],[Bildname]]<>"",IF(Tabelle_Auswertung[[#This Row],[Punkte]]>0,AVERAGE(Tabelle_Auswertung[[#This Row],[Juror 1]:[Juror 20]])," - ")," - ") -> - | Y106: =IF(Tabelle_Auswertung[[#This Row],[Bildname]]<>"",IF(Tabelle_Auswertung[[#This Row],[Punkte]]>0,RANK(Tabelle_Auswertung[[#This Row],[Punkte]],[Punkte],0)," - ")," - ") -> - | Z106: - - - | AB106: =IF(Tabelle_Auswertung[[#This Row],[Platz]]=1,CONCATENATE(Tabelle_Auswertung[[#This Row],[Bildname]]," von ",Tabelle_Auswertung[[#This Row],[Autor(in)]]),"") ->  | AC106: =IF(Tabelle_Auswertung[[#This Row],[Platz]]=2,CONCATENATE(Tabelle_Auswertung[[#This Row],[Bildname]]," von ",Tabelle_Auswertung[[#This Row],[Autor(in)]]),"") ->  | AD106: =IF(Tabelle_Auswertung[[#This Row],[Platz]]=3,CONCATENATE(Tabelle_Auswertung[[#This Row],[Bildname]]," von ",Tabelle_Auswertung[[#This Row],[Autor(in)]]),"") ->  | AE106: =IF(Tabelle_Auswertung[[#This Row],[Platz]]=4,CONCATENATE(Tabelle_Auswertung[[#This Row],[Bildname]]," von ",Tabelle_Auswertung[[#This Row],[Autor(in)]]),"") ->  | AF106: =IF(Tabelle_Auswertung[[#This Row],[Platz]]=5,CONCATENATE(Tabelle_Auswertung[[#This Row],[Bildname]]," von ",Tabelle_Auswertung[[#This Row],[Autor(in)]]),"") ->  | AG106: =IF(Tabelle_Auswertung[[#This Row],[Platz]]=6,CONCATENATE(Tabelle_Auswertung[[#This Row],[Bildname]]," von ",Tabelle_Auswertung[[#This Row],[Autor(in)]]),"") ->  | AH106: =IF(Tabelle_Auswertung[[#This Row],[Platz]]=7,CONCATENATE(Tabelle_Auswertung[[#This Row],[Bildname]]," von ",Tabelle_Auswertung[[#This Row],[Autor(in)]]),"") ->  | AI106: =IF(Tabelle_Auswertung[[#This Row],[Platz]]=8,CONCATENATE(Tabelle_Auswertung[[#This Row],[Bildname]]," von ",Tabelle_Auswertung[[#This Row],[Autor(in)]]),"") ->  | AJ106: =IF(Tabelle_Auswertung[[#This Row],[Platz]]=9,CONCATENATE(Tabelle_Auswertung[[#This Row],[Bildname]]," von ",Tabelle_Auswertung[[#This Row],[Autor(in)]]),"") ->  | AK106: =IF(Tabelle_Auswertung[[#This Row],[Platz]]=10,CONCATENATE(Tabelle_Auswertung[[#This Row],[Bildname]]," von ",Tabelle_Auswertung[[#This Row],[Autor(in)]]),"") -> 
A107: 103 | W107: =IF(Tabelle_Auswertung[[#This Row],[Bildname]]<>"", IF(Tabelle_Auswertung[[#This Row],[abwesend]]="ja", SUM(Tabelle_Auswertung[[#This Row],[Juror 1]:[Juror 20]])/COUNT(Tabelle_Auswertung[[#This Row],[Juror 1]:[Juror 20]])*(COUNT(Tabelle_Auswertung[[#This Row],[Juror 1]:[Juror 20]])-1), SUM(Tabelle_Auswertung[[#This Row],[Juror 1]:[Juror 20]]) ), " - ") -> - | X107: =IF(Tabelle_Auswertung[[#This Row],[Bildname]]<>"",IF(Tabelle_Auswertung[[#This Row],[Punkte]]>0,AVERAGE(Tabelle_Auswertung[[#This Row],[Juror 1]:[Juror 20]])," - ")," - ") -> - | Y107: =IF(Tabelle_Auswertung[[#This Row],[Bildname]]<>"",IF(Tabelle_Auswertung[[#This Row],[Punkte]]>0,RANK(Tabelle_Auswertung[[#This Row],[Punkte]],[Punkte],0)," - ")," - ") -> - | Z107: - - - | AB107: =IF(Tabelle_Auswertung[[#This Row],[Platz]]=1,CONCATENATE(Tabelle_Auswertung[[#This Row],[Bildname]]," von ",Tabelle_Auswertung[[#This Row],[Autor(in)]]),"") ->  | AC107: =IF(Tabelle_Auswertung[[#This Row],[Platz]]=2,CONCATENATE(Tabelle_Auswertung[[#This Row],[Bildname]]," von ",Tabelle_Auswertung[[#This Row],[Autor(in)]]),"") ->  | AD107: =IF(Tabelle_Auswertung[[#This Row],[Platz]]=3,CONCATENATE(Tabelle_Auswertung[[#This Row],[Bildname]]," von ",Tabelle_Auswertung[[#This Row],[Autor(in)]]),"") ->  | AE107: =IF(Tabelle_Auswertung[[#This Row],[Platz]]=4,CONCATENATE(Tabelle_Auswertung[[#This Row],[Bildname]]," von ",Tabelle_Auswertung[[#This Row],[Autor(in)]]),"") ->  | AF107: =IF(Tabelle_Auswertung[[#This Row],[Platz]]=5,CONCATENATE(Tabelle_Auswertung[[#This Row],[Bildname]]," von ",Tabelle_Auswertung[[#This Row],[Autor(in)]]),"") ->  | AG107: =IF(Tabelle_Auswertung[[#This Row],[Platz]]=6,CONCATENATE(Tabelle_Auswertung[[#This Row],[Bildname]]," von ",Tabelle_Auswertung[[#This Row],[Autor(in)]]),"") ->  | AH107: =IF(Tabelle_Auswertung[[#This Row],[Platz]]=7,CONCATENATE(Tabelle_Auswertung[[#This Row],[Bildname]]," von ",Tabelle_Auswertung[[#This Row],[Autor(in)]]),"") ->  | AI107: =IF(Tabelle_Auswertung[[#This Row],[Platz]]=8,CONCATENATE(Tabelle_Auswertung[[#This Row],[Bildname]]," von ",Tabelle_Auswertung[[#This Row],[Autor(in)]]),"") ->  | AJ107: =IF(Tabelle_Auswertung[[#This Row],[Platz]]=9,CONCATENATE(Tabelle_Auswertung[[#This Row],[Bildname]]," von ",Tabelle_Auswertung[[#This Row],[Autor(in)]]),"") ->  | AK107: =IF(Tabelle_Auswertung[[#This Row],[Platz]]=10,CONCATENATE(Tabelle_Auswertung[[#This Row],[Bildname]]," von ",Tabelle_Auswertung[[#This Row],[Autor(in)]]),"") -> 
A108: 104 | W108: =IF(Tabelle_Auswertung[[#This Row],[Bildname]]<>"", IF(Tabelle_Auswertung[[#This Row],[abwesend]]="ja", SUM(Tabelle_Auswertung[[#This Row],[Juror 1]:[Juror 20]])/COUNT(Tabelle_Auswertung[[#This Row],[Juror 1]:[Juror 20]])*(COUNT(Tabelle_Auswertung[[#This Row],[Juror 1]:[Juror 20]])-1), SUM(Tabelle_Auswertung[[#This Row],[Juror 1]:[Juror 20]]) ), " - ") -> - | X108: =IF(Tabelle_Auswertung[[#This Row],[Bildname]]<>"",IF(Tabelle_Auswertung[[#This Row],[Punkte]]>0,AVERAGE(Tabelle_Auswertung[[#This Row],[Juror 1]:[Juror 20]])," - ")," - ") -> - | Y108: =IF(Tabelle_Auswertung[[#This Row],[Bildname]]<>"",IF(Tabelle_Auswertung[[#This Row],[Punkte]]>0,RANK(Tabelle_Auswertung[[#This Row],[Punkte]],[Punkte],0)," - ")," - ") -> - | Z108: - - - | AB108: =IF(Tabelle_Auswertung[[#This Row],[Platz]]=1,CONCATENATE(Tabelle_Auswertung[[#This Row],[Bildname]]," von ",Tabelle_Auswertung[[#This Row],[Autor(in)]]),"") ->  | AC108: =IF(Tabelle_Auswertung[[#This Row],[Platz]]=2,CONCATENATE(Tabelle_Auswertung[[#This Row],[Bildname]]," von ",Tabelle_Auswertung[[#This Row],[Autor(in)]]),"") ->  | AD108: =IF(Tabelle_Auswertung[[#This Row],[Platz]]=3,CONCATENATE(Tabelle_Auswertung[[#This Row],[Bildname]]," von ",Tabelle_Auswertung[[#This Row],[Autor(in)]]),"") ->  | AE108: =IF(Tabelle_Auswertung[[#This Row],[Platz]]=4,CONCATENATE(Tabelle_Auswertung[[#This Row],[Bildname]]," von ",Tabelle_Auswertung[[#This Row],[Autor(in)]]),"") ->  | AF108: =IF(Tabelle_Auswertung[[#This Row],[Platz]]=5,CONCATENATE(Tabelle_Auswertung[[#This Row],[Bildname]]," von ",Tabelle_Auswertung[[#This Row],[Autor(in)]]),"") ->  | AG108: =IF(Tabelle_Auswertung[[#This Row],[Platz]]=6,CONCATENATE(Tabelle_Auswertung[[#This Row],[Bildname]]," von ",Tabelle_Auswertung[[#This Row],[Autor(in)]]),"") ->  | AH108: =IF(Tabelle_Auswertung[[#This Row],[Platz]]=7,CONCATENATE(Tabelle_Auswertung[[#This Row],[Bildname]]," von ",Tabelle_Auswertung[[#This Row],[Autor(in)]]),"") ->  | AI108: =IF(Tabelle_Auswertung[[#This Row],[Platz]]=8,CONCATENATE(Tabelle_Auswertung[[#This Row],[Bildname]]," von ",Tabelle_Auswertung[[#This Row],[Autor(in)]]),"") ->  | AJ108: =IF(Tabelle_Auswertung[[#This Row],[Platz]]=9,CONCATENATE(Tabelle_Auswertung[[#This Row],[Bildname]]," von ",Tabelle_Auswertung[[#This Row],[Autor(in)]]),"") ->  | AK108: =IF(Tabelle_Auswertung[[#This Row],[Platz]]=10,CONCATENATE(Tabelle_Auswertung[[#This Row],[Bildname]]," von ",Tabelle_Auswertung[[#This Row],[Autor(in)]]),"") -> 
A109: 105 | W109: =IF(Tabelle_Auswertung[[#This Row],[Bildname]]<>"", IF(Tabelle_Auswertung[[#This Row],[abwesend]]="ja", SUM(Tabelle_Auswertung[[#This Row],[Juror 1]:[Juror 20]])/COUNT(Tabelle_Auswertung[[#This Row],[Juror 1]:[Juror 20]])*(COUNT(Tabelle_Auswertung[[#This Row],[Juror 1]:[Juror 20]])-1), SUM(Tabelle_Auswertung[[#This Row],[Juror 1]:[Juror 20]]) ), " - ") -> - | X109: =IF(Tabelle_Auswertung[[#This Row],[Bildname]]<>"",IF(Tabelle_Auswertung[[#This Row],[Punkte]]>0,AVERAGE(Tabelle_Auswertung[[#This Row],[Juror 1]:[Juror 20]])," - ")," - ") -> - | Y109: =IF(Tabelle_Auswertung[[#This Row],[Bildname]]<>"",IF(Tabelle_Auswertung[[#This Row],[Punkte]]>0,RANK(Tabelle_Auswertung[[#This Row],[Punkte]],[Punkte],0)," - ")," - ") -> - | Z109: - - - | AB109: =IF(Tabelle_Auswertung[[#This Row],[Platz]]=1,CONCATENATE(Tabelle_Auswertung[[#This Row],[Bildname]]," von ",Tabelle_Auswertung[[#This Row],[Autor(in)]]),"") ->  | AC109: =IF(Tabelle_Auswertung[[#This Row],[Platz]]=2,CONCATENATE(Tabelle_Auswertung[[#This Row],[Bildname]]," von ",Tabelle_Auswertung[[#This Row],[Autor(in)]]),"") ->  | AD109: =IF(Tabelle_Auswertung[[#This Row],[Platz]]=3,CONCATENATE(Tabelle_Auswertung[[#This Row],[Bildname]]," von ",Tabelle_Auswertung[[#This Row],[Autor(in)]]),"") ->  | AE109: =IF(Tabelle_Auswertung[[#This Row],[Platz]]=4,CONCATENATE(Tabelle_Auswertung[[#This Row],[Bildname]]," von ",Tabelle_Auswertung[[#This Row],[Autor(in)]]),"") ->  | AF109: =IF(Tabelle_Auswertung[[#This Row],[Platz]]=5,CONCATENATE(Tabelle_Auswertung[[#This Row],[Bildname]]," von ",Tabelle_Auswertung[[#This Row],[Autor(in)]]),"") ->  | AG109: =IF(Tabelle_Auswertung[[#This Row],[Platz]]=6,CONCATENATE(Tabelle_Auswertung[[#This Row],[Bildname]]," von ",Tabelle_Auswertung[[#This Row],[Autor(in)]]),"") ->  | AH109: =IF(Tabelle_Auswertung[[#This Row],[Platz]]=7,CONCATENATE(Tabelle_Auswertung[[#This Row],[Bildname]]," von ",Tabelle_Auswertung[[#This Row],[Autor(in)]]),"") ->  | AI109: =IF(Tabelle_Auswertung[[#This Row],[Platz]]=8,CONCATENATE(Tabelle_Auswertung[[#This Row],[Bildname]]," von ",Tabelle_Auswertung[[#This Row],[Autor(in)]]),"") ->  | AJ109: =IF(Tabelle_Auswertung[[#This Row],[Platz]]=9,CONCATENATE(Tabelle_Auswertung[[#This Row],[Bildname]]," von ",Tabelle_Auswertung[[#This Row],[Autor(in)]]),"") ->  | AK109: =IF(Tabelle_Auswertung[[#This Row],[Platz]]=10,CONCATENATE(Tabelle_Auswertung[[#This Row],[Bildname]]," von ",Tabelle_Auswertung[[#This Row],[Autor(in)]]),"") -> 
A110: 106 | W110: =IF(Tabelle_Auswertung[[#This Row],[Bildname]]<>"", IF(Tabelle_Auswertung[[#This Row],[abwesend]]="ja", SUM(Tabelle_Auswertung[[#This Row],[Juror 1]:[Juror 20]])/COUNT(Tabelle_Auswertung[[#This Row],[Juror 1]:[Juror 20]])*(COUNT(Tabelle_Auswertung[[#This Row],[Juror 1]:[Juror 20]])-1), SUM(Tabelle_Auswertung[[#This Row],[Juror 1]:[Juror 20]]) ), " - ") -> - | X110: =IF(Tabelle_Auswertung[[#This Row],[Bildname]]<>"",IF(Tabelle_Auswertung[[#This Row],[Punkte]]>0,AVERAGE(Tabelle_Auswertung[[#This Row],[Juror 1]:[Juror 20]])," - ")," - ") -> - | Y110: =IF(Tabelle_Auswertung[[#This Row],[Bildname]]<>"",IF(Tabelle_Auswertung[[#This Row],[Punkte]]>0,RANK(Tabelle_Auswertung[[#This Row],[Punkte]],[Punkte],0)," - ")," - ") -> - | Z110: - - - | AB110: =IF(Tabelle_Auswertung[[#This Row],[Platz]]=1,CONCATENATE(Tabelle_Auswertung[[#This Row],[Bildname]]," von ",Tabelle_Auswertung[[#This Row],[Autor(in)]]),"") ->  | AC110: =IF(Tabelle_Auswertung[[#This Row],[Platz]]=2,CONCATENATE(Tabelle_Auswertung[[#This Row],[Bildname]]," von ",Tabelle_Auswertung[[#This Row],[Autor(in)]]),"") ->  | AD110: =IF(Tabelle_Auswertung[[#This Row],[Platz]]=3,CONCATENATE(Tabelle_Auswertung[[#This Row],[Bildname]]," von ",Tabelle_Auswertung[[#This Row],[Autor(in)]]),"") ->  | AE110: =IF(Tabelle_Auswertung[[#This Row],[Platz]]=4,CONCATENATE(Tabelle_Auswertung[[#This Row],[Bildname]]," von ",Tabelle_Auswertung[[#This Row],[Autor(in)]]),"") ->  | AF110: =IF(Tabelle_Auswertung[[#This Row],[Platz]]=5,CONCATENATE(Tabelle_Auswertung[[#This Row],[Bildname]]," von ",Tabelle_Auswertung[[#This Row],[Autor(in)]]),"") ->  | AG110: =IF(Tabelle_Auswertung[[#This Row],[Platz]]=6,CONCATENATE(Tabelle_Auswertung[[#This Row],[Bildname]]," von ",Tabelle_Auswertung[[#This Row],[Autor(in)]]),"") ->  | AH110: =IF(Tabelle_Auswertung[[#This Row],[Platz]]=7,CONCATENATE(Tabelle_Auswertung[[#This Row],[Bildname]]," von ",Tabelle_Auswertung[[#This Row],[Autor(in)]]),"") ->  | AI110: =IF(Tabelle_Auswertung[[#This Row],[Platz]]=8,CONCATENATE(Tabelle_Auswertung[[#This Row],[Bildname]]," von ",Tabelle_Auswertung[[#This Row],[Autor(in)]]),"") ->  | AJ110: =IF(Tabelle_Auswertung[[#This Row],[Platz]]=9,CONCATENATE(Tabelle_Auswertung[[#This Row],[Bildname]]," von ",Tabelle_Auswertung[[#This Row],[Autor(in)]]),"") ->  | AK110: =IF(Tabelle_Auswertung[[#This Row],[Platz]]=10,CONCATENATE(Tabelle_Auswertung[[#This Row],[Bildname]]," von ",Tabelle_Auswertung[[#This Row],[Autor(in)]]),"") -> 
A111: 107 | W111: =IF(Tabelle_Auswertung[[#This Row],[Bildname]]<>"", IF(Tabelle_Auswertung[[#This Row],[abwesend]]="ja", SUM(Tabelle_Auswertung[[#This Row],[Juror 1]:[Juror 20]])/COUNT(Tabelle_Auswertung[[#This Row],[Juror 1]:[Juror 20]])*(COUNT(Tabelle_Auswertung[[#This Row],[Juror 1]:[Juror 20]])-1), SUM(Tabelle_Auswertung[[#This Row],[Juror 1]:[Juror 20]]) ), " - ") -> - | X111: =IF(Tabelle_Auswertung[[#This Row],[Bildname]]<>"",IF(Tabelle_Auswertung[[#This Row],[Punkte]]>0,AVERAGE(Tabelle_Auswertung[[#This Row],[Juror 1]:[Juror 20]])," - ")," - ") -> - | Y111: =IF(Tabelle_Auswertung[[#This Row],[Bildname]]<>"",IF(Tabelle_Auswertung[[#This Row],[Punkte]]>0,RANK(Tabelle_Auswertung[[#This Row],[Punkte]],[Punkte],0)," - ")," - ") -> - | Z111: - - - | AB111: =IF(Tabelle_Auswertung[[#This Row],[Platz]]=1,CONCATENATE(Tabelle_Auswertung[[#This Row],[Bildname]]," von ",Tabelle_Auswertung[[#This Row],[Autor(in)]]),"") ->  | AC111: =IF(Tabelle_Auswertung[[#This Row],[Platz]]=2,CONCATENATE(Tabelle_Auswertung[[#This Row],[Bildname]]," von ",Tabelle_Auswertung[[#This Row],[Autor(in)]]),"") ->  | AD111: =IF(Tabelle_Auswertung[[#This Row],[Platz]]=3,CONCATENATE(Tabelle_Auswertung[[#This Row],[Bildname]]," von ",Tabelle_Auswertung[[#This Row],[Autor(in)]]),"") ->  | AE111: =IF(Tabelle_Auswertung[[#This Row],[Platz]]=4,CONCATENATE(Tabelle_Auswertung[[#This Row],[Bildname]]," von ",Tabelle_Auswertung[[#This Row],[Autor(in)]]),"") ->  | AF111: =IF(Tabelle_Auswertung[[#This Row],[Platz]]=5,CONCATENATE(Tabelle_Auswertung[[#This Row],[Bildname]]," von ",Tabelle_Auswertung[[#This Row],[Autor(in)]]),"") ->  | AG111: =IF(Tabelle_Auswertung[[#This Row],[Platz]]=6,CONCATENATE(Tabelle_Auswertung[[#This Row],[Bildname]]," von ",Tabelle_Auswertung[[#This Row],[Autor(in)]]),"") ->  | AH111: =IF(Tabelle_Auswertung[[#This Row],[Platz]]=7,CONCATENATE(Tabelle_Auswertung[[#This Row],[Bildname]]," von ",Tabelle_Auswertung[[#This Row],[Autor(in)]]),"") ->  | AI111: =IF(Tabelle_Auswertung[[#This Row],[Platz]]=8,CONCATENATE(Tabelle_Auswertung[[#This Row],[Bildname]]," von ",Tabelle_Auswertung[[#This Row],[Autor(in)]]),"") ->  | AJ111: =IF(Tabelle_Auswertung[[#This Row],[Platz]]=9,CONCATENATE(Tabelle_Auswertung[[#This Row],[Bildname]]," von ",Tabelle_Auswertung[[#This Row],[Autor(in)]]),"") ->  | AK111: =IF(Tabelle_Auswertung[[#This Row],[Platz]]=10,CONCATENATE(Tabelle_Auswertung[[#This Row],[Bildname]]," von ",Tabelle_Auswertung[[#This Row],[Autor(in)]]),"") -> 
A112: 108 | W112: =IF(Tabelle_Auswertung[[#This Row],[Bildname]]<>"", IF(Tabelle_Auswertung[[#This Row],[abwesend]]="ja", SUM(Tabelle_Auswertung[[#This Row],[Juror 1]:[Juror 20]])/COUNT(Tabelle_Auswertung[[#This Row],[Juror 1]:[Juror 20]])*(COUNT(Tabelle_Auswertung[[#This Row],[Juror 1]:[Juror 20]])-1), SUM(Tabelle_Auswertung[[#This Row],[Juror 1]:[Juror 20]]) ), " - ") -> - | X112: =IF(Tabelle_Auswertung[[#This Row],[Bildname]]<>"",IF(Tabelle_Auswertung[[#This Row],[Punkte]]>0,AVERAGE(Tabelle_Auswertung[[#This Row],[Juror 1]:[Juror 20]])," - ")," - ") -> - | Y112: =IF(Tabelle_Auswertung[[#This Row],[Bildname]]<>"",IF(Tabelle_Auswertung[[#This Row],[Punkte]]>0,RANK(Tabelle_Auswertung[[#This Row],[Punkte]],[Punkte],0)," - ")," - ") -> - | Z112: - - - | AB112: =IF(Tabelle_Auswertung[[#This Row],[Platz]]=1,CONCATENATE(Tabelle_Auswertung[[#This Row],[Bildname]]," von ",Tabelle_Auswertung[[#This Row],[Autor(in)]]),"") ->  | AC112: =IF(Tabelle_Auswertung[[#This Row],[Platz]]=2,CONCATENATE(Tabelle_Auswertung[[#This Row],[Bildname]]," von ",Tabelle_Auswertung[[#This Row],[Autor(in)]]),"") ->  | AD112: =IF(Tabelle_Auswertung[[#This Row],[Platz]]=3,CONCATENATE(Tabelle_Auswertung[[#This Row],[Bildname]]," von ",Tabelle_Auswertung[[#This Row],[Autor(in)]]),"") ->  | AE112: =IF(Tabelle_Auswertung[[#This Row],[Platz]]=4,CONCATENATE(Tabelle_Auswertung[[#This Row],[Bildname]]," von ",Tabelle_Auswertung[[#This Row],[Autor(in)]]),"") ->  | AF112: =IF(Tabelle_Auswertung[[#This Row],[Platz]]=5,CONCATENATE(Tabelle_Auswertung[[#This Row],[Bildname]]," von ",Tabelle_Auswertung[[#This Row],[Autor(in)]]),"") ->  | AG112: =IF(Tabelle_Auswertung[[#This Row],[Platz]]=6,CONCATENATE(Tabelle_Auswertung[[#This Row],[Bildname]]," von ",Tabelle_Auswertung[[#This Row],[Autor(in)]]),"") ->  | AH112: =IF(Tabelle_Auswertung[[#This Row],[Platz]]=7,CONCATENATE(Tabelle_Auswertung[[#This Row],[Bildname]]," von ",Tabelle_Auswertung[[#This Row],[Autor(in)]]),"") ->  | AI112: =IF(Tabelle_Auswertung[[#This Row],[Platz]]=8,CONCATENATE(Tabelle_Auswertung[[#This Row],[Bildname]]," von ",Tabelle_Auswertung[[#This Row],[Autor(in)]]),"") ->  | AJ112: =IF(Tabelle_Auswertung[[#This Row],[Platz]]=9,CONCATENATE(Tabelle_Auswertung[[#This Row],[Bildname]]," von ",Tabelle_Auswertung[[#This Row],[Autor(in)]]),"") ->  | AK112: =IF(Tabelle_Auswertung[[#This Row],[Platz]]=10,CONCATENATE(Tabelle_Auswertung[[#This Row],[Bildname]]," von ",Tabelle_Auswertung[[#This Row],[Autor(in)]]),"") -> 
A113: 109 | W113: =IF(Tabelle_Auswertung[[#This Row],[Bildname]]<>"", IF(Tabelle_Auswertung[[#This Row],[abwesend]]="ja", SUM(Tabelle_Auswertung[[#This Row],[Juror 1]:[Juror 20]])/COUNT(Tabelle_Auswertung[[#This Row],[Juror 1]:[Juror 20]])*(COUNT(Tabelle_Auswertung[[#This Row],[Juror 1]:[Juror 20]])-1), SUM(Tabelle_Auswertung[[#This Row],[Juror 1]:[Juror 20]]) ), " - ") -> - | X113: =IF(Tabelle_Auswertung[[#This Row],[Bildname]]<>"",IF(Tabelle_Auswertung[[#This Row],[Punkte]]>0,AVERAGE(Tabelle_Auswertung[[#This Row],[Juror 1]:[Juror 20]])," - ")," - ") -> - | Y113: =IF(Tabelle_Auswertung[[#This Row],[Bildname]]<>"",IF(Tabelle_Auswertung[[#This Row],[Punkte]]>0,RANK(Tabelle_Auswertung[[#This Row],[Punkte]],[Punkte],0)," - ")," - ") -> - | Z113: - - - | AB113: =IF(Tabelle_Auswertung[[#This Row],[Platz]]=1,CONCATENATE(Tabelle_Auswertung[[#This Row],[Bildname]]," von ",Tabelle_Auswertung[[#This Row],[Autor(in)]]),"") ->  | AC113: =IF(Tabelle_Auswertung[[#This Row],[Platz]]=2,CONCATENATE(Tabelle_Auswertung[[#This Row],[Bildname]]," von ",Tabelle_Auswertung[[#This Row],[Autor(in)]]),"") ->  | AD113: =IF(Tabelle_Auswertung[[#This Row],[Platz]]=3,CONCATENATE(Tabelle_Auswertung[[#This Row],[Bildname]]," von ",Tabelle_Auswertung[[#This Row],[Autor(in)]]),"") ->  | AE113: =IF(Tabelle_Auswertung[[#This Row],[Platz]]=4,CONCATENATE(Tabelle_Auswertung[[#This Row],[Bildname]]," von ",Tabelle_Auswertung[[#This Row],[Autor(in)]]),"") ->  | AF113: =IF(Tabelle_Auswertung[[#This Row],[Platz]]=5,CONCATENATE(Tabelle_Auswertung[[#This Row],[Bildname]]," von ",Tabelle_Auswertung[[#This Row],[Autor(in)]]),"") ->  | AG113: =IF(Tabelle_Auswertung[[#This Row],[Platz]]=6,CONCATENATE(Tabelle_Auswertung[[#This Row],[Bildname]]," von ",Tabelle_Auswertung[[#This Row],[Autor(in)]]),"") ->  | AH113: =IF(Tabelle_Auswertung[[#This Row],[Platz]]=7,CONCATENATE(Tabelle_Auswertung[[#This Row],[Bildname]]," von ",Tabelle_Auswertung[[#This Row],[Autor(in)]]),"") ->  | AI113: =IF(Tabelle_Auswertung[[#This Row],[Platz]]=8,CONCATENATE(Tabelle_Auswertung[[#This Row],[Bildname]]," von ",Tabelle_Auswertung[[#This Row],[Autor(in)]]),"") ->  | AJ113: =IF(Tabelle_Auswertung[[#This Row],[Platz]]=9,CONCATENATE(Tabelle_Auswertung[[#This Row],[Bildname]]," von ",Tabelle_Auswertung[[#This Row],[Autor(in)]]),"") ->  | AK113: =IF(Tabelle_Auswertung[[#This Row],[Platz]]=10,CONCATENATE(Tabelle_Auswertung[[#This Row],[Bildname]]," von ",Tabelle_Auswertung[[#This Row],[Autor(in)]]),"") -> 
A114: 110 | W114: =IF(Tabelle_Auswertung[[#This Row],[Bildname]]<>"", IF(Tabelle_Auswertung[[#This Row],[abwesend]]="ja", SUM(Tabelle_Auswertung[[#This Row],[Juror 1]:[Juror 20]])/COUNT(Tabelle_Auswertung[[#This Row],[Juror 1]:[Juror 20]])*(COUNT(Tabelle_Auswertung[[#This Row],[Juror 1]:[Juror 20]])-1), SUM(Tabelle_Auswertung[[#This Row],[Juror 1]:[Juror 20]]) ), " - ") -> - | X114: =IF(Tabelle_Auswertung[[#This Row],[Bildname]]<>"",IF(Tabelle_Auswertung[[#This Row],[Punkte]]>0,AVERAGE(Tabelle_Auswertung[[#This Row],[Juror 1]:[Juror 20]])," - ")," - ") -> - | Y114: =IF(Tabelle_Auswertung[[#This Row],[Bildname]]<>"",IF(Tabelle_Auswertung[[#This Row],[Punkte]]>0,RANK(Tabelle_Auswertung[[#This Row],[Punkte]],[Punkte],0)," - ")," - ") -> - | Z114: - - - | AB114: =IF(Tabelle_Auswertung[[#This Row],[Platz]]=1,CONCATENATE(Tabelle_Auswertung[[#This Row],[Bildname]]," von ",Tabelle_Auswertung[[#This Row],[Autor(in)]]),"") ->  | AC114: =IF(Tabelle_Auswertung[[#This Row],[Platz]]=2,CONCATENATE(Tabelle_Auswertung[[#This Row],[Bildname]]," von ",Tabelle_Auswertung[[#This Row],[Autor(in)]]),"") ->  | AD114: =IF(Tabelle_Auswertung[[#This Row],[Platz]]=3,CONCATENATE(Tabelle_Auswertung[[#This Row],[Bildname]]," von ",Tabelle_Auswertung[[#This Row],[Autor(in)]]),"") ->  | AE114: =IF(Tabelle_Auswertung[[#This Row],[Platz]]=4,CONCATENATE(Tabelle_Auswertung[[#This Row],[Bildname]]," von ",Tabelle_Auswertung[[#This Row],[Autor(in)]]),"") ->  | AF114: =IF(Tabelle_Auswertung[[#This Row],[Platz]]=5,CONCATENATE(Tabelle_Auswertung[[#This Row],[Bildname]]," von ",Tabelle_Auswertung[[#This Row],[Autor(in)]]),"") ->  | AG114: =IF(Tabelle_Auswertung[[#This Row],[Platz]]=6,CONCATENATE(Tabelle_Auswertung[[#This Row],[Bildname]]," von ",Tabelle_Auswertung[[#This Row],[Autor(in)]]),"") ->  | AH114: =IF(Tabelle_Auswertung[[#This Row],[Platz]]=7,CONCATENATE(Tabelle_Auswertung[[#This Row],[Bildname]]," von ",Tabelle_Auswertung[[#This Row],[Autor(in)]]),"") ->  | AI114: =IF(Tabelle_Auswertung[[#This Row],[Platz]]=8,CONCATENATE(Tabelle_Auswertung[[#This Row],[Bildname]]," von ",Tabelle_Auswertung[[#This Row],[Autor(in)]]),"") ->  | AJ114: =IF(Tabelle_Auswertung[[#This Row],[Platz]]=9,CONCATENATE(Tabelle_Auswertung[[#This Row],[Bildname]]," von ",Tabelle_Auswertung[[#This Row],[Autor(in)]]),"") ->  | AK114: =IF(Tabelle_Auswertung[[#This Row],[Platz]]=10,CONCATENATE(Tabelle_Auswertung[[#This Row],[Bildname]]," von ",Tabelle_Auswertung[[#This Row],[Autor(in)]]),"") -> 
A115: 111 | W115: =IF(Tabelle_Auswertung[[#This Row],[Bildname]]<>"", IF(Tabelle_Auswertung[[#This Row],[abwesend]]="ja", SUM(Tabelle_Auswertung[[#This Row],[Juror 1]:[Juror 20]])/COUNT(Tabelle_Auswertung[[#This Row],[Juror 1]:[Juror 20]])*(COUNT(Tabelle_Auswertung[[#This Row],[Juror 1]:[Juror 20]])-1), SUM(Tabelle_Auswertung[[#This Row],[Juror 1]:[Juror 20]]) ), " - ") -> - | X115: =IF(Tabelle_Auswertung[[#This Row],[Bildname]]<>"",IF(Tabelle_Auswertung[[#This Row],[Punkte]]>0,AVERAGE(Tabelle_Auswertung[[#This Row],[Juror 1]:[Juror 20]])," - ")," - ") -> - | Y115: =IF(Tabelle_Auswertung[[#This Row],[Bildname]]<>"",IF(Tabelle_Auswertung[[#This Row],[Punkte]]>0,RANK(Tabelle_Auswertung[[#This Row],[Punkte]],[Punkte],0)," - ")," - ") -> - | Z115: - - - | AB115: =IF(Tabelle_Auswertung[[#This Row],[Platz]]=1,CONCATENATE(Tabelle_Auswertung[[#This Row],[Bildname]]," von ",Tabelle_Auswertung[[#This Row],[Autor(in)]]),"") ->  | AC115: =IF(Tabelle_Auswertung[[#This Row],[Platz]]=2,CONCATENATE(Tabelle_Auswertung[[#This Row],[Bildname]]," von ",Tabelle_Auswertung[[#This Row],[Autor(in)]]),"") ->  | AD115: =IF(Tabelle_Auswertung[[#This Row],[Platz]]=3,CONCATENATE(Tabelle_Auswertung[[#This Row],[Bildname]]," von ",Tabelle_Auswertung[[#This Row],[Autor(in)]]),"") ->  | AE115: =IF(Tabelle_Auswertung[[#This Row],[Platz]]=4,CONCATENATE(Tabelle_Auswertung[[#This Row],[Bildname]]," von ",Tabelle_Auswertung[[#This Row],[Autor(in)]]),"") ->  | AF115: =IF(Tabelle_Auswertung[[#This Row],[Platz]]=5,CONCATENATE(Tabelle_Auswertung[[#This Row],[Bildname]]," von ",Tabelle_Auswertung[[#This Row],[Autor(in)]]),"") ->  | AG115: =IF(Tabelle_Auswertung[[#This Row],[Platz]]=6,CONCATENATE(Tabelle_Auswertung[[#This Row],[Bildname]]," von ",Tabelle_Auswertung[[#This Row],[Autor(in)]]),"") ->  | AH115: =IF(Tabelle_Auswertung[[#This Row],[Platz]]=7,CONCATENATE(Tabelle_Auswertung[[#This Row],[Bildname]]," von ",Tabelle_Auswertung[[#This Row],[Autor(in)]]),"") ->  | AI115: =IF(Tabelle_Auswertung[[#This Row],[Platz]]=8,CONCATENATE(Tabelle_Auswertung[[#This Row],[Bildname]]," von ",Tabelle_Auswertung[[#This Row],[Autor(in)]]),"") ->  | AJ115: =IF(Tabelle_Auswertung[[#This Row],[Platz]]=9,CONCATENATE(Tabelle_Auswertung[[#This Row],[Bildname]]," von ",Tabelle_Auswertung[[#This Row],[Autor(in)]]),"") ->  | AK115: =IF(Tabelle_Auswertung[[#This Row],[Platz]]=10,CONCATENATE(Tabelle_Auswertung[[#This Row],[Bildname]]," von ",Tabelle_Auswertung[[#This Row],[Autor(in)]]),"") -> 
A116: 112 | W116: =IF(Tabelle_Auswertung[[#This Row],[Bildname]]<>"", IF(Tabelle_Auswertung[[#This Row],[abwesend]]="ja", SUM(Tabelle_Auswertung[[#This Row],[Juror 1]:[Juror 20]])/COUNT(Tabelle_Auswertung[[#This Row],[Juror 1]:[Juror 20]])*(COUNT(Tabelle_Auswertung[[#This Row],[Juror 1]:[Juror 20]])-1), SUM(Tabelle_Auswertung[[#This Row],[Juror 1]:[Juror 20]]) ), " - ") -> - | X116: =IF(Tabelle_Auswertung[[#This Row],[Bildname]]<>"",IF(Tabelle_Auswertung[[#This Row],[Punkte]]>0,AVERAGE(Tabelle_Auswertung[[#This Row],[Juror 1]:[Juror 20]])," - ")," - ") -> - | Y116: =IF(Tabelle_Auswertung[[#This Row],[Bildname]]<>"",IF(Tabelle_Auswertung[[#This Row],[Punkte]]>0,RANK(Tabelle_Auswertung[[#This Row],[Punkte]],[Punkte],0)," - ")," - ") -> - | Z116: - - - | AB116: =IF(Tabelle_Auswertung[[#This Row],[Platz]]=1,CONCATENATE(Tabelle_Auswertung[[#This Row],[Bildname]]," von ",Tabelle_Auswertung[[#This Row],[Autor(in)]]),"") ->  | AC116: =IF(Tabelle_Auswertung[[#This Row],[Platz]]=2,CONCATENATE(Tabelle_Auswertung[[#This Row],[Bildname]]," von ",Tabelle_Auswertung[[#This Row],[Autor(in)]]),"") ->  | AD116: =IF(Tabelle_Auswertung[[#This Row],[Platz]]=3,CONCATENATE(Tabelle_Auswertung[[#This Row],[Bildname]]," von ",Tabelle_Auswertung[[#This Row],[Autor(in)]]),"") ->  | AE116: =IF(Tabelle_Auswertung[[#This Row],[Platz]]=4,CONCATENATE(Tabelle_Auswertung[[#This Row],[Bildname]]," von ",Tabelle_Auswertung[[#This Row],[Autor(in)]]),"") ->  | AF116: =IF(Tabelle_Auswertung[[#This Row],[Platz]]=5,CONCATENATE(Tabelle_Auswertung[[#This Row],[Bildname]]," von ",Tabelle_Auswertung[[#This Row],[Autor(in)]]),"") ->  | AG116: =IF(Tabelle_Auswertung[[#This Row],[Platz]]=6,CONCATENATE(Tabelle_Auswertung[[#This Row],[Bildname]]," von ",Tabelle_Auswertung[[#This Row],[Autor(in)]]),"") ->  | AH116: =IF(Tabelle_Auswertung[[#This Row],[Platz]]=7,CONCATENATE(Tabelle_Auswertung[[#This Row],[Bildname]]," von ",Tabelle_Auswertung[[#This Row],[Autor(in)]]),"") ->  | AI116: =IF(Tabelle_Auswertung[[#This Row],[Platz]]=8,CONCATENATE(Tabelle_Auswertung[[#This Row],[Bildname]]," von ",Tabelle_Auswertung[[#This Row],[Autor(in)]]),"") ->  | AJ116: =IF(Tabelle_Auswertung[[#This Row],[Platz]]=9,CONCATENATE(Tabelle_Auswertung[[#This Row],[Bildname]]," von ",Tabelle_Auswertung[[#This Row],[Autor(in)]]),"") ->  | AK116: =IF(Tabelle_Auswertung[[#This Row],[Platz]]=10,CONCATENATE(Tabelle_Auswertung[[#This Row],[Bildname]]," von ",Tabelle_Auswertung[[#This Row],[Autor(in)]]),"") -> 
A117: 113 | W117: =IF(Tabelle_Auswertung[[#This Row],[Bildname]]<>"", IF(Tabelle_Auswertung[[#This Row],[abwesend]]="ja", SUM(Tabelle_Auswertung[[#This Row],[Juror 1]:[Juror 20]])/COUNT(Tabelle_Auswertung[[#This Row],[Juror 1]:[Juror 20]])*(COUNT(Tabelle_Auswertung[[#This Row],[Juror 1]:[Juror 20]])-1), SUM(Tabelle_Auswertung[[#This Row],[Juror 1]:[Juror 20]]) ), " - ") -> - | X117: =IF(Tabelle_Auswertung[[#This Row],[Bildname]]<>"",IF(Tabelle_Auswertung[[#This Row],[Punkte]]>0,AVERAGE(Tabelle_Auswertung[[#This Row],[Juror 1]:[Juror 20]])," - ")," - ") -> - | Y117: =IF(Tabelle_Auswertung[[#This Row],[Bildname]]<>"",IF(Tabelle_Auswertung[[#This Row],[Punkte]]>0,RANK(Tabelle_Auswertung[[#This Row],[Punkte]],[Punkte],0)," - ")," - ") -> - | Z117: - - - | AB117: =IF(Tabelle_Auswertung[[#This Row],[Platz]]=1,CONCATENATE(Tabelle_Auswertung[[#This Row],[Bildname]]," von ",Tabelle_Auswertung[[#This Row],[Autor(in)]]),"") ->  | AC117: =IF(Tabelle_Auswertung[[#This Row],[Platz]]=2,CONCATENATE(Tabelle_Auswertung[[#This Row],[Bildname]]," von ",Tabelle_Auswertung[[#This Row],[Autor(in)]]),"") ->  | AD117: =IF(Tabelle_Auswertung[[#This Row],[Platz]]=3,CONCATENATE(Tabelle_Auswertung[[#This Row],[Bildname]]," von ",Tabelle_Auswertung[[#This Row],[Autor(in)]]),"") ->  | AE117: =IF(Tabelle_Auswertung[[#This Row],[Platz]]=4,CONCATENATE(Tabelle_Auswertung[[#This Row],[Bildname]]," von ",Tabelle_Auswertung[[#This Row],[Autor(in)]]),"") ->  | AF117: =IF(Tabelle_Auswertung[[#This Row],[Platz]]=5,CONCATENATE(Tabelle_Auswertung[[#This Row],[Bildname]]," von ",Tabelle_Auswertung[[#This Row],[Autor(in)]]),"") ->  | AG117: =IF(Tabelle_Auswertung[[#This Row],[Platz]]=6,CONCATENATE(Tabelle_Auswertung[[#This Row],[Bildname]]," von ",Tabelle_Auswertung[[#This Row],[Autor(in)]]),"") ->  | AH117: =IF(Tabelle_Auswertung[[#This Row],[Platz]]=7,CONCATENATE(Tabelle_Auswertung[[#This Row],[Bildname]]," von ",Tabelle_Auswertung[[#This Row],[Autor(in)]]),"") ->  | AI117: =IF(Tabelle_Auswertung[[#This Row],[Platz]]=8,CONCATENATE(Tabelle_Auswertung[[#This Row],[Bildname]]," von ",Tabelle_Auswertung[[#This Row],[Autor(in)]]),"") ->  | AJ117: =IF(Tabelle_Auswertung[[#This Row],[Platz]]=9,CONCATENATE(Tabelle_Auswertung[[#This Row],[Bildname]]," von ",Tabelle_Auswertung[[#This Row],[Autor(in)]]),"") ->  | AK117: =IF(Tabelle_Auswertung[[#This Row],[Platz]]=10,CONCATENATE(Tabelle_Auswertung[[#This Row],[Bildname]]," von ",Tabelle_Auswertung[[#This Row],[Autor(in)]]),"") -> 
A118: 114 | W118: =IF(Tabelle_Auswertung[[#This Row],[Bildname]]<>"", IF(Tabelle_Auswertung[[#This Row],[abwesend]]="ja", SUM(Tabelle_Auswertung[[#This Row],[Juror 1]:[Juror 20]])/COUNT(Tabelle_Auswertung[[#This Row],[Juror 1]:[Juror 20]])*(COUNT(Tabelle_Auswertung[[#This Row],[Juror 1]:[Juror 20]])-1), SUM(Tabelle_Auswertung[[#This Row],[Juror 1]:[Juror 20]]) ), " - ") -> - | X118: =IF(Tabelle_Auswertung[[#This Row],[Bildname]]<>"",IF(Tabelle_Auswertung[[#This Row],[Punkte]]>0,AVERAGE(Tabelle_Auswertung[[#This Row],[Juror 1]:[Juror 20]])," - ")," - ") -> - | Y118: =IF(Tabelle_Auswertung[[#This Row],[Bildname]]<>"",IF(Tabelle_Auswertung[[#This Row],[Punkte]]>0,RANK(Tabelle_Auswertung[[#This Row],[Punkte]],[Punkte],0)," - ")," - ") -> - | Z118: - - - | AB118: =IF(Tabelle_Auswertung[[#This Row],[Platz]]=1,CONCATENATE(Tabelle_Auswertung[[#This Row],[Bildname]]," von ",Tabelle_Auswertung[[#This Row],[Autor(in)]]),"") ->  | AC118: =IF(Tabelle_Auswertung[[#This Row],[Platz]]=2,CONCATENATE(Tabelle_Auswertung[[#This Row],[Bildname]]," von ",Tabelle_Auswertung[[#This Row],[Autor(in)]]),"") ->  | AD118: =IF(Tabelle_Auswertung[[#This Row],[Platz]]=3,CONCATENATE(Tabelle_Auswertung[[#This Row],[Bildname]]," von ",Tabelle_Auswertung[[#This Row],[Autor(in)]]),"") ->  | AE118: =IF(Tabelle_Auswertung[[#This Row],[Platz]]=4,CONCATENATE(Tabelle_Auswertung[[#This Row],[Bildname]]," von ",Tabelle_Auswertung[[#This Row],[Autor(in)]]),"") ->  | AF118: =IF(Tabelle_Auswertung[[#This Row],[Platz]]=5,CONCATENATE(Tabelle_Auswertung[[#This Row],[Bildname]]," von ",Tabelle_Auswertung[[#This Row],[Autor(in)]]),"") ->  | AG118: =IF(Tabelle_Auswertung[[#This Row],[Platz]]=6,CONCATENATE(Tabelle_Auswertung[[#This Row],[Bildname]]," von ",Tabelle_Auswertung[[#This Row],[Autor(in)]]),"") ->  | AH118: =IF(Tabelle_Auswertung[[#This Row],[Platz]]=7,CONCATENATE(Tabelle_Auswertung[[#This Row],[Bildname]]," von ",Tabelle_Auswertung[[#This Row],[Autor(in)]]),"") ->  | AI118: =IF(Tabelle_Auswertung[[#This Row],[Platz]]=8,CONCATENATE(Tabelle_Auswertung[[#This Row],[Bildname]]," von ",Tabelle_Auswertung[[#This Row],[Autor(in)]]),"") ->  | AJ118: =IF(Tabelle_Auswertung[[#This Row],[Platz]]=9,CONCATENATE(Tabelle_Auswertung[[#This Row],[Bildname]]," von ",Tabelle_Auswertung[[#This Row],[Autor(in)]]),"") ->  | AK118: =IF(Tabelle_Auswertung[[#This Row],[Platz]]=10,CONCATENATE(Tabelle_Auswertung[[#This Row],[Bildname]]," von ",Tabelle_Auswertung[[#This Row],[Autor(in)]]),"") -> 
A119: 115 | W119: =IF(Tabelle_Auswertung[[#This Row],[Bildname]]<>"", IF(Tabelle_Auswertung[[#This Row],[abwesend]]="ja", SUM(Tabelle_Auswertung[[#This Row],[Juror 1]:[Juror 20]])/COUNT(Tabelle_Auswertung[[#This Row],[Juror 1]:[Juror 20]])*(COUNT(Tabelle_Auswertung[[#This Row],[Juror 1]:[Juror 20]])-1), SUM(Tabelle_Auswertung[[#This Row],[Juror 1]:[Juror 20]]) ), " - ") -> - | X119: =IF(Tabelle_Auswertung[[#This Row],[Bildname]]<>"",IF(Tabelle_Auswertung[[#This Row],[Punkte]]>0,AVERAGE(Tabelle_Auswertung[[#This Row],[Juror 1]:[Juror 20]])," - ")," - ") -> - | Y119: =IF(Tabelle_Auswertung[[#This Row],[Bildname]]<>"",IF(Tabelle_Auswertung[[#This Row],[Punkte]]>0,RANK(Tabelle_Auswertung[[#This Row],[Punkte]],[Punkte],0)," - ")," - ") -> - | Z119: - - - | AB119: =IF(Tabelle_Auswertung[[#This Row],[Platz]]=1,CONCATENATE(Tabelle_Auswertung[[#This Row],[Bildname]]," von ",Tabelle_Auswertung[[#This Row],[Autor(in)]]),"") ->  | AC119: =IF(Tabelle_Auswertung[[#This Row],[Platz]]=2,CONCATENATE(Tabelle_Auswertung[[#This Row],[Bildname]]," von ",Tabelle_Auswertung[[#This Row],[Autor(in)]]),"") ->  | AD119: =IF(Tabelle_Auswertung[[#This Row],[Platz]]=3,CONCATENATE(Tabelle_Auswertung[[#This Row],[Bildname]]," von ",Tabelle_Auswertung[[#This Row],[Autor(in)]]),"") ->  | AE119: =IF(Tabelle_Auswertung[[#This Row],[Platz]]=4,CONCATENATE(Tabelle_Auswertung[[#This Row],[Bildname]]," von ",Tabelle_Auswertung[[#This Row],[Autor(in)]]),"") ->  | AF119: =IF(Tabelle_Auswertung[[#This Row],[Platz]]=5,CONCATENATE(Tabelle_Auswertung[[#This Row],[Bildname]]," von ",Tabelle_Auswertung[[#This Row],[Autor(in)]]),"") ->  | AG119: =IF(Tabelle_Auswertung[[#This Row],[Platz]]=6,CONCATENATE(Tabelle_Auswertung[[#This Row],[Bildname]]," von ",Tabelle_Auswertung[[#This Row],[Autor(in)]]),"") ->  | AH119: =IF(Tabelle_Auswertung[[#This Row],[Platz]]=7,CONCATENATE(Tabelle_Auswertung[[#This Row],[Bildname]]," von ",Tabelle_Auswertung[[#This Row],[Autor(in)]]),"") ->  | AI119: =IF(Tabelle_Auswertung[[#This Row],[Platz]]=8,CONCATENATE(Tabelle_Auswertung[[#This Row],[Bildname]]," von ",Tabelle_Auswertung[[#This Row],[Autor(in)]]),"") ->  | AJ119: =IF(Tabelle_Auswertung[[#This Row],[Platz]]=9,CONCATENATE(Tabelle_Auswertung[[#This Row],[Bildname]]," von ",Tabelle_Auswertung[[#This Row],[Autor(in)]]),"") ->  | AK119: =IF(Tabelle_Auswertung[[#This Row],[Platz]]=10,CONCATENATE(Tabelle_Auswertung[[#This Row],[Bildname]]," von ",Tabelle_Auswertung[[#This Row],[Autor(in)]]),"") -> 
A120: 116 | W120: =IF(Tabelle_Auswertung[[#This Row],[Bildname]]<>"", IF(Tabelle_Auswertung[[#This Row],[abwesend]]="ja", SUM(Tabelle_Auswertung[[#This Row],[Juror 1]:[Juror 20]])/COUNT(Tabelle_Auswertung[[#This Row],[Juror 1]:[Juror 20]])*(COUNT(Tabelle_Auswertung[[#This Row],[Juror 1]:[Juror 20]])-1), SUM(Tabelle_Auswertung[[#This Row],[Juror 1]:[Juror 20]]) ), " - ") -> - | X120: =IF(Tabelle_Auswertung[[#This Row],[Bildname]]<>"",IF(Tabelle_Auswertung[[#This Row],[Punkte]]>0,AVERAGE(Tabelle_Auswertung[[#This Row],[Juror 1]:[Juror 20]])," - ")," - ") -> - | Y120: =IF(Tabelle_Auswertung[[#This Row],[Bildname]]<>"",IF(Tabelle_Auswertung[[#This Row],[Punkte]]>0,RANK(Tabelle_Auswertung[[#This Row],[Punkte]],[Punkte],0)," - ")," - ") -> - | Z120: - - - | AB120: =IF(Tabelle_Auswertung[[#This Row],[Platz]]=1,CONCATENATE(Tabelle_Auswertung[[#This Row],[Bildname]]," von ",Tabelle_Auswertung[[#This Row],[Autor(in)]]),"") ->  | AC120: =IF(Tabelle_Auswertung[[#This Row],[Platz]]=2,CONCATENATE(Tabelle_Auswertung[[#This Row],[Bildname]]," von ",Tabelle_Auswertung[[#This Row],[Autor(in)]]),"") ->  | AD120: =IF(Tabelle_Auswertung[[#This Row],[Platz]]=3,CONCATENATE(Tabelle_Auswertung[[#This Row],[Bildname]]," von ",Tabelle_Auswertung[[#This Row],[Autor(in)]]),"") ->  | AE120: =IF(Tabelle_Auswertung[[#This Row],[Platz]]=4,CONCATENATE(Tabelle_Auswertung[[#This Row],[Bildname]]," von ",Tabelle_Auswertung[[#This Row],[Autor(in)]]),"") ->  | AF120: =IF(Tabelle_Auswertung[[#This Row],[Platz]]=5,CONCATENATE(Tabelle_Auswertung[[#This Row],[Bildname]]," von ",Tabelle_Auswertung[[#This Row],[Autor(in)]]),"") ->  | AG120: =IF(Tabelle_Auswertung[[#This Row],[Platz]]=6,CONCATENATE(Tabelle_Auswertung[[#This Row],[Bildname]]," von ",Tabelle_Auswertung[[#This Row],[Autor(in)]]),"") ->  | AH120: =IF(Tabelle_Auswertung[[#This Row],[Platz]]=7,CONCATENATE(Tabelle_Auswertung[[#This Row],[Bildname]]," von ",Tabelle_Auswertung[[#This Row],[Autor(in)]]),"") ->  | AI120: =IF(Tabelle_Auswertung[[#This Row],[Platz]]=8,CONCATENATE(Tabelle_Auswertung[[#This Row],[Bildname]]," von ",Tabelle_Auswertung[[#This Row],[Autor(in)]]),"") ->  | AJ120: =IF(Tabelle_Auswertung[[#This Row],[Platz]]=9,CONCATENATE(Tabelle_Auswertung[[#This Row],[Bildname]]," von ",Tabelle_Auswertung[[#This Row],[Autor(in)]]),"") ->  | AK120: =IF(Tabelle_Auswertung[[#This Row],[Platz]]=10,CONCATENATE(Tabelle_Auswertung[[#This Row],[Bildname]]," von ",Tabelle_Auswertung[[#This Row],[Autor(in)]]),"") -> 
A121: 117 | W121: =IF(Tabelle_Auswertung[[#This Row],[Bildname]]<>"", IF(Tabelle_Auswertung[[#This Row],[abwesend]]="ja", SUM(Tabelle_Auswertung[[#This Row],[Juror 1]:[Juror 20]])/COUNT(Tabelle_Auswertung[[#This Row],[Juror 1]:[Juror 20]])*(COUNT(Tabelle_Auswertung[[#This Row],[Juror 1]:[Juror 20]])-1), SUM(Tabelle_Auswertung[[#This Row],[Juror 1]:[Juror 20]]) ), " - ") -> - | X121: =IF(Tabelle_Auswertung[[#This Row],[Bildname]]<>"",IF(Tabelle_Auswertung[[#This Row],[Punkte]]>0,AVERAGE(Tabelle_Auswertung[[#This Row],[Juror 1]:[Juror 20]])," - ")," - ") -> - | Y121: =IF(Tabelle_Auswertung[[#This Row],[Bildname]]<>"",IF(Tabelle_Auswertung[[#This Row],[Punkte]]>0,RANK(Tabelle_Auswertung[[#This Row],[Punkte]],[Punkte],0)," - ")," - ") -> - | Z121: - - - | AB121: =IF(Tabelle_Auswertung[[#This Row],[Platz]]=1,CONCATENATE(Tabelle_Auswertung[[#This Row],[Bildname]]," von ",Tabelle_Auswertung[[#This Row],[Autor(in)]]),"") ->  | AC121: =IF(Tabelle_Auswertung[[#This Row],[Platz]]=2,CONCATENATE(Tabelle_Auswertung[[#This Row],[Bildname]]," von ",Tabelle_Auswertung[[#This Row],[Autor(in)]]),"") ->  | AD121: =IF(Tabelle_Auswertung[[#This Row],[Platz]]=3,CONCATENATE(Tabelle_Auswertung[[#This Row],[Bildname]]," von ",Tabelle_Auswertung[[#This Row],[Autor(in)]]),"") ->  | AE121: =IF(Tabelle_Auswertung[[#This Row],[Platz]]=4,CONCATENATE(Tabelle_Auswertung[[#This Row],[Bildname]]," von ",Tabelle_Auswertung[[#This Row],[Autor(in)]]),"") ->  | AF121: =IF(Tabelle_Auswertung[[#This Row],[Platz]]=5,CONCATENATE(Tabelle_Auswertung[[#This Row],[Bildname]]," von ",Tabelle_Auswertung[[#This Row],[Autor(in)]]),"") ->  | AG121: =IF(Tabelle_Auswertung[[#This Row],[Platz]]=6,CONCATENATE(Tabelle_Auswertung[[#This Row],[Bildname]]," von ",Tabelle_Auswertung[[#This Row],[Autor(in)]]),"") ->  | AH121: =IF(Tabelle_Auswertung[[#This Row],[Platz]]=7,CONCATENATE(Tabelle_Auswertung[[#This Row],[Bildname]]," von ",Tabelle_Auswertung[[#This Row],[Autor(in)]]),"") ->  | AI121: =IF(Tabelle_Auswertung[[#This Row],[Platz]]=8,CONCATENATE(Tabelle_Auswertung[[#This Row],[Bildname]]," von ",Tabelle_Auswertung[[#This Row],[Autor(in)]]),"") ->  | AJ121: =IF(Tabelle_Auswertung[[#This Row],[Platz]]=9,CONCATENATE(Tabelle_Auswertung[[#This Row],[Bildname]]," von ",Tabelle_Auswertung[[#This Row],[Autor(in)]]),"") ->  | AK121: =IF(Tabelle_Auswertung[[#This Row],[Platz]]=10,CONCATENATE(Tabelle_Auswertung[[#This Row],[Bildname]]," von ",Tabelle_Auswertung[[#This Row],[Autor(in)]]),"") -> 
A122: 118 | W122: =IF(Tabelle_Auswertung[[#This Row],[Bildname]]<>"", IF(Tabelle_Auswertung[[#This Row],[abwesend]]="ja", SUM(Tabelle_Auswertung[[#This Row],[Juror 1]:[Juror 20]])/COUNT(Tabelle_Auswertung[[#This Row],[Juror 1]:[Juror 20]])*(COUNT(Tabelle_Auswertung[[#This Row],[Juror 1]:[Juror 20]])-1), SUM(Tabelle_Auswertung[[#This Row],[Juror 1]:[Juror 20]]) ), " - ") -> - | X122: =IF(Tabelle_Auswertung[[#This Row],[Bildname]]<>"",IF(Tabelle_Auswertung[[#This Row],[Punkte]]>0,AVERAGE(Tabelle_Auswertung[[#This Row],[Juror 1]:[Juror 20]])," - ")," - ") -> - | Y122: =IF(Tabelle_Auswertung[[#This Row],[Bildname]]<>"",IF(Tabelle_Auswertung[[#This Row],[Punkte]]>0,RANK(Tabelle_Auswertung[[#This Row],[Punkte]],[Punkte],0)," - ")," - ") -> - | Z122: - - - | AB122: =IF(Tabelle_Auswertung[[#This Row],[Platz]]=1,CONCATENATE(Tabelle_Auswertung[[#This Row],[Bildname]]," von ",Tabelle_Auswertung[[#This Row],[Autor(in)]]),"") ->  | AC122: =IF(Tabelle_Auswertung[[#This Row],[Platz]]=2,CONCATENATE(Tabelle_Auswertung[[#This Row],[Bildname]]," von ",Tabelle_Auswertung[[#This Row],[Autor(in)]]),"") ->  | AD122: =IF(Tabelle_Auswertung[[#This Row],[Platz]]=3,CONCATENATE(Tabelle_Auswertung[[#This Row],[Bildname]]," von ",Tabelle_Auswertung[[#This Row],[Autor(in)]]),"") ->  | AE122: =IF(Tabelle_Auswertung[[#This Row],[Platz]]=4,CONCATENATE(Tabelle_Auswertung[[#This Row],[Bildname]]," von ",Tabelle_Auswertung[[#This Row],[Autor(in)]]),"") ->  | AF122: =IF(Tabelle_Auswertung[[#This Row],[Platz]]=5,CONCATENATE(Tabelle_Auswertung[[#This Row],[Bildname]]," von ",Tabelle_Auswertung[[#This Row],[Autor(in)]]),"") ->  | AG122: =IF(Tabelle_Auswertung[[#This Row],[Platz]]=6,CONCATENATE(Tabelle_Auswertung[[#This Row],[Bildname]]," von ",Tabelle_Auswertung[[#This Row],[Autor(in)]]),"") ->  | AH122: =IF(Tabelle_Auswertung[[#This Row],[Platz]]=7,CONCATENATE(Tabelle_Auswertung[[#This Row],[Bildname]]," von ",Tabelle_Auswertung[[#This Row],[Autor(in)]]),"") ->  | AI122: =IF(Tabelle_Auswertung[[#This Row],[Platz]]=8,CONCATENATE(Tabelle_Auswertung[[#This Row],[Bildname]]," von ",Tabelle_Auswertung[[#This Row],[Autor(in)]]),"") ->  | AJ122: =IF(Tabelle_Auswertung[[#This Row],[Platz]]=9,CONCATENATE(Tabelle_Auswertung[[#This Row],[Bildname]]," von ",Tabelle_Auswertung[[#This Row],[Autor(in)]]),"") ->  | AK122: =IF(Tabelle_Auswertung[[#This Row],[Platz]]=10,CONCATENATE(Tabelle_Auswertung[[#This Row],[Bildname]]," von ",Tabelle_Auswertung[[#This Row],[Autor(in)]]),"") -> 
